Workbook

Sheet Summary
A1: Report on eHR data quality
A2: Monitoring report on eHR cases (for eHR ISO use)
J4: Prepared by EHP4 Team | P4: Prepared by EHP11 Team | AC4: Prepared by EHP4 Team
R6: Rejected reason | V6: Regraded reason | Y6: Regraded level of data | AG6: Regraded reason
A7: Date | B7: HCP Full Name | C7: HCP Short Name | D7: HCP Type | E7: HCP ID | F7: Domain | G7: Data level | H7: System | I7: Connection System | J7: Total uploaded cases | K7: Total rejected cases | L7: Total cases display as L1 in EVE | M7: Total cases display as L2 in EVE | N7: Total cases display as L3 in EVE | P7: Total rejected cases | R7: Missed mandatory data | S7: Fail validation rule | T7: Total regraded cases | V7: Missed RT data | W7: Missed Codex data | X7: Missed Other data | Y7: Level 3 to 2 | Z7: Level 3 to 1 | AA7: Level 2 to 1 | AC7: Total success uploaded level 3 cases | AE7: Total regraded cases (Level 3 to 2) | AG7: Mis-match RT name | AH7: Inappropriate hierarchy | AI7: Mis-match RT code | AJ7: Mis-match RT description | AK7: Mis-match codex code | AL7: Mis-match codex description
P8: No. | Q8: % | R8: No. | S8: No. | T8: No. | U8: % | V8: No. | W8: No. | X8: No. | Y8: Level 3 to 2 | Z8: No. | AA8: No. | AC8: No. | AD8: % | AE8: No. | AF8: % | AG8: No. | AH8: No. | AI8: No. | AJ8: No. | AK8: No. | AL8: No.
A9: 13 Mar 2016 to 20 Mar 2016 | B9: DEPARTMENT OF HEALTH CIMS1 | C9: DH | D9: DH | E9: 8658917541 | F9: ADR | G9: 3 | H9: Local system | I9: Local System | J9: =SUM(K9:N9) -> 7 | K9: =P9 -> 0 | M9: 1 | N9: 6 | P9: =SUM(R9:S9) -> 0 | Q9: =P9/J9 -> 0 | R9: 0 | S9: 0 | T9: =SUM(Y9:AA9) -> 1 | U9: =T9/J9 -> 0.1428571429 | V9: 1 | W9: 0 | X9: 0 | Y9: 1 | Z9: 0 | AC9: 6 | AD9: =AC9/J9 -> 0.8571428571 | AE9: 0 | AF9: =AE9/J9 -> 0 | AG9: 0 | AI9: 0 | AJ9: 0 | AK9: 0 | AL9: 0
A10: 13 Mar 2016 to 20 Mar 2016 | B10: DEPARTMENT OF HEALTH CIMS1 | C10: DH | D10: DH | E10: 8658917541 | F10: AL1 | G10: 3 | H10: Local system | I10: Local System | J10: 7 | K10: 0 | M10: 2 | N10: 5 | P10: 0 | Q10: 0 | R10: 0 | S10: 0 | T10: 2 | U10: 0.2857142857 | V10: 0 | W10: 2 | X10: 0 | Y10: 2 | Z10: 0 | AC10: 5 | AD10: 0.7142857143 | AE10: 0 | AF10: 0 | AG10: 0 | AI10: 0 | AJ10: 0 | AK10: 0 | AL10: 0
A11: 13 Mar 2016 to 20 Mar 2016 | B11: DEPARTMENT OF HEALTH CIMS1 | C11: DH | D11: DH | E11: 8658917541 | F11: ENCTR | G11: 3 | H11: Local system | I11: Local System | J11: 489 | K11: 0 | M11: 0 | N11: 489 | P11: 0 | Q11: 0 | R11: 0 | S11: 0 | T11: 0 | U11: 0 | V11: 0 | W11: 0 | X11: 0 | AC11: 496 | AD11: 1.014314928 | AE11: 0 | AF11: 0 | AG11: 0 | AI11: 0 | AJ11: 0 | AK11: 0 | AL11: 0
A12: 13 Mar 2016 to 20 Mar 2016 | B12: DEPARTMENT OF HEALTH CIMS1 | C12: DH | D12: DH | E12: 8658917541 | F12: IMMU | G12: 3 | H12: Local system | I12: Local System | J12: 98 | K12: 0 | L12: 0 | M12: 1 | N12: 97 | P12: 0 | Q12: 0 | R12: 0 | S12: 0 | T12: 1 | U12: 0.01020408163 | V12: 1 | W12: 0 | X12: 0 | Y12: 1 | Z12: 0 | AA12: 0 | AC12: 97 | AD12: 0.9897959184 | AE12: 0 | AF12: 0 | AG12: 0 | AI12: 0 | AJ12: 0 | AK12: 0 | AL12: 0
A13: 13 Mar 2016 to 20 Mar 2016 | B13: DEPARTMENT OF HEALTH CIMS1 | C13: DH | D13: DH | E13: 8658917541 | F13: PROB | G13: 3 | H13: Local system | I13: Local System | J13: 231 | K13: 0 | M13: 10 | N13: 221 | P13: 0 | Q13: 0 | R13: 0 | S13: 0 | T13: 10 | U13: 0.04329004329 | V13: 10 | W13: 0 | X13: 0 | Y13: 10 | Z13: 0 | AC13: 221 | AD13: 0.9567099567 | AE13: 0 | AF13: 0 | AG13: 0 | AH13: 0 | AI13: 0 | AJ13: 0 | AK13: 0 | AL13: 0
A14: 13 Mar 2016 to 20 Mar 2016 | B14: DEPARTMENT OF HEALTH CIMS1 | C14: DH | D14: DH | E14: 8658917541 | F14: PX | G14: 3 | H14: Local system | I14: Local System | J14: 131 | K14: 0 | M14: 1 | N14: 130 | P14: 0 | Q14: 0 | R14: 0 | S14: 0 | T14: 1 | U14: 0.007633587786 | V14: 1 | W14: 0 | X14: 0 | Y14: 1 | Z14: 0 | AC14: 130 | AD14: 0.9923664122 | AE14: 0 | AF14: 0 | AG14: 0 | AH14: 0 | AI14: 0 | AJ14: 0 | AK14: 0 | AL14: 0
A15: 13 Mar 2016 to 20 Mar 2016 | B15: DEPARTMENT OF HEALTH CIMS1 | C15: DH | D15: DH | E15: 8658917541 | F15: RXO | G15: 3 | H15: Local system | I15: Local System | J15: 321 | K15: 0 | M15: 83 | N15: 238 | P15: 0 | Q15: 0 | R15: 0 | S15: 0 | T15: 83 | U15: 0.2585669782 | V15: 83 | W15: 0 | X15: 0 | Y15: 83 | Z15: 0 | AC15: 238 | AD15: 0.7414330218 | AE15: 0 | AF15: 0 | AG15: 0 | AI15: 0 | AJ15: 0 | AK15: 0 | AL15: 0
A16: 13 Mar 2016 to 20 Mar 2016 | B16: DR WONG CHUN POR | C16: DR CP WONG CLINIC | D16: SOLO | E16: 5528991274 | F16: ENCTR | G16: 3 | H16: Local system | I16: Local System | J16: 4 | K16: 0 | M16: 0 | N16: 4 | P16: 0 | Q16: 0 | R16: 0 | S16: 0 | T16: 0 | U16: 0 | V16: 0 | W16: 0 | X16: 0 | AC16: 4 | AD16: 1 | AE16: 0 | AF16: 0 | AG16: 0 | AI16: 0 | AJ16: 0 | AK16: 0 | AL16: 0
A17: 13 Mar 2016 to 20 Mar 2016 | B17: DR WONG CHUN POR | C17: DR CP WONG CLINIC | D17: SOLO | E17: 5528991274 | F17: PROB | G17: 3,2 | H17: Local system | I17: Local System | J17: 1 | K17: 0 | M17: 0 | N17: 1 | P17: 0 | Q17: 0 | R17: 0 | S17: 0 | T17: 0 | U17: 0 | V17: 0 | W17: 0 | X17: 0 | Y17: 0 | Z17: 0 | AC17: 1 | AD17: 1 | AE17: 0 | AF17: 0 | AG17: 0 | AH17: 0 | AI17: 0 | AJ17: 0 | AK17: 0 | AL17: 0
A18: 13 Mar 2016 to 20 Mar 2016 | B18: DR WONG CHUN POR | C18: DR CP WONG CLINIC | D18: SOLO | E18: 5528991274 | F18: RXO | G18: 3,2 | H18: Local system | I18: Local System | J18: 1 | K18: 0 | M18: 0 | N18: 1 | P18: 0 | Q18: 0 | R18: 0 | S18: 0 | T18: 0 | U18: 0 | V18: 0 | W18: 0 | X18: 0 | Y18: 0 | Z18: 0 | AC18: 1 | AD18: 1 | AE18: 0 | AF18: 0 | AG18: 0 | AI18: 0 | AJ18: 0 | AK18: 0 | AL18: 0
A19: 13 Mar 2016 to 20 Mar 2016 | B19: HONG KONG ADVENTIST HOSPITAL - STUBBS ROAD | C19: HK ADVENTIST - SR | D19: PH | E19: 7029571085 | F19: RXD | G19: 2 | H19: Local system + LAAM | I19: Local System | J19: 3 | K19: 0 | M19: 3 | N19: 0 | P19: 0 | Q19: 0 | R19: 0 | S19: 0 | T19: 0 | U19: 0 | V19: 0 | W19: 0 | X19: 0 | Y19: 0 | Z19: 0 | AC19: 0 | AD19: 0 | AE19: 0 | AF19: 0 | AG19: 0 | AI19: 0 | AJ19: 0 | AK19: 0 | AL19: 0
A20: 13 Mar 2016 to 20 Mar 2016 | B20: HONG KONG ADVENTIST HOSPITAL - TSUEN WAN | C20: HK ADVENTIST - TW | D20: PH | E20: 8909436562 | F20: AL1 | G20: 3 | H20: Local system | I20: Local System | J20: 2 | K20: 0 | M20: 0 | N20: 2 | P20: 0 | Q20: 0 | R20: 0 | S20: 0 | T20: 0 | U20: 0 | V20: 0 | W20: 0 | X20: 0 | Y20: 0 | Z20: 0 | AC20: 2 | AD20: 1 | AE20: 0 | AF20: 0 | AG20: 0 | AI20: 0 | AJ20: 0 | AK20: 0 | AL20: 0
A21: 13 Mar 2016 to 20 Mar 2016 | B21: HONG KONG ADVENTIST HOSPITAL - TSUEN WAN | C21: HK ADVENTIST - TW | D21: PH | E21: 8909436562 | F21: RAD | G21: 2 | H21: Local system | I21: Local System | J21: 66 | K21: 0 | L21: 0 | M21: 66 | N21: 0 | P21: 0 | Q21: 0 | R21: 0 | S21: 0 | T21: 0 | U21: 0 | V21: 0 | W21: 0 | X21: 0 | Y21: 0 | Z21: 0 | AA21: 0 | AC21: =J21-P21-T21 -> 66 | AD21: 1 | AE21: 0 | AF21: 0 | AG21: 0 | AI21: 0 | AJ21: 0 | AK21: 0 | AL21: 0
A22: 13 Mar 2016 to 20 Mar 2016 | B22: HONG KONG ADVENTIST HOSPITAL - TSUEN WAN | C22: HK ADVENTIST - TW | D22: PH | E22: 8909436562 | F22: RXD | G22: 2 | H22: Local system | I22: Local System | J22: 81 | K22: 0 | M22: 81 | N22: 0 | P22: 0 | Q22: 0 | R22: 0 | S22: 0 | T22: 0 | U22: 0 | V22: 0 | W22: 0 | X22: 0 | Y22: 0 | Z22: 0 | AC22: =J22-P22-T22 -> 81 | AD22: 1 | AE22: 0 | AF22: 0 | AG22: 0 | AI22: 0 | AJ22: 0 | AK22: 0 | AL22: 0
A23: 13 Mar 2016 to 20 Mar 2016 | B23: THE HONG KONG POLYTECHNIC UNIVERSITY | C23: POLYU | D23: HCAI | E23: 4578805814 | F23: ENCTR | G23: 3 | H23: Local system | I23: Local System | J23: 9 | K23: 0 | M23: 0 | N23: 9 | P23: 0 | Q23: 0 | R23: 0 | S23: 0 | T23: 0 | U23: 0 | V23: 0 | W23: 0 | X23: 0 | AC23: 9 | AD23: 1 | AE23: 0 | AF23: 0 | AG23: 0 | AI23: 0 | AJ23: 0 | AK23: 0 | AL23: 0
A24: 13 Mar 2016 to 20 Mar 2016 | B24: ST.TERESA's HOSPITAL | C24: STH | D24: PH | E24: 7969980015 | F24: AL1 | G24: 3 | H24: Local system | I24: Local System | J24: 7 | K24: 0 | M24: 1 | N24: 6 | P24: 0 | Q24: 0 | R24: 0 | S24: 0 | T24: 1 | U24: 0.1428571429 | V24: 0 | W24: 1 | X24: 0 | Y24: 1 | Z24: 0 | AC24: 6 | AD24: 0.8571428571 | AE24: 0 | AF24: 0 | AG24: 0 | AI24: 0 | AJ24: 0 | AK24: 0 | AL24: 0
A25: 13 Mar 2016 to 20 Mar 2016 Total | J25: =SUM(J9:J24) -> 1458 | K25: =SUM(K9:K24) -> 0 | L25: =SUM(L9:L24) -> 0 | M25: =SUM(M9:M24) -> 249 | N25: =SUM(N9:N24) -> 1209 | P25: =SUM(P9:P24) -> 0 | Q25: 0 | R25: =SUM(R9:R24) -> 0 | S25: =SUM(S9:S24) -> 0 | T25: =SUM(T9:T24) -> 99 | U25: 0.06790123457 | V25: =SUM(V9:V24) -> 96 | W25: 3 | X25: 0 | Y25: 99 | Z25: 0 | AA25: 0 | AC25: =SUM(AC9:AC24) -> 1363 | AD25: 0.9348422497 | AE25: =SUM(AE9:AE24) -> 0 | AF25: 0 | AG25: =SUM(AG9:AG24) -> 0 | AI25: =SUM(AI9:AI24) -> 0 | AJ25: =SUM(AJ9:AJ24) -> 0 | AK25: =SUM(AK9:AK24) -> 0 | AL25: =SUM(AL9:AL24) -> 0
A26: 21 Mar 2016 to 27 Mar 2016 | B26: DEPARTMENT OF HEALTH CIMS1 | C26: DH | D26: DH | E26: 8658917541 | F26: ADR | G26: 3 | H26: Local system | I26: Local System | J26: =SUM(K26:N26) -> 5 | K26: =P26 -> 0 | M26: 0 | N26: 5 | P26: 0 | Q26: 0 | R26: 0 | S26: 0 | T26: 0 | U26: 0 | V26: 0 | W26: 0 | X26: 0 | Y26: 0 | Z26: 0 | AC26: 5 | AD26: 1 | AE26: 0 | AF26: 0 | AG26: 0 | AI26: 0 | AJ26: 0 | AK26: 0 | AL26: 0
A27: 21 Mar 2016 to 27 Mar 2016 | B27: DEPARTMENT OF HEALTH CIMS1 | C27: DH | D27: DH | E27: 8658917541 | F27: AL1 | G27: 3 | H27: Local system | I27: Local System | J27: 14 | K27: 0 | M27: 2 | N27: 12 | P27: 0 | Q27: 0 | R27: 0 | S27: 0 | T27: 2 | U27: 0.1428571429 | V27: 0 | W27: 2 | X27: 0 | Y27: 2 | Z27: 0 | AC27: 12 | AD27: 0.8571428571 | AE27: 0 | AF27: 0 | AG27: 0 | AI27: 0 | AJ27: 0 | AK27: 0 | AL27: 0
A28: 21 Mar 2016 to 27 Mar 2016 | B28: DEPARTMENT OF HEALTH CIMS1 | C28: DH | D28: DH | E28: 8658917541 | F28: ENCTR | G28: 3 | H28: Local system | I28: Local System | J28: 523 | K28: 0 | M28: 0 | N28: 523 | P28: 0 | Q28: 0 | R28: 0 | S28: 0 | T28: 0 | U28: 0 | V28: 0 | W28: 0 | X28: 0 | AC28: 523 | AD28: 1 | AE28: 0 | AF28: 0 | AG28: 0 | AI28: 0 | AJ28: 0 | AK28: 0 | AL28: 0
A29: 21 Mar 2016 to 27 Mar 2016 | B29: DEPARTMENT OF HEALTH CIMS1 | C29: DH | D29: DH | E29: 8658917541 | F29: IMMU | G29: 3 | H29: Local system | I29: Local System | J29: 59 | K29: 0 | L29: 0 | M29: 3 | N29: 56 | P29: 0 | Q29: 0 | R29: 0 | S29: 0 | T29: 3 | U29: 0.05084745763 | V29: 3 | W29: 0 | X29: 0 | Y29: 3 | Z29: 0 | AA29: 0 | AC29: 56 | AD29: 0.9491525424 | AE29: 0 | AF29: 0 | AG29: 0 | AI29: 0 | AJ29: 0 | AK29: 0 | AL29: 0
A30: 21 Mar 2016 to 27 Mar 2016 | B30: DEPARTMENT OF HEALTH CIMS1 | C30: DH | D30: DH | E30: 8658917541 | F30: PROB | G30: 3 | H30: Local system | I30: Local System | J30: 338 | K30: 0 | M30: 14 | N30: 324 | P30: 0 | Q30: 0 | R30: 0 | S30: 0 | T30: 14 | U30: 0.04142011834 | V30: 14 | W30: 0 | X30: 0 | Y30: 14 | Z30: 0 | AC30: 324 | AD30: 0.9585798817 | AE30: 0 | AF30: 0 | AG30: 0 | AH30: 0 | AI30: 0 | AJ30: 0 | AK30: 0 | AL30: 0
A31: 21 Mar 2016 to 27 Mar 2016 | B31: DEPARTMENT OF HEALTH CIMS1 | C31: DH | D31: DH | E31: 8658917541 | F31: PX | G31: 3 | H31: Local system | I31: Local System | J31: 122 | K31: 0 | M31: 1 | N31: 121 | P31: 0 | Q31: 0 | R31: 0 | S31: 0 | T31: 1 | U31: 0.008196721311 | V31: 1 | W31: 0 | X31: 0 | Y31: 1 | Z31: 0 | AC31: 121 | AD31: 0.9918032787 | AE31: 0 | AF31: 0 | AG31: 0 | AH31: 0 | AI31: 0 | AJ31: 0 | AK31: 0 | AL31: 0
A32: 21 Mar 2016 to 27 Mar 2016 | B32: DEPARTMENT OF HEALTH CIMS1 | C32: DH | D32: DH | E32: 8658917541 | F32: RXO | G32: 3 | H32: Local system | I32: Local System | J32: 450 | K32: 0 | M32: 69 | N32: 381 | P32: 0 | Q32: 0 | R32: 0 | S32: 0 | T32: 69 | U32: 0.1533333333 | V32: 69 | W32: 0 | X32: 0 | Y32: 69 | Z32: 0 | AC32: 381 | AD32: 0.8466666667 | AE32: 0 | AF32: 0 | AG32: 0 | AI32: 0 | AJ32: 0 | AK32: 0 | AL32: 0
A33: 21 Mar 2016 to 27 Mar 2016 | B33: DR WONG CHUN POR | C33: DR CP WONG CLINIC | D33: SOLO | E33: 5528991274 | F33: ENCTR | G33: 3 | H33: Local system | I33: Local System | J33: 5 | K33: 0 | M33: 0 | N33: 5 | P33: 0 | Q33: 0 | R33: 0 | S33: 0 | T33: 0 | U33: 0 | V33: 0 | W33: 0 | X33: 0 | AC33: 5 | AD33: 1 | AE33: 0 | AF33: 0 | AG33: 0 | AI33: 0 | AJ33: 0 | AK33: 0 | AL33: 0
A34: 21 Mar 2016 to 27 Mar 2016 | B34: DR WONG CHUN POR | C34: DR CP WONG CLINIC | D34: SOLO | E34: 5528991274 | F34: PROB | G34: 3,2 | H34: Local system | I34: Local System | J34: 20 | K34: 0 | M34: 0 | N34: 20 | P34: 0 | Q34: 0 | R34: 0 | S34: 0 | T34: 0 | U34: 0 | V34: 0 | W34: 0 | X34: 0 | Y34: 0 | Z34: 0 | AC34: 20 | AD34: 1 | AE34: 0 | AF34: 0 | AG34: 0 | AH34: 0 | AI34: 0 | AJ34: 0 | AK34: 0 | AL34: 0
A35: 21 Mar 2016 to 27 Mar 2016 | B35: DR WONG CHUN POR | C35: DR CP WONG CLINIC | D35: SOLO | E35: 5528991274 | F35: RXD | G35: 3,2 | H35: Local system | I35: Local System | J35: 9 | K35: 0 | M35: 0 | N35: 9 | P35: 0 | Q35: 0 | R35: 0 | S35: 0 | T35: 0 | U35: 0 | V35: 0 | W35: 0 | X35: 0 | Y35: 0 | Z35: 0 | AC35: 9 | AD35: 1 | AE35: 0 | AF35: 0 | AG35: 0 | AI35: 0 | AJ35: 0 | AK35: 0 | AL35: 0
A36: 21 Mar 2016 to 27 Mar 2016 | B36: DR WONG CHUN POR | C36: DR CP WONG CLINIC | D36: SOLO | E36: 5528991274 | F36: RXO | G36: 3,2 | H36: Local system | I36: Local System | J36: 10 | K36: 0 | M36: 0 | N36: 10 | P36: 0 | Q36: 0 | R36: 0 | S36: 0 | T36: 0 | U36: 0 | V36: 0 | W36: 0 | X36: 0 | Y36: 0 | Z36: 0 | AC36: 10 | AD36: 1 | AE36: 0 | AF36: 0 | AG36: 0 | AI36: 0 | AJ36: 0 | AK36: 0 | AL36: 0
A37: 21 Mar 2016 to 27 Mar 2016 | B37: HONG KONG ADVENTIST HOSPITAL - STUBBS ROAD | C37: HK ADVENTIST - SR | D37: PH | E37: 7029571085 | F37: AL1 | G37: 3 | H37: Local system | I37: Local System | J37: 1 | K37: 0 | M37: 0 | N37: 1 | P37: 0 | Q37: 0 | R37: 0 | S37: 0 | T37: 0 | U37: 0 | V37: 0 | W37: 0 | X37: 0 | Y37: 0 | Z37: 0 | AC37: 1 | AD37: 1 | AE37: 0 | AF37: 0 | AG37: 0 | AI37: 0 | AJ37: 0 | AK37: 0 | AL37: 0
A38: 21 Mar 2016 to 27 Mar 2016 | B38: HONG KONG ADVENTIST HOSPITAL - STUBBS ROAD | C38: HK ADVENTIST - SR | D38: PH | E38: 7029571085 | F38: RAD | G38: 2 | H38: Local system | I38: Local System | J38: 6 | K38: 0 | L38: 0 | M38: 6 | N38: 0 | P38: 0 | Q38: 0 | R38: 0 | S38: 0 | T38: 0 | U38: 0 | V38: 0 | W38: 0 | X38: 0 | Y38: 0 | Z38: 0 | AC38: 0 | AD38: 0 | AE38: 0 | AF38: 0 | AG38: 0 | AI38: 0 | AJ38: 0 | AK38: 0 | AL38: 0
A39: 21 Mar 2016 to 27 Mar 2016 | B39: HONG KONG ADVENTIST HOSPITAL - STUBBS ROAD | C39: HK ADVENTIST - SR | D39: PH | E39: 7029571085 | F39: RXD | G39: 2 | H39: Local system + LAAM | I39: Local System | J39: 5 | K39: 0 | M39: 5 | N39: 0 | P39: 0 | Q39: 0 | R39: 0 | S39: 0 | T39: 0 | U39: 0 | V39: 0 | W39: 0 | X39: 0 | Y39: 0 | Z39: 0 | AC39: 0 | AD39: 0 | AE39: 0 | AF39: 0 | AG39: 0 | AI39: 0 | AJ39: 0 | AK39: 0 | AL39: 0
A40: 21 Mar 2016 to 27 Mar 2016 | B40: HONG KONG ADVENTIST HOSPITAL - TSUEN WAN | C40: HK ADVENTIST - TW | D40: PH | E40: 8909436562 | F40: AL1 | G40: 3 | H40: Local system | I40: Local System | J40: 5 | K40: 0 | M40: 1 | N40: 4 | P40: 0 | Q40: 0 | R40: 0 | S40: 0 | T40: 0 | U40: 0 | V40: 0 | W40: 0 | X40: 0 | Y40: 0 | Z40: 0 | AC40: 4 | AD40: 0.8 | AE40: 0 | AF40: 0 | AG40: 0 | AI40: 0 | AJ40: 0 | AK40: 0 | AL40: 0
A41: 21 Mar 2016 to 27 Mar 2016 | B41: HONG KONG ADVENTIST HOSPITAL - TSUEN WAN | C41: HK ADVENTIST - TW | D41: PH | E41: 8909436562 | F41: RAD | G41: 2 | H41: Local system | I41: Local System | J41: 123 | K41: 0 | L41: 0 | M41: 123 | N41: 0 | P41: 0 | Q41: 0 | R41: 0 | S41: 0 | T41: 0 | U41: 0 | V41: 0 | W41: 0 | X41: 0 | Y41: 0 | Z41: 0 | AA41: 0 | AC41: 0 | AD41: 0 | AE41: 0 | AF41: 0 | AG41: 0 | AI41: 0 | AJ41: 0 | AK41: 0 | AL41: 0
A42: 21 Mar 2016 to 27 Mar 2016 | B42: HONG KONG ADVENTIST HOSPITAL - TSUEN WAN | C42: HK ADVENTIST - TW | D42: PH | E42: 8909436562 | F42: RXD | G42: 2 | H42: Local system | I42: Local System | J42: 45 | K42: 0 | M42: 45 | N42: 0 | P42: 0 | Q42: 0 | R42: 0 | S42: 0 | T42: 0 | U42: 0 | V42: 0 | W42: 0 | X42: 0 | Y42: 0 | Z42: 0 | AC42: 0 | AD42: 0 | AE42: 0 | AF42: 0 | AG42: 0 | AI42: 0 | AJ42: 0 | AK42: 0 | AL42: 0
A43: 21 Mar 2016 to 27 Mar 2016 | B43: THE HONG KONG POLYTECHNIC UNIVERSITY | C43: POLYU | D43: HCAI | E43: 4578805814 | F43: ENCTR | G43: 3 | H43: Local system | I43: Local System | J43: 14 | K43: 0 | M43: 0 | N43: 14 | P43: 0 | Q43: 0 | R43: 0 | S43: 0 | T43: 0 | U43: 0 | V43: 0 | W43: 0 | X43: 0 | AC43: 14 | AD43: 1 | AE43: 0 | AF43: 0 | AG43: 0 | AI43: 0 | AJ43: 0 | AK43: 0 | AL43: 0
A44: 21 Mar 2016 to 27 Mar 2016 | B44: ST.TERESA's HOSPITAL | C44: STH | D44: PH | E44: 7969980015 | F44: AL1 | G44: 3 | H44: Local system | I44: Local System | J44: 13 | K44: 0 | M44: 8 | N44: 5 | P44: 0 | Q44: 0 | R44: 0 | S44: 0 | T44: 8 | U44: 0.6153846154 | V44: 0 | W44: 8 | X44: 0 | Y44: 8 | Z44: 0 | AC44: 5 | AD44: 0.3846153846 | AE44: 0 | AF44: 0 | AG44: 0 | AI44: 0 | AJ44: 0 | AK44: 0 | AL44: 0
A45: 21 Mar 2016 to 27 Mar 2016 Total | J45: =SUM(J26:J44) -> 1767 | K45: =SUM(K26:K44) -> 0 | L45: =SUM(L26:L44) -> 0 | M45: =SUM(M26:M44) -> 277 | N45: =SUM(N26:O44) -> 1490 | P45: =SUM(P26:P44) -> 0 | Q45: 0 | R45: =SUM(R26:R44) -> 0 | S45: =SUM(S26:S44) -> 0 | T45: =SUM(T26:T44) -> 97 | U45: 0.05489530277 | V45: =SUM(V26:V44) -> 87 | W45: 10 | X45: 0 | Y45: 97 | Z45: 0 | AA45: 0 | AC45: =SUM(AC26:AC44) -> 1490 | AD45: 0.8432371251 | AE45: =SUM(AE26:AE44) -> 0 | AF45: 0 | AG45: =SUM(AG26:AG44) -> 0 | AI45: =SUM(AI26:AI44) -> 0 | AJ45: =SUM(AJ26:AJ44) -> 0 | AK45: =SUM(AK26:AK44) -> 0 | AL45: =SUM(AL26:AL44) -> 0
A46: 28 Mar 2016 to 3 Apr 2016 | B46: CHIRON HEALTHCARE GROUP LIMITED | C46: CHIRON HEALTHCARE | D46: GROUP | E46: 9451612824 | F46: ENCTR | G46: 3 | H46: Local system | I46: Local System | J46: =SUM(K46:N46) -> 2 | K46: 0 | M46: 0 | N46: 2 | P46: 0 | Q46: 0 | R46: 0 | S46: 0 | T46: 0 | U46: 0 | V46: 0 | W46: 0 | X46: 0 | AC46: 2 | AD46: 1 | AE46: 0 | AF46: 0 | AG46: 0 | AI46: 0 | AJ46: 0 | AK46: 0 | AL46: 0
A47: 28 Mar 2016 to 3 Apr 2016 | B47: CHIRON HEALTHCARE GROUP LIMITED | C47: CHIRON HEALTHCARE | D47: GROUP | E47: 9451612824 | F47: PROB | G47: 3,2 | H47: Local system | I47: Local System | J47: 1 | K47: 0 | M47: 0 | N47: 1 | P47: 0 | Q47: 0 | R47: 0 | S47: 0 | T47: 0 | U47: 0 | V47: 0 | W47: 0 | X47: 0 | Y47: 0 | Z47: 0 | AC47: 1 | AD47: 1 | AE47: 0 | AF47: 0 | AG47: 0 | AH47: 0 | AI47: 0 | AJ47: 0 | AK47: 0 | AL47: 0
A48: 28 Mar 2016 to 3 Apr 2016 | B48: DEPARTMENT OF HEALTH CIMS1 | C48: DH | D48: DH | E48: 8658917541 | F48: ADR | G48: 3 | H48: Local system | I48: Local System | J48: 14 | K48: 0 | M48: 3 | N48: 11 | P48: 0 | Q48: 0 | R48: 0 | S48: 0 | T48: 3 | U48: 0.2142857143 | V48: 3 | W48: 0 | X48: 0 | Y48: 3 | Z48: 0 | AC48: 11 | AD48: 0.7857142857 | AE48: 0 | AF48: 0 | AG48: 0 | AI48: 0 | AJ48: 0 | AK48: 0 | AL48: 0
A49: 28 Mar 2016 to 3 Apr 2016 | B49: DEPARTMENT OF HEALTH CIMS1 | C49: DH | D49: DH | E49: 8658917541 | F49: AL1 | G49: 3 | H49: Local system | I49: Local System | J49: 17 | K49: 0 | M49: 3 | N49: 14 | P49: 0 | Q49: 0 | R49: 0 | S49: 0 | T49: 3 | U49: 0.1764705882 | V49: 0 | W49: 3 | X49: 0 | Y49: 3 | Z49: 0 | AC49: 14 | AD49: 0.8235294118 | AE49: 0 | AF49: 0 | AG49: 0 | AI49: 0 | AJ49: 0 | AK49: 0 | AL49: 0
A50: 28 Mar 2016 to 3 Apr 2016 | B50: DEPARTMENT OF HEALTH CIMS1 | C50: DH | D50: DH | E50: 8658917541 | F50: ENCTR | G50: 3 | H50: Local system | I50: Local System | J50: 528 | K50: 0 | M50: 0 | N50: 528 | P50: 0 | Q50: 0 | R50: 0 | S50: 0 | T50: 0 | U50: 0 | V50: 0 | W50: 0 | X50: 0 | AC50: 528 | AD50: 1 | AE50: 0 | AF50: 0 | AG50: 0 | AI50: 0 | AJ50: 0 | AK50: 0 | AL50: 0
A51: 28 Mar 2016 to 3 Apr 2016 | B51: DEPARTMENT OF HEALTH CIMS1 | C51: DH | D51: DH | E51: 8658917541 | F51: IMMU | G51: 3 | H51: Local system | I51: Local System | J51: 189 | K51: 0 | L51: 0 | M51: 5 | N51: 184 | P51: 0 | Q51: 0 | R51: 0 | S51: 0 | T51: 5 | U51: 0.02645502646 | V51: 5 | W51: 0 | X51: 0 | Y51: 5 | Z51: 0 | AA51: 0 | AC51: 184 | AD51: 0.9735449735 | AE51: 0 | AF51: 0 | AG51: 0 | AI51: 0 | AJ51: 0 | AK51: 0 | AL51: 0
A52: 28 Mar 2016 to 3 Apr 2016 | B52: DEPARTMENT OF HEALTH CIMS1 | C52: DH | D52: DH | E52: 8658917541 | F52: PROB | G52: 3 | H52: Local system | I52: Local System | J52: 298 | K52: 0 | M52: 18 | N52: 280 | P52: 0 | Q52: 0 | R52: 0 | S52: 0 | T52: 18 | U52: 0.06040268456 | V52: 18 | W52: 0 | X52: 0 | Y52: 18 | Z52: 0 | AC52: 280 | AD52: 0.9395973154 | AE52: 0 | AF52: 0 | AG52: 0 | AH52: 0 | AI52: 0 | AJ52: 0 | AK52: 0 | AL52: 0
A53: 28 Mar 2016 to 3 Apr 2016 | B53: DEPARTMENT OF HEALTH CIMS1 | C53: DH | D53: DH | E53: 8658917541 | F53: PX | G53: 3 | H53: Local system | I53: Local System | J53: 147 | K53: 0 | M53: 3 | N53: 144 | P53: 0 | Q53: 0 | R53: 0 | S53: 0 | T53: 3 | U53: 0.02040816327 | V53: 3 | W53: 0 | X53: 0 | Y53: 3 | Z53: 0 | AC53: 144 | AD53: 0.9795918367 | AE53: 0 | AF53: 0 | AG53: 0 | AH53: 0 | AI53: 0 | AJ53: 0 | AK53: 0 | AL53: 0
A54: 28 Mar 2016 to 3 Apr 2016 | B54: DEPARTMENT OF HEALTH CIMS1 | C54: DH | D54: DH | E54: 8658917541 | F54: RXO | G54: 3 | H54: Local system | I54: Local System | J54: 429 | K54: 0 | M54: 94 | N54: 335 | P54: 0 | Q54: 0 | R54: 0 | S54: 0 | T54: 94 | U54: 0.2191142191 | V54: 94 | W54: 0 | X54: 0 | Y54: 94 | Z54: 0 | AC54: 335 | AD54: 0.7808857809 | AE54: 0 | AF54: 0 | AG54: 0 | AI54: 0 | AJ54: 0 | AK54: 0 | AL54: 0
A55: 28 Mar 2016 to 3 Apr 2016 | B55: DR WONG CHUN POR | C55: DR CP WONG CLINIC | D55: SOLO | E55: 5528991274 | F55: ENCTR | G55: 3 | H55: Local system | I55: Local System | J55: 12 | K55: 0 | M55: 0 | N55: 12 | P55: 0 | Q55: 0 | R55: 0 | S55: 0 | T55: 0 | U55: 0 | V55: 0 | W55: 0 | X55: 0 | AC55: 12 | AD55: 1 | AE55: 0 | AF55: 0 | AG55: 0 | AI55: 0 | AJ55: 0 | AK55: 0 | AL55: 0
A56: 28 Mar 2016 to 3 Apr 2016 | B56: DR WONG CHUN POR | C56: DR CP WONG CLINIC | D56: SOLO | E56: 5528991274 | F56: IMMU | G56: 3,2 | H56: Local system | I56: Local System | J56: 2 | K56: 0 | L56: 0 | M56: 2 | N56: 0 | P56: 0 | Q56: 0 | R56: 0 | S56: 0 | T56: 0 | U56: 0 | V56: 0 | W56: 0 | X56: 0 | Y56: 0 | Z56: 0 | AA56: 0 | AC56: 0 | AD56: 0 | AE56: 0 | AF56: 0 | AG56: 0 | AI56: 0 | AJ56: 0 | AK56: 0 | AL56: 0
A57: 28 Mar 2016 to 3 Apr 2016 | B57: DR WONG CHUN POR | C57: DR CP WONG CLINIC | D57: SOLO | E57: 5528991274 | F57: PROB | G57: 3,2 | H57: Local system | I57: Local System | J57: 23 | K57: 0 | M57: 1 | N57: 22 | P57: 0 | Q57: 0 | R57: 0 | S57: 0 | T57: 0 | U57: 0 | V57: 0 | W57: 0 | X57: 0 | Y57: 0 | Z57: 0 | AC57: 22 | AD57: 0.9565217391 | AE57: 0 | AF57: 0 | AG57: 0 | AH57: 0 | AI57: 0 | AJ57: 0 | AK57: 0 | AL57: 0
A58: 28 Mar 2016 to 3 Apr 2016 | B58: DR WONG CHUN POR | C58: DR CP WONG CLINIC | D58: SOLO | E58: 5528991274 | F58: RXD | G58: 3,2 | H58: Local system | I58: Local System | J58: 15 | K58: 0 | M58: 3 | N58: 12 | P58: 0 | Q58: 0 | R58: 0 | S58: 0 | T58: 0 | U58: 0 | V58: 0 | W58: 0 | X58: 0 | Y58: 0 | Z58: 0 | AC58: 12 | AD58: 0.8 | AE58: 0 | AF58: 0 | AG58: 0 | AI58: 0 | AJ58: 0 | AK58: 0 | AL58: 0
A59: 28 Mar 2016 to 3 Apr 2016 | B59: DR WONG CHUN POR | C59: DR CP WONG CLINIC | D59: SOLO | E59: 5528991274 | F59: RXO | G59: 3,2 | H59: Local system | I59: Local System | J59: 20 | K59: 0 | M59: 5 | N59: 15 | P59: 0 | Q59: 0 | R59: 0 | S59: 0 | T59: 0 | U59: 0 | V59: 0 | W59: 0 | X59: 0 | Y59: 0 | Z59: 0 | AC59: 15 | AD59: 0.75 | AE59: 0 | AF59: 0 | AG59: 0 | AI59: 0 | AJ59: 0 | AK59: 0 | AL59: 0
A60: 28 Mar 2016 to 3 Apr 2016 | B60: HONG KONG ADVENTIST HOSPITAL - STUBBS ROAD | C60: HK ADVENTIST - SR | D60: PH | E60: 7029571085 | F60: RXD | G60: 2 | H60: Local system + LAAM | I60: Local System | J60: 4 | K60: 0 | M60: 4 | N60: 0 | P60: 0 | Q60: 0 | R60: 0 | S60: 0 | T60: 0 | U60: 0 | V60: 0 | W60: 0 | X60: 0 | Y60: 0 | Z60: 0 | AC60: 0 | AD60: 0 | AE60: 0 | AF60: 0 | AG60: 0 | AI60: 0 | AJ60: 0 | AK60: 0 | AL60: 0
A61: 28 Mar 2016 to 3 Apr 2016 | B61: HONG KONG ADVENTIST HOSPITAL - TSUEN WAN | C61: HK ADVENTIST - TW | D61: PH | E61: 8909436562 | F61: AL1 | G61: 3 | H61: Local system | I61: Local System | J61: 4 | K61: 0 | M61: 1 | N61: 3 | P61: 0 | Q61: 0 | R61: 0 | S61: 0 | T61: 1 | U61: 0.25 | V61: 0 | W61: 1 | X61: 0 | Y61: 0 | Z61: 0 | AC61: 3 | AD61: 0.75 | AE61: 0 | AF61: 0 | AG61: 0 | AI61: 0 | AJ61: 0 | AK61: 0 | AL61: 0
A62: 28 Mar 2016 to 3 Apr 2016 | B62: HONG KONG ADVENTIST HOSPITAL - TSUEN WAN | C62: HK ADVENTIST - TW | D62: PH | E62: 8909436562 | F62: RAD | G62: 2 | H62: Local system | I62: Local System | J62: 105 | K62: 0 | L62: 0 | M62: 105 | N62: 0 | P62: 0 | Q62: 0 | R62: 0 | S62: 0 | T62: 0 | U62: 0 | V62: 0 | W62: 0 | X62: 0 | Y62: 0 | Z62: 0 | AA62: 0 | AC62: 0 | AD62: 0 | AE62: 0 | AF62: 0 | AG62: 0 | AI62: 0 | AJ62: 0 | AK62: 0 | AL62: 0
A63: 28 Mar 2016 to 3 Apr 2016 | B63: HONG KONG ADVENTIST HOSPITAL - TSUEN WAN | C63: HK ADVENTIST - TW | D63: PH | E63: 8909436562 | F63: RXD | G63: 2 | H63: Local system | I63: Local System | J63: 63 | K63: 0 | M63: 63 | N63: 0 | P63: 0 | Q63: 0 | R63: 0 | S63: 0 | T63: 0 | U63: 0 | V63: 0 | W63: 0 | X63: 0 | Y63: 0 | Z63: 0 | AC63: 0 | AD63: 0 | AE63: 0 | AF63: 0 | AG63: 0 | AI63: 0 | AJ63: 0 | AK63: 0 | AL63: 0
A64: 28 Mar 2016 to 3 Apr 2016 | B64: ST.TERESA's HOSPITAL | C64: STH | D64: PH | E64: 7969980015 | F64: AL1 | G64: 3 | H64: Local system | I64: Local System | J64: 2 | K64: 0 | M64: 1 | N64: 1 | P64: 0 | Q64: 0 | R64: 0 | S64: 0 | T64: 1 | U64: 0.5 | V64: 0 | W64: 1 | X64: 0 | Y64: 1 | Z64: 0 | AA64: 0 | AC64: 1 | AD64: 0.5 | AE64: 0 | AF64: 0 | AG64: 0 | AI64: 0 | AJ64: 0 | AK64: 0 | AL64: 0
A65: 28 Mar 2016 to 3 Apr 2016 Total | J65: =SUM(J46:J64) -> 1875 | K65: =SUM(K46:K64) -> 0 | L65: =SUM(L46:L64) -> 0 | M65: =SUM(M46:M64) -> 311 | N65: =SUM(N46:N64) -> 1564 | P65: =SUM(P46:P64) -> 0 | Q65: 0 | R65: =SUM(R46:R64) -> 0 | S65: =SUM(S46:S64) -> 0 | T65: =SUM(T46:T64) -> 128 | U65: 0.06826666667 | V65: =SUM(V46:V64) -> 123 | W65: 5 | X65: 0 | Y65: 127 | Z65: 0 | AA65: 0 | AC65: =SUM(AC46:AC64) -> 1564 | AD65: 0.8341333333 | AE65: =SUM(AE46:AE64) -> 0 | AF65: 0 | AG65: =SUM(AG46:AG64) -> 0 | AI65: =SUM(AI46:AI64) -> 0 | AJ65: =SUM(AJ46:AJ64) -> 0 | AK65: =SUM(AK46:AK64) -> 0 | AL65: =SUM(AL46:AL64) -> 0
A66: 4 Apr 2016 to 10 Apr 2016 | B66: DEPARTMENT OF HEALTH CIMS1 | C66: DH | D66: DH | E66: 8658917541 | F66: ADR | G66: 3 | H66: Local system | I66: Local System | J66: =SUM(K66:N66) -> 13 | K66: =P66 -> 0 | M66: 2 | N66: 11 | P66: 0 | Q66: 0 | R66: 0 | S66: 0 | T66: =SUM(Y66:AA66) -> 2 | U66: 0.1538461538 | V66: 2 | W66: 0 | X66: 0 | Y66: 2 | Z66: 0 | AC66: 11 | AD66: 0.8461538462 | AE66: 0 | AF66: 0 | AG66: 0 | AI66: 0 | AJ66: 0 | AK66: 0 | AL66: 0
A67: 4 Apr 2016 to 10 Apr 2016 | B67: DEPARTMENT OF HEALTH CIMS1 | C67: DH | D67: DH | E67: 8658917541 | F67: AL1 | G67: 3 | H67: Local system | I67: Local System | J67: 52 | K67: 0 | M67: 12 | N67: 40 | P67: 0 | Q67: 0 | R67: 0 | S67: 0 | T67: 12 | U67: 0.2307692308 | V67: 0 | W67: 12 | X67: 0 | Y67: 12 | Z67: 0 | AC67: 40 | AD67: 0.7692307692 | AE67: 0 | AF67: 0 | AG67: 0 | AI67: 0 | AJ67: 0 | AK67: 0 | AL67: 0
A68: 4 Apr 2016 to 10 Apr 2016 | B68: DEPARTMENT OF HEALTH CIMS1 | C68: DH | D68: DH | E68: 8658917541 | F68: ENCTR | G68: 3 | H68: Local system | I68: Local System | J68: 923 | K68: 0 | M68: 0 | N68: 923 | P68: 0 | Q68: 0 | R68: 0 | S68: 0 | T68: 0 | U68: 0 | V68: 0 | W68: 0 | X68: 0 | AC68: 923 | AD68: 1 | AE68: 0 | AF68: 0 | AG68: 0 | AI68: 0 | AJ68: 0 | AK68: 0 | AL68: 0
A69: 4 Apr 2016 to 10 Apr 2016 | B69: DEPARTMENT OF HEALTH CIMS1 | C69: DH | D69: DH | E69: 8658917541 | F69: IMMU | G69: 3 | H69: Local system | I69: Local System | J69: 278 | K69: 0 | L69: 0 | M69: 12 | N69: 266 | P69: 0 | Q69: 0 | R69: 0 | S69: 0 | T69: 12 | U69: 0.04316546763 | V69: 12 | W69: 0 | X69: 0 | Y69: 12 | Z69: 0 | AA69: 0 | AC69: 266 | AD69: 0.9568345324 | AE69: 0 | AF69: 0 | AG69: 0 | AI69: 0 | AJ69: 0 | AK69: 0 | AL69: 0
A70: 4 Apr 2016 to 10 Apr 2016 | B70: DEPARTMENT OF HEALTH CIMS1 | C70: DH | D70: DH | E70: 8658917541 | F70: PROB | G70: 3 | H70: Local system | I70: Local System | J70: 658 | K70: 0 | M70: 31 | N70: 627 | P70: 0 | Q70: 0 | R70: 0 | S70: 0 | T70: 31 | U70: 0.04711246201 | V70: 31 | W70: 0 | X70: 0 | Y70: 31 | Z70: 0 | AC70: 627 | AD70: 0.952887538 | AE70: 0 | AF70: 0 | AG70: 0 | AH70: 0 | AI70: 0 | AJ70: 0 | AK70: 0 | AL70: 0
A71: 4 Apr 2016 to 10 Apr 2016 | B71: DEPARTMENT OF HEALTH CIMS1 | C71: DH | D71: DH | E71: 8658917541 | F71: PX | G71: 3 | H71: Local system | I71: Local System | J71: 160 | K71: 0 | M71: 5 | N71: 155 | P71: 0 | Q71: 0 | R71: 0 | S71: 0 | T71: 5 | U71: 0.03125 | V71: 5 | W71: 0 | X71: 0 | Y71: 5 | Z71: 0 | AC71: 155 | AD71: 0.96875 | AE71: 0 | AF71: 0 | AG71: 0 | AH71: 0 | AI71: 0 | AJ71: 0 | AK71: 0 | AL71: 0
A72: 4 Apr 2016 to 10 Apr 2016 | B72: DEPARTMENT OF HEALTH CIMS1 | C72: DH | D72: DH | E72: 8658917541 | F72: RXO | G72: 3 | H72: Local system | I72: Local System | J72: 927 | K72: 0 | M72: 207 | N72: 720 | P72: 0 | Q72: 0 | R72: 0 | S72: 0 | T72: 207 | U72: 0.2233009709 | V72: 207 | W72: 0 | X72: 0 | Y72: 207 | Z72: 0 | AC72: 720 | AD72: 0.7766990291 | AE72: 0 | AF72: 0 | AG72: 0 | AI72: 0 | AJ72: 0 | AK72: 0 | AL72: 0
A73: 4 Apr 2016 to 10 Apr 2016 | B73: DR WONG CHUN POR | C73: DR CP WONG CLINIC | D73: SOLO | E73: 5528991274 | F73: ENCTR | G73: 3 | H73: Local system | I73: Local System | J73: 36 | K73: 0 | M73: 0 | N73: 36 | P73: 0 | Q73: =P73/J73 -> 0 | R73: 0 | S73: 0 | T73: 0 | U73: =T73/J73 -> 0 | V73: 0 | W73: 0 | X73: 0 | AC73: 36 | AD73: =AC73/J73 -> 1 | AE73: 0 | AF73: =AE73/J73 -> 0 | AG73: 0 | AI73: 0 | AJ73: 0 | AK73: 0 | AL73: 0
A74: 4 Apr 2016 to 10 Apr 2016 | B74: DR WONG CHUN POR | C74: DR CP WONG CLINIC | D74: SOLO | E74: 5528991274 | F74: PROB | G74: 3,2 | H74: Local system | I74: Local System | J74: 131 | K74: 0 | M74: 0 | N74: 131 | P74: 0 | Q74: 0 | R74: 0 | S74: 0 | T74: 0 | U74: 0 | V74: 0 | W74: 0 | X74: 0 | Y74: 0 | Z74: 0 | AC74: 131 | AD74: 1 | AE74: 0 | AF74: 0 | AG74: 0 | AH74: 0 | AI74: 0 | AJ74: 0 | AK74: 0 | AL74: 0
A75: 4 Apr 2016 to 10 Apr 2016 | B75: DR WONG CHUN POR | C75: DR CP WONG CLINIC | D75: SOLO | E75: 5528991274 | F75: RXD | G75: 3,2 | H75: Local system | I75: Local System | J75: 162 | K75: 0 | M75: 30 | N75: 132 | P75: 0 | Q75: 0 | R75: 0 | S75: 0 | T75: 0 | U75: 0 | V75: 0 | W75: 0 | X75: 0 | Y75: 0 | Z75: 0 | AC75: 132 | AD75: 0.8148148148 | AE75: 0 | AF75: 0 | AG75: 0 | AI75: 0 | AJ75: 0 | AK75: 0 | AL75: 0
A76: 4 Apr 2016 to 10 Apr 2016 | B76: DR WONG CHUN POR | C76: DR CP WONG CLINIC | D76: SOLO | E76: 5528991274 | F76: RXO | G76: 3,2 | H76: Local system | I76: Local System | J76: 162 | K76: 0 | M76: 30 | N76: 132 | P76: 0 | Q76: 0 | R76: 0 | S76: 0 | T76: 0 | U76: 0 | V76: 0 | W76: 0 | X76: 0 | Y76: 0 | Z76: 0 | AC76: 132 | AD76: 0.8148148148 | AE76: 0 | AF76: 0 | AG76: 0 | AI76: 0 | AJ76: 0 | AK76: 0 | AL76: 0
A77: 4 Apr 2016 to 10 Apr 2016 | B77: EVANGEL HOSPITAL | C77: EVANGEL HOSPITAL | D77: PH | E77: 2206285885 | F77: ENCTR | G77: 3,2 | H77: Local system | I77: Local System | J77: 15 | K77: 0 | M77: 0 | N77: 15 | P77: 0 | Q77: 0 | R77: 0 | S77: 0 | T77: 0 | U77: 0 | V77: 0 | W77: 0 | X77: 0 | Y77: 0 | Z77: 0 | AC77: 15 | AD77: 1 | AE77: 0 | AF77: 0 | AG77: 0 | AI77: 0 | AJ77: 0 | AK77: 0 | AL77: 0
A78: 4 Apr 2016 to 10 Apr 2016 | B78: HONG KONG ADVENTIST HOSPITAL - STUBBS ROAD | C78: HK ADVENTIST - SR | D78: PH | E78: 7029571085 | F78: RXD | G78: 2 | H78: Local system + LAAM | I78: Local System | J78: 10 | K78: 0 | M78: 10 | N78: 0 | P78: 0 | Q78: 0 | R78: 0 | S78: 0 | T78: 0 | U78: 0 | V78: 0 | W78: 0 | X78: 0 | Y78: 0 | Z78: 0 | AC78: 0 | AD78: 0 | AE78: 0 | AF78: 0 | AG78: 0 | AI78: 0 | AJ78: 0 | AK78: 0 | AL78: 0
A79: 4 Apr 2016 to 10 Apr 2016 | B79: HONG KONG ADVENTIST HOSPITAL - TSUEN WAN | C79: HK ADVENTIST - TW | D79: PH | E79: 8909436562 | F79: AL1 | G79: 3 | H79: Local system | I79: Local System | J79: 4 | K79: 0 | M79: 0 | N79: 4 | P79: 0 | Q79: 0 | R79: 0 | S79: 0 | T79: 0 | U79: 0 | V79: 0 | W79: 0 | X79: 0 | Y79: 0 | Z79: 0 | AC79: 4 | AD79: 1 | AE79: 0 | AF79: 0 | AG79: 0 | AI79: 0 | AJ79: 0 | AK79: 0 | AL79: 0
A80: 4 Apr 2016 to 10 Apr 2016 | B80: HONG KONG ADVENTIST HOSPITAL - TSUEN WAN | C80: HK ADVENTIST - TW | D80: PH | E80: 8909436562 | F80: RAD | G80: 2 | H80: Local system | I80: Local System | J80: 93 | K80: 0 | L80: 0 | M80: 93 | N80: 0 | P80: 0 | Q80: 0 | R80: 0 | S80: 0 | T80: 0 | U80: 0 | V80: 0 | W80: 0 | X80: 0 | Y80: 0 | Z80: 0 | AA80: 0 | AC80: 0 | AD80: 0 | AE80: 0 | AF80: 0 | AG80: 0 | AI80: 0 | AJ80: 0 | AK80: 0 | AL80: 0
A81: 4 Apr 2016 to 10 Apr 2016 | B81: HONG KONG ADVENTIST HOSPITAL - TSUEN WAN | C81: HK ADVENTIST - TW | D81: PH | E81: 8909436562 | F81: RXD | G81: 2 | H81: Local system | I81: Local System | J81: 74 | K81: 0 | M81: 74 | N81: 0 | P81: 0 | Q81: 0 | R81: 0 | S81: 0 | T81: 0 | U81: 0 | V81: 0 | W81: 0 | X81: 0 | Y81: 0 | Z81: 0 | AC81: 0 | AD81: 0 | AE81: 0 | AF81: 0 | AG81: 0 | AI81: 0 | AJ81: 0 | AK81: 0 | AL81: 0
A82: 4 Apr 2016 to 10 Apr 2016 | B82: THE HONG KONG POLYTECHNIC UNIVERSITY | C82: POLYU | D82: HCAI | E82: 4578805814 | F82: ENCTR | G82: 3 | H82: Local system | I82: Local System | J82: 76 | K82: 0 | M82: 0 | N82: 76 | P82: 0 | Q82: 0 | R82: 0 | S82: 0 | T82: 0 | U82: 0 | V82: 0 | W82: 0 | X82: 0 | Y82: 0 | Z82: 0 | AC82: 76 | AD82: 1 | AE82: 0 | AF82: 0 | AG82: 0 | AI82: 0 | AJ82: 0 | AK82: 0 | AL82: 0
A83: 4 Apr 2016 to 10 Apr 2016 | B83: ST. PAUL'S HOSPITAL | C83: SPH | D83: PH | E83: 5156724947 | F83: ADR | G83: 3 | H83: Local system | I83: Local System | J83: 10 | K83: 0 | M83: 3 | N83: 7 | P83: 0 | Q83: 0 | R83: 0 | S83: 0 | T83: 3 | U83: 0.3 | V83: 3 | W83: 0 | X83: 0 | Y83: 3 | Z83: 0 | AC83: 7 | AD83: 0.7 | AE83: 0 | AF83: 0 | AG83: 0 | AI83: 0 | AJ83: 0 | AK83: 0 | AL83: 0
A84: 4 Apr 2016 to 10 Apr 2016 | B84: ST. PAUL'S HOSPITAL | C84: SPH | D84: PH | E84: 5156724947 | F84: AL1 | G84: 3 | H84: Local system | I84: Local System | J84: 32 | K84: 0 | M84: 19 | N84: 13 | P84: 0 | Q84: 0 | R84: 0 | S84: 0 | T84: 17 | U84: 0.53125 | V84: 0 | W84: 17 | X84: 0 | Y84: 17 | Z84: 0 | AC84: 13 | AD84: 0.40625 | AE84: 2 | AF84: 0.0625 | AG84: 0 | AI84: 0 | AJ84: 2 | AK84: 0 | AL84: 0
A85: 4 Apr 2016 to 10 Apr 2016 | B85: ST.TERESA's HOSPITAL | C85: STH | D85: PH | E85: 7969980015 | F85: AL1 | G85: 3 | H85: Local system | I85: Local System | J85: 10 | K85: 0 | M85: 4 | N85: 6 | P85: 0 | Q85: 0 | R85: 0 | S85: 0 | T85: 4 | U85: 0.4 | V85: 0 | W85: 4 | X85: 0 | Y85: 4 | Z85: 0 | AA85: 0 | AC85: 6 | AD85: 0.6 | AE85: 0 | AF85: 0 | AG85: 0 | AI85: 0 | AJ85: 0 | AK85: 0 | AL85: 0
A86: 4 Apr 2016 to 10 Apr 2016 | B86: UNION HOSPITAL | C86: UNION HOSPITAL | D86: PH | E86: 5712620300 | F86: ADR | G86: 3 | H86: Local system | I86: Local System | J86: 1 | K86: 0 | M86: 0 | N86: 1 | P86: 0 | Q86: 0 | R86: 0 | S86: 0 | T86: 0 | U86: 0 | V86: 0 | W86: 0 | X86: 0 | Y86: 0 | Z86: 0 | AA86: 0 | AC86: 1 | AD86: 1 | AE86: 0 | AF86: 0 | AG86: 0 | AI86: 0 | AJ86: 0 | AK86: 0 | AL86: 0
A87: 4 Apr 2016 to 10 Apr 2016 | B87: UNION HOSPITAL | C87: UNION HOSPITAL | D87: PH | E87: 5712620300 | F87: AL1 | G87: 3 | H87: Local system | I87: Local System | J87: 50 | K87: 0 | M87: 30 | N87: 20 | P87: 0 | Q87: 0 | R87: 0 | S87: 0 | T87: 29 | U87: 0.58 | V87: 0 | W87: 29 | X87: 0 | Y87: 29 | Z87: 0 | AA87: 0 | AC87: 20 | AD87: 0.4 | AE87: 0 | AF87: 0 | AG87: 0 | AI87: 0 | AJ87: 0 | AK87: 0 | AL87: 0
A88: 4 Apr 2016 to 10 Apr 2016 Total | J88: =SUM(J66:J87) -> 3877 | K88: =SUM(K66:K87) -> 0 | L88: =SUM(L66:L87) -> 0 | M88: =SUM(M66:M87) -> 562 | N88: =SUM(N66:N87) -> 3315 | P88: =SUM(P66:P87) -> 0 | Q88: 0 | R88: =SUM(R66:R87) -> 0 | S88: =SUM(S66:S87) -> 0 | T88: =SUM(T66:T87) -> 322 | U88: 0.08305390766 | V88: =SUM(V66:V87) -> 260 | W88: 62 | X88: 0 | Y88: 322 | Z88: 0 | AA88: 0 | AC88: =SUM(AC66:AC87) -> 3315 | AD88: 0.8550425587 | AE88: =SUM(AE66:AE87) -> 2 | AF88: 0.0005158627805 | AG88: =SUM(AG66:AG87) -> 0 | AI88: =SUM(AI66:AI87) -> 0 | AJ88: =SUM(AJ66:AJ87) -> 2 | AK88: =SUM(AK66:AK87) -> 0 | AL88: =SUM(AL66:AL87) -> 0
A89: 11 Apr 2016 to 30 Apr 2016 | B89: CHIRON HEALTHCARE GROUP LIMITED | C89: CHIRON HEALTHCARE | D89: GROUP | E89: 9451612824 | F89: ENCTR | G89: 3 | H89: Local system | I89: Local System | J89: =SUM(K89:N89) -> 2 | K89: =P89 -> 0 | M89: 0 | N89: 2 | P89: =SUM(R89:S89) -> 0 | Q89: 0 | R89: 0 | S89: 0 | T89: 0 | U89: 0 | V89: 0 | W89: 0 | X89: 0 | AC89: 2 | AD89: 1 | AE89: 0 | AF89: 0 | AG89: 0 | AI89: 0 | AJ89: 0 | AK89: 0 | AL89: 0
A90: 11 Apr 2016 to 30 Apr 2016 | B90: CHIRON HEALTHCARE GROUP LIMITED | C90: CHIRON HEALTHCARE | D90: GROUP | E90: 9451612824 | F90: PROB | G90: 3,2 | H90: Local system | I90: Local System | J90: 1 | K90: 0 | M90: 0 | N90: 1 | P90: 0 | Q90: 0 | R90: 0 | S90: 0 | T90: 0 | U90: 0 | V90: 0 | W90: 0 | X90: 0 | AC90: 1 | AD90: 1 | AE90: 0 | AF90: 0 | AG90: 0 | AH90: 0 | AI90: 0 | AJ90: 0 | AK90: 0 | AL90: 0
A91: 11 Apr 2016 to 30 Apr 2016 | B91: DEPARTMENT OF HEALTH CIMS1 | C91: DH | D91: DH | E91: 8658917541 | F91: ADR | G91: 3 | H91: Local system | I91: Local System | J91: 94 | K91: 0 | M91: 17 | N91: 77 | P91: 0 | Q91: 0 | R91: 0 | S91: 0 | T91: =SUM(Y91:AA91) -> 17 | U91: 0.1808510638 | V91: 16 | W91: 1 | X91: 0 | Y91: 17 | Z91: 0 | AC91: 77 | AD91: 0.8191489362 | AE91: 0 | AF91: 0 | AG91: 0 | AI91: 0 | AJ91: 0 | AK91: 0 | AL91: 0
A92: 11 Apr 2016 to 30 Apr 2016 | B92: DEPARTMENT OF HEALTH CIMS1 | C92: DH | D92: DH | E92: 8658917541 | F92: AL1 | G92: 3 | H92: Local system | I92: Local System | J92: 195 | K92: 0 | M92: 31 | N92: 164 | P92: 0 | Q92: 0 | R92: 0 | S92: 0 | T92: 30 | U92: 0.1538461538 | V92: 0 | W92: 30 | X92: 0 | Y92: 30 | Z92: 0 | AC92: 164 | AD92: 0.841025641 | AE92: 0 | AF92: 0 | AG92: 0 | AI92: 0 | AJ92: 0 | AK92: 0 | AL92: 0
A93: 11 Apr 2016 to 30 Apr 2016 | B93: DEPARTMENT OF HEALTH CIMS1 | C93: DH | D93: DH | E93: 8658917541 | F93: ENCTR | G93: 3 | H93: Local system | I93: Local System | J93: 4879 | K93: 0 | M93: 0 | N93: 4879 | P93: 0 | Q93: 0 | R93: 0 | S93: 0 | T93: 0 | U93: 0 | V93: 0 | W93: 0 | X93: 0 | AC93: 4879 | AD93: 1 | AE93: 0 | AF93: 0 | AG93: 0 | AI93: 0 | AJ93: 0 | AK93: 0 | AL93: 0
A94: 11 Apr 2016 to 30 Apr 2016 | B94: DEPARTMENT OF HEALTH CIMS1 | C94: DH | D94: DH | E94: 8658917541 | F94: IMMU | G94: 3 | H94: Local system | I94: Local System | J94: 901 | K94: 2 | L94: 0 | M94: 16 | N94: 883 | P94: 2 | Q94: 0.002219755827 | R94: 0 | S94: 2 | T94: 16 | U94: 0.01775804661 | V94: 16 | W94: 0 | X94: 0 | Y94: 16 | Z94: 0 | AA94: 0 | AC94: 883 | AD94: 0.9800221976 | AE94: 0 | AF94: 0 | AG94: 0 | AI94: 0 | AJ94: 0 | AK94: 0 | AL94: 0
A95: 11 Apr 2016 to 30 Apr 2016 | B95: DEPARTMENT OF HEALTH CIMS1 | C95: DH | D95: DH | E95: 8658917541 | F95: PROB | G95: 3 | H95: Local system | I95: Local System | J95: 3504 | K95: 0 | M95: 134 | N95: 3370 | P95: 0 | Q95: 0 | R95: 0 | S95: 0 | T95: 134 | U95: 0.03824200913 | V95: 134 | W95: 0 | X95: 0 | Y95: 134 | Z95: 0 | AC95: 3370 | AD95: 0.9617579909 | AE95: 0 | AF95: 0 | AG95: 0 | AH95: 0 | AI95: 0 | AJ95: 0 | AK95: 0 | AL95: 0
A96: 11 Apr 2016 to 30 Apr 2016 | B96: DEPARTMENT OF HEALTH CIMS1 | C96: DH | D96: DH | E96: 8658917541 | F96: PX | G96: 3 | H96: Local system | I96: Local System | J96: 1439 | K96: 0 | M96: 29 | N96: 1410 | P96: 0 | Q96: 0 | R96: 0 | S96: 0 | T96: 29 | U96: 0.02015288395 | V96: 29 | W96: 0 | X96: 0 | Y96: 29 | Z96: 0 | AC96: 1410 | AD96: 0.9798471161 | AE96: 0 | AF96: 0 | AG96: 0 | AH96: 0 | AI96: 0 | AJ96: 0 | AK96: 0 | AL96: 0
A97: 11 Apr 2016 to 30 Apr 2016 | B97: DEPARTMENT OF HEALTH CIMS1 | C97: DH | D97: DH | E97: 8658917541 | F97: RXO | G97: 3 | H97: Local system | I97: Local System | J97: 4740 | K97: 1 | M97: 969 | N97: 3770 | P97: 1 | Q97: 0.0002109704641 | R97: 1 | S97: 0 | T97: 969 | U97: 0.2044303797 | V97: 969 | W97: 0 | X97: 0 | Y97: 969 | Z97: 0 | AC97: 3770 | AD97: 0.7953586498 | AE97: 0 | AF97: 0 | AG97: 0 | AI97: 0 | AJ97: 0 | AK97: 0 | AL97: 0
A98: 11 Apr 2016 to 30 Apr 2016 | B98: DR WONG CHUN POR | C98: DR CP WONG CLINIC | D98: SOLO | E98: 5528991274 | F98: AL1 | G98: 3,2 | H98: Local system | I98: Local System | J98: 1 | K98: 0 | M98: 0 | N98: 1 | P98: 0 | Q98: 0 | R98: 0 | S98: 0 | T98: 0 | U98: 0 | V98: 0 | W98: 0 | X98: 0 | Y98: 0 | Z98: 0 | AC98: 1 | AD98: 1 | AE98: 0 | AF98: 0 | AG98: 0 | AI98: 0 | AJ98: 0 | AK98: 0 | AL98: 0
A99: 11 Apr 2016 to 30 Apr 2016 | B99: DR WONG CHUN POR | C99: DR CP WONG CLINIC | D99: SOLO | E99: 5528991274 | F99: ENCTR | G99: 3 | H99: Local system | I99: Local System | J99: 64 | K99: 0 | M99: 0 | N99: 64 | P99: 0 | Q99: 0 | R99: 0 | S99: 0 | T99: 0 | U99: 0 | V99: 0 | W99: 0 | X99: 0 | AC99: 64 | AD99: 1 | AE99: 0 | AF99: 0 | AG99: 0 | AI99: 0 | AJ99: 0 | AK99: 0 | AL99: 0
A100: 11 Apr 2016 to 30 Apr 2016 | B100: DR WONG CHUN POR | C100: DR CP WONG CLINIC | D100: SOLO | E100: 5528991274 | F100: PROB | G100: 3,2 | H100: Local system | I100: Local System | J100: 153 | K100: 0 | M100: 0 | N100: 153 | P100: 0 | Q100: 0 | R100: 0 | S100: 0 | T100: 0 | U100: 0 | V100: 0 | W100: 0 | X100: 0 | AC100: 153 | AD100: 1 | AE100: 0 | AF100: 0 | AG100: 0 | AH100: 0 | AI100: 0 | AJ100: 0 | AK100: 0 | AL100: 0
A101: 11 Apr 2016 to 30 Apr 2016 | B101: DR WONG CHUN POR | C101: DR CP WONG CLINIC | D101: SOLO | E101: 5528991274 | F101: RXD | G101: 3,2 | H101: Local system | I101: Local System | J101: 142 | K101: 0 | M101: 22 | N101: 120 | P101: 0 | Q101: 0 | R101: 0 | S101: 0 | T101: 0 | U101: 0 | V101: 0 | W101: 0 | X101: 0 | Y101: 0 | Z101: 0 | AC101: 120 | AD101: 0.8450704225 | AE101: 0 | AF101: 0 | AG101: 0 | AI101: 0 | AJ101: 0 | AK101: 0 | AL101: 0
A102: 11 Apr 2016 to 30 Apr 2016 | B102: DR WONG CHUN POR | C102: DR CP WONG CLINIC | D102: SOLO | E102: 5528991274 | F102: RXO | G102: 3,2 | H102: Local system | I102: Local System | J102: 163 | K102: 0 | M102: 28 | N102: 135 | P102: 0 | Q102: 0 | R102: 0 | S102: 0 | T102: 0 | U102: 0 | V102: 0 | W102: 0 | X102: 0 | Y102: 0 | Z102: 0 | AC102: 135 | AD102: 0.8282208589 | AE102: 0 | AF102: 0 | AG102: 0 | AI102: 0 | AJ102: 0 | AK102: 0 | AL102: 0
A103: 11 Apr 2016 to 30 Apr 2016 | B103: EVANGEL HOSPITAL | C103: EVANGEL HOSPITAL | D103: PH | E103: 2206285885 | F103: ENCTR | G103: 3,2 | H103: Local system | I103: Local System | J103: 97 | K103: 0 | M103: 0 | N103: 97 | P103: 0 | Q103: 0 | R103: 0 | S103: 0 | T103: 0 | U103: 0 | V103: 0 | W103: 0 | X103: 0 | AC103: 97 | AD103: 1 | AE103: 0 | AF103: 0 | AG103: 0 | AI103: 0 | AJ103: 0 | AK103: 0 | AL103: 0
A104: 11 Apr 2016 to 30 Apr 2016 | B104: HONG KONG ADVENTIST HOSPITAL - STUBBS ROAD | C104: HK ADVENTIST - SR | D104: PH | E104: 7029571085 | F104: RXD | G104: 2 | H104: Local system + LAAM | I104: Local System | J104: 38 | K104: 0 | M104: 38 | N104: 0 | P104: 0 | Q104: 0 | R104: 0 | S104: 0 | T104: 0 | U104: 0 | V104: 0 | W104: 0 | X104: 0 | Y104: 0 | Z104: 0 | AC104: 0 | AD104: 0 | AE104: 0 | AF104: 0 | AG104: 0 | AI104: 0 | AJ104: 0 | AK104: 0 | AL104: 0
A105: 11 Apr 2016 to 30 Apr 2016 | B105: HONG KONG ADVENTIST HOSPITAL - TSUEN WAN | C105: HK ADVENTIST - TW | D105: PH | E105: 8909436562 | F105: ADR | G105: 3 | H105: Local system | I105: Local System | J105: 5 | K105: 0 | M105: 0 | N105: 5 | P105: 0 | Q105: 0 | R105: 0 | S105: 0 | T105: 0 | U105: 0 | V105: 0 | W105: 0 | X105: 0 | Y105: 0 | Z105: 0 | AC105: 5 | AD105: 1 | AE105: 0 | AF105: 0 | AG105: 0 | AI105: 0 | AJ105: 0 | AK105: 0 | AL105: 0
A106: 11 Apr 2016 to 30 Apr 2016 | B106: HONG KONG ADVENTIST HOSPITAL - TSUEN WAN | C106: HK ADVENTIST - TW | D106: PH | E106: 8909436562 | F106: AL1 | G106: 3 | H106: Local system | I106: Local System | J106: 11 | K106: 0 | M106: 1 | N106: 10 | P106: 0 | Q106: 0 | R106: 0 | S106: 0 | T106: 1 | U106: 0.09090909091 | V106: 0 | W106: 1 | X106: 0 | Y106: 1 | Z106: 0 | AC106: 10 | AD106: 0.9090909091 | AE106: 0 | AF106: 0 | AG106: 0 | AI106: 0 | AJ106: 0 | AK106: 0 | AL106: 0
A107: 11 Apr 2016 to 30 Apr 2016 | B107: HONG KONG ADVENTIST HOSPITAL - TSUEN WAN | C107: HK ADVENTIST - TW | D107: PH | E107: 8909436562 | F107: RAD | G107: 2 | H107: Local system | I107: Local System | J107: 489 | K107: 0 | L107: 0 | M107: 489 | N107: 0 | P107: 0 | Q107: 0 | R107: 0 | S107: 0 | T107: 0 | U107: 0 | V107: 0 | W107: 0 | X107: 0 | Y107: 0 | Z107: 0 | AA107: 0 | AC107: 0 | AD107: 0 | AE107: 0 | AF107: 0 | AG107: 0 | AI107: 0 | AJ107: 0 | AK107: 0 | AL107: 0
A108: 11 Apr 2016 to 30 Apr 2016 | B108: HONG KONG ADVENTIST HOSPITAL - TSUEN WAN | C108: HK ADVENTIST - TW | D108: PH | E108: 8909436562 | F108: RXD | G108: 2 | H108: Local system | I108: Local System | J108: 490 | K108: 0 | M108: 490 | N108: 0 | P108: 0 | Q108: 0 | R108: 0 | S108: 0 | T108: 0 | U108: 0 | V108: 0 | W108: 0 | X108: 0 | Y108: 0 | Z108: 0 | AC108: 0 | AD108: 0 | AE108: 0 | AF108: 0 | AG108: 0 | AI108: 0 | AJ108: 0 | AK108: 0 | AL108: 0
A109: 11 Apr 2016 to 30 Apr 2016 | B109: HONG KONG BAPTIST HOSPITAL | C109: HK BAPTIST HOSPITAL | D109: PH | E109: 3650324540 | F109: ENCTR | G109: 3 | H109: Local system | I109: Local System | J109: 21 | K109: 0 | M109: 0 | N109: 21 | Q109: 0 | U109: 0 | AC109: 21 | AD109: 1 | AE109: 0 | AF109: 0 | AG109: 0 | AI109: 0 | AJ109: 0 | AK109: 0 | AL109: 0
A110: 11 Apr 2016 to 30 Apr 2016 | B110: THE HONG KONG POLYTECHNIC UNIVERSITY | C110: POLYU | D110: HCAI | E110: 4578805814 | F110: ENCTR | G110: 3 | H110: Local system | I110: Local System | J110: 251 | K110: 0 | M110: 0 | N110: 251 | P110: 0 | Q110: 0 | R110: 0 | S110: 0 | T110: 0 | U110: 0 | V110: 0 | W110: 0 | X110: 0 | AC110: 251 | AD110: 1 | AE110: 0 | AF110: 0 | AG110: 0 | AI110: 0 | AJ110: 0 | AK110: 0 | AL110: 0
A111: 11 Apr 2016 to 30 Apr 2016 | B111: ST. PAUL'S HOSPITAL | C111: SPH | D111: PH | E111: 5156724947 | F111: ADR | G111: 3 | H111: Local system | I111: Local System | J111: 7 | K111: 0 | M111: 3 | N111: 4 | P111: 0 | Q111: 0 | R111: 0 | S111: 0 | T111: 3 | U111: 0.4285714286 | V111: 3 | W111: 0 | X111: 0 | Y111: 3 | Z111: 0 | AC111: 4 | AD111: 0.5714285714 | AE111: 0 | AF111: 0 | AG111: 0 | AI111: 0 | AJ111: 0 | AK111: 0 | AL111: 0
A112: 11 Apr 2016 to 30 Apr 2016 | B112: ST. PAUL'S HOSPITAL | C112: SPH | D112: PH | E112: 5156724947 | F112: AL1 | G112: 3 | H112: Local system | I112: Local System | J112: 54 | K112: 0 | M112: 14 | N112: 40 | P112: 0 | Q112: 0 | R112: 0 | S112: 0 | T112: 19 | U112: 0.3518518519 | V112: 0 | W112: 19 | X112: 0 | Y112: 19 | Z112: 0 | AC112: 40 | AD112: 0.7407407407 | AE112: 0 | AF112: 0 | AG112: 0 | AI112: 0 | AJ112: 0 | AK112: 0 | AL112: 0
A113: 11 Apr 2016 to 30 Apr 2016 | B113: ST.TERESA's HOSPITAL | C113: STH | D113: PH | E113: 7969980015 | F113: ADR | G113: 3 | H113: Local system | I113: Local System | J113: 1 | K113: 0 | M113: 0 | N113: 1 | P113: 0 | Q113: 0 | R113: 0 | S113: 0 | T113: 0 | U113: 0 | V113: 0 | W113: 0 | X113: 0 | Y113: 0 | Z113: 0 | AC113: 1 | AD113: 1 | AE113: 0 | AF113: 0 | AG113: 0 | AI113: 0 | AJ113: 0 | AK113: 0 | AL113: 0
A114: 11 Apr 2016 to 30 Apr 2016 | B114: ST.TERESA's HOSPITAL | C114: STH | D114: PH | E114: 7969980015 | F114: AL1 | G114: 3 | H114: Local system | I114: Local System | J114: 44 | K114: 0 | M114: 15 | N114: 29 | P114: 0 | Q114: 0 | R114: 0 | S114: 0 | T114: 16 | U114: 0.3636363636 | V114: 0 | W114: 16 | X114: 0 | Y114: 16 | Z114: 0 | AC114: 29 | AD114: 0.6590909091 | AE114: 0 | AF114: 0 | AG114: 0 | AI114: 0 | AJ114: 0 | AK114: 0 | AL114: 0
A115: 11 Apr 2016 to 30 Apr 2016 | B115: ST.TERESA's HOSPITAL | C115: STH | D115: PH | E115: 7969980015 | F115: BIRTH | G115: 3 | H115: Local system | I115: Local System | J115: 8 | K115: 4 | M115: 0 | N115: 4 | P115: 4 | Q115: 0.5 | R115: 4 | S115: 0 | T115: 0 | U115: 0 | V115: 0 | W115: 0 | X115: 0 | Y115: 0 | Z115: 0 | AA115: 0 | AC115: 4 | AD115: 0.5 | AE115: 0 | AF115: 0 | AG115: 0 | AI115: 0 | AJ115: 0 | AK115: 0 | AL115: 0
A116: 11 Apr 2016 to 30 Apr 2016 | B116: UNION HOSPITAL | C116: UNION HOSPITAL | D116: PH | E116: 5712620300 | F116: ADR | G116: 3 | H116: Local system | I116: Local System | J116: 6 | K116: 0 | M116: 2 | N116: 4 | P116: 0 | Q116: 0 | R116: 0 | S116: 0 | T116: 2 | U116: 0.3333333333 | V116: 2 | W116: 0 | X116: 0 | Y116: 2 | Z116: 0 | AC116: 4 | AD116: 0.6666666667 | AE116: 0 | AF116: 0 | AG116: 0 | AI116: 0 | AJ116: 0 | AK116: 0 | AL116: 0
A117: 11 Apr 2016 to 30 Apr 2016 | B117: UNION HOSPITAL | C117: UNION HOSPITAL | D117: PH | E117: 5712620300 | F117: AL1 | G117: 3 | H117: Local system | I117: Local System | J117: 67 | K117: 0 | M117: 33 | N117: 34 | P117: 0 | Q117: 0 | R117: 0 | S117: 0 | T117: 31 | U117: 0.4626865672 | V117: 0 | W117: 31 | X117: 0 | Y117: 31 | Z117: 0 | AC117: 34 | AD117: 0.5074626866 | AE117: 0 | AF117: 0 | AG117: 0 | AI117: 0 | AJ117: 0 | AK117: 0 | AL117: 0
A118: 11 Apr 2016 to 30 Apr 2016 | B118: UNION HOSPITAL | C118: UNION HOSPITAL | D118: PH | E118: 5712620300 | F118: ENCTR | G118: 3 | H118: Local system | I118: Local System | J118: 53 | K118: 0 | M118: 0 | N118: 53 | P118: 0 | Q118: 0 | R118: 0 | S118: 0 | T118: 0 | U118: 0 | V118: 0 | W118: 0 | X118: 0 | AC118: 53 | AD118: 1 | AE118: 0 | AF118: 0 | AG118: 0 | AI118: 0 | AJ118: 0 | AK118: 0 | AL118: 0
A119: 11 Apr 2016 to 30 Apr 2016 Total | J119: =SUM(J89:J118) -> 17920 | K119: =SUM(K89:K118) -> 7 | L119: =SUM(L89:L118) -> 0 | M119: =SUM(M89:M118) -> 2331 | N119: =SUM(N89:N118) -> 15582 | P119: =SUM(P89:P118) -> 7 | Q119: 0.000390625 | R119: =SUM(R89:R118) -> 5 | S119: =SUM(S89:S118) -> 2 | T119: =SUM(T89:T118) -> 1267 | U119: 0.070703125 | V119: =SUM(V89:V118) -> 1169 | W119: 98 | X119: 0 | Y119: 1267 | Z119: 0 | AA119: 0 | AC119: =SUM(AC89:AC118) -> 15582 | AD119: 0.86953125 | AE119: =SUM(AE89:AE118) -> 0 | AF119: 0 | AG119: =SUM(AG89:AG118) -> 0 | AI119: =SUM(AI89:AI118) -> 0 | AJ119: =SUM(AJ89:AJ118) -> 0 | AK119: =SUM(AK89:AK118) -> 0 | AL119: =SUM(AL89:AL118) -> 0
A120: 1 May 2016 to 31 May 2016 | B120: CHIRON HEALTHCARE GROUP LIMITED | C120: CHIRON HEALTHCARE | D120: GROUP | E120: 9451612824 | F120: ENCTR | G120: 3 | H120: Local system | I120: Local System | J120: =SUM(K120:N120) -> 8 | K120: =P120 -> 0 | M120: 0 | N120: 8 | P120: =SUM(R120:S120) -> 0 | Q120: 0 | R120: 0 | S120: 0 | T120: 0 | U120: 0 | V120: 0 | W120: 0 | X120: 0 | AC120: 8 | AD120: 1 | AE120: 0 | AF120: 0 | AG120: 0 | AI120: 0 | AJ120: 0 | AK120: 0 | AL120: 0
A121: 1 May 2016 to 31 May 2016 | B121: CHIRON HEALTHCARE GROUP LIMITED | C121: CHIRON HEALTHCARE | D121: GROUP | E121: 9451612824 | F121: PROB | G121: 3,2 | H121: Local system | I121: Local System | J121: 4 | K121: 0 | M121: 1 | N121: 3 | P121: 0 | Q121: 0 | R121: 0 | S121: 0 | T121: 0 | U121: 0 | V121: 0 | W121: 0 | X121: 0 | AC121: 3 | AD121: 0.75 | AE121: 0 | AF121: 0 | AG121: 0 | AH121: 0 | AI121: 0 | AJ121: 0 | AK121: 0 | AL121: 0
A122: 1 May 2016 to 31 May 2016 | B122: DEPARTMENT OF HEALTH CIMS1 | C122: DH | D122: DH | E122: 8658917541 | F122: ADR | G122: 3 | H122: Local system | I122: Local System | J122: 240 | K122: 0 | M122: 27 | N122: 213 | P122: 0 | Q122: 0 | R122: 0 | S122: 0 | T122: =SUM(Y122:AA122) -> 27 | U122: 0.1125 | V122: 27 | W122: 0 | X122: 0 | Y122: 27 | Z122: 0 | AC122: 213 | AD122: 0.8875 | AE122: 0 | AF122: 0 | AG122: 0 | AI122: 0 | AJ122: 0 | AK122: 0 | AL122: 0
A123: 1 May 2016 to 31 May 2016 | B123: DEPARTMENT OF HEALTH CIMS1 | C123: DH | D123: DH | E123: 8658917541 | F123: AL1 | G123: 3 | H123: Local system | I123: Local System | J123: 414 | K123: 0 | M123: 94 | N123: 320 | P123: 0 | Q123: 0 | R123: 0 | S123: 0 | T123: 88 | U123: 0.2125603865 | V123: 0 | W123: 88 | X123: 0 | Y123: 88 | Z123: 0 | AC123: 320 | AD123: 0.7729468599 | AE123: 0 | AF123: 0 | AG123: 0 | AI123: 0 | AJ123: 0 | AK123: 0 | AL123: 0
A124: 1 May 2016 to 31 May 2016 | B124: DEPARTMENT OF HEALTH CIMS1 | C124: DH | D124: DH | E124: 8658917541 | F124: ENCTR | G124: 3 | H124: Local system | I124: Local System | J124: 9378 | K124: 0 | M124: 0 | N124: 9378 | P124: 0 | Q124: 0 | R124: 0 | S124: 0 | T124: 0 | U124: 0 | V124: 0 | W124: 0 | X124: 0 | AC124: 9378 | AD124: 1 | AE124: 0 | AF124: 0 | AG124: 0 | AI124: 0 | AJ124: 0 | AK124: 0 | AL124: 0
A125: 1 May 2016 to 31 May 2016 | B125: DEPARTMENT OF HEALTH CIMS1 | C125: DH | D125: DH | E125: 8658917541 | F125: IMMU | G125: 3 | H125: Local system | I125: Local System | J125: 1912 | K125: 41 | L125: 0 | M125: 56 | N125: 1815 | P125: 41 | Q125: 0.02144351464 | R125: 0 | S125: 41 | T125: 56 | U125: 0.02928870293 | V125: 56 | W125: 0 | X125: 0 | Y125: 56 | Z125: 0 | AA125: 0 | AC125: 1815 | AD125: 0.9492677824 | AE125: 0 | AF125: 0 | AG125: 0 | AI125: 0 | AJ125: 0 | AK125: 0 | AL125: 0
A126: 1 May 2016 to 31 May 2016 | B126: DEPARTMENT OF HEALTH CIMS1 | C126: DH | D126: DH | E126: 8658917541 | F126: PROB | G126: 3 | H126: Local system | I126: Local System | J126: 9374 | K126: 0 | M126: 353 | N126: 9021 | P126: 0 | Q126: 0 | R126: 0 | S126: 0 | T126: 353 | U126: 0.03765735012 | V126: 353 | W126: 0 | X126: 0 | Y126: 353 | Z126: 0 | AC126: 9021 | AD126: 0.9623426499 | AE126: 0 | AF126: 0 | AG126: 0 | AH126: 0 | AI126: 0 | AJ126: 0 | AK126: 0 | AL126: 0
A127: 1 May 2016 to 31 May 2016 | B127: DEPARTMENT OF HEALTH CIMS1 | C127: DH | D127: DH | E127: 8658917541 | F127: PX | G127: 3 | H127: Local system | I127: Local System | J127: 2524 | K127: 0 | M127: 55 | N127: 2469 | P127: 0 | Q127: 0 | R127: 0 | S127: 0 | T127: 55 | U127: 0.02179080824 | V127: 55 | W127: 0 | X127: 0 | Y127: 55 | Z127: 0 | AC127: 2469 | AD127: 0.9782091918 | AE127: 0 | AF127: 0 | AG127: 0 | AH127: 0 | AI127: 0 | AJ127: 0 | AK127: 0 | AL127: 0
A128: 1 May 2016 to 31 May 2016 | B128: DEPARTMENT OF HEALTH CIMS1 | C128: DH | D128: DH | E128: 8658917541 | F128: RXO | G128: 3 | H128: Local system | I128: Local System | J128: 12779 | K128: 0 | M128: 2355 | N128: 10424 | P128: 0 | Q128: 0 | R128: 0 | S128: 0 | T128: 2355 | U128: 0.1842867204 | V128: 2355 | W128: 0 | X128: 0 | Y128: 2355 | Z128: 0 | AC128: 10424 | AD128: 0.8157132796 | AE128: 0 | AF128: 0 | AG128: 0 | AI128: 0 | AJ128: 0 | AK128: 0 | AL128: 0
A129: 1 May 2016 to 31 May 2016 | B129: DR WONG CHUN POR | C129: DR CP WONG CLINIC | D129: SOLO | E129: 5528991274 | F129: ADR | G129: 3,2 | H129: Local system | I129: Local System | J129: 1 | K129: 0 | M129: 0 | N129: 1 | P129: 0 | Q129: 0 | R129: 0 | S129: 0 | T129: 0 | U129: 0 | V129: 0 | W129: 0 | X129: 0 | Y129: 0 | Z129: 0 | AC129: 1 | AD129: 1 | AE129: 0 | AF129: 0 | AG129: 0 | AI129: 0 | AJ129: 0 | AK129: 0 | AL129: 0
A130: 1 May 2016 to 31 May 2016 | B130: DR WONG CHUN POR | C130: DR CP WONG CLINIC | D130: SOLO | E130: 5528991274 | F130: AL1 | G130: 3,2 | H130: Local system | I130: Local System | J130: 1 | K130: 0 | M130: 0 | N130: 1 | P130: 0 | Q130: 0 | R130: 0 | S130: 0 | T130: 0 | U130: 0 | V130: 0 | W130: 0 | X130: 0 | Y130: 0 | Z130: 0 | AC130: 1 | AD130: 1 | AE130: 0 | AF130: 0 | AG130: 0 | AI130: 0 | AJ130: 0 | AK130: 0 | AL130: 0
A131: 1 May 2016 to 31 May 2016 | B131: DR WONG CHUN POR | C131: DR CP WONG CLINIC | D131: SOLO | E131: 5528991274 | F131: ENCTR | G131: 3 | H131: Local system | I131: Local System | J131: 119 | K131: 0 | M131: 0 | N131: 119 | P131: 0 | Q131: 0 | R131: 0 | S131: 0 | T131: 0 | U131: 0 | V131: 0 | W131: 0 | X131: 0 | AC131: 119 | AD131: 1 | AE131: 0 | AF131: 0 | AG131: 0 | AI131: 0 | AJ131: 0 | AK131: 0 | AL131: 0
A132: 1 May 2016 to 31 May 2016 | B132: DR WONG CHUN POR | C132: DR CP WONG CLINIC | D132: SOLO | E132: 5528991274 | F132: IMMU | G132: 3,2 | H132: Local system | I132: Local System | J132: 4 | K132: 0 | L132: 0 | M132: 4 | N132: 0 | P132: 0 | Q132: 0 | R132: 0 | S132: 0 | T132: 0 | U132: 0 | V132: 0 | W132: 0 | X132: 0 | Y132: 0 | Z132: 0 | AA132: 0 | AC132: 0 | AD132: 0 | AE132: 1 | AF132: 0.25 | AG132: 0 | AI132: 0 | AJ132: 0 | AK132: 1 | AL132: 1
A133: 1 May 2016 to 31 May 2016 | B133: DR WONG CHUN POR | C133: DR CP WONG CLINIC | D133: SOLO | E133: 5528991274 | F133: PROB | G133: 3,2 | H133: Local system | I133: Local System | J133: 303 | K133: 0 | M133: 0 | N133: 303 | P133: 0 | Q133: 0 | R133: 0 | S133: 0 | T133: 0 | U133: 0 | V133: 0 | W133: 0 | X133: 0 | AC133: 303 | AD133: 1 | AE133: 0 | AF133: 0 | AG133: 0 | AH133: 0 | AI133: 0 | AJ133: 0 | AK133: 0 | AL133: 0
A134: 1 May 2016 to 31 May 2016 | B134: DR WONG CHUN POR | C134: DR CP WONG CLINIC | D134: SOLO | E134: 5528991274 | F134: RXD | G134: 3,2 | H134: Local system | I134: Local System | J134: 327 | K134: 0 | M134: 103 | N134: 224 | P134: 0 | Q134: 0 | R134: 0 | S134: 0 | T134: 0 | U134: 0 | V134: 0 | W134: 0 | X134: 0 | Y134: 0 | Z134: 0 | AC134: 224 | AD134: 0.6850152905 | AE134: 0 | AF134: 0 | AG134: 0 | AI134: 0 | AJ134: 0 | AK134: 0 | AL134: 0
A135: 1 May 2016 to 31 May 2016 | B135: DR WONG CHUN POR | C135: DR CP WONG CLINIC | D135: SOLO | E135: 5528991274 | F135: RXO | G135: 3,2 | H135: Local system | I135: Local System | J135: 362 | K135: 0 | M135: 109 | N135: 253 | P135: 0 | Q135: 0 | R135: 0 | S135: 0 | T135: 0 | U135: 0 | V135: 0 | W135: 0 | X135: 0 | Y135: 0 | Z135: 0 | AC135: 253 | AD135: 0.6988950276 | AE135: 0 | AF135: 0 | AG135: 0 | AI135: 0 | AJ135: 0 | AK135: 0 | AL135: 0
A136: 1 May 2016 to 31 May 2016 | B136: DR. YEE YUK KEI | C136: DR. YK YEE | D136: SOLO | E136: 2310917092 | F136: AL1 | G136: 3,2 | H136: Local system | I136: Local System | J136: 1 | K136: 0 | M136: 0 | N136: 1 | P136: 0 | Q136: 0 | R136: 0 | S136: 0 | T136: 0 | U136: 0 | V136: 0 | W136: 0 | X136: 0 | Y136: 0 | Z136: 0 | AC136: 1 | AD136: 1 | AE136: 0 | AF136: 0 | AG136: 0 | AI136: 0 | AJ136: 0 | AK136: 0 | AL136: 0
A137: 1 May 2016 to 31 May 2016 | B137: EVANGEL HOSPITAL | C137: EVANGEL HOSPITAL | D137: PH | E137: 2206285885 | F137: ENCTR | G137: 3,2 | H137: Local system | I137: Local System | J137: 195 | K137: 0 | M137: 0 | N137: 195 | P137: 0 | Q137: =P137/J137 -> 0 | R137: 0 | S137: 0 | T137: 0 | U137: =T137/J137 -> 0 | V137: 0 | W137: 0 | X137: 0 | AC137: 195 | AD137: =AC137/J137 -> 1 | AE137: 0 | AF137: =AE137/J137 -> 0 | AG137: 0 | AI137: 0 | AJ137: 0 | AK137: 0 | AL137: 0
A138: 1 May 2016 to 31 May 2016 | B138: EVANGEL HOSPITAL | C138: EVANGEL HOSPITAL | D138: PH | E138: 2206285885 | F138: AL1 | G138: 3,2 | H138: Local system | I138: Local System | J138: 5 | K138: 0 | M138: 4 | N138: 1 | P138: 0 | Q138: 0 | R138: 0 | S138: 0 | T138: 4 | U138: 0.8 | V138: 0 | W138: 4 | X138: 0 | Y138: 4 | Z138: 0 | AC138: 1 | AD138: 0.2 | AE138: 0 | AF138: 0 | AG138: 0 | AI138: 0 | AJ138: 0 | AK138: 0 | AL138: 0
A139: 1 May 2016 to 31 May 2016 | B139: EVANGEL HOSPITAL | C139: EVANGEL HOSPITAL | D139: PH | E139: 2206285885 | F139: ADR | G139: 3,2 | H139: Local system | I139: Local System | J139: 1 | K139: 0 | M139: 0 | N139: 1 | P139: 0 | Q139: 0 | R139: 0 | S139: 0 | T139: 0 | U139: 0 | V139: 0 | W139: 0 | X139: 0 | Y139: 0 | Z139: 0 | AC139: 1 | AD139: 1 | AE139: 0 | AF139: 0 | AG139: 0 | AI139: 0 | AJ139: 0 | AK139: 0 | AL139: 0
A140: 1 May 2016 to 31 May 2016 | B140: HONG KONG ADVENTIST HOSPITAL - STUBBS ROAD | C140: HK ADVENTIST - SR | D140: PH | E140: 7029571085 | F140: AL1 | G140: 3 | H140: Local system | I140: Local System | J140: 1 | K140: 0 | M140: 0 | N140: 1 | P140: 0 | Q140: 0 | R140: 0 | S140: 0 | T140: 0 | U140: 0 | V140: 0 | W140: 0 | X140: 0 | Y140: 0 | Z140: 0 | AC140: 1 | AD140: 1 | AE140: 0 | AF140: 0 | AG140: 0 | AI140: 0 | AJ140: 0 | AK140: 0 | AL140: 0
A141: 1 May 2016 to 31 May 2016 | B141: HONG KONG ADVENTIST HOSPITAL - STUBBS ROAD | C141: HK ADVENTIST - SR | D141: PH | E141: 7029571085 | F141: RXD | G141: 2 | H141: Local system + LAAM | I141: Local System | J141: 223 | K141: 0 | M141: 223 | N141: 0 | P141: 0 | Q141: 0 | R141: 0 | S141: 0 | T141: 0 | U141: 0 | V141: 0 | W141: 0 | X141: 0 | Y141: 0 | Z141: 0 | AC141: 0 | AD141: 0 | AE141: 0 | AF141: 0 | AG141: 0 | AI141: 0 | AJ141: 0 | AK141: 0 | AL141: 0
A142: 1 May 2016 to 31 May 2016 | B142: HONG KONG ADVENTIST HOSPITAL - TSUEN WAN | C142: HK ADVENTIST - TW | D142: PH | E142: 8909436562 | F142: ADR | G142: 3 | H142: Local system | I142: Local System | J142: 1 | K142: 0 | M142: 0 | N142: 1 | P142: 0 | Q142: 0 | R142: 0 | S142: 0 | T142: 0 | U142: 0 | V142: 0 | W142: 0 | X142: 0 | Y142: 0 | Z142: 0 | AC142: 1 | AD142: 1 | AE142: 0 | AF142: 0 | AG142: 0 | AI142: 0 | AJ142: 0 | AK142: 0 | AL142: 0
A143: 1 May 2016 to 31 May 2016 | B143: HONG KONG ADVENTIST HOSPITAL - TSUEN WAN | C143: HK ADVENTIST - TW | D143: PH | E143: 8909436562 | F143: AL1 | G143: 3 | H143: Local system | I143: Local System | J143: 17 | K143: 0 | M143: 5 | N143: 12 | P143: 0 | Q143: 0 | R143: 0 | S143: 0 | T143: 5 | U143: 0.2941176471 | V143: 0 | W143: 5 | X143: 0 | Y143: 5 | Z143: 0 | AC143: 12 | AD143: 0.7058823529 | AE143: 0 | AF143: 0 | AG143: 0 | AI143: 0 | AJ143: 0 | AK143: 0 | AL143: 0
A144: 1 May 2016 to 31 May 2016 | B144: HONG KONG ADVENTIST HOSPITAL - TSUEN WAN | C144: HK ADVENTIST - TW | D144: PH | E144: 8909436562 | F144: RAD | G144: 2 | H144: Local system | I144: Local System | J144: 599 | K144: 0 | L144: 0 | M144: 599 | N144: 0 | P144: 0 | Q144: 0 | R144: 0 | S144: 0 | T144: 0 | U144: 0 | V144: 0 | W144: 0 | X144: 0 | Y144: 0 | Z144: 0 | AA144: 0 | AC144: 0 | AD144: 0 | AE144: 0 | AF144: 0 | AG144: 0 | AI144: 0 | AJ144: 0 | AK144: 0 | AL144: 0
A145: 1 May 2016 to 31 May 2016 | B145: HONG KONG ADVENTIST HOSPITAL - TSUEN WAN | C145: HK ADVENTIST - TW | D145: PH | E145: 8909436562 | F145: RXD | G145: 2 | H145: Local system | I145: Local System | J145: 715 | K145: 0 | M145: 715 | N145: 0 | P145: 0 | Q145: 0 | R145: 0 | S145: 0 | T145: 0 | U145: 0 | V145: 0 | W145: 0 | X145: 0 | Y145: 0 | Z145: 0 | AC145: 0 | AD145: 0 | AE145: 0 | AF145: 0 | AG145: 0 | AI145: 0 | AJ145: 0 | AK145: 0 | AL145: 0
A146: 1 May 2016 to 31 May 2016 | B146: HONG KONG BAPTIST HOSPITAL | C146: HK BAPTIST HOSPITAL | D146: PH | E146: 3650324540 | F146: ENCTR | G146: 3 | H146: Local system | I146: Local System | J146: 31 | K146: 0 | M146: 0 | N146: 31 | P146: 0 | Q146: 0 | T146: 0 | U146: 0 | AC146: 31 | AD146: 1 | AE146: 0 | AF146: 0 | AG146: 0 | AI146: 0 | AJ146: 0 | AK146: 0 | AL146: 0
A147: 1 May 2016 to 31 May 2016 | B147: THE HONG KONG POLYTECHNIC UNIVERSITY | C147: POLYU | D147: HCAI | E147: 4578805814 | F147: ENCTR | G147: 3 | H147: Local system | I147: Local System | J147: 673 | K147: 0 | M147: 0 | N147: 673 | P147: 0 | Q147: 0 | R147: 0 | S147: 0 | T147: 0 | U147: 0 | V147: 0 | W147: 0 | X147: 0 | AC147: 673 | AD147: 1 | AE147: 0 | AF147: 0 | AG147: 0 | AI147: 0 | AJ147: 0 | AK147: 0 | AL147: 0
A148: 1 May 2016 to 31 May 2016 | B148: ST. PAUL'S HOSPITAL | C148: SPH | D148: PH | E148: 5156724947 | F148: ADR | G148: 3 | H148: Local system | I148: Local System | J148: 2 | K148: 0 | M148: 1 | N148: 1 | P148: 0 | Q148: 0 | R148: 0 | S148: 0 | T148: 2 | U148: 1 | V148: 2 | W148: 0 | X148: 0 | Y148: 1 | Z148: 0 | AC148: 1 | AD148: 0.5 | AE148: 0 | AF148: 0 | AG148: 0 | AI148: 0 | AJ148: 0 | AK148: 0 | AL148: 0
A149: 1 May 2016 to 31 May 2016 | B149: ST. PAUL'S HOSPITAL | C149: SPH | D149: PH | E149: 5156724947 | F149: AL1 | G149: 3 | H149: Local system | I149: Local System | J149: 35 | K149: 0 | M149: 13 | N149: 22 | P149: 0 | Q149: 0 | R149: 0 | S149: 0 | T149: 16 | U149: 0.4571428571 | V149: 0 | W149: 16 | X149: 0 | Y149: 14 | Z149: 0 | AC149: 22 | AD149: 0.6285714286 | AE149: 0 | AF149: 0 | AG149: 0 | AI149: 0 | AJ149: 0 | AK149: 0 | AL149: 0
A150: 1 May 2016 to 31 May 2016 | B150: ST.TERESA's HOSPITAL | C150: STH | D150: PH | E150: 7969980015 | F150: ADR | G150: 3 | H150: Local system | I150: Local System | J150: 6 | K150: 0 | M150: 1 | N150: 5 | P150: 0 | Q150: 0 | R150: 0 | S150: 0 | T150: 1 | U150: 0.1666666667 | V150: 1 | W150: 0 | X150: 0 | Y150: 1 | Z150: 0 | AC150: 5 | AD150: 0.8333333333 | AE150: 0 | AF150: 0 | AG150: 0 | AI150: 0 | AJ150: 0 | AK150: 0 | AL150: 0
A151: 1 May 2016 to 31 May 2016 | B151: ST.TERESA's HOSPITAL | C151: STH | D151: PH | E151: 7969980015 | F151: AL1 | G151: 3 | H151: Local system | I151: Local System | J151: 58 | K151: 0 | M151: 27 | N151: 31 | P151: 0 | Q151: 0 | R151: 0 | S151: 0 | T151: 29 | U151: 0.5 | V151: 0 | W151: 29 | X151: 0 | Y151: 24 | Z151: 0 | AC151: 31 | AD151: 0.5344827586 | AE151: 0 | AF151: 0 | AG151: 0 | AI151: 0 | AJ151: 0 | AK151: 0 | AL151: 0
A152: 1 May 2016 to 31 May 2016 | B152: ST.TERESA's HOSPITAL | C152: STH | D152: PH | E152: 7969980015 | F152: BIRTH | G152: 3 | H152: Local system | I152: Local System | J152: 2 | K152: 0 | M152: 0 | N152: 2 | P152: 0 | Q152: 0 | R152: 0 | S152: 0 | T152: 0 | U152: 0 | V152: 0 | W152: 0 | X152: 0 | Y152: 0 | Z152: 0 | AA152: 0 | AC152: 2 | AD152: 1 | AE152: 0 | AF152: 0 | AG152: 0 | AI152: 0 | AJ152: 0 | AK152: 0 | AL152: 0
A153: 1 May 2016 to 31 May 2016 | B153: UNION HOSPITAL | C153: UNION HOSPITAL | D153: PH | E153: 5712620300 | F153: ADR | G153: 3 | H153: Local system | I153: Local System | J153: 5 | K153: 0 | M153: 0 | N153: 5 | P153: 0 | Q153: 0 | R153: 0 | S153: 0 | T153: 0 | U153: 0 | V153: 0 | W153: 0 | X153: 0 | Y153: 0 | Z153: 0 | AC153: 5 | AD153: 1 | AE153: 0 | AF153: 0 | AG153: 0 | AI153: 0 | AJ153: 0 | AK153: 0 | AL153: 0
A154: 1 May 2016 to 31 May 2016 | B154: UNION HOSPITAL | C154: UNION HOSPITAL | D154: PH | E154: 5712620300 | F154: AL1 | G154: 3 | H154: Local system | I154: Local System | J154: 135 | K154: 0 | M154: 73 | N154: 62 | P154: 0 | Q154: 0 | R154: 0 | S154: 0 | T154: 73 | U154: 0.5407407407 | V154: 0 | W154: 73 | X154: 0 | Y154: 73 | Z154: 0 | AC154: 62 | AD154: 0.4592592593 | AE154: 0 | AF154: 0 | AG154: 0 | AI154: 0 | AJ154: 0 | AK154: 0 | AL154: 0
A155: 1 May 2016 to 31 May 2016 | B155: UNION HOSPITAL | C155: UNION HOSPITAL | D155: PH | E155: 5712620300 | F155: ENCTR | G155: 3 | H155: Local system | I155: Local System | J155: 72 | K155: 0 | M155: 0 | N155: 72 | P155: 0 | Q155: 0 | R155: 0 | S155: 0 | T155: 0 | U155: 0 | V155: 0 | W155: 0 | X155: 0 | AC155: 72 | AD155: 1 | AE155: 0 | AF155: 0 | AG155: 0 | AI155: 0 | AJ155: 0 | AK155: 0 | AL155: 0
A156: 1 May 2016 to 31 May 2016 Total | J156: =SUM(J120:J155) -> 40527 | K156: =SUM(K120:K155) -> 41 | L156: =SUM(L120:L155) -> 0 | M156: =SUM(M120:M155) -> 4818 | N156: =SUM(N120:N155) -> 35668 | P156: =SUM(P120:P155) -> 41 | Q156: 0.001011671232 | R156: =SUM(R120:R155) -> 0 | S156: =SUM(S120:S155) -> 41 | T156: =SUM(T120:T155) -> 3064 | U156: 0.07560391838 | V156: =SUM(V120:V155) -> 2849 | W156: 215 | X156: 0 | Y156: 3056 | Z156: 0 | AA156: 0 | AC156: =SUM(AC120:AC155) -> 35668 | AD156: 0.8801046216 | AE156: =SUM(AE120:AE155) -> 1 | AF156: 2.467490809e-05 | AG156: =SUM(AG120:AG155) -> 0 | AI156: =SUM(AI120:AI155) -> 0 | AJ156: =SUM(AJ120:AJ155) -> 0 | AK156: =SUM(AK120:AK155) -> 1 | AL156: =SUM(AL120:AL155) -> 1
A157: 1 June 2016 to 30 June 2016 | B157: CANOSSA HOSPITAL (CARITAS) | C157: CANNOSSA HOSPITAL | D157: PH | E157: 8252506240 | F157: ADR | G157: 3 | H157: Local system | I157: Local System | J157: =SUM(K157:N157) -> 0 | K157: =P157 -> 0 | P157: =SUM(R157:S157) -> 0 | R157: 0 | S157: 0 | T157: =SUM(Y157:AA157) -> 0 | V157: 0 | W157: 0 | X157: 0 | Y157: 0 | Z157: 0 | AC157: 0 | AE157: 0 | AG157: 0 | AI157: 0 | AJ157: 0 | AK157: 0 | AL157: 0
A158: 1 June 2016 to 30 June 2016 | B158: CANOSSA HOSPITAL (CARITAS) | C158: CANNOSSA HOSPITAL | D158: PH | E158: 8252506240 | F158: AL1 | G158: 3 | H158: Local system | I158: Local System | J158: 11 | K158: 0 | M158: 3 | N158: 8 | P158: 0 | Q158: 0 | R158: 0 | S158: 0 | T158: 3 | U158: 0.2727272727 | V158: 0 | W158: 3 | X158: 0 | Y158: 3 | Z158: 0 | AC158: 8 | AD158: 0.7272727273 | AE158: 0 | AF158: 0 | AG158: 0 | AI158: 0 | AJ158: 0 | AK158: 0 | AL158: 0
A159: 1 June 2016 to 30 June 2016 | B159: CHIRON HEALTHCARE GROUP LIMITED | C159: CHIRON HEALTHCARE | D159: GROUP | E159: 9451612824 | F159: ENCTR | G159: 3 | H159: Local system | I159: Local System | J159: 10 | K159: 0 | N159: 10 | P159: 0 | Q159: 0 | R159: 0 | S159: 0 | T159: 0 | U159: 0 | V159: 0 | W159: 0 | X159: 0 | AC159: 10 | AD159: 1 | AE159: 0 | AF159: 0 | AG159: 0 | AI159: 0 | AJ159: 0 | AK159: 0 | AL159: 0
A160: 1 June 2016 to 30 June 2016 | B160: CHIRON HEALTHCARE GROUP LIMITED | C160: CHIRON HEALTHCARE | D160: GROUP | E160: 9451612824 | F160: PROB | G160: 3,2 | H160: Local system | I160: Local System | J160: 8 | K160: 0 | N160: 8 | P160: 0 | Q160: 0 | R160: 0 | S160: 0 | T160: 0 | U160: 0 | V160: 0 | W160: 0 | X160: 0 | AC160: 8 | AD160: 1 | AE160: 0 | AF160: 0 | AG160: 0 | AH160: 0 | AI160: 0 | AJ160: 0 | AK160: 0 | AL160: 0
A161: 1 June 2016 to 30 June 2016 | B161: CHIRON HEALTHCARE GROUP LIMITED | C161: CHIRON HEALTHCARE | D161: GROUP | E161: 9451612824 | F161: RXD | G161: 3,2 | H161: Local system | I161: Local System | J161: 1 | K161: 0 | N161: 1 | P161: 0 | Q161: 0 | R161: 0 | S161: 0 | T161: 0 | U161: 0 | V161: 0 | W161: 0 | X161: 0 | Y161: 0 | Z161: 0 | AC161: 1 | AD161: 1 | AE161: 0 | AF161: 0 | AG161: 0 | AI161: 0 | AJ161: 0 | AK161: 0 | AL161: 0
A162: 1 June 2016 to 30 June 2016 | B162: CHIRON HEALTHCARE GROUP LIMITED | C162: CHIRON HEALTHCARE | D162: GROUP | E162: 9451612824 | F162: RXO | G162: 3,2 | H162: Local system | I162: Local System | J162: 1 | K162: 0 | N162: 1 | P162: 0 | Q162: 0 | R162: 0 | S162: 0 | T162: 0 | U162: 0 | V162: 0 | W162: 0 | X162: 0 | Y162: 0 | Z162: 0 | AC162: 1 | AD162: 1 | AE162: 0 | AF162: 0 | AG162: 0 | AI162: 0 | AJ162: 0 | AK162: 0 | AL162: 0
A163: 1 June 2016 to 30 June 2016 | B163: DEPARTMENT OF HEALTH CIMS1 | C163: DH | D163: DH | E163: 8658917541 | F163: ADR | G163: 3 | H163: Local system | I163: Local System | J163: 145 | K163: 0 | M163: 14 | N163: 131 | P163: 0 | Q163: 0 | R163: 0 | S163: 0 | T163: 14 | U163: 0.09655172414 | V163: 14 | W163: 0 | X163: 0 | Y163: 14 | Z163: 0 | AC163: 131 | AD163: 0.9034482759 | AE163: 0 | AF163: 0 | AG163: 0 | AI163: 0 | AJ163: 0 | AK163: 0 | AL163: 0
A164: 1 June 2016 to 30 June 2016 | B164: DEPARTMENT OF HEALTH CIMS1 | C164: DH | D164: DH | E164: 8658917541 | F164: AL1 | G164: 3 | H164: Local system | I164: Local System | J164: 207 | K164: 0 | M164: 33 | N164: 174 | P164: 0 | Q164: 0 | R164: 0 | S164: 0 | T164: 32 | U164: 0.154589372 | V164: 9 | W164: 23 | X164: 0 | Y164: 32 | Z164: 0 | AC164: 174 | AD164: 0.8405797101 | AE164: 0 | AF164: 0 | AG164: 0 | AI164: 0 | AJ164: 0 | AK164: 0 | AL164: 0
A165: 1 June 2016 to 30 June 2016 | B165: DEPARTMENT OF HEALTH CIMS1 | C165: DH | D165: DH | E165: 8658917541 | F165: ENCTR | G165: 3 | H165: Local system | I165: Local System | J165: 6883 | K165: 0 | N165: 6883 | P165: 0 | Q165: 0 | R165: 0 | S165: 0 | T165: 0 | U165: 0 | V165: 0 | W165: 0 | X165: 0 | AC165: 6883 | AD165: 1 | AE165: 0 | AF165: 0 | AG165: 0 | AI165: 0 | AJ165: 0 | AK165: 0 | AL165: 0
A166: 1 June 2016 to 30 June 2016 | B166: DEPARTMENT OF HEALTH CIMS1 | C166: DH | D166: DH | E166: 8658917541 | F166: IMMU | G166: 3 | H166: Local system | I166: Local System | J166: 1650 | K166: 0 | M166: 39 | N166: 1611 | P166: 0 | Q166: 0 | R166: 0 | S166: 0 | T166: 39 | U166: 0.02363636364 | V166: 39 | W166: 0 | X166: 0 | Y166: 39 | Z166: 0 | AA166: 0 | AC166: 1611 | AD166: 0.9763636364 | AE166: 0 | AF166: 0 | AG166: 0 | AI166: 0 | AJ166: 0 | AK166: 0 | AL166: 0
A167: 1 June 2016 to 30 June 2016 | B167: DEPARTMENT OF HEALTH CIMS1 | C167: DH | D167: DH | E167: 8658917541 | F167: PROB | G167: 3 | H167: Local system | I167: Local System | J167: 5178 | K167: 0 | M167: 207 | N167: 4971 | P167: 0 | Q167: 0 | R167: 0 | S167: 0 | T167: 207 | U167: 0.03997682503 | V167: 207 | W167: 0 | X167: 0 | Y167: 207 | Z167: 0 | AC167: 4971 | AD167: 0.960023175 | AE167: 0 | AF167: 0 | AG167: 0 | AH167: 0 | AI167: 0 | AJ167: 0 | AK167: 0 | AL167: 0
A168: 1 June 2016 to 30 June 2016 | B168: DEPARTMENT OF HEALTH CIMS1 | C168: DH | D168: DH | E168: 8658917541 | F168: PX | G168: 3 | H168: Local system | I168: Local System | J168: 2033 | K168: 0 | M168: 58 | N168: 1975 | P168: 0 | Q168: 0 | R168: 0 | S168: 0 | T168: 58 | U168: 0.02852926709 | V168: 58 | W168: 0 | X168: 0 | Y168: 58 | Z168: 0 | AC168: 1975 | AD168: 0.9714707329 | AE168: 0 | AF168: 0 | AG168: 0 | AH168: 0 | AI168: 0 | AJ168: 0 | AK168: 0 | AL168: 0
A169: 1 June 2016 to 30 June 2016 | B169: DEPARTMENT OF HEALTH CIMS1 | C169: DH | D169: DH | E169: 8658917541 | F169: RXO | G169: 3 | H169: Local system | I169: Local System | J169: 7145 | K169: 0 | M169: 1274 | N169: 5871 | P169: 0 | Q169: 0 | R169: 0 | S169: 0 | T169: 1274 | U169: 0.178306508 | V169: 1274 | W169: 0 | X169: 0 | Y169: 1274 | Z169: 0 | AC169: 5871 | AD169: 0.821693492 | AE169: 0 | AF169: 0 | AG169: 0 | AI169: 0 | AJ169: 0 | AK169: 0 | AL169: 0
A170: 1 June 2016 to 30 June 2016 | B170: DR WONG CHUN POR | C170: DR CP WONG CLINIC | D170: SOLO | E170: 5528991274 | F170: ADR | G170: 3,2 | H170: Local system | I170: Local System | J170: 0 | K170: 0 | P170: 0 | R170: 0 | S170: 0 | T170: 0 | V170: 0 | W170: 0 | X170: 0 | Y170: 0 | Z170: 0 | AC170: 0 | AE170: 0 | AG170: 0 | AI170: 0 | AJ170: 0 | AK170: 0 | AL170: 0
A171: 1 June 2016 to 30 June 2016 | B171: DR WONG CHUN POR | C171: DR CP WONG CLINIC | D171: SOLO | E171: 5528991274 | F171: AL1 | G171: 3,2 | H171: Local system | I171: Local System | J171: 0 | K171: 0 | P171: 0 | R171: 0 | S171: 0 | T171: 0 | V171: 0 | W171: 0 | X171: 0 | Y171: 0 | Z171: 0 | AC171: 0 | AE171: 0 | AG171: 0 | AI171: 0 | AJ171: 0 | AK171: 0 | AL171: 0
A172: 1 June 2016 to 30 June 2016 | B172: DR WONG CHUN POR | C172: DR CP WONG CLINIC | D172: SOLO | E172: 5528991274 | F172: ENCTR | G172: 3 | H172: Local system | I172: Local System | J172: 104 | K172: 0 | N172: 104 | P172: 0 | Q172: 0 | R172: 0 | S172: 0 | T172: 0 | U172: 0 | V172: 0 | W172: 0 | X172: 0 | AC172: 104 | AD172: 1 | AE172: 0 | AF172: 0 | AG172: 0 | AI172: 0 | AJ172: 0 | AK172: 0 | AL172: 0
A173: 1 June 2016 to 30 June 2016 | B173: DR WONG CHUN POR | C173: DR CP WONG CLINIC | D173: SOLO | E173: 5528991274 | F173: IMMU | G173: 3,2 | H173: Local system | I173: Local System | J173: 1 | K173: 0 | M173: 1 | P173: 0 | Q173: 0 | R173: 0 | S173: 0 | T173: 0 | U173: 0 | V173: 0 | W173: 0 | X173: 0 | Y173: 0 | Z173: 0 | AA173: 0 | AC173: 0 | AD173: 0 | AE173: 1 | AF173: 1 | AG173: 0 | AI173: 0 | AJ173: 0 | AK173: 1 | AL173: 1
A174: 1 June 2016 to 30 June 2016 | B174: DR WONG CHUN POR | C174: DR CP WONG CLINIC | D174: SOLO | E174: 5528991274 | F174: PROB | G174: 3,2 | H174: Local system | I174: Local System | J174: 275 | K174: 0 | N174: 275 | P174: 0 | Q174: 0 | R174: 0 | S174: 0 | T174: 0 | U174: 0 | V174: 0 | W174: 0 | X174: 0 | AC174: 275 | AD174: 1 | AE174: 0 | AF174: 0 | AG174: 0 | AH174: 0 | AI174: 0 | AJ174: 0 | AK174: 0 | AL174: 0
A175: 1 June 2016 to 30 June 2016 | B175: DR WONG CHUN POR | C175: DR CP WONG CLINIC | D175: SOLO | E175: 5528991274 | F175: RXD | G175: 3,2 | H175: Local system | I175: Local System | J175: 236 | K175: 0 | M175: 64 | N175: 172 | P175: 0 | Q175: 0 | R175: 0 | S175: 0 | T175: 0 | U175: 0 | V175: 0 | W175: 0 | X175: 0 | Y175: 0 | Z175: 0 | AC175: 172 | AD175: 0.7288135593 | AE175: 0 | AF175: 0 | AG175: 0 | AI175: 0 | AJ175: 0 | AK175: 0 | AL175: 0
A176: 1 June 2016 to 30 June 2016 | B176: DR WONG CHUN POR | C176: DR CP WONG CLINIC | D176: SOLO | E176: 5528991274 | F176: RXO | G176: 3,2 | H176: Local system | I176: Local System | J176: 247 | K176: 0 | M176: 64 | N176: 183 | P176: 0 | Q176: 0 | R176: 0 | S176: 0 | T176: 0 | U176: 0 | V176: 0 | W176: 0 | X176: 0 | Y176: 0 | Z176: 0 | AC176: 183 | AD176: 0.7408906883 | AE176: 0 | AF176: 0 | AG176: 0 | AI176: 0 | AJ176: 0 | AK176: 0 | AL176: 0
A177: 1 June 2016 to 30 June 2016 | B177: DR. YEE YUK KEI | C177: DR. YK YEE | D177: SOLO | E177: 2310917092 | F177: AL1 | G177: 3,2 | H177: Local system | I177: Local System | J177: 0 | K177: 0 | P177: 0 | R177: 0 | S177: 0 | T177: 0 | V177: 0 | W177: 0 | X177: 0 | Y177: 0 | Z177: 0 | AC177: 0 | AE177: 0 | AG177: 0 | AI177: 0 | AJ177: 0 | AK177: 0 | AL177: 0
A178: 1 June 2016 to 30 June 2016 | B178: EVANGEL HOSPITAL | C178: EVANGEL HOSPITAL | D178: PH | E178: 2206285885 | F178: ENCTR | G178: 3,2 | H178: Local system | I178: Local System | J178: 191 | K178: 0 | N178: 191 | P178: 0 | Q178: 0 | R178: 0 | S178: 0 | T178: 0 | U178: 0 | V178: 0 | W178: 0 | X178: 0 | AC178: 191 | AD178: 1 | AE178: 0 | AF178: 0 | AG178: 0 | AI178: 0 | AJ178: 0 | AK178: 0 | AL178: 0
A179: 1 June 2016 to 30 June 2016 | B179: EVANGEL HOSPITAL | C179: EVANGEL HOSPITAL | D179: PH | E179: 2206285885 | F179: AL1 | G179: 3,2 | H179: Local system | I179: Local System | J179: 1 | K179: 0 | M179: 1 | P179: 0 | Q179: 0 | R179: 0 | S179: 0 | T179: 1 | U179: 1 | V179: 0 | W179: 1 | X179: 0 | Y179: 1 | Z179: 0 | AC179: 0 | AD179: 0 | AE179: 0 | AF179: 0 | AG179: 0 | AI179: 0 | AJ179: 0 | AK179: 0 | AL179: 0
A180: 1 June 2016 to 30 June 2016 | B180: EVANGEL HOSPITAL | C180: EVANGEL HOSPITAL | D180: PH | E180: 2206285885 | F180: ADR | G180: 3,2 | H180: Local system | I180: Local System | J180: 0 | K180: 0 | P180: 0 | R180: 0 | S180: 0 | T180: 0 | V180: 0 | W180: 0 | X180: 0 | Y180: 0 | Z180: 0 | AC180: 0 | AE180: 0 | AG180: 0 | AI180: 0 | AJ180: 0 | AK180: 0 | AL180: 0
A181: 1 June 2016 to 30 June 2016 | B181: HONG KONG ADVENTIST HOSPITAL - STUBBS ROAD | C181: HK ADVENTIST - SR | D181: PH | E181: 7029571085 | F181: AL1 | G181: 3 | H181: Local system | I181: Local System | J181: 9 | K181: 0 | M181: 3 | N181: 6 | P181: 0 | Q181: 0 | R181: 0 | S181: 0 | T181: 3 | U181: 0.3333333333 | V181: 0 | W181: 3 | X181: 0 | Y181: 3 | Z181: 0 | AC181: 6 | AD181: 0.6666666667 | AE181: 0 | AF181: 0 | AG181: 0 | AI181: 0 | AJ181: 0 | AK181: 0 | AL181: 0
A182: 1 June 2016 to 30 June 2016 | B182: HONG KONG ADVENTIST HOSPITAL - STUBBS ROAD | C182: HK ADVENTIST - SR | D182: PH | E182: 7029571085 | F182: RXD | G182: 2 | H182: Local system + LAAM | I182: Local System | J182: 166 | K182: 0 | M182: 166 | P182: 0 | Q182: 0 | R182: 0 | S182: 0 | T182: 0 | U182: 0 | V182: 0 | W182: 0 | X182: 0 | Y182: 0 | Z182: 0 | AC182: 0 | AD182: 0 | AE182: 0 | AF182: 0 | AG182: 0 | AI182: 0 | AJ182: 0 | AK182: 0 | AL182: 0
A183: 1 June 2016 to 30 June 2016 | B183: HONG KONG ADVENTIST HOSPITAL - TSUEN WAN | C183: HK ADVENTIST - TW | D183: PH | E183: 8909436562 | F183: ADR | G183: 3 | H183: Local system | I183: Local System | J183: 0 | K183: 0 | P183: 0 | R183: 0 | S183: 0 | T183: 0 | V183: 0 | W183: 0 | X183: 0 | Y183: 0 | Z183: 0 | AC183: 0 | AE183: 0 | AG183: 0 | AI183: 0 | AJ183: 0 | AK183: 0 | AL183: 0
A184: 1 June 2016 to 30 June 2016 | B184: HONG KONG ADVENTIST HOSPITAL - TSUEN WAN | C184: HK ADVENTIST - TW | D184: PH | E184: 8909436562 | F184: AL1 | G184: 3 | H184: Local system | I184: Local System | J184: 11 | K184: 0 | M184: 1 | N184: 10 | P184: 0 | Q184: 0 | R184: 0 | S184: 0 | T184: 1 | U184: 0.09090909091 | V184: 0 | W184: 1 | X184: 0 | Y184: 1 | Z184: 0 | AC184: 10 | AD184: 0.9090909091 | AE184: 0 | AF184: 0 | AG184: 0 | AI184: 0 | AJ184: 0 | AK184: 0 | AL184: 0
A185: 1 June 2016 to 30 June 2016 | B185: HONG KONG ADVENTIST HOSPITAL - TSUEN WAN | C185: HK ADVENTIST - TW | D185: PH | E185: 8909436562 | F185: RAD | G185: 2 | H185: Local system | I185: Local System | J185: 624 | K185: 0 | M185: 624 | P185: 0 | Q185: 0 | R185: 0 | S185: 0 | T185: 0 | U185: 0 | V185: 0 | W185: 0 | X185: 0 | Y185: 0 | Z185: 0 | AA185: 0 | AC185: 0 | AD185: 0 | AE185: 0 | AF185: 0 | AG185: 0 | AI185: 0 | AJ185: 0 | AK185: 0 | AL185: 0
A186: 1 June 2016 to 30 June 2016 | B186: HONG KONG ADVENTIST HOSPITAL - TSUEN WAN | C186: HK ADVENTIST - TW | D186: PH | E186: 8909436562 | F186: RXD | G186: 2 | H186: Local system | I186: Local System | J186: 712 | K186: 0 | M186: 712 | P186: 0 | Q186: 0 | R186: 0 | S186: 0 | T186: 0 | U186: 0 | V186: 0 | W186: 0 | X186: 0 | Y186: 0 | Z186: 0 | AC186: 0 | AD186: 0 | AE186: 0 | AF186: 0 | AG186: 0 | AI186: 0 | AJ186: 0 | AK186: 0 | AL186: 0
A187: 1 June 2016 to 30 June 2016 | B187: HONG KONG BAPTIST HOSPITAL | C187: HK BAPTIST HOSPITAL | D187: PH | E187: 3650324540 | F187: ENCTR | G187: 3 | H187: Local system | I187: Local System | J187: 24 | K187: 0 | N187: 24 | P187: 0 | Q187: 0 | T187: 0 | U187: 0 | AC187: 24 | AD187: 1 | AE187: 0 | AF187: 0 | AG187: 0 | AI187: 0 | AJ187: 0 | AK187: 0 | AL187: 0
A188: 1 June 2016 to 30 June 2016 | B188: THE HONG KONG POLYTECHNIC UNIVERSITY | C188: POLYU | D188: HCAI | E188: 4578805814 | F188: ENCTR | G188: 3 | H188: Local system | I188: Local System | J188: 422 | K188: 0 | N188: 422 | P188: 0 | Q188: 0 | R188: 0 | S188: 0 | T188: 0 | U188: 0 | V188: 0 | W188: 0 | X188: 0 | AC188: 422 | AD188: 1 | AE188: 0 | AF188: 0 | AG188: 0 | AI188: 0 | AJ188: 0 | AK188: 0 | AL188: 0
A189: 1 June 2016 to 30 June 2016 | B189: ST. PAUL'S HOSPITAL | C189: SPH | D189: PH | E189: 5156724947 | F189: ADR | G189: 3 | H189: Local system | I189: Local System | J189: 7 | K189: 0 | N189: 7 | P189: 0 | Q189: 0 | R189: 0 | S189: 0 | T189: 0 | U189: 0 | V189: 0 | W189: 0 | X189: 0 | Y189: 0 | Z189: 0 | AC189: 7 | AD189: 1 | AE189: 0 | AF189: 0 | AG189: 0 | AI189: 0 | AJ189: 0 | AK189: 0 | AL189: 0
A190: 1 June 2016 to 30 June 2016 | B190: ST. PAUL'S HOSPITAL | C190: SPH | D190: PH | E190: 5156724947 | F190: AL1 | G190: 3 | H190: Local system | I190: Local System | J190: 71 | K190: 0 | M190: 38 | N190: 33 | P190: 0 | Q190: 0 | R190: 0 | S190: 0 | T190: 39 | U190: 0.5492957746 | V190: 12 | W190: 27 | X190: 0 | Y190: 39 | Z190: 0 | AC190: 33 | AD190: 0.4647887324 | AE190: 0 | AF190: 0 | AG190: 0 | AI190: 0 | AJ190: 0 | AK190: 0 | AL190: 0
A191: 1 June 2016 to 30 June 2016 | B191: ST. PAUL'S HOSPITAL | C191: SPH | D191: PH | E191: 5156724947 | F191: ENCTR | G191: 3 | H191: Local system | I191: Local System | J191: 3 | K191: 0 | N191: 3 | P191: 0 | Q191: 0 | R191: 0 | S191: 0 | T191: 0 | U191: 0 | V191: 0 | W191: 0 | X191: 0 | AC191: 3 | AD191: 1 | AE191: 0 | AF191: 0 | AG191: 0 | AI191: 0 | AJ191: 0 | AK191: 0 | AL191: 0
A192: 1 June 2016 to 30 June 2016 | B192: ST.TERESA's HOSPITAL | C192: STH | D192: PH | E192: 7969980015 | F192: ADR | G192: 3 | H192: Local system | I192: Local System | J192: 5 | K192: 0 | M192: 1 | N192: 4 | P192: 0 | Q192: 0 | R192: 0 | S192: 0 | T192: 1 | U192: 0.2 | V192: 1 | W192: 0 | X192: 0 | Y192: 1 | Z192: 0 | AC192: 4 | AD192: 0.8 | AE192: 0 | AF192: 0 | AG192: 0 | AI192: 0 | AJ192: 0 | AK192: 0 | AL192: 0
A193: 1 June 2016 to 30 June 2016 | B193: ST.TERESA's HOSPITAL | C193: STH | D193: PH | E193: 7969980015 | F193: AL1 | G193: 3 | H193: Local system | I193: Local System | J193: 68 | K193: 0 | M193: 25 | N193: 43 | P193: 0 | Q193: 0 | R193: 0 | S193: 0 | T193: 26 | U193: 0.3823529412 | V193: 5 | W193: 21 | X193: 0 | Y193: 26 | Z193: 0 | AC193: 43 | AD193: 0.6323529412 | AE193: 0 | AF193: 0 | AG193: 0 | AI193: 0 | AJ193: 0 | AK193: 0 | AL193: 0
A194: 1 June 2016 to 30 June 2016 | B194: ST.TERESA's HOSPITAL | C194: STH | D194: PH | E194: 7969980015 | F194: BIRTH | G194: 3 | H194: Local system | I194: Local System | J194: 2 | K194: 0 | N194: 2 | P194: 0 | Q194: 0 | R194: 0 | S194: 0 | T194: 0 | U194: 0 | V194: 0 | W194: 0 | X194: 0 | Y194: 0 | Z194: 0 | AA194: 0 | AC194: 2 | AD194: 1 | AE194: 0 | AF194: 0 | AG194: 0 | AI194: 0 | AJ194: 0 | AK194: 0 | AL194: 0
A195: 1 June 2016 to 30 June 2016 | B195: UNION HOSPITAL | C195: UNION HOSPITAL | D195: PH | E195: 5712620300 | F195: ADR | G195: 3 | H195: Local system | I195: Local System | J195: 8 | K195: 0 | M195: 4 | N195: 4 | P195: 0 | Q195: 0 | R195: 0 | S195: 0 | T195: 3 | U195: 0.375 | V195: 3 | W195: 0 | X195: 0 | Y195: 3 | Z195: 0 | AC195: 4 | AD195: 0.5 | AE195: 1 | AF195: 0.125 | AG195: 0 | AI195: 0 | AJ195: 0 | AK195: 1 | AL195: 0
A196: 1 June 2016 to 30 June 2016 | B196: UNION HOSPITAL | C196: UNION HOSPITAL | D196: PH | E196: 5712620300 | F196: AL1 | G196: 3 | H196: Local system | I196: Local System | J196: 142 | K196: 0 | M196: 78 | N196: 64 | P196: 0 | Q196: 0 | R196: 0 | S196: 0 | T196: 78 | U196: 0.5492957746 | V196: 24 | W196: 54 | X196: 0 | Y196: 78 | Z196: 0 | AC196: 64 | AD196: 0.4507042254 | AE196: 0 | AF196: 0 | AG196: 0 | AI196: 0 | AJ196: 0 | AK196: 0 | AL196: 0
A197: 1 June 2016 to 30 June 2016 | B197: UNION HOSPITAL | C197: UNION HOSPITAL | D197: PH | E197: 5712620300 | F197: ENCTR | G197: 3 | H197: Local system | I197: Local System | J197: 108 | K197: 0 | N197: 108 | P197: 0 | Q197: 0 | R197: 0 | S197: 0 | T197: 0 | U197: 0 | V197: 0 | W197: 0 | X197: 0 | AC197: 108 | AD197: 1 | AE197: 0 | AF197: 0 | AG197: 0 | AI197: 0 | AJ197: 0 | AK197: 0 | AL197: 0
A198: 1 June 2016 to 30 June 2016 Total | J198: =SUM(J157:J197) -> 26709 | K198: =SUM(K157:K197) -> 0 | L198: =SUM(L157:L197) -> 0 | M198: =SUM(M157:M197) -> 3410 | N198: =SUM(N157:N197) -> 23299 | P198: =SUM(P157:P197) -> 0 | Q198: 0 | R198: =SUM(R157:R197) -> 0 | S198: =SUM(S157:S197) -> 0 | T198: =SUM(T157:T197) -> 1779 | U198: 0.06660676177 | V198: =SUM(V157:V197) -> 1646 | W198: 133 | X198: 0 | Y198: 1779 | Z198: 0 | AA198: 0 | AC198: =SUM(AC157:AC197) -> 23299 | AD198: 0.8723276798 | AE198: =SUM(AE157:AE197) -> 2 | AF198: 7.488112621e-05 | AG198: =SUM(AG157:AG197) -> 0 | AI198: =SUM(AI157:AI197) -> 0 | AJ198: =SUM(AJ157:AJ197) -> 0 | AK198: =SUM(AK157:AK197) -> 2 | AL198: =SUM(AL157:AL197) -> 1
A199: 1 July 2016 to 31 July 2016 | B199: DEPARTMENT OF HEALTH CIMS1 | C199: DH | D199: DH | E199: 8658917541 | F199: ADR | G199: 3 | H199: Local system | I199: Local System | J199: =SUM(K199:N199) -> 77 | K199: =P199 -> 0 | M199: 5 | N199: 72 | P199: =SUM(R199:S199) -> 0 | Q199: 0 | R199: 0 | S199: 0 | T199: =SUM(Y199:AA199) -> 5 | U199: 0.06493506494 | V199: 5 | W199: 0 | X199: 0 | Y199: 5 | Z199: 0 | AC199: 72 | AD199: 0.9350649351 | AE199: 0 | AF199: 0 | AG199: 0 | AI199: 0 | AJ199: 0 | AK199: 0 | AL199: 0
A200: 1 July 2016 to 31 July 2016 | B200: DEPARTMENT OF HEALTH CIMS1 | C200: DH | D200: DH | E200: 8658917541 | F200: AL1 | G200: 3 | H200: Local system | I200: Local System | J200: 154 | K200: 0 | M200: 31 | N200: 123 | P200: 0 | Q200: 0 | R200: 0 | S200: 0 | T200: 29 | U200: 0.1883116883 | V200: 29 | W200: 0 | X200: 0 | Y200: 29 | Z200: 0 | AC200: 123 | AD200: 0.7987012987 | AE200: 0 | AF200: 0 | AG200: 0 | AI200: 0 | AJ200: 0 | AK200: 0 | AL200: 0
A201: 1 July 2016 to 31 July 2016 | B201: DEPARTMENT OF HEALTH CIMS1 | C201: DH | D201: DH | E201: 8658917541 | F201: IMMU | G201: 3 | H201: Local system | I201: Local System | J201: 1141 | K201: 0 | M201: 22 | N201: 1119 | P201: 0 | Q201: =P201/J201 -> 0 | R201: 0 | S201: 0 | T201: 22 | U201: =T201/J201 -> 0.01928133216 | V201: 22 | W201: 0 | X201: 0 | Y201: 22 | Z201: 0 | AA201: 0 | AC201: 1119 | AD201: =AC201/J201 -> 0.9807186678 | AE201: 0 | AF201: =AE201/J201 -> 0 | AG201: 0 | AI201: 0 | AJ201: 0 | AK201: 0 | AL201: 0
A202: 1 July 2016 to 31 July 2016 | B202: DEPARTMENT OF HEALTH CIMS1 | C202: DH | D202: DH | E202: 8658917541 | F202: PROB | G202: 3 | H202: Local system | I202: Local System | J202: 4468 | K202: 0 | M202: 105 | N202: 4363 | P202: 0 | Q202: 0 | R202: 0 | S202: 0 | T202: 105 | U202: 0.02350044763 | V202: 105 | W202: 0 | X202: 0 | Y202: 105 | Z202: 0 | AC202: 4363 | AD202: 0.9764995524 | AE202: 0 | AF202: 0 | AG202: 0 | AH202: 0 | AI202: 0 | AJ202: 0 | AK202: 0 | AL202: 0
... 2048 more rows

Sheet Data
A1: RPT_DATE per month | B1: HCP Full Name | C1: HCP Type | D1: HCP ID | E1: Domain | F1: Data level | G1: System | H1: Connection System | I1: Total Upload Case | J1: Total Reject Case | K1: Total cases display as L1 in EVE | L1: Total cases display as L2 in EVE | M1: Total cases display as L3 in EVE | N1: Missed mandatory data | O1: Fail validation rule | P1: Total regraded cases | Q1: Missed RT data | R1: CDU Level 3 to 2 | S1: CDU Level 3 to 1 | T1: CDU Level 2 to 1 | U1: Total regraded cases (Level 3 to 2) | V1: Mis-match RT name | W1: Inappropriate hierarchy | X1: Mis-match RT code | Y1: Mis-match RT description | Z1: Mis-match codex code | AA1: Mis-match codex description
A2: 2024-11-01 | B2: HOSPITAL AUTHORITY | C2: HA | D2: 3098159131 | E2: RXD | F2: 3 | G2: Enterprise Application Integration (EAI) | H2: Local System | I2: 16822221 | J2: 0 | K2: 0 | L2: 6402601 | M2: 10419620 | N2: 0 | O2: 0 | P2: 508034 | Q2: 508034 | R2: 508034 | S2: 0 | T2: 0 | U2: 0 | V2: 0 | W2: 0 | X2: 0 | Y2: 0 | Z2: 0 | AA2: 0
A3: 2024-11-01 | B3: HOSPITAL AUTHORITY | C3: HA | D3: 3098159131 | E3: ENCTR | F3: 3 | G3: Enterprise Application Integration (EAI) | H3: Local System | I3: 11968013 | J3: 0 | K3: 0 | L3: 0 | M3: 11968013 | N3: 0 | O3: 0 | P3: 0 | Q3: 0 | R3: 0 | S3: 0 | T3: 0 | U3: 0 | V3: 0 | W3: 0 | X3: 0 | Y3: 0 | Z3: 0 | AA3: 0
A4: 2024-11-01 | B4: HOSPITAL AUTHORITY | C4: HA | D4: 3098159131 | E4: RXO | F4: 3 | G4: Enterprise Application Integration (EAI) | H4: Local System | I4: 9263654 | J4: 1 | K4: 0 | L4: 4179174 | M4: 5084479 | N4: 1 | O4: 0 | P4: 170718 | Q4: 170718 | R4: 170718 | S4: 0 | T4: 0 | U4: 0 | V4: 0 | W4: 0 | X4: 0 | Y4: 0 | Z4: 0 | AA4: 0
A5: 2024-11-01 | B5: HOSPITAL AUTHORITY | C5: HA | D5: 3098159131 | E5: LABGEN | F5: 3 | G5: Enterprise Application Integration (EAI) | H5: Local System | I5: 4420493 | J5: 117 | K5: 1930 | L5: 77011 | M5: 4341435 | N5: 30 | O5: 87 | P5: 81746 | Q5: 81746 | R5: 79850 | S5: 1896 | T5: 0 | U5: 0 | V5: 0 | W5: 0 | X5: 0 | Y5: 0 | Z5: 0 | AA5: 0
A6: 2024-11-01 | B6: HOSPITAL AUTHORITY | C6: HA | D6: 3098159131 | E6: PROB | F6: 3 | G6: Enterprise Application Integration (EAI) | H6: Local System | I6: 1246452 | J6: 0 | K6: 0 | L6: 0 | M6: 1246452 | N6: 0 | O6: 0 | P6: 0 | Q6: 0 | R6: 0 | S6: 0 | T6: 0 | U6: 0 | V6: 0 | W6: 0 | X6: 0 | Y6: 0 | Z6: 0 | AA6: 0
A7: 2024-11-01 | B7: HOSPITAL AUTHORITY | C7: HA | D7: 3098159131 | E7: LABMB | F7: 3 | G7: Enterprise Application Integration (EAI) | H7: Local System | I7: 859734 | J7: 208 | K7: 2813 | L7: 117117 | M7: 739596 | N7: 68 | O7: 140 | P7: 119155 | Q7: 119155 | R7: 117278 | S7: 1877 | T7: 0 | U7: 0 | V7: 0 | W7: 0 | X7: 0 | Y7: 0 | Z7: 0 | AA7: 0
A8: 2024-11-01 | B8: HOSPITAL AUTHORITY | C8: HA | D8: 3098159131 | E8: RAD | F8: 3 | G8: Enterprise Application Integration (EAI) | H8: Local System | I8: 782842 | J8: 0 | K8: 0 | L8: 0 | M8: 782842 | N8: 0 | O8: 0 | P8: 0 | Q8: 0 | R8: 0 | S8: 0 | T8: 0 | U8: 0 | V8: 0 | W8: 0 | X8: 0 | Y8: 0 | Z8: 0 | AA8: 0
A9: 2024-11-01 | B9: HOSPITAL AUTHORITY | C9: HA | D9: 3098159131 | E9: EPIS | F9: 1 | G9: Enterprise Application Integration (EAI) | H9: Local System | I9: 434094 | J9: 1398 | K9: 432696 | L9: 0 | M9: 0 | N9: 1398 | O9: 0 | P9: 0 | Q9: 0 | R9: 0 | S9: 0 | T9: 0 | U9: 0 | V9: 0 | W9: 0 | X9: 0 | Y9: 0 | Z9: 0 | AA9: 0
A10: 2024-11-01 | B10: HOSPITAL AUTHORITY | C10: HA | D10: 3098159131 | E10: PX | F10: 3 | G10: Enterprise Application Integration (EAI) | H10: Local System | I10: 391004 | J10: 0 | K10: 0 | L10: 0 | M10: 391004 | N10: 0 | O10: 0 | P10: 0 | Q10: 0 | R10: 0 | S10: 0 | T10: 0 | U10: 0 | V10: 0 | W10: 0 | X10: 0 | Y10: 0 | Z10: 0 | AA10: 0
A11: 2024-11-01 | B11: HOSPITAL AUTHORITY | C11: HA | D11: 3098159131 | E11: MEDCER | F11: 1 | G11: Enterprise Application Integration (EAI) | H11: Local System | I11: 274613 | J11: 239 | K11: 274374 | L11: 0 | M11: 0 | N11: 239 | O11: 0 | P11: 0 | Q11: 0 | R11: 0 | S11: 0 | T11: 0 | U11: 0 | V11: 0 | W11: 0 | X11: 0 | Y11: 0 | Z11: 0 | AA11: 0
A12: 2024-11-01 | B12: HOSPITAL AUTHORITY | C12: HA | D12: 3098159131 | E12: IMMU | F12: 3 | G12: Enterprise Application Integration (EAI) | H12: Local System | I12: 207112 | J12: 0 | K12: 0 | L12: 11553 | M12: 195559 | N12: 0 | O12: 0 | P12: 11181 | Q12: 11181 | R12: 11181 | S12: 0 | T12: 0 | U12: 380 | V12: 0 | W12: 380 | X12: 0 | Y12: 0 | Z12: 0 | AA12: 0
A13: 2024-11-01 | B13: HOSPITAL AUTHORITY | C13: HA | D13: 3098159131 | E13: REF | F13: 1 | G13: Enterprise Application Integration (EAI) | H13: Local System | I13: 185708 | J13: 175 | K13: 185533 | L13: 0 | M13: 0 | N13: 175 | O13: 0 | P13: 0 | Q13: 0 | R13: 0 | S13: 0 | T13: 0 | U13: 0 | V13: 0 | W13: 0 | X13: 0 | Y13: 0 | Z13: 0 | AA13: 0
A14: 2024-11-01 | B14: HOSPITAL AUTHORITY | C14: HA | D14: 3098159131 | E14: LABAP | F14: 3 | G14: Enterprise Application Integration (EAI) | H14: Local System | I14: 98967 | J14: 11 | K14: 0 | L14: 31134 | M14: 67822 | N14: 11 | O14: 0 | P14: 31404 | Q14: 28420 | R14: 31404 | S14: 0 | T14: 0 | U14: 3 | V14: 0 | W14: 3 | X14: 0 | Y14: 0 | Z14: 0 | AA14: 0
A15: 2024-11-01 | B15: HOSPITAL AUTHORITY | C15: HA | D15: 3098159131 | E15: OBS | F15: 3 | G15: Enterprise Application Integration (EAI) | H15: Local System | I15: 44399 | J15: 27 | K15: 0 | L15: 0 | M15: 44372 | N15: 27 | O15: 0 | P15: 0 | Q15: 0 | R15: 0 | S15: 0 | T15: 0 | U15: 0 | V15: 0 | W15: 0 | X15: 0 | Y15: 0 | Z15: 0 | AA15: 0
A16: 2024-11-01 | B16: HOSPITAL AUTHORITY | C16: HA | D16: 3098159131 | E16: INVR | F16: 1 | G16: Enterprise Application Integration (EAI) | H16: Local System | I16: 33491 | J16: 36 | K16: 33455 | L16: 0 | M16: 0 | N16: 36 | O16: 0 | P16: 0 | Q16: 0 | R16: 0 | S16: 0 | T16: 0 | U16: 0 | V16: 0 | W16: 0 | X16: 0 | Y16: 0 | Z16: 0 | AA16: 0
A17: 2024-11-01 | B17: HOSPITAL AUTHORITY | C17: HA | D17: 3098159131 | E17: BIRTH | F17: 3 | G17: Enterprise Application Integration (EAI) | H17: Local System | I17: 11843 | J17: 0 | K17: 0 | L17: 0 | M17: 11843 | N17: 0 | O17: 0 | P17: 0 | Q17: 0 | R17: 0 | S17: 0 | T17: 0 | U17: 0 | V17: 0 | W17: 0 | X17: 0 | Y17: 0 | Z17: 0 | AA17: 0
A18: 2024-11-01 | B18: HOSPITAL AUTHORITY | C18: HA | D18: 3098159131 | E18: AL1 | F18: 3 | G18: Enterprise Application Integration (EAI) | H18: Local System | I18: 6091 | J18: 0 | K18: 0 | L18: 1717 | M18: 4374 | N18: 0 | O18: 0 | P18: 1602 | Q18: 1602 | R18: 1602 | S18: 0 | T18: 0 | U18: 0 | V18: 0 | W18: 0 | X18: 0 | Y18: 0 | Z18: 0 | AA18: 0
A19: 2024-11-01 | B19: HOSPITAL AUTHORITY | C19: HA | D19: 3098159131 | E19: ADR | F19: 3 | G19: Enterprise Application Integration (EAI) | H19: Local System | I19: 5116 | J19: 0 | K19: 0 | L19: 320 | M19: 4796 | N19: 0 | O19: 0 | P19: 318 | Q19: 318 | R19: 318 | S19: 0 | T19: 0 | U19: 0 | V19: 0 | W19: 0 | X19: 0 | Y19: 0 | Z19: 0 | AA19: 0
A20: 2024-11-01 | B20: DEPARTMENT OF HEALTH | C20: DH | D20: 2438744730 | E20: ENCTR | F20: 3 | G20: CIMS2 | H20: Local System | I20: 528906 | J20: 0 | K20: 0 | L20: 0 | M20: 528906 | N20: 0 | O20: 0 | P20: 0 | Q20: 0 | R20: 0 | S20: 0 | T20: 0 | U20: 0 | V20: 0 | W20: 0 | X20: 0 | Y20: 0 | Z20: 0 | AA20: 0
A21: 2024-11-01 | B21: DEPARTMENT OF HEALTH | C21: DH | D21: 2438744730 | E21: IMMU | F21: 3 | G21: CIMS2 | H21: Local System | I21: 222694 | J21: 0 | K21: 0 | L21: 29003 | M21: 193691 | N21: 0 | O21: 0 | P21: 29005 | Q21: 29005 | R21: 29005 | S21: 0 | T21: 0 | U21: 0 | V21: 0 | W21: 0 | X21: 0 | Y21: 0 | Z21: 0 | AA21: 0
A22: 2024-11-01 | B22: DEPARTMENT OF HEALTH | C22: DH | D22: 2438744730 | E22: RXO | F22: 3 | G22: CIMS2 | H22: Adaptation | I22: 154299 | J22: 0 | K22: 0 | L22: 53632 | M22: 100667 | N22: 0 | O22: 0 | P22: 53860 | Q22: 53860 | R22: 53860 | S22: 0 | T22: 0 | U22: 5 | V22: 0 | W22: 0 | X22: 0 | Y22: 5 | Z22: 0 | AA22: 0
A23: 2024-11-01 | B23: DEPARTMENT OF HEALTH | C23: DH | D23: 2438744730 | E23: PX | F23: 3 | G23: CIMS2 | H23: Local System | I23: 118544 | J23: 0 | K23: 0 | L23: 8922 | M23: 109622 | N23: 0 | O23: 0 | P23: 6037 | Q23: 6037 | R23: 6037 | S23: 0 | T23: 0 | U23: 2907 | V23: 0 | W23: 2907 | X23: 0 | Y23: 0 | Z23: 0 | AA23: 0
A24: 2024-11-01 | B24: DEPARTMENT OF HEALTH | C24: DH | D24: 2438744730 | E24: PROB | F24: 3 | G24: CIMS2 | H24: Local System | I24: 117906 | J24: 2 | K24: 0 | L24: 15734 | M24: 102170 | N24: 2 | O24: 0 | P24: 15727 | Q24: 15727 | R24: 15727 | S24: 0 | T24: 0 | U24: 26 | V24: 0 | W24: 26 | X24: 0 | Y24: 0 | Z24: 0 | AA24: 0
A25: 2024-11-01 | B25: DEPARTMENT OF HEALTH | C25: DH | D25: 2438744730 | E25: RXD | F25: 2 | G25: CIMS2 | H25: Local System | I25: 99696 | J25: 0 | K25: 0 | L25: 99696 | M25: 0 | N25: 0 | O25: 0 | P25: 0 | Q25: 0 | R25: 0 | S25: 0 | T25: 0 | U25: 0 | V25: 0 | W25: 0 | X25: 0 | Y25: 0 | Z25: 0 | AA25: 0
A26: 2024-11-01 | B26: DEPARTMENT OF HEALTH | C26: DH | D26: 2438744730 | E26: LABGEN | F26: 3 | G26: CIMS2 | H26: Local System | I26: 17153 | J26: 0 | K26: 1326 | L26: 652 | M26: 15175 | N26: 0 | O26: 0 | P26: 2019 | Q26: 2019 | R26: 652 | S26: 1367 | T26: 0 | U26: 0 | V26: 0 | W26: 0 | X26: 0 | Y26: 0 | Z26: 0 | AA26: 0
A27: 2024-11-01 | B27: DEPARTMENT OF HEALTH | C27: DH | D27: 2438744730 | E27: LABMB | F27: 1 | G27: CIMS2 | H27: Local System | I27: 16594 | J27: 0 | K27: 16594 | L27: 0 | M27: 0 | N27: 0 | O27: 0 | P27: 0 | Q27: 0 | R27: 0 | S27: 0 | T27: 0 | U27: 0 | V27: 0 | W27: 0 | X27: 0 | Y27: 0 | Z27: 0 | AA27: 0
A28: 2024-11-01 | B28: DEPARTMENT OF HEALTH | C28: DH | D28: 2438744730 | E28: RAD | F28: 3 | G28: CIMS2 | H28: Local System | I28: 16220 | J28: 0 | K28: 0 | L28: 0 | M28: 16220 | N28: 0 | O28: 0 | P28: 0 | Q28: 0 | R28: 0 | S28: 0 | T28: 0 | U28: 0 | V28: 0 | W28: 0 | X28: 0 | Y28: 0 | Z28: 0 | AA28: 0
A29: 2024-11-01 | B29: DEPARTMENT OF HEALTH | C29: DH | D29: 2438744730 | E29: OBS | F29: 3 | G29: CIMS2 | H29: Local System | I29: 7249 | J29: 0 | K29: 0 | L29: 0 | M29: 7249 | N29: 0 | O29: 0 | P29: 0 | Q29: 0 | R29: 0 | S29: 0 | T29: 0 | U29: 0 | V29: 0 | W29: 0 | X29: 0 | Y29: 0 | Z29: 0 | AA29: 0
A30: 2024-11-01 | B30: DEPARTMENT OF HEALTH | C30: DH | D30: 2438744730 | E30: LABAP | F30: 1 | G30: CIMS2 | H30: Local System | I30: 6695 | J30: 0 | K30: 6695 | L30: 0 | M30: 0 | N30: 0 | O30: 0 | P30: 0 | Q30: 0 | R30: 0 | S30: 0 | T30: 0 | U30: 0 | V30: 0 | W30: 0 | X30: 0 | Y30: 0 | Z30: 0 | AA30: 0
A31: 2024-11-01 | B31: DEPARTMENT OF HEALTH | C31: DH | D31: 2438744730 | E31: REF | F31: 1 | G31: CIMS2 | H31: Local System | I31: 4620 | J31: 0 | K31: 4620 | L31: 0 | M31: 0 | N31: 0 | O31: 0 | P31: 0 | Q31: 0 | R31: 0 | S31: 0 | T31: 0 | U31: 0 | V31: 0 | W31: 0 | X31: 0 | Y31: 0 | Z31: 0 | AA31: 0
A32: 2024-11-01 | B32: DEPARTMENT OF HEALTH | C32: DH | D32: 2438744730 | E32: AL1 | F32: 3 | G32: CIMS2 | H32: Adaptation | I32: 1435 | J32: 0 | K32: 0 | L32: 337 | M32: 1098 | N32: 0 | O32: 0 | P32: 310 | Q32: 310 | R32: 310 | S32: 0 | T32: 0 | U32: 0 | V32: 0 | W32: 0 | X32: 0 | Y32: 0 | Z32: 0 | AA32: 0
A33: 2024-11-01 | B33: DEPARTMENT OF HEALTH | C33: DH | D33: 2438744730 | E33: ADR | F33: 3 | G33: CIMS2 | H33: Adaptation | I33: 356 | J33: 0 | K33: 0 | L33: 57 | M33: 299 | N33: 0 | O33: 0 | P33: 57 | Q33: 57 | R33: 57 | S33: 0 | T33: 0 | U33: 0 | V33: 0 | W33: 0 | X33: 0 | Y33: 0 | Z33: 0 | AA33: 0
A34: 2024-11-01 | B34: QUALITY HEALTHCARE MEDICAL CENTRE LIMITED | C34: GRP | D34: 9265486345 | E34: RXD | F34: 2 | G34: QHMS EMR | H34: Local System | I34: 37824 | J34: 0 | K34: 0 | L34: 37824 | M34: 0 | N34: 0 | O34: 0 | P34: 0 | Q34: 0 | R34: 0 | S34: 0 | T34: 0 | U34: 0 | V34: 0 | W34: 0 | X34: 0 | Y34: 0 | Z34: 0 | AA34: 0
A35: 2024-11-01 | B35: QUALITY HEALTHCARE MEDICAL CENTRE LIMITED | C35: GRP | D35: 9265486345 | E35: ENCTR | F35: 3 | G35: QHMS EMR | H35: Local System | I35: 25897 | J35: 0 | K35: 0 | L35: 0 | M35: 25897 | N35: 0 | O35: 0 | P35: 0 | Q35: 0 | R35: 0 | S35: 0 | T35: 0 | U35: 0 | V35: 0 | W35: 0 | X35: 0 | Y35: 0 | Z35: 0 | AA35: 0
A36: 2024-11-01 | B36: QUALITY HEALTHCARE MEDICAL CENTRE LIMITED | C36: GRP | D36: 9265486345 | E36: IMMU | F36: 2 | G36: QHMS EMR | H36: Local System | I36: 3325 | J36: 0 | K36: 0 | L36: 3325 | M36: 0 | N36: 0 | O36: 0 | P36: 0 | Q36: 0 | R36: 0 | S36: 0 | T36: 0 | U36: 0 | V36: 0 | W36: 0 | X36: 0 | Y36: 0 | Z36: 0 | AA36: 0
A37: 2024-11-01 | B37: QUALITY HEALTHCARE MEDICAL CENTRE LIMITED | C37: GRP | D37: 9265486345 | E37: AL1 | F37: 3,2 | G37: QHMS EMR | H37: Local System | I37: 519 | J37: 0 | K37: 0 | L37: 519 | M37: 0 | N37: 0 | O37: 0 | P37: 494 | Q37: 494 | R37: 494 | S37: 0 | T37: 0 | U37: 0 | V37: 0 | W37: 0 | X37: 0 | Y37: 0 | Z37: 0 | AA37: 0
A38: 2024-11-01 | B38: QUALITY HEALTHCARE MEDICAL CENTRE LIMITED | C38: GRP | D38: 9761710951 | E38: RAD | F38: 3 | G38: RHI2_QHMS | H38: Local System | I38: 879 | J38: 0 | K38: 0 | L38: 0 | M38: 879 | N38: 0 | O38: 0 | P38: 0 | Q38: 0 | R38: 0 | S38: 0 | T38: 0 | U38: 0 | V38: 0 | W38: 0 | X38: 0 | Y38: 0 | Z38: 0 | AA38: 0
A39: 2024-11-01 | B39: DEPARTMENT OF HEALTH COVID-19 VACCINATION PROGRAMME | C39: DH | D39: 3681219587 | E39: IMMU | F39: 3 | G39: CIMS1 | H39: Local System | I39: 54553 | J39: 0 | K39: 0 | L39: 0 | M39: 54553 | N39: 0 | O39: 0 | P39: 0 | Q39: 0 | R39: 0 | S39: 0 | T39: 0 | U39: 0 | V39: 0 | W39: 0 | X39: 0 | Y39: 0 | Z39: 0 | AA39: 0
A40: 2024-11-01 | B40: HONG KONG ADVENTIST HOSPITAL - TSUEN WAN | C40: PH | D40: 8909436562 | E40: LABGEN | F40: 3 | G40: TWAHLAAM | H40: Local System | I40: 29522 | J40: 0 | K40: 0 | L40: 1766 | M40: 27756 | N40: 0 | O40: 0 | P40: 1767 | Q40: 1767 | R40: 1767 | S40: 0 | T40: 0 | U40: 0 | V40: 0 | W40: 0 | X40: 0 | Y40: 0 | Z40: 0 | AA40: 0
A41: 2024-11-01 | B41: HONG KONG ADVENTIST HOSPITAL - TSUEN WAN | C41: PH | D41: 8909436562 | E41: RXD | F41: 2 | G41: TWAHLAAM | H41: Local System | I41: 8697 | J41: 0 | K41: 0 | L41: 8697 | M41: 0 | N41: 0 | O41: 0 | P41: 0 | Q41: 0 | R41: 0 | S41: 0 | T41: 0 | U41: 0 | V41: 0 | W41: 0 | X41: 0 | Y41: 0 | Z41: 0 | AA41: 0
A42: 2024-11-01 | B42: HONG KONG ADVENTIST HOSPITAL - TSUEN WAN | C42: PH | D42: 8909436562 | E42: ENCTR | F42: 3 | G42: TWAHLAAM | H42: Local System | I42: 7550 | J42: 0 | K42: 0 | L42: 0 | M42: 7550 | N42: 0 | O42: 0 | P42: 0 | Q42: 0 | R42: 0 | S42: 0 | T42: 0 | U42: 0 | V42: 0 | W42: 0 | X42: 0 | Y42: 0 | Z42: 0 | AA42: 0
A43: 2024-11-01 | B43: HONG KONG ADVENTIST HOSPITAL - TSUEN WAN | C43: PH | D43: 8909436562 | E43: RAD | F43: 3,2 | G43: TWAHLAAM | H43: Local System | I43: 3726 | J43: 0 | K43: 0 | L43: 0 | M43: 3726 | N43: 0 | O43: 0 | P43: 0 | Q43: 0 | R43: 0 | S43: 0 | T43: 0 | U43: 0 | V43: 0 | W43: 0 | X43: 0 | Y43: 0 | Z43: 0 | AA43: 0
A44: 2024-11-01 | B44: HONG KONG ADVENTIST HOSPITAL - TSUEN WAN | C44: PH | D44: 8909436562 | E44: AL1 | F44: 3 | G44: TWAHLAAM | H44: Adaptation | I44: 783 | J44: 0 | K44: 0 | L44: 185 | M44: 598 | N44: 0 | O44: 0 | P44: 156 | Q44: 156 | R44: 156 | S44: 0 | T44: 0 | U44: 0 | V44: 0 | W44: 0 | X44: 0 | Y44: 0 | Z44: 0 | AA44: 0
A45: 2024-11-01 | B45: HONG KONG ADVENTIST HOSPITAL - TSUEN WAN | C45: PH | D45: 8909436562 | E45: LABAP | F45: 1 | G45: TWAHLAAM | H45: Local System | I45: 511 | J45: 1 | K45: 510 | L45: 0 | M45: 0 | N45: 0 | O45: 1 | P45: 0 | Q45: 0 | R45: 0 | S45: 0 | T45: 0 | U45: 0 | V45: 0 | W45: 0 | X45: 0 | Y45: 0 | Z45: 0 | AA45: 0
A46: 2024-11-01 | B46: HONG KONG ADVENTIST HOSPITAL - TSUEN WAN | C46: PH | D46: 8909436562 | E46: ADR | F46: 3 | G46: TWAHLAAM | H46: Adaptation | I46: 32 | J46: 0 | K46: 0 | L46: 3 | M46: 29 | N46: 0 | O46: 0 | P46: 3 | Q46: 3 | R46: 3 | S46: 0 | T46: 0 | U46: 0 | V46: 0 | W46: 0 | X46: 0 | Y46: 0 | Z46: 0 | AA46: 0
A47: 2024-11-01 | B47: HONG KONG ADVENTIST HOSPITAL - TSUEN WAN | C47: PH | D47: 8909436562 | E47: BIRTH | F47: 3 | G47: TWAHLAAM | H47: Local System | I47: 3 | J47: 0 | K47: 0 | L47: 0 | M47: 3 | N47: 0 | O47: 0 | P47: 0 | Q47: 0 | R47: 0 | S47: 0 | T47: 0 | U47: 0 | V47: 0 | W47: 0 | X47: 0 | Y47: 0 | Z47: 0 | AA47: 0
A48: 2024-11-01 | B48: DISTRICT HEALTH CENTRE-SHAM SHUI PO (SJS) | C48: DHC | D48: 9681600318 | E48: ENCTR | F48: 3 | G48: DHCCMS | H48: Local System | I48: 37123 | J48: 0 | K48: 0 | L48: 0 | M48: 37123 | N48: 0 | O48: 0 | P48: 0 | Q48: 0 | R48: 0 | S48: 0 | T48: 0 | U48: 0 | V48: 0 | W48: 0 | X48: 0 | Y48: 0 | Z48: 0 | AA48: 0
A49: 2024-11-01 | B49: DISTRICT HEALTH CENTRE-SHAM SHUI PO (SJS) | C49: DHC | D49: 9681600318 | E49: EPIS | F49: 1 | G49: DHCCMS | H49: Local System | I49: 8009 | J49: 0 | K49: 8009 | L49: 0 | M49: 0 | N49: 0 | O49: 0 | P49: 0 | Q49: 0 | R49: 0 | S49: 0 | T49: 0 | U49: 0 | V49: 0 | W49: 0 | X49: 0 | Y49: 0 | Z49: 0 | AA49: 0
A50: 2024-11-01 | B50: DISTRICT HEALTH CENTRE-SHAM SHUI PO (SJS) | C50: DHC | D50: 9681600318 | E50: AL1 | F50: 3 | G50: DHCCMS | H50: Local System | I50: 13 | J50: 0 | K50: 0 | L50: 2 | M50: 11 | N50: 0 | O50: 0 | P50: 1 | Q50: 1 | R50: 1 | S50: 0 | T50: 0 | U50: 0 | V50: 0 | W50: 0 | X50: 0 | Y50: 0 | Z50: 0 | AA50: 0
A51: 2024-11-01 | B51: DISTRICT HEALTH CENTRE-TUEN MUN (ELCHK) | C51: DHC | D51: 6303033042 | E51: ENCTR | F51: 3 | G51: DHCCMS | H51: Local System | I51: 26635 | J51: 0 | K51: 0 | L51: 0 | M51: 26635 | N51: 0 | O51: 0 | P51: 0 | Q51: 0 | R51: 0 | S51: 0 | T51: 0 | U51: 0 | V51: 0 | W51: 0 | X51: 0 | Y51: 0 | Z51: 0 | AA51: 0
A52: 2024-11-01 | B52: DISTRICT HEALTH CENTRE-TUEN MUN (ELCHK) | C52: DHC | D52: 6303033042 | E52: EPIS | F52: 1 | G52: DHCCMS | H52: Local System | I52: 9739 | J52: 0 | K52: 9739 | L52: 0 | M52: 0 | N52: 0 | O52: 0 | P52: 0 | Q52: 0 | R52: 0 | S52: 0 | T52: 0 | U52: 0 | V52: 0 | W52: 0 | X52: 0 | Y52: 0 | Z52: 0 | AA52: 0
A53: 2024-11-01 | B53: DISTRICT HEALTH CENTRE-TUEN MUN (ELCHK) | C53: DHC | D53: 6303033042 | E53: AL1 | F53: 3 | G53: DHCCMS | H53: Local System | I53: 15 | J53: 0 | K53: 0 | L53: 4 | M53: 11 | N53: 0 | O53: 0 | P53: 4 | Q53: 4 | R53: 4 | S53: 0 | T53: 0 | U53: 0 | V53: 0 | W53: 0 | X53: 0 | Y53: 0 | Z53: 0 | AA53: 0
A54: 2024-11-01 | B54: DISTRICT HEALTH CENTRE-TUEN MUN (ELCHK) | C54: DHC | D54: 6303033042 | E54: ADR | F54: 3 | G54: DHCCMS | H54: Local System | I54: 11 | J54: 0 | K54: 0 | L54: 1 | M54: 10 | N54: 0 | O54: 0 | P54: 1 | Q54: 1 | R54: 1 | S54: 0 | T54: 0 | U54: 0 | V54: 0 | W54: 0 | X54: 0 | Y54: 0 | Z54: 0 | AA54: 0
A55: 2024-11-01 | B55: DISTRICT HEALTH CENTRE-WONG TAI SIN (HKSKHWCL) | C55: DHC | D55: 4437392776 | E55: ENCTR | F55: 3 | G55: DHCCMS | H55: Local System | I55: 23272 | J55: 0 | K55: 0 | L55: 0 | M55: 23272 | N55: 0 | O55: 0 | P55: 0 | Q55: 0 | R55: 0 | S55: 0 | T55: 0 | U55: 0 | V55: 0 | W55: 0 | X55: 0 | Y55: 0 | Z55: 0 | AA55: 0
A56: 2024-11-01 | B56: DISTRICT HEALTH CENTRE-WONG TAI SIN (HKSKHWCL) | C56: DHC | D56: 4437392776 | E56: EPIS | F56: 1 | G56: DHCCMS | H56: Local System | I56: 10589 | J56: 0 | K56: 10589 | L56: 0 | M56: 0 | N56: 0 | O56: 0 | P56: 0 | Q56: 0 | R56: 0 | S56: 0 | T56: 0 | U56: 0 | V56: 0 | W56: 0 | X56: 0 | Y56: 0 | Z56: 0 | AA56: 0
A57: 2024-11-01 | B57: DISTRICT HEALTH CENTRE-WONG TAI SIN (HKSKHWCL) | C57: DHC | D57: 4437392776 | E57: AL1 | F57: 3 | G57: DHCCMS | H57: Local System | I57: 13 | J57: 0 | K57: 0 | L57: 2 | M57: 11 | N57: 0 | O57: 0 | P57: 2 | Q57: 2 | R57: 2 | S57: 0 | T57: 0 | U57: 0 | V57: 0 | W57: 0 | X57: 0 | Y57: 0 | Z57: 0 | AA57: 0
A58: 2024-11-01 | B58: DISTRICT HEALTH CENTRE-YUEN LONG (POH) | C58: DHC | D58: 7218241485 | E58: ENCTR | F58: 3 | G58: DHCCMS | H58: Local System | I58: 19812 | J58: 0 | K58: 0 | L58: 0 | M58: 19812 | N58: 0 | O58: 0 | P58: 0 | Q58: 0 | R58: 0 | S58: 0 | T58: 0 | U58: 0 | V58: 0 | W58: 0 | X58: 0 | Y58: 0 | Z58: 0 | AA58: 0
A59: 2024-11-01 | B59: DISTRICT HEALTH CENTRE-YUEN LONG (POH) | C59: DHC | D59: 7218241485 | E59: EPIS | F59: 1 | G59: DHCCMS | H59: Local System | I59: 10733 | J59: 0 | K59: 10733 | L59: 0 | M59: 0 | N59: 0 | O59: 0 | P59: 0 | Q59: 0 | R59: 0 | S59: 0 | T59: 0 | U59: 0 | V59: 0 | W59: 0 | X59: 0 | Y59: 0 | Z59: 0 | AA59: 0
A60: 2024-11-01 | B60: DISTRICT HEALTH CENTRE-YUEN LONG (POH) | C60: DHC | D60: 7218241485 | E60: AL1 | F60: 3 | G60: DHCCMS | H60: Local System | I60: 6 | J60: 0 | K60: 0 | L60: 2 | M60: 4 | N60: 0 | O60: 0 | P60: 2 | Q60: 2 | R60: 2 | S60: 0 | T60: 0 | U60: 0 | V60: 0 | W60: 0 | X60: 0 | Y60: 0 | Z60: 0 | AA60: 0
A61: 2024-11-01 | B61: DISTRICT HEALTH CENTRE-YUEN LONG (POH) | C61: DHC | D61: 7218241485 | E61: ADR | F61: 3 | G61: DHCCMS | H61: Local System | I61: 2 | J61: 0 | K61: 0 | L61: 0 | M61: 2 | N61: 0 | O61: 0 | P61: 0 | Q61: 0 | R61: 0 | S61: 0 | T61: 0 | U61: 0 | V61: 0 | W61: 0 | X61: 0 | Y61: 0 | Z61: 0 | AA61: 0
A62: 2024-11-01 | B62: DISTRICT HEALTH CENTRE-SOUTHERN (AKA) | C62: DHC | D62: 8900325933 | E62: ENCTR | F62: 3 | G62: DHCCMS | H62: Local System | I62: 23068 | J62: 0 | K62: 0 | L62: 0 | M62: 23068 | N62: 0 | O62: 0 | P62: 0 | Q62: 0 | R62: 0 | S62: 0 | T62: 0 | U62: 0 | V62: 0 | W62: 0 | X62: 0 | Y62: 0 | Z62: 0 | AA62: 0
A63: 2024-11-01 | B63: DISTRICT HEALTH CENTRE-SOUTHERN (AKA) | C63: DHC | D63: 8900325933 | E63: EPIS | F63: 1 | G63: DHCCMS | H63: Local System | I63: 3369 | J63: 0 | K63: 3369 | L63: 0 | M63: 0 | N63: 0 | O63: 0 | P63: 0 | Q63: 0 | R63: 0 | S63: 0 | T63: 0 | U63: 0 | V63: 0 | W63: 0 | X63: 0 | Y63: 0 | Z63: 0 | AA63: 0
A64: 2024-11-01 | B64: DISTRICT HEALTH CENTRE-SOUTHERN (AKA) | C64: DHC | D64: 8900325933 | E64: AL1 | F64: 3 | G64: DHCCMS | H64: Local System | I64: 8 | J64: 0 | K64: 0 | L64: 0 | M64: 8 | N64: 0 | O64: 0 | P64: 0 | Q64: 0 | R64: 0 | S64: 0 | T64: 0 | U64: 0 | V64: 0 | W64: 0 | X64: 0 | Y64: 0 | Z64: 0 | AA64: 0
A65: 2024-11-01 | B65: DISTRICT HEALTH CENTRE-KWAI TSING (KTSCHCA) | C65: DHC | D65: 3040418583 | E65: ENCTR | F65: 3 | G65: DHCCMS | H65: Local System | I65: 17563 | J65: 0 | K65: 0 | L65: 0 | M65: 17563 | N65: 0 | O65: 0 | P65: 0 | Q65: 0 | R65: 0 | S65: 0 | T65: 0 | U65: 0 | V65: 0 | W65: 0 | X65: 0 | Y65: 0 | Z65: 0 | AA65: 0
A66: 2024-11-01 | B66: DISTRICT HEALTH CENTRE-KWAI TSING (KTSCHCA) | C66: DHC | D66: 3040418583 | E66: EPIS | F66: 1 | G66: DHCCMS | H66: Local System | I66: 5016 | J66: 0 | K66: 5016 | L66: 0 | M66: 0 | N66: 0 | O66: 0 | P66: 0 | Q66: 0 | R66: 0 | S66: 0 | T66: 0 | U66: 0 | V66: 0 | W66: 0 | X66: 0 | Y66: 0 | Z66: 0 | AA66: 0
A67: 2024-11-01 | B67: HKSH MEDICAL GROUP LIMITED | C67: PH | D67: 4773496701 | E67: LABGEN | F67: 1 | G67: HKSH e-HR gateway | H67: Local System | I67: 9954 | J67: 0 | K67: 9954 | L67: 0 | M67: 0 | N67: 0 | O67: 0 | P67: 0 | Q67: 0 | R67: 0 | S67: 0 | T67: 0 | U67: 0 | V67: 0 | W67: 0 | X67: 0 | Y67: 0 | Z67: 0 | AA67: 0
A68: 2024-11-01 | B68: HKSH MEDICAL GROUP LIMITED | C68: PH | D68: 4773496701 | E68: PROB | F68: 3 | G68: HKSH e-HR gateway | H68: Local System | I68: 4283 | J68: 0 | K68: 0 | L68: 0 | M68: 4283 | N68: 0 | O68: 0 | P68: 0 | Q68: 0 | R68: 0 | S68: 0 | T68: 0 | U68: 0 | V68: 0 | W68: 0 | X68: 0 | Y68: 0 | Z68: 0 | AA68: 0
A69: 2024-11-01 | B69: HKSH MEDICAL GROUP LIMITED | C69: PH | D69: 4773496701 | E69: RAD | F69: 3,2 | G69: HKSH e-HR gateway | H69: Local System | I69: 3799 | J69: 0 | K69: 0 | L69: 0 | M69: 3799 | N69: 0 | O69: 0 | P69: 0 | Q69: 0 | R69: 0 | S69: 0 | T69: 0 | U69: 0 | V69: 0 | W69: 0 | X69: 0 | Y69: 0 | Z69: 0 | AA69: 0
A70: 2024-11-01 | B70: HKSH MEDICAL GROUP LIMITED | C70: PH | D70: 4773496701 | E70: LABMB | F70: 1 | G70: HKSH e-HR gateway | H70: Local System | I70: 1544 | J70: 0 | K70: 1544 | L70: 0 | M70: 0 | N70: 0 | O70: 0 | P70: 0 | Q70: 0 | R70: 0 | S70: 0 | T70: 0 | U70: 0 | V70: 0 | W70: 0 | X70: 0 | Y70: 0 | Z70: 0 | AA70: 0
A71: 2024-11-01 | B71: HKSH MEDICAL GROUP LIMITED | C71: PH | D71: 4773496701 | E71: EPIS | F71: 1 | G71: HKSH e-HR gateway | H71: Local System | I71: 826 | J71: 0 | K71: 826 | L71: 0 | M71: 0 | N71: 0 | O71: 0 | P71: 0 | Q71: 0 | R71: 0 | S71: 0 | T71: 0 | U71: 0 | V71: 0 | W71: 0 | X71: 0 | Y71: 0 | Z71: 0 | AA71: 0
A72: 2024-11-01 | B72: HKSH MEDICAL GROUP LIMITED | C72: PH | D72: 4773496701 | E72: LABAP | F72: 1 | G72: HKSH e-HR gateway | H72: Local System | I72: 815 | J72: 0 | K72: 815 | L72: 0 | M72: 0 | N72: 0 | O72: 0 | P72: 0 | Q72: 0 | R72: 0 | S72: 0 | T72: 0 | U72: 0 | V72: 0 | W72: 0 | X72: 0 | Y72: 0 | Z72: 0 | AA72: 0
A73: 2024-11-01 | B73: HKSH MEDICAL GROUP LIMITED | C73: PH | D73: 4773496701 | E73: AL1 | F73: 3 | G73: HKSH e-HR gateway | H73: Local System | I73: 759 | J73: 0 | K73: 0 | L73: 333 | M73: 426 | N73: 0 | O73: 0 | P73: 268 | Q73: 268 | R73: 268 | S73: 0 | T73: 0 | U73: 0 | V73: 0 | W73: 0 | X73: 0 | Y73: 0 | Z73: 0 | AA73: 0
A74: 2024-11-01 | B74: HKSH MEDICAL GROUP LIMITED | C74: PH | D74: 4773496701 | E74: PX | F74: 3 | G74: HKSH e-HR gateway | H74: Local System | I74: 131 | J74: 0 | K74: 0 | L74: 0 | M74: 131 | N74: 0 | O74: 0 | P74: 0 | Q74: 0 | R74: 0 | S74: 0 | T74: 0 | U74: 0 | V74: 0 | W74: 0 | X74: 0 | Y74: 0 | Z74: 0 | AA74: 0
A75: 2024-11-01 | B75: HKSH MEDICAL GROUP LIMITED | C75: PH | D75: 4773496701 | E75: ADR | F75: 3 | G75: HKSH e-HR gateway | H75: Local System | I75: 106 | J75: 0 | K75: 0 | L75: 9 | M75: 97 | N75: 0 | O75: 0 | P75: 9 | Q75: 9 | R75: 9 | S75: 0 | T75: 0 | U75: 0 | V75: 0 | W75: 0 | X75: 0 | Y75: 0 | Z75: 0 | AA75: 0
A76: 2024-11-01 | B76: HKSH MEDICAL GROUP LIMITED | C76: PH | D76: 4773496701 | E76: BIRTH | F76: 3 | G76: HKSH e-HR gateway | H76: Local System | I76: 2 | J76: 0 | K76: 0 | L76: 0 | M76: 2 | N76: 0 | O76: 0 | P76: 0 | Q76: 0 | R76: 0 | S76: 0 | T76: 0 | U76: 0 | V76: 0 | W76: 0 | X76: 0 | Y76: 0 | Z76: 0 | AA76: 0
A77: 2024-11-01 | B77: HONG KONG BAPTIST HOSPITAL | C77: PH | D77: 3650324540 | E77: LABGEN | F77: 1 | G77: Trakcare | H77: Local System | I77: 8945 | J77: 2 | K77: 8943 | L77: 0 | M77: 0 | N77: 0 | O77: 2 | P77: 0 | Q77: 0 | R77: 0 | S77: 0 | T77: 0 | U77: 0 | V77: 0 | W77: 0 | X77: 0 | Y77: 0 | Z77: 0 | AA77: 0
A78: 2024-11-01 | B78: HONG KONG BAPTIST HOSPITAL | C78: PH | D78: 3650324540 | E78: RAD | F78: 3,2 | G78: Trakcare | H78: Local System | I78: 4711 | J78: 0 | K78: 0 | L78: 0 | M78: 4711 | N78: 0 | O78: 0 | P78: 0 | Q78: 0 | R78: 0 | S78: 0 | T78: 0 | U78: 0 | V78: 0 | W78: 0 | X78: 0 | Y78: 0 | Z78: 0 | AA78: 0
A79: 2024-11-01 | B79: HONG KONG BAPTIST HOSPITAL | C79: PH | D79: 3650324540 | E79: LABMB | F79: 1 | G79: Trakcare | H79: Local System | I79: 2935 | J79: 0 | K79: 2935 | L79: 0 | M79: 0 | N79: 0 | O79: 0 | P79: 0 | Q79: 0 | R79: 0 | S79: 0 | T79: 0 | U79: 0 | V79: 0 | W79: 0 | X79: 0 | Y79: 0 | Z79: 0 | AA79: 0
A80: 2024-11-01 | B80: HONG KONG BAPTIST HOSPITAL | C80: PH | D80: 3650324540 | E80: AL1 | F80: 3 | G80: Trakcare | H80: Local System | I80: 1961 | J80: 2 | K80: 0 | L80: 1170 | M80: 789 | N80: 2 | O80: 0 | P80: 1169 | Q80: 1169 | R80: 1169 | S80: 0 | T80: 0 | U80: 0 | V80: 0 | W80: 0 | X80: 0 | Y80: 0 | Z80: 0 | AA80: 0
A81: 2024-11-01 | B81: HONG KONG BAPTIST HOSPITAL | C81: PH | D81: 3650324540 | E81: LABAP | F81: 1 | G81: Trakcare | H81: Local System | I81: 1297 | J81: 0 | K81: 1297 | L81: 0 | M81: 0 | N81: 0 | O81: 0 | P81: 0 | Q81: 0 | R81: 0 | S81: 0 | T81: 0 | U81: 0 | V81: 0 | W81: 0 | X81: 0 | Y81: 0 | Z81: 0 | AA81: 0
A82: 2024-11-01 | B82: HONG KONG BAPTIST HOSPITAL | C82: PH | D82: 3650324540 | E82: BIRTH | F82: 3 | G82: Trakcare | H82: Local System | I82: 1 | J82: 0 | K82: 0 | L82: 0 | M82: 1 | N82: 0 | O82: 0 | P82: 0 | Q82: 0 | R82: 0 | S82: 0 | T82: 0 | U82: 0 | V82: 0 | W82: 0 | X82: 0 | Y82: 0 | Z82: 0 | AA82: 0
A83: 2024-11-01 | B83: HONG KONG BAPTIST HOSPITAL | C83: PH | D83: 4480228848 | E83: RXD | F83: 3,2 | G83: CMS On-ramp | H83: CMS On-ramp | I83: 724 | J83: 0 | K83: 0 | L83: 56 | M83: 668 | N83: 0 | O83: 0 | P83: 0 | Q83: 0 | R83: 0 | S83: 0 | T83: 0 | U83: 0 | V83: 0 | W83: 0 | X83: 0 | Y83: 0 | Z83: 0 | AA83: 0
A84: 2024-11-01 | B84: HONG KONG BAPTIST HOSPITAL | C84: PH | D84: 4480228848 | E84: RXO | F84: 3,2 | G84: CMS On-ramp | H84: CMS On-ramp | I84: 724 | J84: 0 | K84: 0 | L84: 56 | M84: 668 | N84: 0 | O84: 0 | P84: 0 | Q84: 0 | R84: 0 | S84: 0 | T84: 0 | U84: 0 | V84: 0 | W84: 0 | X84: 0 | Y84: 0 | Z84: 0 | AA84: 0
A85: 2024-11-01 | B85: HONG KONG BAPTIST HOSPITAL | C85: PH | D85: 4480228848 | E85: PROB | F85: 3,2 | G85: CMS On-ramp | H85: CMS On-ramp | I85: 241 | J85: 0 | K85: 0 | L85: 28 | M85: 213 | N85: 0 | O85: 0 | P85: 0 | Q85: 0 | R85: 0 | S85: 0 | T85: 0 | U85: 0 | V85: 0 | W85: 0 | X85: 0 | Y85: 0 | Z85: 0 | AA85: 0
A86: 2024-11-01 | B86: HONG KONG BAPTIST HOSPITAL | C86: PH | D86: 4480228848 | E86: ENCTR | F86: 3 | G86: CMS On-ramp | H86: CMS On-ramp | I86: 221 | J86: 0 | K86: 0 | L86: 0 | M86: 221 | N86: 0 | O86: 0 | P86: 0 | Q86: 0 | R86: 0 | S86: 0 | T86: 0 | U86: 0 | V86: 0 | W86: 0 | X86: 0 | Y86: 0 | Z86: 0 | AA86: 0
A87: 2024-11-01 | B87: HONG KONG BAPTIST HOSPITAL | C87: PH | D87: 4480228848 | E87: IMMU | F87: 3,2 | G87: CMS On-ramp | H87: CMS On-ramp | I87: 25 | J87: 0 | K87: 0 | L87: 0 | M87: 25 | N87: 0 | O87: 0 | P87: 0 | Q87: 0 | R87: 0 | S87: 0 | T87: 0 | U87: 0 | V87: 0 | W87: 0 | X87: 0 | Y87: 0 | Z87: 0 | AA87: 0
A88: 2024-11-01 | B88: HONG KONG BAPTIST HOSPITAL | C88: PH | D88: 4480228848 | E88: AL1 | F88: 3,2 | G88: CMS On-ramp | H88: CMS On-ramp | I88: 2 | J88: 0 | K88: 0 | L88: 0 | M88: 2 | N88: 0 | O88: 0 | P88: 0 | Q88: 0 | R88: 0 | S88: 0 | T88: 0 | U88: 0 | V88: 0 | W88: 0 | X88: 0 | Y88: 0 | Z88: 0 | AA88: 0
A89: 2024-11-01 | B89: THE HONG KONG POLYTECHNIC UNIVERSITY | C89: ACAD | D89: 4578805814 | E89: RXO | F89: 3 | G89: ClinicMaster Information System | H89: Local System | I89: 21202 | J89: 4 | K89: 0 | L89: 2023 | M89: 19175 | N89: 4 | O89: 0 | P89: 2024 | Q89: 2024 | R89: 2024 | S89: 0 | T89: 0 | U89: 0 | V89: 0 | W89: 0 | X89: 0 | Y89: 0 | Z89: 0 | AA89: 0
A90: 2024-11-01 | B90: THE HONG KONG POLYTECHNIC UNIVERSITY | C90: ACAD | D90: 4578805814 | E90: ENCTR | F90: 3 | G90: ClinicMaster Information System | H90: Local System | I90: 268 | J90: 0 | K90: 0 | L90: 0 | M90: 268 | N90: 0 | O90: 0 | P90: 0 | Q90: 0 | R90: 0 | S90: 0 | T90: 0 | U90: 0 | V90: 0 | W90: 0 | X90: 0 | Y90: 0 | Z90: 0 | AA90: 0
A91: 2024-11-01 | B91: THE HONG KONG POLYTECHNIC UNIVERSITY | C91: ACAD | D91: 4578805814 | E91: IMMU | F91: 3 | G91: ClinicMaster Information System | H91: Local System | I91: 38 | J91: 0 | K91: 0 | L91: 0 | M91: 38 | N91: 0 | O91: 0 | P91: 0 | Q91: 0 | R91: 0 | S91: 0 | T91: 0 | U91: 0 | V91: 0 | W91: 0 | X91: 0 | Y91: 0 | Z91: 0 | AA91: 0
A92: 2024-11-01 | B92: ST. TERESA'S HOSPITAL | C92: PH | D92: 7969980015 | E92: RXD | F92: 3 | G92: STH HIS | H92: Local System | I92: 11275 | J92: 13 | K92: 0 | L92: 412 | M92: 10850 | N92: 13 | O92: 0 | P92: 412 | Q92: 412 | R92: 412 | S92: 0 | T92: 0 | U92: 0 | V92: 0 | W92: 0 | X92: 0 | Y92: 0 | Z92: 0 | AA92: 0
A93: 2024-11-01 | B93: ST. TERESA'S HOSPITAL | C93: PH | D93: 7969980015 | E93: RAD | F93: 3 | G93: STH HIS | H93: Local System | I93: 4611 | J93: 0 | K93: 0 | L93: 0 | M93: 4611 | N93: 0 | O93: 0 | P93: 0 | Q93: 0 | R93: 0 | S93: 0 | T93: 0 | U93: 0 | V93: 0 | W93: 0 | X93: 0 | Y93: 0 | Z93: 0 | AA93: 0
A94: 2024-11-01 | B94: ST. TERESA'S HOSPITAL | C94: PH | D94: 7969980015 | E94: EPIS | F94: 1 | G94: STH HIS | H94: Local System | I94: 1417 | J94: 0 | K94: 1417 | L94: 0 | M94: 0 | N94: 0 | O94: 0 | P94: 0 | Q94: 0 | R94: 0 | S94: 0 | T94: 0 | U94: 0 | V94: 0 | W94: 0 | X94: 0 | Y94: 0 | Z94: 0 | AA94: 0
A95: 2024-11-01 | B95: ST. TERESA'S HOSPITAL | C95: PH | D95: 7969980015 | E95: LABAP | F95: 1 | G95: STH HIS | H95: Local System | I95: 886 | J95: 0 | K95: 886 | L95: 0 | M95: 0 | N95: 0 | O95: 0 | P95: 0 | Q95: 0 | R95: 0 | S95: 0 | T95: 0 | U95: 0 | V95: 0 | W95: 0 | X95: 0 | Y95: 0 | Z95: 0 | AA95: 0
A96: 2024-11-01 | B96: ST. TERESA'S HOSPITAL | C96: PH | D96: 7969980015 | E96: AL1 | F96: 3 | G96: STH HIS | H96: Local System | I96: 264 | J96: 0 | K96: 0 | L96: 90 | M96: 174 | N96: 0 | O96: 0 | P96: 79 | Q96: 79 | R96: 79 | S96: 0 | T96: 0 | U96: 0 | V96: 0 | W96: 0 | X96: 0 | Y96: 0 | Z96: 0 | AA96: 0
A97: 2024-11-01 | B97: ST. TERESA'S HOSPITAL | C97: PH | D97: 7969980015 | E97: ADR | F97: 3 | G97: STH HIS | H97: Local System | I97: 24 | J97: 0 | K97: 0 | L97: 0 | M97: 24 | N97: 0 | O97: 0 | P97: 0 | Q97: 0 | R97: 0 | S97: 0 | T97: 0 | U97: 0 | V97: 0 | W97: 0 | X97: 0 | Y97: 0 | Z97: 0 | AA97: 0
A98: 2024-11-01 | B98: ST. TERESA'S HOSPITAL | C98: PH | D98: 7969980015 | E98: BIRTH | F98: 3 | G98: STH HIS | H98: Local System | I98: 6 | J98: 0 | K98: 0 | L98: 0 | M98: 6 | N98: 0 | O98: 0 | P98: 0 | Q98: 0 | R98: 0 | S98: 0 | T98: 0 | U98: 0 | V98: 0 | W98: 0 | X98: 0 | Y98: 0 | Z98: 0 | AA98: 0
A99: 2024-11-01 | B99: DISTRICT HEALTH CENTRE-TSUEN WAN (YCHB) | C99: DHC | D99: 9043776781 | E99: ENCTR | F99: 3 | G99: DHCCMS | H99: Local System | I99: 13084 | J99: 0 | K99: 0 | L99: 0 | M99: 13084 | N99: 0 | O99: 0 | P99: 0 | Q99: 0 | R99: 0 | S99: 0 | T99: 0 | U99: 0 | V99: 0 | W99: 0 | X99: 0 | Y99: 0 | Z99: 0 | AA99: 0
A100: 2024-11-01 | B100: DISTRICT HEALTH CENTRE-TSUEN WAN (YCHB) | C100: DHC | D100: 9043776781 | E100: EPIS | F100: 1 | G100: DHCCMS | H100: Local System | I100: 5386 | J100: 0 | K100: 5386 | L100: 0 | M100: 0 | N100: 0 | O100: 0 | P100: 0 | Q100: 0 | R100: 0 | S100: 0 | T100: 0 | U100: 0 | V100: 0 | W100: 0 | X100: 0 | Y100: 0 | Z100: 0 | AA100: 0
A101: 2024-11-01 | B101: DISTRICT HEALTH CENTRE-TSUEN WAN (YCHB) | C101: DHC | D101: 9043776781 | E101: AL1 | F101: 3 | G101: DHCCMS | H101: Local System | I101: 5 | J101: 0 | K101: 0 | L101: 0 | M101: 5 | N101: 0 | O101: 0 | P101: 0 | Q101: 0 | R101: 0 | S101: 0 | T101: 0 | U101: 0 | V101: 0 | W101: 0 | X101: 0 | Y101: 0 | Z101: 0 | AA101: 0
A102: 2024-11-01 | B102: DISTRICT HEALTH CENTRE-TSUEN WAN (YCHB) | C102: DHC | D102: 9043776781 | E102: ADR | F102: 3 | G102: DHCCMS | H102: Local System | I102: 2 | J102: 0 | K102: 0 | L102: 0 | M102: 2 | N102: 0 | O102: 0 | P102: 0 | Q102: 0 | R102: 0 | S102: 0 | T102: 0 | U102: 0 | V102: 0 | W102: 0 | X102: 0 | Y102: 0 | Z102: 0 | AA102: 0
A103: 2024-11-01 | B103: CUHK MEDICAL CENTRE LIMITED | C103: PH | D103: 5963779130 | E103: LABGEN | F103: 1 | G103: HIS | H103: Local System | I103: 7315 | J103: 0 | K103: 7315 | L103: 0 | M103: 0 | N103: 0 | O103: 0 | P103: 0 | Q103: 0 | R103: 0 | S103: 0 | T103: 0 | U103: 0 | V103: 0 | W103: 0 | X103: 0 | Y103: 0 | Z103: 0 | AA103: 0
A104: 2024-11-01 | B104: CUHK MEDICAL CENTRE LIMITED | C104: PH | D104: 5963779130 | E104: RAD | F104: 3 | G104: HIS | H104: Local System | I104: 4212 | J104: 0 | K104: 0 | L104: 0 | M104: 4212 | N104: 0 | O104: 0 | P104: 0 | Q104: 0 | R104: 0 | S104: 0 | T104: 0 | U104: 0 | V104: 0 | W104: 0 | X104: 0 | Y104: 0 | Z104: 0 | AA104: 0
A105: 2024-11-01 | B105: CUHK MEDICAL CENTRE LIMITED | C105: PH | D105: 5963779130 | E105: LABMB | F105: 1 | G105: HIS | H105: Local System | I105: 1477 | J105: 0 | K105: 1477 | L105: 0 | M105: 0 | N105: 0 | O105: 0 | P105: 0 | Q105: 0 | R105: 0 | S105: 0 | T105: 0 | U105: 0 | V105: 0 | W105: 0 | X105: 0 | Y105: 0 | Z105: 0 | AA105: 0
A106: 2024-11-01 | B106: CUHK MEDICAL CENTRE LIMITED | C106: PH | D106: 5963779130 | E106: LABAP | F106: 1 | G106: HIS | H106: Local System | I106: 965 | J106: 0 | K106: 965 | L106: 0 | M106: 0 | N106: 0 | O106: 0 | P106: 0 | Q106: 0 | R106: 0 | S106: 0 | T106: 0 | U106: 0 | V106: 0 | W106: 0 | X106: 0 | Y106: 0 | Z106: 0 | AA106: 0
A107: 2024-11-01 | B107: CUHK MEDICAL CENTRE LIMITED | C107: PH | D107: 5963779130 | E107: INVR | F107: 1 | G107: HIS | H107: Local System | I107: 532 | J107: 0 | K107: 532 | L107: 0 | M107: 0 | N107: 0 | O107: 0 | P107: 0 | Q107: 0 | R107: 0 | S107: 0 | T107: 0 | U107: 0 | V107: 0 | W107: 0 | X107: 0 | Y107: 0 | Z107: 0 | AA107: 0
A108: 2024-11-01 | B108: ST. PAUL'S HOSPITAL | C108: PH | D108: 5156724947 | E108: RXD | F108: 3 | G108: SPH HIS | H108: Local System | I108: 4837 | J108: 0 | K108: 0 | L108: 597 | M108: 4240 | N108: 0 | O108: 0 | P108: 599 | Q108: 599 | R108: 599 | S108: 0 | T108: 0 | U108: 0 | V108: 0 | W108: 0 | X108: 0 | Y108: 0 | Z108: 0 | AA108: 0
A109: 2024-11-01 | B109: ST. PAUL'S HOSPITAL | C109: PH | D109: 5156724947 | E109: RAD | F109: 3 | G109: SPH HIS | H109: Local System | I109: 3694 | J109: 0 | K109: 0 | L109: 0 | M109: 3694 | N109: 0 | O109: 0 | P109: 0 | Q109: 0 | R109: 0 | S109: 0 | T109: 0 | U109: 0 | V109: 0 | W109: 0 | X109: 0 | Y109: 0 | Z109: 0 | AA109: 0
A110: 2024-11-01 | B110: ST. PAUL'S HOSPITAL | C110: PH | D110: 5156724947 | E110: EPIS | F110: 1 | G110: SPH HIS | H110: Local System | I110: 804 | J110: 0 | K110: 804 | L110: 0 | M110: 0 | N110: 0 | O110: 0 | P110: 0 | Q110: 0 | R110: 0 | S110: 0 | T110: 0 | U110: 0 | V110: 0 | W110: 0 | X110: 0 | Y110: 0 | Z110: 0 | AA110: 0
A111: 2024-11-01 | B111: ST. PAUL'S HOSPITAL | C111: PH | D111: 5156724947 | E111: AL1 | F111: 3 | G111: SPH HIS | H111: Adaptation | I111: 254 | J111: 0 | K111: 0 | L111: 102 | M111: 152 | N111: 0 | O111: 0 | P111: 86 | Q111: 86 | R111: 86 | S111: 0 | T111: 0 | U111: 0 | V111: 0 | W111: 0 | X111: 0 | Y111: 0 | Z111: 0 | AA111: 0
A112: 2024-11-01 | B112: ST. PAUL'S HOSPITAL | C112: PH | D112: 5156724947 | E112: ADR | F112: 3 | G112: SPH HIS | H112: Adaptation | I112: 33 | J112: 0 | K112: 0 | L112: 3 | M112: 30 | N112: 0 | O112: 0 | P112: 3 | Q112: 3 | R112: 3 | S112: 0 | T112: 0 | U112: 0 | V112: 0 | W112: 0 | X112: 0 | Y112: 0 | Z112: 0 | AA112: 0
A113: 2024-11-01 | B113: KINGMED DIAGNOSTICS (HONG KONG) LIMITED | C113: GRP | D113: 3150524068 | E113: LABGEN | F113: 3 | G113: PLDMS | H113: Local System | I113: 8537 | J113: 2 | K113: 8535 | L113: 0 | M113: 0 | N113: 0 | O113: 2 | P113: 0 | Q113: 0 | R113: 0 | S113: 0 | T113: 0 | U113: 0 | V113: 0 | W113: 0 | X113: 0 | Y113: 0 | Z113: 0 | AA113: 0
A114: 2024-11-01 | B114: PRECIOUS BLOOD HOSPITAL (CARITAS) | C114: PH | D114: 7002059678 | E114: ENCTR | F114: 3 | G114: PBHIS | H114: Local System | I114: 7637 | J114: 0 | K114: 0 | L114: 0 | M114: 7637 | N114: 0 | O114: 0 | P114: 0 | Q114: 0 | R114: 0 | S114: 0 | T114: 0 | U114: 0 | V114: 0 | W114: 0 | X114: 0 | Y114: 0 | Z114: 0 | AA114: 0
A115: 2024-11-01 | B115: PRECIOUS BLOOD HOSPITAL (CARITAS) | C115: PH | D115: 7002059678 | E115: RAD | F115: 3 | G115: PBHIS | H115: Local System | I115: 565 | J115: 0 | K115: 0 | L115: 0 | M115: 565 | N115: 0 | O115: 0 | P115: 0 | Q115: 0 | R115: 0 | S115: 0 | T115: 0 | U115: 0 | V115: 0 | W115: 0 | X115: 0 | Y115: 0 | Z115: 0 | AA115: 0
A116: 2024-11-01 | B116: PRECIOUS BLOOD HOSPITAL (CARITAS) | C116: PH | D116: 7002059678 | E116: AL1 | F116: 3 | G116: PBHIS | H116: Local System | I116: 163 | J116: 0 | K116: 0 | L116: 70 | M116: 93 | N116: 0 | O116: 0 | P116: 55 | Q116: 55 | R116: 55 | S116: 0 | T116: 0 | U116: 0 | V116: 0 | W116: 0 | X116: 0 | Y116: 0 | Z116: 0 | AA116: 0
A117: 2024-11-01 | B117: PRECIOUS BLOOD HOSPITAL (CARITAS) | C117: PH | D117: 7002059678 | E117: ADR | F117: 3 | G117: PBHIS | H117: Local System | I117: 17 | J117: 0 | K117: 0 | L117: 0 | M117: 17 | N117: 0 | O117: 0 | P117: 0 | Q117: 0 | R117: 0 | S117: 0 | T117: 0 | U117: 0 | V117: 0 | W117: 0 | X117: 0 | Y117: 0 | Z117: 0 | AA117: 0
A118: 2024-11-01 | B118: 18 CHINESE MEDICINE CLINIC CUM TRAINING AND RESEARCH CENTRE (POK OI HOSPITAL) | C118: NGO | D118: 6758313621 | E118: CMPROB | F118: 3 | G118: HA CMIS | H118: Local System | I118: 2955 | J118: 0 | K118: 0 | L118: 966 | M118: 1989 | N118: 0 | O118: 0 | P118: 538 | Q118: 538 | R118: 538 | S118: 0 | T118: 0 | U118: 0 | V118: 0 | W118: 0 | X118: 0 | Y118: 0 | Z118: 0 | AA118: 0
A119: 2024-11-01 | B119: 18 CHINESE MEDICINE CLINIC CUM TRAINING AND RESEARCH CENTRE (POK OI HOSPITAL) | C119: NGO | D119: 6758313621 | E119: ENCTR | F119: 3 | G119: HA CMIS | H119: Local System | I119: 2721 | J119: 0 | K119: 0 | L119: 0 | M119: 2721 | N119: 0 | O119: 0 | P119: 0 | Q119: 0 | R119: 0 | S119: 0 | T119: 0 | U119: 0 | V119: 0 | W119: 0 | X119: 0 | Y119: 0 | Z119: 0 | AA119: 0
A120: 2024-11-01 | B120: 18 CHINESE MEDICINE CLINIC CUM TRAINING AND RESEARCH CENTRE (POK OI HOSPITAL) | C120: NGO | D120: 6758313621 | E120: CMRXO | F120: 3 | G120: HA CMIS | H120: Local System | I120: 1502 | J120: 0 | K120: 0 | L120: 337 | M120: 1165 | N120: 0 | O120: 0 | P120: 337 | Q120: 337 | R120: 337 | S120: 0 | T120: 0 | U120: 0 | V120: 0 | W120: 0 | X120: 0 | Y120: 0 | Z120: 0 | AA120: 0
A121: 2024-11-01 | B121: 18 CHINESE MEDICINE CLINIC CUM TRAINING AND RESEARCH CENTRE (POK OI HOSPITAL) | C121: NGO | D121: 6758313621 | E121: CMPX | F121: 3 | G121: HA CMIS | H121: Local System | I121: 1020 | J121: 0 | K121: 0 | L121: 157 | M121: 863 | N121: 0 | O121: 0 | P121: 157 | Q121: 157 | R121: 157 | S121: 0 | T121: 0 | U121: 0 | V121: 0 | W121: 0 | X121: 0 | Y121: 0 | Z121: 0 | AA121: 0
A122: 2024-11-01 | B122: 18 CHINESE MEDICINE CLINIC CUM TRAINING AND RESEARCH CENTRE (UNITED CHRISTIAN NETHERSOLE COMMUNITY HEALTH SERVICE) | C122: NGO | D122: 3740691088 | E122: CMPROB | F122: 3 | G122: HA CMIS | H122: Local System | I122: 3302 | J122: 0 | K122: 0 | L122: 238 | M122: 3064 | N122: 0 | O122: 0 | P122: 153 | Q122: 153 | R122: 153 | S122: 0 | T122: 0 | U122: 0 | V122: 0 | W122: 0 | X122: 0 | Y122: 0 | Z122: 0 | AA122: 0
A123: 2024-11-01 | B123: 18 CHINESE MEDICINE CLINIC CUM TRAINING AND RESEARCH CENTRE (UNITED CHRISTIAN NETHERSOLE COMMUNITY HEALTH SERVICE) | C123: NGO | D123: 3740691088 | E123: ENCTR | F123: 3 | G123: HA CMIS | H123: Local System | I123: 2603 | J123: 0 | K123: 0 | L123: 0 | M123: 2603 | N123: 0 | O123: 0 | P123: 0 | Q123: 0 | R123: 0 | S123: 0 | T123: 0 | U123: 0 | V123: 0 | W123: 0 | X123: 0 | Y123: 0 | Z123: 0 | AA123: 0
A124: 2024-11-01 | B124: 18 CHINESE MEDICINE CLINIC CUM TRAINING AND RESEARCH CENTRE (UNITED CHRISTIAN NETHERSOLE COMMUNITY HEALTH SERVICE) | C124: NGO | D124: 3740691088 | E124: CMRXO | F124: 3 | G124: HA CMIS | H124: Local System | I124: 1328 | J124: 0 | K124: 0 | L124: 670 | M124: 658 | N124: 0 | O124: 0 | P124: 670 | Q124: 670 | R124: 670 | S124: 0 | T124: 0 | U124: 0 | V124: 0 | W124: 0 | X124: 0 | Y124: 0 | Z124: 0 | AA124: 0
A125: 2024-11-01 | B125: 18 CHINESE MEDICINE CLINIC CUM TRAINING AND RESEARCH CENTRE (UNITED CHRISTIAN NETHERSOLE COMMUNITY HEALTH SERVICE) | C125: NGO | D125: 3740691088 | E125: CMPX | F125: 3 | G125: HA CMIS | H125: Local System | I125: 946 | J125: 0 | K125: 0 | L125: 1 | M125: 945 | N125: 0 | O125: 0 | P125: 1 | Q125: 1 | R125: 1 | S125: 0 | T125: 0 | U125: 0 | V125: 0 | W125: 0 | X125: 0 | Y125: 0 | Z125: 0 | AA125: 0
A126: 2024-11-01 | B126: DHC EXPRESS-SHA TIN (HKSR) | C126: DHC | D126: 3628187450 | E126: ENCTR | F126: 3 | G126: DHCCMS | H126: Local System | I126: 5227 | J126: 0 | K126: 0 | L126: 0 | M126: 5227 | N126: 0 | O126: 0 | P126: 0 | Q126: 0 | R126: 0 | S126: 0 | T126: 0 | U126: 0 | V126: 0 | W126: 0 | X126: 0 | Y126: 0 | Z126: 0 | AA126: 0
A127: 2024-11-01 | B127: DHC EXPRESS-SHA TIN (HKSR) | C127: DHC | D127: 3628187450 | E127: EPIS | F127: 1 | G127: DHCCMS | H127: Local System | I127: 2363 | J127: 0 | K127: 2363 | L127: 0 | M127: 0 | N127: 0 | O127: 0 | P127: 0 | Q127: 0 | R127: 0 | S127: 0 | T127: 0 | U127: 0 | V127: 0 | W127: 0 | X127: 0 | Y127: 0 | Z127: 0 | AA127: 0
A128: 2024-11-01 | B128: DHC EXPRESS-SHA TIN (HKSR) | C128: DHC | D128: 3628187450 | E128: AL1 | F128: 3 | G128: DHCCMS | H128: Local System | I128: 2 | J128: 0 | K128: 0 | L128: 2 | M128: 0 | N128: 0 | O128: 0 | P128: 2 | Q128: 2 | R128: 2 | S128: 0 | T128: 0 | U128: 0 | V128: 0 | W128: 0 | X128: 0 | Y128: 0 | Z128: 0 | AA128: 0
A129: 2024-11-01 | B129: DHC EXPRESS-WAN CHAI (MC) | C129: DHC | D129: 9421690548 | E129: ENCTR | F129: 3 | G129: DHCCMS | H129: Local System | I129: 5465 | J129: 0 | K129: 0 | L129: 0 | M129: 5465 | N129: 0 | O129: 0 | P129: 0 | Q129: 0 | R129: 0 | S129: 0 | T129: 0 | U129: 0 | V129: 0 | W129: 0 | X129: 0 | Y129: 0 | Z129: 0 | AA129: 0
A130: 2024-11-01 | B130: DHC EXPRESS-WAN CHAI (MC) | C130: DHC | D130: 9421690548 | E130: EPIS | F130: 1 | G130: DHCCMS | H130: Local System | I130: 1727 | J130: 0 | K130: 1727 | L130: 0 | M130: 0 | N130: 0 | O130: 0 | P130: 0 | Q130: 0 | R130: 0 | S130: 0 | T130: 0 | U130: 0 | V130: 0 | W130: 0 | X130: 0 | Y130: 0 | Z130: 0 | AA130: 0
A131: 2024-11-01 | B131: DHC EXPRESS-WAN CHAI (MC) | C131: DHC | D131: 9421690548 | E131: AL1 | F131: 3 | G131: DHCCMS | H131: Local System | I131: 5 | J131: 0 | K131: 0 | L131: 0 | M131: 5 | N131: 0 | O131: 0 | P131: 0 | Q131: 0 | R131: 0 | S131: 0 | T131: 0 | U131: 0 | V131: 0 | W131: 0 | X131: 0 | Y131: 0 | Z131: 0 | AA131: 0
A132: 2024-11-01 | B132: 18 CHINESE MEDICINE CLINIC CUM TRAINING AND RESEARCH CENTRE (TUNG WAH GROUP OF HOSPITALS) | C132: NGO | D132: 5249502353 | E132: CMPROB | F132: 3 | G132: HA CMIS | H132: Local System | I132: 2846 | J132: 0 | K132: 0 | L132: 617 | M132: 2229 | N132: 0 | O132: 0 | P132: 350 | Q132: 350 | R132: 350 | S132: 0 | T132: 0 | U132: 0 | V132: 0 | W132: 0 | X132: 0 | Y132: 0 | Z132: 0 | AA132: 0
A133: 2024-11-01 | B133: 18 CHINESE MEDICINE CLINIC CUM TRAINING AND RESEARCH CENTRE (TUNG WAH GROUP OF HOSPITALS) | C133: NGO | D133: 5249502353 | E133: ENCTR | F133: 3 | G133: HA CMIS | H133: Local System | I133: 2372 | J133: 0 | K133: 0 | L133: 0 | M133: 2372 | N133: 0 | O133: 0 | P133: 0 | Q133: 0 | R133: 0 | S133: 0 | T133: 0 | U133: 0 | V133: 0 | W133: 0 | X133: 0 | Y133: 0 | Z133: 0 | AA133: 0
A134: 2024-11-01 | B134: 18 CHINESE MEDICINE CLINIC CUM TRAINING AND RESEARCH CENTRE (TUNG WAH GROUP OF HOSPITALS) | C134: NGO | D134: 5249502353 | E134: CMRXO | F134: 3 | G134: HA CMIS | H134: Local System | I134: 1276 | J134: 0 | K134: 0 | L134: 472 | M134: 804 | N134: 0 | O134: 0 | P134: 472 | Q134: 472 | R134: 472 | S134: 0 | T134: 0 | U134: 0 | V134: 0 | W134: 0 | X134: 0 | Y134: 0 | Z134: 0 | AA134: 0
A135: 2024-11-01 | B135: 18 CHINESE MEDICINE CLINIC CUM TRAINING AND RESEARCH CENTRE (TUNG WAH GROUP OF HOSPITALS) | C135: NGO | D135: 5249502353 | E135: CMPX | F135: 3 | G135: HA CMIS | H135: Local System | I135: 611 | J135: 0 | K135: 0 | L135: 0 | M135: 611 | N135: 0 | O135: 0 | P135: 0 | Q135: 0 | R135: 0 | S135: 0 | T135: 0 | U135: 0 | V135: 0 | W135: 0 | X135: 0 | Y135: 0 | Z135: 0 | AA135: 0
A136: 2024-11-01 | B136: 18 CHINESE MEDICINE CLINIC CUM TRAINING AND RESEARCH CENTRE (HAVEN OF HOPE) | C136: NGO | D136: 3237753992 | E136: CMPROB | F136: 3 | G136: HA CMIS | H136: Local System | I136: 2662 | J136: 0 | K136: 0 | L136: 505 | M136: 2157 | N136: 0 | O136: 0 | P136: 396 | Q136: 396 | R136: 396 | S136: 0 | T136: 0 | U136: 0 | V136: 0 | W136: 0 | X136: 0 | Y136: 0 | Z136: 0 | AA136: 0
A137: 2024-11-01 | B137: 18 CHINESE MEDICINE CLINIC CUM TRAINING AND RESEARCH CENTRE (HAVEN OF HOPE) | C137: NGO | D137: 3237753992 | E137: ENCTR | F137: 3 | G137: HA CMIS | H137: Local System | I137: 2452 | J137: 0 | K137: 0 | L137: 0 | M137: 2452 | N137: 0 | O137: 0 | P137: 0 | Q137: 0 | R137: 0 | S137: 0 | T137: 0 | U137: 0 | V137: 0 | W137: 0 | X137: 0 | Y137: 0 | Z137: 0 | AA137: 0
A138: 2024-11-01 | B138: 18 CHINESE MEDICINE CLINIC CUM TRAINING AND RESEARCH CENTRE (HAVEN OF HOPE) | C138: NGO | D138: 3237753992 | E138: CMRXO | F138: 3 | G138: HA CMIS | H138: Local System | I138: 981 | J138: 0 | K138: 0 | L138: 306 | M138: 675 | N138: 0 | O138: 0 | P138: 306 | Q138: 306 | R138: 306 | S138: 0 | T138: 0 | U138: 0 | V138: 0 | W138: 0 | X138: 0 | Y138: 0 | Z138: 0 | AA138: 0
A139: 2024-11-01 | B139: 18 CHINESE MEDICINE CLINIC CUM TRAINING AND RESEARCH CENTRE (HAVEN OF HOPE) | C139: NGO | D139: 3237753992 | E139: CMPX | F139: 3 | G139: HA CMIS | H139: Local System | I139: 621 | J139: 0 | K139: 0 | L139: 0 | M139: 621 | N139: 0 | O139: 0 | P139: 0 | Q139: 0 | R139: 0 | S139: 0 | T139: 0 | U139: 0 | V139: 0 | W139: 0 | X139: 0 | Y139: 0 | Z139: 0 | AA139: 0
A140: 2024-11-01 | B140: UNION HOSPITAL | C140: PH | D140: 5712620300 | E140: RAD | F140: 3 | G140: UHLAAM | H140: Local System | I140: 4239 | J140: 0 | K140: 0 | L140: 0 | M140: 4239 | N140: 0 | O140: 0 | P140: 0 | Q140: 0 | R140: 0 | S140: 0 | T140: 0 | U140: 0 | V140: 0 | W140: 0 | X140: 0 | Y140: 0 | Z140: 0 | AA140: 0
A141: 2024-11-01 | B141: UNION HOSPITAL | C141: PH | D141: 5712620300 | E141: AL1 | F141: 3 | G141: UHLAAM | H141: Adaptation | I141: 1296 | J141: 0 | K141: 0 | L141: 278 | M141: 1018 | N141: 0 | O141: 0 | P141: 265 | Q141: 265 | R141: 265 | S141: 0 | T141: 0 | U141: 0 | V141: 0 | W141: 0 | X141: 0 | Y141: 0 | Z141: 0 | AA141: 0
A142: 2024-11-01 | B142: UNION HOSPITAL | C142: PH | D142: 5712620300 | E142: EPIS | F142: 1 | G142: UHLAAM | H142: Local System | I142: 464 | J142: 0 | K142: 464 | L142: 0 | M142: 0 | N142: 0 | O142: 0 | P142: 0 | Q142: 0 | R142: 0 | S142: 0 | T142: 0 | U142: 0 | V142: 0 | W142: 0 | X142: 0 | Y142: 0 | Z142: 0 | AA142: 0
A143: 2024-11-01 | B143: UNION HOSPITAL | C143: PH | D143: 5712620300 | E143: IMMU | F143: 2 | G143: UHLAAM | H143: Local System | I143: 167 | J143: 0 | K143: 0 | L143: 167 | M143: 0 | N143: 0 | O143: 0 | P143: 0 | Q143: 0 | R143: 0 | S143: 0 | T143: 0 | U143: 0 | V143: 0 | W143: 0 | X143: 0 | Y143: 0 | Z143: 0 | AA143: 0
A144: 2024-11-01 | B144: UNION HOSPITAL | C144: PH | D144: 5712620300 | E144: ADR | F144: 3 | G144: UHLAAM | H144: Adaptation | I144: 59 | J144: 0 | K144: 0 | L144: 16 | M144: 43 | N144: 0 | O144: 0 | P144: 16 | Q144: 16 | R144: 16 | S144: 0 | T144: 0 | U144: 0 | V144: 0 | W144: 0 | X144: 0 | Y144: 0 | Z144: 0 | AA144: 0
A145: 2024-11-01 | B145: UNION HOSPITAL | C145: PH | D145: 5712620300 | E145: BIRTH | F145: 3 | G145: UHLAAM | H145: Local System | I145: 6 | J145: 0 | K145: 0 | L145: 6 | M145: 0 | N145: 0 | O145: 0 | P145: 6 | Q145: 0 | R145: 6 | S145: 0 | T145: 0 | U145: 0 | V145: 0 | W145: 0 | X145: 0 | Y145: 0 | Z145: 0 | AA145: 0
A146: 2024-11-01 | B146: DHC EXPRESS-KOWLOON CITY (LOKSINTONG) | C146: DHC | D146: 2548616569 | E146: ENCTR | F146: 3 | G146: DHCCMS | H146: Local System | I146: 3890 | J146: 0 | K146: 0 | L146: 0 | M146: 3890 | N146: 0 | O146: 0 | P146: 0 | Q146: 0 | R146: 0 | S146: 0 | T146: 0 | U146: 0 | V146: 0 | W146: 0 | X146: 0 | Y146: 0 | Z146: 0 | AA146: 0
A147: 2024-11-01 | B147: DHC EXPRESS-KOWLOON CITY (LOKSINTONG) | C147: DHC | D147: 2548616569 | E147: EPIS | F147: 1 | G147: DHCCMS | H147: Local System | I147: 2337 | J147: 0 | K147: 2337 | L147: 0 | M147: 0 | N147: 0 | O147: 0 | P147: 0 | Q147: 0 | R147: 0 | S147: 0 | T147: 0 | U147: 0 | V147: 0 | W147: 0 | X147: 0 | Y147: 0 | Z147: 0 | AA147: 0
A148: 2024-11-01 | B148: DHC EXPRESS-SAI KUNG (HOHCS) | C148: DHC | D148: 6402782674 | E148: ENCTR | F148: 3 | G148: DHCCMS | H148: Local System | I148: 4063 | J148: 0 | K148: 0 | L148: 0 | M148: 4063 | N148: 0 | O148: 0 | P148: 0 | Q148: 0 | R148: 0 | S148: 0 | T148: 0 | U148: 0 | V148: 0 | W148: 0 | X148: 0 | Y148: 0 | Z148: 0 | AA148: 0
A149: 2024-11-01 | B149: DHC EXPRESS-SAI KUNG (HOHCS) | C149: DHC | D149: 6402782674 | E149: EPIS | F149: 1 | G149: DHCCMS | H149: Local System | I149: 1591 | J149: 0 | K149: 1591 | L149: 0 | M149: 0 | N149: 0 | O149: 0 | P149: 0 | Q149: 0 | R149: 0 | S149: 0 | T149: 0 | U149: 0 | V149: 0 | W149: 0 | X149: 0 | Y149: 0 | Z149: 0 | AA149: 0
A150: 2024-11-01 | B150: DHC EXPRESS-KWUN TONG (UCMS) | C150: DHC | D150: 7334960147 | E150: ENCTR | F150: 3 | G150: DHCCMS | H150: Local System | I150: 3464 | J150: 0 | K150: 0 | L150: 0 | M150: 3464 | N150: 0 | O150: 0 | P150: 0 | Q150: 0 | R150: 0 | S150: 0 | T150: 0 | U150: 0 | V150: 0 | W150: 0 | X150: 0 | Y150: 0 | Z150: 0 | AA150: 0
A151: 2024-11-01 | B151: DHC EXPRESS-KWUN TONG (UCMS) | C151: DHC | D151: 7334960147 | E151: EPIS | F151: 1 | G151: DHCCMS | H151: Local System | I151: 1962 | J151: 0 | K151: 1962 | L151: 0 | M151: 0 | N151: 0 | O151: 0 | P151: 0 | Q151: 0 | R151: 0 | S151: 0 | T151: 0 | U151: 0 | V151: 0 | W151: 0 | X151: 0 | Y151: 0 | Z151: 0 | AA151: 0
A152: 2024-11-01 | B152: HONG KONG MEDICAL ADVANCED IMAGING LIMITED | C152: GRP | D152: 5414310424 | E152: RAD | F152: 3 | G152: CSP | H152: Local System | I152: 5140 | J152: 0 | K152: 0 | L152: 0 | M152: 5140 | N152: 0 | O152: 0 | P152: 0 | Q152: 0 | R152: 0 | S152: 0 | T152: 0 | U152: 0 | V152: 0 | W152: 0 | X152: 0 | Y152: 0 | Z152: 0 | AA152: 0
A153: 2024-11-01 | B153: DHC EXPRESS-EASTERN (HKSR) | C153: DHC | D153: 6542377532 | E153: ENCTR | F153: 3 | G153: DHCCMS | H153: Local System | I153: 3452 | J153: 0 | K153: 0 | L153: 0 | M153: 3452 | N153: 0 | O153: 0 | P153: 0 | Q153: 0 | R153: 0 | S153: 0 | T153: 0 | U153: 0 | V153: 0 | W153: 0 | X153: 0 | Y153: 0 | Z153: 0 | AA153: 0
A154: 2024-11-01 | B154: DHC EXPRESS-EASTERN (HKSR) | C154: DHC | D154: 6542377532 | E154: EPIS | F154: 1 | G154: DHCCMS | H154: Local System | I154: 1375 | J154: 0 | K154: 1375 | L154: 0 | M154: 0 | N154: 0 | O154: 0 | P154: 0 | Q154: 0 | R154: 0 | S154: 0 | T154: 0 | U154: 0 | V154: 0 | W154: 0 | X154: 0 | Y154: 0 | Z154: 0 | AA154: 0
A155: 2024-11-01 | B155: GLENEAGLES HONG KONG HOSPITAL | C155: PH | D155: 5189883789 | E155: RAD | F155: 3 | G155: HMS | H155: Local System | I155: 3225 | J155: 0 | K155: 0 | L155: 0 | M155: 3225 | N155: 0 | O155: 0 | P155: 0 | Q155: 0 | R155: 0 | S155: 0 | T155: 0 | U155: 0 | V155: 0 | W155: 0 | X155: 0 | Y155: 0 | Z155: 0 | AA155: 0
A156: 2024-11-01 | B156: GLENEAGLES HONG KONG HOSPITAL | C156: PH | D156: 5189883789 | E156: AL1 | F156: 3 | G156: HMS | H156: Local System | I156: 1414 | J156: 0 | K156: 0 | L156: 1003 | M156: 411 | N156: 0 | O156: 0 | P156: 1002 | Q156: 1002 | R156: 1002 | S156: 0 | T156: 0 | U156: 0 | V156: 0 | W156: 0 | X156: 0 | Y156: 0 | Z156: 0 | AA156: 0
A157: 2024-11-01 | B157: EVANGEL HOSPITAL | C157: PH | D157: 2206285885 | E157: ENCTR | F157: 3 | G157: HMS | H157: Local System | I157: 3849 | J157: 0 | K157: 0 | L157: 0 | M157: 3849 | N157: 0 | O157: 0 | P157: 0 | Q157: 0 | R157: 0 | S157: 0 | T157: 0 | U157: 0 | V157: 0 | W157: 0 | X157: 0 | Y157: 0 | Z157: 0 | AA157: 0
A158: 2024-11-01 | B158: EVANGEL HOSPITAL | C158: PH | D158: 2206285885 | E158: RAD | F158: 3 | G158: HMS | H158: Local System | I158: 616 | J158: 3 | K158: 0 | L158: 0 | M158: 613 | N158: 3 | O158: 0 | P158: 0 | Q158: 0 | R158: 0 | S158: 0 | T158: 0 | U158: 0 | V158: 0 | W158: 0 | X158: 0 | Y158: 0 | Z158: 0 | AA158: 0
A159: 2024-11-01 | B159: EVANGEL HOSPITAL | C159: PH | D159: 2206285885 | E159: AL1 | F159: 3 | G159: HMS | H159: Local System | I159: 163 | J159: 0 | K159: 0 | L159: 87 | M159: 76 | N159: 0 | O159: 0 | P159: 87 | Q159: 87 | R159: 87 | S159: 0 | T159: 0 | U159: 0 | V159: 0 | W159: 0 | X159: 0 | Y159: 0 | Z159: 0 | AA159: 0
A160: 2024-11-01 | B160: DHC EXPRESS-NORTH (YWCA) | C160: DHC | D160: 6678116401 | E160: ENCTR | F160: 3 | G160: DHCCMS | H160: Local System | I160: 3105 | J160: 0 | K160: 0 | L160: 0 | M160: 3105 | N160: 0 | O160: 0 | P160: 0 | Q160: 0 | R160: 0 | S160: 0 | T160: 0 | U160: 0 | V160: 0 | W160: 0 | X160: 0 | Y160: 0 | Z160: 0 | AA160: 0
A161: 2024-11-01 | B161: DHC EXPRESS-NORTH (YWCA) | C161: DHC | D161: 6678116401 | E161: EPIS | F161: 1 | G161: DHCCMS | H161: Local System | I161: 1430 | J161: 0 | K161: 1430 | L161: 0 | M161: 0 | N161: 0 | O161: 0 | P161: 0 | Q161: 0 | R161: 0 | S161: 0 | T161: 0 | U161: 0 | V161: 0 | W161: 0 | X161: 0 | Y161: 0 | Z161: 0 | AA161: 0
A162: 2024-11-01 | B162: DHC EXPRESS-CENTRAL AND WESTERN (HKSR) | C162: DHC | D162: 6645809992 | E162: ENCTR | F162: 3 | G162: DHCCMS | H162: Local System | I162: 2662 | J162: 0 | K162: 0 | L162: 0 | M162: 2662 | N162: 0 | O162: 0 | P162: 0 | Q162: 0 | R162: 0 | S162: 0 | T162: 0 | U162: 0 | V162: 0 | W162: 0 | X162: 0 | Y162: 0 | Z162: 0 | AA162: 0
A163: 2024-11-01 | B163: DHC EXPRESS-CENTRAL AND WESTERN (HKSR) | C163: DHC | D163: 6645809992 | E163: EPIS | F163: 1 | G163: DHCCMS | H163: Local System | I163: 1122 | J163: 0 | K163: 1122 | L163: 0 | M163: 0 | N163: 0 | O163: 0 | P163: 0 | Q163: 0 | R163: 0 | S163: 0 | T163: 0 | U163: 0 | V163: 0 | W163: 0 | X163: 0 | Y163: 0 | Z163: 0 | AA163: 0
A164: 2024-11-01 | B164: DHC EXPRESS-YAU TSIM MONG (LOKSINTONG) | C164: DHC | D164: 5832575528 | E164: ENCTR | F164: 3 | G164: DHCCMS | H164: Local System | I164: 2362 | J164: 0 | K164: 0 | L164: 0 | M164: 2362 | N164: 0 | O164: 0 | P164: 0 | Q164: 0 | R164: 0 | S164: 0 | T164: 0 | U164: 0 | V164: 0 | W164: 0 | X164: 0 | Y164: 0 | Z164: 0 | AA164: 0
A165: 2024-11-01 | B165: DHC EXPRESS-YAU TSIM MONG (LOKSINTONG) | C165: DHC | D165: 5832575528 | E165: EPIS | F165: 1 | G165: DHCCMS | H165: Local System | I165: 813 | J165: 0 | K165: 813 | L165: 0 | M165: 0 | N165: 0 | O165: 0 | P165: 0 | Q165: 0 | R165: 0 | S165: 0 | T165: 0 | U165: 0 | V165: 0 | W165: 0 | X165: 0 | Y165: 0 | Z165: 0 | AA165: 0
A166: 2024-11-01 | B166: 18 CHINESE MEDICINE CLINIC CUM TRAINING AND RESEARCH CENTRE (YAN CHAI HOSPITAL) | C166: NGO | D166: 6255376532 | E166: CMPROB | F166: 3 | G166: HA CMIS | H166: Local System | I166: 1098 | J166: 0 | K166: 0 | L166: 358 | M166: 740 | N166: 0 | O166: 0 | P166: 254 | Q166: 254 | R166: 254 | S166: 0 | T166: 0 | U166: 0 | V166: 0 | W166: 0 | X166: 0 | Y166: 0 | Z166: 0 | AA166: 0
A167: 2024-11-01 | B167: 18 CHINESE MEDICINE CLINIC CUM TRAINING AND RESEARCH CENTRE (YAN CHAI HOSPITAL) | C167: NGO | D167: 6255376532 | E167: ENCTR | F167: 3 | G167: HA CMIS | H167: Local System | I167: 976 | J167: 0 | K167: 0 | L167: 0 | M167: 976 | N167: 0 | O167: 0 | P167: 0 | Q167: 0 | R167: 0 | S167: 0 | T167: 0 | U167: 0 | V167: 0 | W167: 0 | X167: 0 | Y167: 0 | Z167: 0 | AA167: 0
A168: 2024-11-01 | B168: 18 CHINESE MEDICINE CLINIC CUM TRAINING AND RESEARCH CENTRE (YAN CHAI HOSPITAL) | C168: NGO | D168: 6255376532 | E168: CMRXO | F168: 3 | G168: HA CMIS | H168: Local System | I168: 559 | J168: 0 | K168: 0 | L168: 211 | M168: 348 | N168: 0 | O168: 0 | P168: 211 | Q168: 211 | R168: 211 | S168: 0 | T168: 0 | U168: 0 | V168: 0 | W168: 0 | X168: 0 | Y168: 0 | Z168: 0 | AA168: 0
A169: 2024-11-01 | B169: 18 CHINESE MEDICINE CLINIC CUM TRAINING AND RESEARCH CENTRE (YAN CHAI HOSPITAL) | C169: NGO | D169: 6255376532 | E169: CMPX | F169: 3 | G169: HA CMIS | H169: Local System | I169: 214 | J169: 0 | K169: 0 | L169: 0 | M169: 214 | N169: 0 | O169: 0 | P169: 0 | Q169: 0 | R169: 0 | S169: 0 | T169: 0 | U169: 0 | V169: 0 | W169: 0 | X169: 0 | Y169: 0 | Z169: 0 | AA169: 0
A170: 2024-11-01 | B170: DHC EXPRESS-TAI PO (UCMS) | C170: DHC | D170: 7444819250 | E170: ENCTR | F170: 3 | G170: DHCCMS | H170: Local System | I170: 1889 | J170: 0 | K170: 0 | L170: 0 | M170: 1889 | N170: 0 | O170: 0 | P170: 0 | Q170: 0 | R170: 0 | S170: 0 | T170: 0 | U170: 0 | V170: 0 | W170: 0 | X170: 0 | Y170: 0 | Z170: 0 | AA170: 0
A171: 2024-11-01 | B171: DHC EXPRESS-TAI PO (UCMS) | C171: DHC | D171: 7444819250 | E171: EPIS | F171: 1 | G171: DHCCMS | H171: Local System | I171: 864 | J171: 0 | K171: 864 | L171: 0 | M171: 0 | N171: 0 | O171: 0 | P171: 0 | Q171: 0 | R171: 0 | S171: 0 | T171: 0 | U171: 0 | V171: 0 | W171: 0 | X171: 0 | Y171: 0 | Z171: 0 | AA171: 0
A172: 2024-11-01 | B172: DR WONG CHUN POR | C172: SOLO | D172: 5528991274 | E172: RXO | F172: 3,2 | G172: CMS On-ramp | H172: CMS On-ramp | I172: 716 | J172: 0 | K172: 0 | L172: 73 | M172: 643 | N172: 0 | O172: 0 | P172: 1 | Q172: 1 | R172: 1 | S172: 0 | T172: 0 | U172: 0 | V172: 0 | W172: 0 | X172: 0 | Y172: 0 | Z172: 0 | AA172: 0
A173: 2024-11-01 | B173: DR WONG CHUN POR | C173: SOLO | D173: 5528991274 | E173: RXD | F173: 3,2 | G173: CMS On-ramp | H173: CMS On-ramp | I173: 700 | J173: 0 | K173: 0 | L173: 71 | M173: 629 | N173: 0 | O173: 0 | P173: 1 | Q173: 1 | R173: 1 | S173: 0 | T173: 0 | U173: 0 | V173: 0 | W173: 0 | X173: 0 | Y173: 0 | Z173: 0 | AA173: 0
A174: 2024-11-01 | B174: DR WONG CHUN POR | C174: SOLO | D174: 5528991274 | E174: PROB | F174: 3,2 | G174: CMS On-ramp | H174: CMS On-ramp | I174: 693 | J174: 0 | K174: 0 | L174: 13 | M174: 680 | N174: 0 | O174: 0 | P174: 0 | Q174: 0 | R174: 0 | S174: 0 | T174: 0 | U174: 0 | V174: 0 | W174: 0 | X174: 0 | Y174: 0 | Z174: 0 | AA174: 0
A175: 2024-11-01 | B175: DR WONG CHUN POR | C175: SOLO | D175: 5528991274 | E175: ENCTR | F175: 3 | G175: CMS On-ramp | H175: CMS On-ramp | I175: 483 | J175: 0 | K175: 0 | L175: 0 | M175: 483 | N175: 0 | O175: 0 | P175: 0 | Q175: 0 | R175: 0 | S175: 0 | T175: 0 | U175: 0 | V175: 0 | W175: 0 | X175: 0 | Y175: 0 | Z175: 0 | AA175: 0
A176: 2024-11-01 | B176: DR WONG CHUN POR | C176: SOLO | D176: 5528991274 | E176: IMMU | F176: 3,2 | G176: CMS On-ramp | H176: CMS On-ramp | I176: 29 | J176: 0 | K176: 0 | L176: 1 | M176: 28 | N176: 0 | O176: 0 | P176: 1 | Q176: 1 | R176: 1 | S176: 0 | T176: 0 | U176: 0 | V176: 0 | W176: 0 | X176: 0 | Y176: 0 | Z176: 0 | AA176: 0
A177: 2024-11-01 | B177: DR WONG CHUN POR | C177: SOLO | D177: 5528991274 | E177: AL1 | F177: 3,2 | G177: CMS On-ramp | H177: CMS On-ramp | I177: 3 | J177: 0 | K177: 0 | L177: 0 | M177: 3 | N177: 0 | O177: 0 | P177: 0 | Q177: 0 | R177: 0 | S177: 0 | T177: 0 | U177: 0 | V177: 0 | W177: 0 | X177: 0 | Y177: 0 | Z177: 0 | AA177: 0
A178: 2024-11-01 | B178: 18 CHINESE MEDICINE CLINIC CUM TRAINING AND RESEARCH CENTRE (CHRISTIAN FAMILY SERVICE CENTRE) | C178: NGO | D178: 9805671910 | E178: CMPROB | F178: 3 | G178: HA CMIS | H178: Local System | I178: 1231 | J178: 0 | K178: 0 | L178: 510 | M178: 721 | N178: 0 | O178: 0 | P178: 170 | Q178: 170 | R178: 170 | S178: 0 | T178: 0 | U178: 0 | V178: 0 | W178: 0 | X178: 0 | Y178: 0 | Z178: 0 | AA178: 0
A179: 2024-11-01 | B179: 18 CHINESE MEDICINE CLINIC CUM TRAINING AND RESEARCH CENTRE (CHRISTIAN FAMILY SERVICE CENTRE) | C179: NGO | D179: 9805671910 | E179: ENCTR | F179: 3 | G179: HA CMIS | H179: Local System | I179: 749 | J179: 0 | K179: 0 | L179: 0 | M179: 749 | N179: 0 | O179: 0 | P179: 0 | Q179: 0 | R179: 0 | S179: 0 | T179: 0 | U179: 0 | V179: 0 | W179: 0 | X179: 0 | Y179: 0 | Z179: 0 | AA179: 0
A180: 2024-11-01 | B180: 18 CHINESE MEDICINE CLINIC CUM TRAINING AND RESEARCH CENTRE (CHRISTIAN FAMILY SERVICE CENTRE) | C180: NGO | D180: 9805671910 | E180: CMRXO | F180: 3 | G180: HA CMIS | H180: Local System | I180: 366 | J180: 0 | K180: 0 | L180: 106 | M180: 260 | N180: 0 | O180: 0 | P180: 106 | Q180: 106 | R180: 106 | S180: 0 | T180: 0 | U180: 0 | V180: 0 | W180: 0 | X180: 0 | Y180: 0 | Z180: 0 | AA180: 0
A181: 2024-11-01 | B181: 18 CHINESE MEDICINE CLINIC CUM TRAINING AND RESEARCH CENTRE (CHRISTIAN FAMILY SERVICE CENTRE) | C181: NGO | D181: 9805671910 | E181: CMPX | F181: 3 | G181: HA CMIS | H181: Local System | I181: 222 | J181: 0 | K181: 0 | L181: 0 | M181: 222 | N181: 0 | O181: 0 | P181: 0 | Q181: 0 | R181: 0 | S181: 0 | T181: 0 | U181: 0 | V181: 0 | W181: 0 | X181: 0 | Y181: 0 | Z181: 0 | AA181: 0
A182: 2024-11-01 | B182: DHC EXPRESS-ISLANDS (NAAC) | C182: DHC | D182: 6142872901 | E182: ENCTR | F182: 3 | G182: DHCCMS | H182: Local System | I182: 2030 | J182: 0 | K182: 0 | L182: 0 | M182: 2030 | N182: 0 | O182: 0 | P182: 0 | Q182: 0 | R182: 0 | S182: 0 | T182: 0 | U182: 0 | V182: 0 | W182: 0 | X182: 0 | Y182: 0 | Z182: 0 | AA182: 0
A183: 2024-11-01 | B183: DHC EXPRESS-ISLANDS (NAAC) | C183: DHC | D183: 6142872901 | E183: EPIS | F183: 1 | G183: DHCCMS | H183: Local System | I183: 524 | J183: 0 | K183: 524 | L183: 0 | M183: 0 | N183: 0 | O183: 0 | P183: 0 | Q183: 0 | R183: 0 | S183: 0 | T183: 0 | U183: 0 | V183: 0 | W183: 0 | X183: 0 | Y183: 0 | Z183: 0 | AA183: 0
A184: 2024-11-01 | B184: IRAD MEDICAL HOLDING LIMITED | C184: GRP | D184: 6609847497 | E184: RAD | F184: 3 | G184: RHI2 | H184: Local System | I184: 2418 | J184: 0 | K184: 0 | L184: 0 | M184: 2418 | N184: 0 | O184: 0 | P184: 0 | Q184: 0 | R184: 0 | S184: 0 | T184: 0 | U184: 0 | V184: 0 | W184: 0 | X184: 0 | Y184: 0 | Z184: 0 | AA184: 0
A185: 2024-11-01 | B185: HONG KONG ADVENTIST HOSPITAL - STUBBS ROAD | C185: PH | D185: 7029571085 | E185: RAD | F185: 3,2 | G185: HKAHLAAM | H185: Local System | I185: 691 | J185: 0 | K185: 0 | L185: 392 | M185: 299 | N185: 0 | O185: 0 | P185: 0 | Q185: 0 | R185: 0 | S185: 0 | T185: 0 | U185: 0 | V185: 0 | W185: 0 | X185: 0 | Y185: 0 | Z185: 0 | AA185: 0
A186: 2024-11-01 | B186: HONG KONG ADVENTIST HOSPITAL - STUBBS ROAD | C186: PH | D186: 7029571085 | E186: RXD | F186: 2 | G186: HKAHLAAM | H186: Local System | I186: 651 | J186: 0 | K186: 0 | L186: 651 | M186: 0 | N186: 0 | O186: 0 | P186: 0 | Q186: 0 | R186: 0 | S186: 0 | T186: 0 | U186: 0 | V186: 0 | W186: 0 | X186: 0 | Y186: 0 | Z186: 0 | AA186: 0
A187: 2024-11-01 | B187: HONG KONG ADVENTIST HOSPITAL - STUBBS ROAD | C187: PH | D187: 7029571085 | E187: ENCTR | F187: 3 | G187: HKAHLAAM | H187: Local System | I187: 544 | J187: 0 | K187: 0 | L187: 0 | M187: 544 | N187: 0 | O187: 0 | P187: 0 | Q187: 0 | R187: 0 | S187: 0 | T187: 0 | U187: 0 | V187: 0 | W187: 0 | X187: 0 | Y187: 0 | Z187: 0 | AA187: 0
A188: 2024-11-01 | B188: HONG KONG ADVENTIST HOSPITAL - STUBBS ROAD | C188: PH | D188: 7029571085 | E188: LABGEN | F188: 3 | G188: HKAHLAAM | H188: Local System | I188: 457 | J188: 0 | K188: 0 | L188: 164 | M188: 293 | N188: 0 | O188: 0 | P188: 164 | Q188: 164 | R188: 164 | S188: 0 | T188: 0 | U188: 0 | V188: 0 | W188: 0 | X188: 0 | Y188: 0 | Z188: 0 | AA188: 0
A189: 2024-11-01 | B189: HONG KONG ADVENTIST HOSPITAL - STUBBS ROAD | C189: PH | D189: 7029571085 | E189: AL1 | F189: 3 | G189: HKAHLAAM | H189: Local System | I189: 20 | J189: 0 | K189: 0 | L189: 2 | M189: 18 | N189: 0 | O189: 0 | P189: 2 | Q189: 2 | R189: 2 | S189: 0 | T189: 0 | U189: 0 | V189: 0 | W189: 0 | X189: 0 | Y189: 0 | Z189: 0 | AA189: 0
A190: 2024-11-01 | B190: HONG KONG ADVENTIST HOSPITAL - STUBBS ROAD | C190: PH | D190: 7029571085 | E190: LABAP | F190: 1 | G190: HKAHLAAM | H190: Local System | I190: 19 | J190: 0 | K190: 19 | L190: 0 | M190: 0 | N190: 0 | O190: 0 | P190: 0 | Q190: 0 | R190: 0 | S190: 0 | T190: 0 | U190: 0 | V190: 0 | W190: 0 | X190: 0 | Y190: 0 | Z190: 0 | AA190: 0
A191: 2024-11-01 | B191: HONG KONG ADVENTIST HOSPITAL - STUBBS ROAD | C191: PH | D191: 7029571085 | E191: ADR | F191: 3 | G191: HKAHLAAM | H191: Local System | I191: 1 | J191: 0 | K191: 0 | L191: 0 | M191: 1 | N191: 0 | O191: 0 | P191: 0 | Q191: 0 | R191: 0 | S191: 0 | T191: 0 | U191: 0 | V191: 0 | W191: 0 | X191: 0 | Y191: 0 | Z191: 0 | AA191: 0
A192: 2024-11-01 | B192: DR. YEE YUK KEI | C192: SOLO | D192: 2310917092 | E192: PROB | F192: 3 | G192: CMS On-ramp | H192: CMS On-ramp | I192: 559 | J192: 0 | K192: 0 | L192: 19 | M192: 540 | N192: 0 | O192: 0 | P192: 0 | Q192: 0 | R192: 0 | S192: 0 | T192: 0 | U192: 0 | V192: 0 | W192: 0 | X192: 0 | Y192: 0 | Z192: 0 | AA192: 0
A193: 2024-11-01 | B193: DR. YEE YUK KEI | C193: SOLO | D193: 2310917092 | E193: RXD | F193: 3 | G193: CMS On-ramp | H193: CMS On-ramp | I193: 532 | J193: 0 | K193: 0 | L193: 382 | M193: 150 | N193: 0 | O193: 0 | P193: 0 | Q193: 0 | R193: 0 | S193: 0 | T193: 0 | U193: 0 | V193: 0 | W193: 0 | X193: 0 | Y193: 0 | Z193: 0 | AA193: 0
A194: 2024-11-01 | B194: DR. YEE YUK KEI | C194: SOLO | D194: 2310917092 | E194: RXO | F194: 3 | G194: CMS On-ramp | H194: CMS On-ramp | I194: 532 | J194: 0 | K194: 0 | L194: 382 | M194: 150 | N194: 0 | O194: 0 | P194: 0 | Q194: 0 | R194: 0 | S194: 0 | T194: 0 | U194: 0 | V194: 0 | W194: 0 | X194: 0 | Y194: 0 | Z194: 0 | AA194: 0
A195: 2024-11-01 | B195: DR. YEE YUK KEI | C195: SOLO | D195: 2310917092 | E195: ENCTR | F195: 3 | G195: CMS On-ramp | H195: CMS On-ramp | I195: 350 | J195: 0 | K195: 0 | L195: 0 | M195: 350 | N195: 0 | O195: 0 | P195: 0 | Q195: 0 | R195: 0 | S195: 0 | T195: 0 | U195: 0 | V195: 0 | W195: 0 | X195: 0 | Y195: 0 | Z195: 0 | AA195: 0
A196: 2024-11-01 | B196: DR. YEE YUK KEI | C196: SOLO | D196: 2310917092 | E196: EPIS | F196: 1 | G196: CMS On-ramp | H196: CMS On-ramp | I196: 332 | J196: 0 | K196: 332 | L196: 0 | M196: 0 | N196: 0 | O196: 0 | P196: 0 | Q196: 0 | R196: 0 | S196: 0 | T196: 0 | U196: 0 | V196: 0 | W196: 0 | X196: 0 | Y196: 0 | Z196: 0 | AA196: 0
A197: 2024-11-01 | B197: DR. YEE YUK KEI | C197: SOLO | D197: 2310917092 | E197: PX | F197: 3 | G197: CMS On-ramp | H197: CMS On-ramp | I197: 57 | J197: 0 | K197: 0 | L197: 0 | M197: 57 | N197: 0 | O197: 0 | P197: 0 | Q197: 0 | R197: 0 | S197: 0 | T197: 0 | U197: 0 | V197: 0 | W197: 0 | X197: 0 | Y197: 0 | Z197: 0 | AA197: 0
A198: 2024-11-01 | B198: DR. YEE YUK KEI | C198: SOLO | D198: 2310917092 | E198: IMMU | F198: 3 | G198: CMS On-ramp | H198: CMS On-ramp | I198: 10 | J198: 0 | K198: 0 | L198: 10 | M198: 0 | N198: 0 | O198: 0 | P198: 0 | Q198: 0 | R198: 0 | S198: 0 | T198: 0 | U198: 0 | V198: 0 | W198: 0 | X198: 0 | Y198: 0 | Z198: 0 | AA198: 0
A199: 2024-11-01 | B199: DR. YEE YUK KEI | C199: SOLO | D199: 2310917092 | E199: AL1 | F199: 3 | G199: CMS On-ramp | H199: CMS On-ramp | I199: 4 | J199: 0 | K199: 0 | L199: 0 | M199: 4 | N199: 0 | O199: 0 | P199: 0 | Q199: 0 | R199: 0 | S199: 0 | T199: 0 | U199: 0 | V199: 0 | W199: 0 | X199: 0 | Y199: 0 | Z199: 0 | AA199: 0
A200: 2024-11-01 | B200: 208 MEDICAL CENTRE | C200: SOLO | D200: 3499048393 | E200: RXD | F200: 2 | G200: ClinicSolution | H200: Local System | I200: 602 | J200: 0 | K200: 0 | L200: 602 | M200: 0 | N200: 0 | O200: 0 | P200: 0 | Q200: 0 | R200: 0 | S200: 0 | T200: 0 | U200: 0 | V200: 0 | W200: 0 | X200: 0 | Y200: 0 | Z200: 0 | AA200: 0
... 625 more rows

Sheet Checking
K4: Prepared by EHP4 Team | Q4: Prepared by EHP11 Team | AD4: Prepared by EHP4 Team | BT4: Prepared by EHP4 Team | CN4: Prepared by EHP4 Team | CT4: Prepared by EHP11 Team | DG4: Prepared by EHP4 Team
AQ5: =AQ3=AQ2 -> TRUE
S6: Rejected reason | W6: Regraded reason | Z6: Regraded level of data | AH6: Regraded reason | AN6: =COUNTIF(AN9:AN878,"Y") -> 44 | AO6: =COUNTIF(AO9:AO4933,"Y") -> 0 | AP6: =COUNTIF(AP9:AP4933,"Y") -> 478 | BI6: Rejected reason | BM6: Regraded reason | BP6: Regraded level of data | BX6: Regraded reason | CV6: Rejected reason | CZ6: Regraded reason | DC6: Regraded level of data | DK6: Regraded reason
B7: Date | C7: HCP Full Name | D7: HCP Short Name | E7: HCP Type | F7: HCP ID | G7: Domain | H7: Data level | I7: System | J7: Connection System | K7: Total uploaded cases | L7: Total rejected cases | M7: Total cases display as L1 in EVE | N7: Total cases display as L2 in EVE | O7: Total cases display as L3 in EVE | Q7: Total rejected cases | S7: Missed mandatory data | T7: Fail validation rule | U7: Total regraded cases | W7: Missed RT data | X7: Missed Codex data | Y7: Missed Other data | Z7: Level 3 to 2 | AA7: Level 3 to 1 | AB7: Level 2 to 1 | AD7: Total success uploaded level 3 cases | AF7: Total regraded cases (Level 3 to 2) | AH7: Mis-match RT name | AI7: Inappropriate hierarchy | AJ7: Mis-match RT code | AK7: Mis-match RT description | AL7: Mis-match codex code | AM7: Mis-match codex description | AN7: Data Missing | AO7: Summary Missing | AP7: Mismatch | AR7: Date | AS7: HCP Full Name | AT7: HCP Short Name | AU7: HCP Type | AV7: HCP ID | AW7: Domain | AX7: Data level | AY7: System | AZ7: Connection System | BA7: Total uploaded cases | BB7: Total rejected cases | BC7: Total cases display as L1 in EVE | BD7: Total cases display as L2 in EVE | BE7: Total cases display as L3 in EVE | BG7: Total rejected cases | BI7: Missed mandatory data | BJ7: Fail validation rule | BK7: Total regraded cases | BM7: Missed RT data | BN7: Missed Codex data | BO7: Missed Other data | BP7: Level 3 to 2 | BQ7: Level 3 to 1 | BR7: Level 2 to 1 | BT7: Total success uploaded level 3 cases | BV7: Total regraded cases (Level 3 to 2) | BX7: Mis-match RT name | BY7: Inappropriate hierarchy | BZ7: Mis-match RT code | CA7: Mis-match RT description | CB7: Mis-match codex code | CC7: Mis-match codex description | CD7: Index | CE7: Date | CF7: HCP Full Name | CG7: HCP Short Name | CH7: HCP Type | CI7: HCP ID | CJ7: Domain | CK7: Data level | CL7: System | CM7: Connection System | CN7: Total uploaded cases | CO7: Total rejected cases | CP7: Total cases display as L1 in EVE | CQ7: Total cases display as L2 in EVE | CR7: Total cases display as L3 in EVE | CT7: Total rejected cases | CV7: Missed mandatory data | CW7: Fail validation rule | CX7: Total regraded cases | CZ7: Missed RT data | DA7: Missed Codex data | DB7: Missed Other data | DC7: Level 3 to 2 | DD7: Level 3 to 1 | DE7: Level 2 to 1 | DG7: Total success uploaded level 3 cases | DI7: Total regraded cases (Level 3 to 2) | DK7: Mis-match RT name | DL7: Inappropriate hierarchy | DM7: Mis-match RT code | DN7: Mis-match RT description | DO7: Mis-match codex code | DP7: Mis-match codex description
Q8: No. | R8: % | S8: No. | T8: No. | U8: No. | V8: % | W8: No. | X8: No. | Y8: No. | Z8: Level 3 to 2 | AA8: No. | AB8: No. | AD8: No. | AE8: % | AF8: No. | AG8: % | AH8: No. | AI8: No. | AJ8: No. | AK8: No. | AL8: No. | AM8: No. | BG8: No. | BH8: % | BI8: No. | BJ8: No. | BK8: No. | BL8: % | BM8: No. | BN8: No. | BO8: No. | BP8: Level 3 to 2 | BQ8: No. | BR8: No. | BT8: No. | BU8: % | BV8: No. | BW8: % | BX8: No. | BY8: No. | BZ8: No. | CA8: No. | CB8: No. | CC8: No. | CT8: No. | CU8: % | CV8: No. | CW8: No. | CX8: No. | CY8: % | CZ8: No. | DA8: No. | DB8: No. | DC8: Level 3 to 2 | DD8: No. | DE8: No. | DG8: No. | DH8: % | DI8: No. | DJ8: % | DK8: No. | DL8: No. | DM8: No. | DN8: No. | DO8: No. | DP8: No.
A9: =IF(B9<>"",B9&F9&G9,"") -> 1 Nov 2024 to 30 Nov 20241667592556CMPROB | B9: 1 Nov 2024 to 30 Nov 2024 | C9: WELL BEING CHINESE MEDICINE CLINIC | D9: WBCMC | E9: SOLO | F9: 1667592556 | G9: CMPROB | H9: 3 | I9: Local System | J9: EC Connect | K9: 7 | L9: 0 | M9: 0 | N9: 7 | O9: 0 | Q9: 0 | R9: 0 | S9: 0 | T9: 0 | U9: 1 | V9: 0.1428571429 | W9: 1 | X9: 0 | Y9: 0 | Z9: 1 | AA9: 0 | AB9: 0 | AD9: 0 | AE9: 0 | AF9: 0 | AG9: 0 | AH9: 0 | AI9: 0 | AJ9: 0 | AK9: 0 | AL9: 0 | AM9: 0 | AN9: =IFERROR(IF(SEARCH("total",A9)>0,"",""),_xlfn.IFNA(IF(A9<>"",IF(MATCH(A9,AQ:AQ,0)>0,"",""),""),"Y")) ->  | AO9: =IFERROR(_xlfn.IFNA(IF(AQ9<>"",IF(MATCH(AQ9,A:A,0)>0,"",""),""),"Y"),"") ->  | AP9: =IF(OR(TRIM(UPPER(AS9))<>TRIM(UPPER(CF9)),AU9<>CH9,AV9<>CI9,AW9<>CJ9,AX9<>CK9,AY9<>CL9,AZ9<>CM9,BA9<>CN9,BB9<>CO9,BC9<>CP9,BD9<>CQ9,BE9<>CR9,BI9<>CV9,BJ9<>CW9,BK9<>CX9,BM9<>CZ9,BP9<>DC9,BQ9<>DD9,BR9<>DE9,BV9<>DI9,BX9<>DK9,BY9<>DL9,BZ9<>DM9,CA9<>DN9,CB9<>DO9,CC9<>DP9),"Y","") ->  | AQ9: =IF(AR9<>"",TEXT(AR9,"d mmm yyyy") &" to " & TEXT(EOMONTH(AR9,0),"d mmm yyyy") & AV9 & AW9,"") -> 1 Nov 2024 to 30 Nov 20243098159131RXD | AR9: =Data!A2 -> 2024-11-01 | AS9: =TRIM(Data!B2) -> HOSPITAL AUTHORITY | AU9: =TRIM(Data!C2) -> HA | AV9: =TRIM(Data!D2) -> 3098159131 | AW9: =TRIM(Data!E2) -> RXD | AX9: =TRIM(Data!F2) -> 3 | AY9: =TRIM(Data!G2) -> Enterprise Application Integration (EAI) | AZ9: =TRIM(Data!H2) -> Local System | BA9: =TRIM(Data!I2) -> 16822221 | BB9: =TRIM(Data!J2) -> 0 | BC9: =TRIM(Data!K2) -> 0 | BD9: =TRIM(Data!L2) -> 6402601 | BE9: =TRIM(Data!M2) -> 10419620 | BI9: =TRIM(Data!N2) -> 0 | BJ9: =TRIM(Data!O2) -> 0 | BK9: =TRIM(Data!P2) -> 508034 | BM9: =TRIM(Data!Q2) -> 508034 | BP9: =TRIM(Data!R2) -> 508034 | BQ9: =TRIM(Data!S2) -> 0 | BR9: =TRIM(Data!T2) -> 0 | BV9: =TRIM(Data!U2) -> 0 | BX9: =TRIM(Data!V2) -> 0 | BY9: =TRIM(Data!W2) -> 0 | BZ9: =TRIM(Data!X2) -> 0 | CA9: =TRIM(Data!Y2) -> 0 | CB9: =TRIM(Data!Z2) -> 0 | CC9: =TRIM(Data!AA2) -> 0 | CD9: =MATCH(AQ9,A:A,0) -> 91 | CE9: =TRIM(INDEX(B:B,$CD9)) -> 1 Nov 2024 to 30 Nov 2024 | CF9: =TRIM(INDEX(C:C,$CD9)) -> HOSPITAL AUTHORITY | CG9: =TRIM(INDEX(D:D,$CD9)) -> HA | CH9: =TRIM(INDEX(E:E,$CD9)) -> HA | CI9: =TRIM(INDEX(F:F,$CD9)) -> 3098159131 | CJ9: =TRIM(INDEX(G:G,$CD9)) -> RXD | CK9: =TRIM(INDEX(H:H,$CD9)) -> 3 | CL9: =TRIM(INDEX(I:I,$CD9)) -> Enterprise Application Integration (EAI) | CM9: =TRIM(INDEX(J:J,$CD9)) -> Local System | CN9: =TRIM(INDEX(K:K,$CD9)) -> 16822221 | CO9: =TRIM(INDEX(L:L,$CD9)) -> 0 | CP9: =TRIM(INDEX(M:M,$CD9)) -> 0 | CQ9: =TRIM(INDEX(N:N,$CD9)) -> 6402601 | CR9: =TRIM(INDEX(O:O,$CD9)) -> 10419620 | CS9: =TRIM(INDEX(P:P,$CD9)) ->  | CT9: =TRIM(INDEX(Q:Q,$CD9)) -> 0 | CU9: =TRIM(INDEX(R:R,$CD9)) -> 0 | CV9: =TRIM(INDEX(S:S,$CD9)) -> 0 | CW9: =TRIM(INDEX(T:T,$CD9)) -> 0 | CX9: =TRIM(INDEX(U:U,$CD9)) -> 508034 | CY9: =TRIM(INDEX(V:V,$CD9)) -> 0.0302001739247154 | CZ9: =TRIM(INDEX(W:W,$CD9)) -> 508034 | DA9: =TRIM(INDEX(X:X,$CD9)) -> 0 | DB9: =TRIM(INDEX(Y:Y,$CD9)) -> 0 | DC9: =TRIM(INDEX(Z:Z,$CD9)) -> 508034 | DD9: =TRIM(INDEX(AA:AA,$CD9)) -> 0 | DE9: =TRIM(INDEX(AB:AB,$CD9)) -> 0 | DF9: =TRIM(INDEX(AC:AC,$CD9)) ->  | DG9: =TRIM(INDEX(AD:AD,$CD9)) -> 10419620 | DH9: =TRIM(INDEX(AE:AE,$CD9)) -> 0.619396214090874 | DI9: =TRIM(INDEX(AF:AF,$CD9)) -> 0 | DJ9: =TRIM(INDEX(AG:AG,$CD9)) -> 0 | DK9: =TRIM(INDEX(AH:AH,$CD9)) -> 0 | DL9: =TRIM(INDEX(AI:AI,$CD9)) -> 0 | DM9: =TRIM(INDEX(AJ:AJ,$CD9)) -> 0 | DN9: =TRIM(INDEX(AK:AK,$CD9)) -> 0 | DO9: =TRIM(INDEX(AL:AL,$CD9)) -> 0 | DP9: =TRIM(INDEX(AM:AM,$CD9)) -> 0
A10: 1 Nov 2024 to 30 Nov 20241667592556CMRXO | B10: 1 Nov 2024 to 30 Nov 2024 | C10: WELL BEING CHINESE MEDICINE CLINIC | D10: WBCMC | E10: SOLO | F10: 1667592556 | G10: CMRXO | H10: 3 | I10: Local System | J10: EC Connect | K10: 13 | L10: 0 | M10: 0 | N10: 0 | O10: 13 | Q10: 0 | R10: 0 | S10: 0 | T10: 0 | U10: 0 | V10: 0 | W10: 0 | X10: 0 | Y10: 0 | Z10: 0 | AA10: 0 | AB10: 0 | AD10: 13 | AE10: 1 | AF10: 0 | AG10: 0 | AH10: 0 | AI10: 0 | AJ10: 0 | AK10: 0 | AL10: 0 | AM10: 0 | AQ10: 1 Nov 2024 to 30 Nov 20243098159131ENCTR | AR10: =Data!A3 -> 2024-11-01 | AS10: =TRIM(Data!B3) -> HOSPITAL AUTHORITY | AU10: =TRIM(Data!C3) -> HA | AV10: =TRIM(Data!D3) -> 3098159131 | AW10: =TRIM(Data!E3) -> ENCTR | AX10: =TRIM(Data!F3) -> 3 | AY10: =TRIM(Data!G3) -> Enterprise Application Integration (EAI) | AZ10: =TRIM(Data!H3) -> Local System | BA10: =TRIM(Data!I3) -> 11968013 | BB10: =TRIM(Data!J3) -> 0 | BC10: =TRIM(Data!K3) -> 0 | BD10: =TRIM(Data!L3) -> 0 | BE10: =TRIM(Data!M3) -> 11968013 | BI10: =TRIM(Data!N3) -> 0 | BJ10: =TRIM(Data!O3) -> 0 | BK10: =TRIM(Data!P3) -> 0 | BM10: =TRIM(Data!Q3) -> 0 | BP10: =TRIM(Data!R3) -> 0 | BQ10: =TRIM(Data!S3) -> 0 | BR10: =TRIM(Data!T3) -> 0 | BV10: =TRIM(Data!U3) -> 0 | BX10: =TRIM(Data!V3) -> 0 | BY10: =TRIM(Data!W3) -> 0 | BZ10: =TRIM(Data!X3) -> 0 | CA10: =TRIM(Data!Y3) -> 0 | CB10: =TRIM(Data!Z3) -> 0 | CC10: =TRIM(Data!AA3) -> 0 | CD10: 78 | CE10: 1 Nov 2024 to 30 Nov 2024 | CF10: HOSPITAL AUTHORITY | CG10: HA | CH10: HA | CI10: 3098159131 | CJ10: ENCTR | CK10: 3 | CL10: Enterprise Application Integration (EAI) | CM10: Local System | CN10: 11968013 | CO10: 0 | CP10: 0 | CQ10: 0 | CR10: 11968013 | CT10: 0 | CU10: 0 | CV10: 0 | CW10: 0 | CX10: 0 | CY10: 0 | CZ10: 0 | DA10: 0 | DB10: 0 | DC10: 0 | DD10: 0 | DE10: 0 | DG10: 11968013 | DH10: 1 | DI10: 0 | DJ10: 0 | DK10: 0 | DL10: 0 | DM10: 0 | DN10: 0 | DO10: 0 | DP10: 0
A11: 1 Nov 2024 to 30 Nov 20241667592556ENCTR | B11: 1 Nov 2024 to 30 Nov 2024 | C11: WELL BEING CHINESE MEDICINE CLINIC | D11: WBCMC | E11: SOLO | F11: 1667592556 | G11: ENCTR | H11: 3 | I11: Local System | J11: Local System | K11: 6 | L11: 0 | M11: 0 | N11: 0 | O11: 6 | Q11: 0 | R11: 0 | S11: 0 | T11: 0 | U11: 0 | V11: 0 | W11: 0 | X11: 0 | Y11: 0 | Z11: 0 | AA11: 0 | AB11: 0 | AD11: 6 | AE11: 1 | AF11: 0 | AG11: 0 | AH11: 0 | AI11: 0 | AJ11: 0 | AK11: 0 | AL11: 0 | AM11: 0 | AQ11: 1 Nov 2024 to 30 Nov 20243098159131RXO | AR11: =Data!A4 -> 2024-11-01 | AS11: =TRIM(Data!B4) -> HOSPITAL AUTHORITY | AU11: =TRIM(Data!C4) -> HA | AV11: =TRIM(Data!D4) -> 3098159131 | AW11: =TRIM(Data!E4) -> RXO | AX11: =TRIM(Data!F4) -> 3 | AY11: =TRIM(Data!G4) -> Enterprise Application Integration (EAI) | AZ11: =TRIM(Data!H4) -> Local System | BA11: =TRIM(Data!I4) -> 9263654 | BB11: =TRIM(Data!J4) -> 1 | BC11: =TRIM(Data!K4) -> 0 | BD11: =TRIM(Data!L4) -> 4179174 | BE11: =TRIM(Data!M4) -> 5084479 | BI11: =TRIM(Data!N4) -> 1 | BJ11: =TRIM(Data!O4) -> 0 | BK11: =TRIM(Data!P4) -> 170718 | BM11: =TRIM(Data!Q4) -> 170718 | BP11: =TRIM(Data!R4) -> 170718 | BQ11: =TRIM(Data!S4) -> 0 | BR11: =TRIM(Data!T4) -> 0 | BV11: =TRIM(Data!U4) -> 0 | BX11: =TRIM(Data!V4) -> 0 | BY11: =TRIM(Data!W4) -> 0 | BZ11: =TRIM(Data!X4) -> 0 | CA11: =TRIM(Data!Y4) -> 0 | CB11: =TRIM(Data!Z4) -> 0 | CC11: =TRIM(Data!AA4) -> 0 | CD11: 92 | CE11: 1 Nov 2024 to 30 Nov 2024 | CF11: HOSPITAL AUTHORITY | CG11: HA | CH11: HA | CI11: 3098159131 | CJ11: RXO | CK11: 3 | CL11: Enterprise Application Integration (EAI) | CM11: Local System | CN11: 9263654 | CO11: 1 | CP11: 0 | CQ11: 4179174 | CR11: 5084479 | CT11: 1 | CU11: 1.07948764062216E-07 | CV11: 1 | CW11: 0 | CX11: 170718 | CY11: 0.0184287971031733 | CZ11: 170718 | DA11: 0 | DB11: 0 | DC11: 170718 | DD11: 0 | DE11: 0 | DG11: 5084479 | DH11: 0.54886322395029 | DI11: 0 | DJ11: 0 | DK11: 0 | DL11: 0 | DM11: 0 | DN11: 0 | DO11: 0 | DP11: 0
A12: 1 Nov 2024 to 30 Nov 20241728942726CMPROB | B12: 1 Nov 2024 to 30 Nov 2024 | C12: St. Teresa's Hospital - Chinese Medicine Centre | D12: STH-CMC | E12: PH | F12: 1728942726 | G12: CMPROB | H12: 3 | I12: STH HIS | J12: EC Connect | K12: 332 | L12: 0 | M12: 0 | N12: 165 | O12: 167 | Q12: 0 | R12: 0 | S12: 0 | T12: 0 | U12: 18 | V12: 0.05421686747 | W12: 18 | X12: 0 | Y12: 0 | Z12: 18 | AA12: 0 | AB12: 0 | AD12: 167 | AE12: 0.5030120482 | AF12: 0 | AG12: 0 | AH12: 0 | AI12: 0 | AJ12: 0 | AK12: 0 | AL12: 0 | AM12: 0 | AQ12: 1 Nov 2024 to 30 Nov 20243098159131LABGEN | AR12: =Data!A5 -> 2024-11-01 | AS12: =TRIM(Data!B5) -> HOSPITAL AUTHORITY | AU12: =TRIM(Data!C5) -> HA | AV12: =TRIM(Data!D5) -> 3098159131 | AW12: =TRIM(Data!E5) -> LABGEN | AX12: =TRIM(Data!F5) -> 3 | AY12: =TRIM(Data!G5) -> Enterprise Application Integration (EAI) | AZ12: =TRIM(Data!H5) -> Local System | BA12: =TRIM(Data!I5) -> 4420493 | BB12: =TRIM(Data!J5) -> 117 | BC12: =TRIM(Data!K5) -> 1930 | BD12: =TRIM(Data!L5) -> 77011 | BE12: =TRIM(Data!M5) -> 4341435 | BI12: =TRIM(Data!N5) -> 30 | BJ12: =TRIM(Data!O5) -> 87 | BK12: =TRIM(Data!P5) -> 81746 | BM12: =TRIM(Data!Q5) -> 81746 | BP12: =TRIM(Data!R5) -> 79850 | BQ12: =TRIM(Data!S5) -> 1896 | BR12: =TRIM(Data!T5) -> 0 | BV12: =TRIM(Data!U5) -> 0 | BX12: =TRIM(Data!V5) -> 0 | BY12: =TRIM(Data!W5) -> 0 | BZ12: =TRIM(Data!X5) -> 0 | CA12: =TRIM(Data!Y5) -> 0 | CB12: =TRIM(Data!Z5) -> 0 | CC12: =TRIM(Data!AA5) -> 0 | CD12: 83 | CE12: 1 Nov 2024 to 30 Nov 2024 | CF12: HOSPITAL AUTHORITY | CG12: HA | CH12: HA | CI12: 3098159131 | CJ12: LABGEN | CK12: 3 | CL12: Enterprise Application Integration (EAI) | CM12: Local System | CN12: 4420493 | CO12: 117 | CP12: 1930 | CQ12: 77011 | CR12: 4341435 | CT12: 117 | CU12: 2.64676360758857E-05 | CV12: 30 | CW12: 87 | CX12: 81746 | CY12: 0.018492507509909 | CZ12: 81746 | DA12: 0 | DB12: 0 | DC12: 79850 | DD12: 1896 | DE12: 0 | DG12: 4341435 | DH12: 0.982115569462501 | DI12: 0 | DJ12: 0 | DK12: 0 | DL12: 0 | DM12: 0 | DN12: 0 | DO12: 0 | DP12: 0
A13: 1 Nov 2024 to 30 Nov 20241728942726CMPX | B13: 1 Nov 2024 to 30 Nov 2024 | C13: St. Teresa's Hospital - Chinese Medicine Centre | D13: STH-CMC | E13: PH | F13: 1728942726 | G13: CMPX | H13: 3 | I13: STH HIS | J13: EC Connect | K13: 58 | L13: 0 | M13: 0 | N13: 0 | O13: 58 | Q13: 0 | R13: 0 | S13: 0 | T13: 0 | U13: 0 | V13: 0 | W13: 0 | X13: 0 | Y13: 0 | Z13: 0 | AA13: 0 | AB13: 0 | AD13: 58 | AE13: 1 | AF13: 0 | AG13: 0 | AH13: 0 | AI13: 0 | AJ13: 0 | AK13: 0 | AL13: 0 | AM13: 0 | AQ13: 1 Nov 2024 to 30 Nov 20243098159131PROB | AR13: =Data!A6 -> 2024-11-01 | AS13: =TRIM(Data!B6) -> HOSPITAL AUTHORITY | AU13: =TRIM(Data!C6) -> HA | AV13: =TRIM(Data!D6) -> 3098159131 | AW13: =TRIM(Data!E6) -> PROB | AX13: =TRIM(Data!F6) -> 3 | AY13: =TRIM(Data!G6) -> Enterprise Application Integration (EAI) | AZ13: =TRIM(Data!H6) -> Local System | BA13: =TRIM(Data!I6) -> 1246452 | BB13: =TRIM(Data!J6) -> 0 | BC13: =TRIM(Data!K6) -> 0 | BD13: =TRIM(Data!L6) -> 0 | BE13: =TRIM(Data!M6) -> 1246452 | BI13: =TRIM(Data!N6) -> 0 | BJ13: =TRIM(Data!O6) -> 0 | BK13: =TRIM(Data!P6) -> 0 | BM13: =TRIM(Data!Q6) -> 0 | BP13: =TRIM(Data!R6) -> 0 | BQ13: =TRIM(Data!S6) -> 0 | BR13: =TRIM(Data!T6) -> 0 | BV13: =TRIM(Data!U6) -> 0 | BX13: =TRIM(Data!V6) -> 0 | BY13: =TRIM(Data!W6) -> 0 | BZ13: =TRIM(Data!X6) -> 0 | CA13: =TRIM(Data!Y6) -> 0 | CB13: =TRIM(Data!Z6) -> 0 | CC13: =TRIM(Data!AA6) -> 0 | CD13: 87 | CE13: 1 Nov 2024 to 30 Nov 2024 | CF13: HOSPITAL AUTHORITY | CG13: HA | CH13: HA | CI13: 3098159131 | CJ13: PROB | CK13: 3 | CL13: Enterprise Application Integration (EAI) | CM13: Local System | CN13: 1246452 | CO13: 0 | CP13: 0 | CQ13: 0 | CR13: 1246452 | CT13: 0 | CU13: 0 | CV13: 0 | CW13: 0 | CX13: 0 | CY13: 0 | CZ13: 0 | DA13: 0 | DB13: 0 | DC13: 0 | DD13: 0 | DE13: 0 | DG13: 1246452 | DH13: 1 | DI13: 0 | DJ13: 0 | DK13: 0 | DL13: 0 | DM13: 0 | DN13: 0 | DO13: 0 | DP13: 0
A14: 1 Nov 2024 to 30 Nov 20241728942726CMRXD | B14: 1 Nov 2024 to 30 Nov 2024 | C14: St. Teresa's Hospital - Chinese Medicine Centre | D14: STH-CMC | E14: PH | F14: 1728942726 | G14: CMRXD | H14: 3 | I14: STH HIS | J14: EC Connect | K14: 230 | L14: 0 | M14: 0 | N14: 6 | O14: 224 | Q14: 0 | R14: 0 | S14: 0 | T14: 0 | U14: 0 | V14: 0 | W14: 0 | X14: 0 | Y14: 0 | Z14: 0 | AA14: 0 | AB14: 0 | AD14: 224 | AE14: 0.9739130435 | AF14: 0 | AG14: 0 | AH14: 0 | AI14: 0 | AJ14: 0 | AK14: 0 | AL14: 0 | AM14: 0 | AQ14: 1 Nov 2024 to 30 Nov 20243098159131LABMB | AR14: =Data!A7 -> 2024-11-01 | AS14: =TRIM(Data!B7) -> HOSPITAL AUTHORITY | AU14: =TRIM(Data!C7) -> HA | AV14: =TRIM(Data!D7) -> 3098159131 | AW14: =TRIM(Data!E7) -> LABMB | AX14: =TRIM(Data!F7) -> 3 | AY14: =TRIM(Data!G7) -> Enterprise Application Integration (EAI) | AZ14: =TRIM(Data!H7) -> Local System | BA14: =TRIM(Data!I7) -> 859734 | BB14: =TRIM(Data!J7) -> 208 | BC14: =TRIM(Data!K7) -> 2813 | BD14: =TRIM(Data!L7) -> 117117 | BE14: =TRIM(Data!M7) -> 739596 | BI14: =TRIM(Data!N7) -> 68 | BJ14: =TRIM(Data!O7) -> 140 | BK14: =TRIM(Data!P7) -> 119155 | BM14: =TRIM(Data!Q7) -> 119155 | BP14: =TRIM(Data!R7) -> 117278 | BQ14: =TRIM(Data!S7) -> 1877 | BR14: =TRIM(Data!T7) -> 0 | BV14: =TRIM(Data!U7) -> 0 | BX14: =TRIM(Data!V7) -> 0 | BY14: =TRIM(Data!W7) -> 0 | BZ14: =TRIM(Data!X7) -> 0 | CA14: =TRIM(Data!Y7) -> 0 | CB14: =TRIM(Data!Z7) -> 0 | CC14: =TRIM(Data!AA7) -> 0 | CD14: 84 | CE14: 1 Nov 2024 to 30 Nov 2024 | CF14: HOSPITAL AUTHORITY | CG14: HA | CH14: HA | CI14: 3098159131 | CJ14: LABMB | CK14: 3 | CL14: Enterprise Application Integration (EAI) | CM14: Local System | CN14: 859734 | CO14: 208 | CP14: 2813 | CQ14: 117117 | CR14: 739596 | CT14: 208 | CU14: 0.000241935296266054 | CV14: 68 | CW14: 140 | CX14: 119155 | CY14: 0.138595193397027 | CZ14: 119155 | DA14: 0 | DB14: 0 | DC14: 117278 | DD14: 1877 | DE14: 0 | DG14: 739596 | DH14: 0.860261429698023 | DI14: 0 | DJ14: 0 | DK14: 0 | DL14: 0 | DM14: 0 | DN14: 0 | DO14: 0 | DP14: 0
A15: 1 Nov 2024 to 30 Nov 20241728942726CMRXO | B15: 1 Nov 2024 to 30 Nov 2024 | C15: St. Teresa's Hospital - Chinese Medicine Centre | D15: STH-CMC | E15: PH | F15: 1728942726 | G15: CMRXO | H15: 3 | I15: STH HIS | J15: EC Connect | K15: 235 | L15: 0 | M15: 0 | N15: 7 | O15: 228 | Q15: 0 | R15: 0 | S15: 0 | T15: 0 | U15: 0 | V15: 0 | W15: 0 | X15: 0 | Y15: 0 | Z15: 0 | AA15: 0 | AB15: 0 | AD15: 228 | AE15: 0.970212766 | AF15: 0 | AG15: 0 | AH15: 0 | AI15: 0 | AJ15: 0 | AK15: 0 | AL15: 0 | AM15: 0 | AQ15: 1 Nov 2024 to 30 Nov 20243098159131RAD | AR15: =Data!A8 -> 2024-11-01 | AS15: =TRIM(Data!B8) -> HOSPITAL AUTHORITY | AU15: =TRIM(Data!C8) -> HA | AV15: =TRIM(Data!D8) -> 3098159131 | AW15: =TRIM(Data!E8) -> RAD | AX15: =TRIM(Data!F8) -> 3 | AY15: =TRIM(Data!G8) -> Enterprise Application Integration (EAI) | AZ15: =TRIM(Data!H8) -> Local System | BA15: =TRIM(Data!I8) -> 782842 | BB15: =TRIM(Data!J8) -> 0 | BC15: =TRIM(Data!K8) -> 0 | BD15: =TRIM(Data!L8) -> 0 | BE15: =TRIM(Data!M8) -> 782842 | BI15: =TRIM(Data!N8) -> 0 | BJ15: =TRIM(Data!O8) -> 0 | BK15: =TRIM(Data!P8) -> 0 | BM15: =TRIM(Data!Q8) -> 0 | BP15: =TRIM(Data!R8) -> 0 | BQ15: =TRIM(Data!S8) -> 0 | BR15: =TRIM(Data!T8) -> 0 | BV15: =TRIM(Data!U8) -> 0 | BX15: =TRIM(Data!V8) -> 0 | BY15: =TRIM(Data!W8) -> 0 | BZ15: =TRIM(Data!X8) -> 0 | CA15: =TRIM(Data!Y8) -> 0 | CB15: =TRIM(Data!Z8) -> 0 | CC15: =TRIM(Data!AA8) -> 0 | CD15: 89 | CE15: 1 Nov 2024 to 30 Nov 2024 | CF15: HOSPITAL AUTHORITY | CG15: HA | CH15: HA | CI15: 3098159131 | CJ15: RAD | CK15: 3 | CL15: Enterprise Application Integration (EAI) | CM15: Local System | CN15: 782842 | CO15: 0 | CP15: 0 | CQ15: 0 | CR15: 782842 | CT15: 0 | CU15: 0 | CV15: 0 | CW15: 0 | CX15: 0 | CY15: 0 | CZ15: 0 | DA15: 0 | DB15: 0 | DC15: 0 | DD15: 0 | DE15: 0 | DG15: 782842 | DH15: 1 | DI15: 0 | DJ15: 0 | DK15: 0 | DL15: 0 | DM15: 0 | DN15: 0 | DO15: 0 | DP15: 0
A16: 1 Nov 2024 to 30 Nov 20241728942726ENCTR | B16: 1 Nov 2024 to 30 Nov 2024 | C16: St. Teresa's Hospital - Chinese Medicine Centre | D16: STH-CMC | E16: PH | F16: 1728942726 | G16: ENCTR | H16: 3 | I16: STH HIS | J16: Local System | K16: 318 | L16: 0 | M16: 0 | N16: 0 | O16: 318 | Q16: 0 | R16: 0 | S16: 0 | T16: 0 | U16: 0 | V16: 0 | W16: 0 | X16: 0 | Y16: 0 | Z16: 0 | AA16: 0 | AB16: 0 | AD16: 318 | AE16: 1 | AF16: 0 | AG16: 0 | AH16: 0 | AI16: 0 | AJ16: 0 | AK16: 0 | AL16: 0 | AM16: 0 | AQ16: 1 Nov 2024 to 30 Nov 20243098159131EPIS | AR16: =Data!A9 -> 2024-11-01 | AS16: =TRIM(Data!B9) -> HOSPITAL AUTHORITY | AU16: =TRIM(Data!C9) -> HA | AV16: =TRIM(Data!D9) -> 3098159131 | AW16: =TRIM(Data!E9) -> EPIS | AX16: =TRIM(Data!F9) -> 1 | AY16: =TRIM(Data!G9) -> Enterprise Application Integration (EAI) | AZ16: =TRIM(Data!H9) -> Local System | BA16: =TRIM(Data!I9) -> 434094 | BB16: =TRIM(Data!J9) -> 1398 | BC16: =TRIM(Data!K9) -> 432696 | BD16: =TRIM(Data!L9) -> 0 | BE16: =TRIM(Data!M9) -> 0 | BI16: =TRIM(Data!N9) -> 1398 | BJ16: =TRIM(Data!O9) -> 0 | BK16: =TRIM(Data!P9) -> 0 | BM16: =TRIM(Data!Q9) -> 0 | BP16: =TRIM(Data!R9) -> 0 | BQ16: =TRIM(Data!S9) -> 0 | BR16: =TRIM(Data!T9) -> 0 | BV16: =TRIM(Data!U9) -> 0 | BX16: =TRIM(Data!V9) -> 0 | BY16: =TRIM(Data!W9) -> 0 | BZ16: =TRIM(Data!X9) -> 0 | CA16: =TRIM(Data!Y9) -> 0 | CB16: =TRIM(Data!Z9) -> 0 | CC16: =TRIM(Data!AA9) -> 0 | CD16: 79 | CE16: 1 Nov 2024 to 30 Nov 2024 | CF16: HOSPITAL AUTHORITY | CG16: HA | CH16: HA | CI16: 3098159131 | CJ16: EPIS | CK16: 1 | CL16: Enterprise Application Integration (EAI) | CM16: Local System | CN16: 434094 | CO16: 1398 | CP16: 432696 | CQ16: 0 | CR16: 0 | CT16: 1398 | CU16: 0.00322050062889605 | CV16: 1398 | CW16: 0 | CX16: 0 | CY16: 0 | CZ16: 0 | DA16: 0 | DB16: 0 | DC16: 0 | DD16: 0 | DE16: 0 | DG16: 0 | DH16: 0 | DI16: 0 | DJ16: 0 | DK16: 0 | DL16: 0 | DM16: 0 | DN16: 0 | DO16: 0 | DP16: 0
A17: 1 Nov 2024 to 30 Nov 20241960920902LABGEN | B17: 1 Nov 2024 to 30 Nov 2024 | C17: MEDIC-TECH X-RAY & LABORATORY SERVICE | D17: MEDIC-TECH X-RAY & LAB | E17: SOLO | F17: 1960920902 | G17: LABGEN | H17: 1 | I17: CMS5.0 (HKMA) | J17: Local System | K17: 5 | L17: 0 | M17: 5 | N17: 0 | O17: 0 | Q17: 0 | R17: 0 | S17: 0 | T17: 0 | U17: 0 | V17: 0 | W17: 0 | X17: 0 | Y17: 0 | Z17: 0 | AA17: 0 | AB17: 0 | AD17: 0 | AE17: 0 | AF17: 0 | AG17: 0 | AH17: 0 | AI17: 0 | AJ17: 0 | AK17: 0 | AL17: 0 | AM17: 0 | AQ17: 1 Nov 2024 to 30 Nov 20243098159131PX | AR17: =Data!A10 -> 2024-11-01 | AS17: =TRIM(Data!B10) -> HOSPITAL AUTHORITY | AU17: =TRIM(Data!C10) -> HA | AV17: =TRIM(Data!D10) -> 3098159131 | AW17: =TRIM(Data!E10) -> PX | AX17: =TRIM(Data!F10) -> 3 | AY17: =TRIM(Data!G10) -> Enterprise Application Integration (EAI) | AZ17: =TRIM(Data!H10) -> Local System | BA17: =TRIM(Data!I10) -> 391004 | BB17: =TRIM(Data!J10) -> 0 | BC17: =TRIM(Data!K10) -> 0 | BD17: =TRIM(Data!L10) -> 0 | BE17: =TRIM(Data!M10) -> 391004 | BI17: =TRIM(Data!N10) -> 0 | BJ17: =TRIM(Data!O10) -> 0 | BK17: =TRIM(Data!P10) -> 0 | BM17: =TRIM(Data!Q10) -> 0 | BP17: =TRIM(Data!R10) -> 0 | BQ17: =TRIM(Data!S10) -> 0 | BR17: =TRIM(Data!T10) -> 0 | BV17: =TRIM(Data!U10) -> 0 | BX17: =TRIM(Data!V10) -> 0 | BY17: =TRIM(Data!W10) -> 0 | BZ17: =TRIM(Data!X10) -> 0 | CA17: =TRIM(Data!Y10) -> 0 | CB17: =TRIM(Data!Z10) -> 0 | CC17: =TRIM(Data!AA10) -> 0 | CD17: 88 | CE17: 1 Nov 2024 to 30 Nov 2024 | CF17: HOSPITAL AUTHORITY | CG17: HA | CH17: HA | CI17: 3098159131 | CJ17: PX | CK17: 3 | CL17: Enterprise Application Integration (EAI) | CM17: Local System | CN17: 391004 | CO17: 0 | CP17: 0 | CQ17: 0 | CR17: 391004 | CT17: 0 | CU17: 0 | CV17: 0 | CW17: 0 | CX17: 0 | CY17: 0 | CZ17: 0 | DA17: 0 | DB17: 0 | DC17: 0 | DD17: 0 | DE17: 0 | DG17: 391004 | DH17: 1 | DI17: 0 | DJ17: 0 | DK17: 0 | DL17: 0 | DM17: 0 | DN17: 0 | DO17: 0 | DP17: 0
A18: 1 Nov 2024 to 30 Nov 20242091864776CMPROB | B18: 1 Nov 2024 to 30 Nov 2024 | C18: Han Qi Chinese Medicine Limited | D18: HAN QI CHINESE MEDICINE | E18: GROUP | F18: 2091864776 | G18: CMPROB | H18: 3 | I18: Local System | J18: EC Connect | K18: 215 | L18: 0 | M18: 0 | N18: 65 | O18: 150 | Q18: 0 | R18: 0 | S18: 0 | T18: 0 | U18: 21 | V18: 0.0976744186 | W18: 21 | X18: 0 | Y18: 0 | Z18: 21 | AA18: 0 | AB18: 0 | AD18: 150 | AE18: 0.6976744186 | AF18: 0 | AG18: 0 | AH18: 0 | AI18: 0 | AJ18: 0 | AK18: 0 | AL18: 0 | AM18: 0 | AQ18: 1 Nov 2024 to 30 Nov 20243098159131MEDCER | AR18: =Data!A11 -> 2024-11-01 | AS18: =TRIM(Data!B11) -> HOSPITAL AUTHORITY | AU18: =TRIM(Data!C11) -> HA | AV18: =TRIM(Data!D11) -> 3098159131 | AW18: =TRIM(Data!E11) -> MEDCER | AX18: =TRIM(Data!F11) -> 1 | AY18: =TRIM(Data!G11) -> Enterprise Application Integration (EAI) | AZ18: =TRIM(Data!H11) -> Local System | BA18: =TRIM(Data!I11) -> 274613 | BB18: =TRIM(Data!J11) -> 239 | BC18: =TRIM(Data!K11) -> 274374 | BD18: =TRIM(Data!L11) -> 0 | BE18: =TRIM(Data!M11) -> 0 | BI18: =TRIM(Data!N11) -> 239 | BJ18: =TRIM(Data!O11) -> 0 | BK18: =TRIM(Data!P11) -> 0 | BM18: =TRIM(Data!Q11) -> 0 | BP18: =TRIM(Data!R11) -> 0 | BQ18: =TRIM(Data!S11) -> 0 | BR18: =TRIM(Data!T11) -> 0 | BV18: =TRIM(Data!U11) -> 0 | BX18: =TRIM(Data!V11) -> 0 | BY18: =TRIM(Data!W11) -> 0 | BZ18: =TRIM(Data!X11) -> 0 | CA18: =TRIM(Data!Y11) -> 0 | CB18: =TRIM(Data!Z11) -> 0 | CC18: =TRIM(Data!AA11) -> 0 | CD18: 85 | CE18: 1 Nov 2024 to 30 Nov 2024 | CF18: HOSPITAL AUTHORITY | CG18: HA | CH18: HA | CI18: 3098159131 | CJ18: MEDCER | CK18: 1 | CL18: Enterprise Application Integration (EAI) | CM18: Local System | CN18: 274613 | CO18: 239 | CP18: 274374 | CQ18: 0 | CR18: 0 | CT18: 239 | CU18: 0.000870315680612353 | CV18: 239 | CW18: 0 | CX18: 0 | CY18: 0 | CZ18: 0 | DA18: 0 | DB18: 0 | DC18: 0 | DD18: 0 | DE18: 0 | DG18: 0 | DH18: 0 | DI18: 0 | DJ18: 0 | DK18: 0 | DL18: 0 | DM18: 0 | DN18: 0 | DO18: 0 | DP18: 0
A19: 1 Nov 2024 to 30 Nov 20242091864776CMRXD | B19: 1 Nov 2024 to 30 Nov 2024 | C19: Han Qi Chinese Medicine Limited | D19: HAN QI CHINESE MEDICINE | E19: GROUP | F19: 2091864776 | G19: CMRXD | H19: 3 | I19: Local System | J19: EC Connect | K19: 174 | L19: 0 | M19: 0 | N19: 158 | O19: 16 | Q19: 0 | R19: 0 | S19: 0 | T19: 0 | U19: 0 | V19: 0 | W19: 0 | X19: 0 | Y19: 0 | Z19: 0 | AA19: 0 | AB19: 0 | AD19: 16 | AE19: 0.09195402299 | AF19: 0 | AG19: 0 | AH19: 0 | AI19: 0 | AJ19: 0 | AK19: 0 | AL19: 0 | AM19: 0 | AQ19: 1 Nov 2024 to 30 Nov 20243098159131IMMU | AR19: =Data!A12 -> 2024-11-01 | AS19: =TRIM(Data!B12) -> HOSPITAL AUTHORITY | AU19: =TRIM(Data!C12) -> HA | AV19: =TRIM(Data!D12) -> 3098159131 | AW19: =TRIM(Data!E12) -> IMMU | AX19: =TRIM(Data!F12) -> 3 | AY19: =TRIM(Data!G12) -> Enterprise Application Integration (EAI) | AZ19: =TRIM(Data!H12) -> Local System | BA19: =TRIM(Data!I12) -> 207112 | BB19: =TRIM(Data!J12) -> 0 | BC19: =TRIM(Data!K12) -> 0 | BD19: =TRIM(Data!L12) -> 11553 | BE19: =TRIM(Data!M12) -> 195559 | BI19: =TRIM(Data!N12) -> 0 | BJ19: =TRIM(Data!O12) -> 0 | BK19: =TRIM(Data!P12) -> 11181 | BM19: =TRIM(Data!Q12) -> 11181 | BP19: =TRIM(Data!R12) -> 11181 | BQ19: =TRIM(Data!S12) -> 0 | BR19: =TRIM(Data!T12) -> 0 | BV19: =TRIM(Data!U12) -> 380 | BX19: =TRIM(Data!V12) -> 0 | BY19: =TRIM(Data!W12) -> 380 | BZ19: =TRIM(Data!X12) -> 0 | CA19: =TRIM(Data!Y12) -> 0 | CB19: =TRIM(Data!Z12) -> 0 | CC19: =TRIM(Data!AA12) -> 0 | CD19: 80 | CE19: 1 Nov 2024 to 30 Nov 2024 | CF19: HOSPITAL AUTHORITY | CG19: HA | CH19: HA | CI19: 3098159131 | CJ19: IMMU | CK19: 3 | CL19: Enterprise Application Integration (EAI) | CM19: Local System | CN19: 207112 | CO19: 0 | CP19: 0 | CQ19: 11553 | CR19: 195559 | CT19: 0 | CU19: 0 | CV19: 0 | CW19: 0 | CX19: 11181 | CY19: 0.0539852833249643 | CZ19: 11181 | DA19: 0 | DB19: 0 | DC19: 11181 | DD19: 0 | DE19: 0 | DG19: 195559 | DH19: 0.944218587044691 | DI19: 380 | DJ19: 0.00183475607400827 | DK19: 0 | DL19: 380 | DM19: 0 | DN19: 0 | DO19: 0 | DP19: 0
A20: 1 Nov 2024 to 30 Nov 20242091864776CMRXO | B20: 1 Nov 2024 to 30 Nov 2024 | C20: Han Qi Chinese Medicine Limited | D20: HAN QI CHINESE MEDICINE | E20: GROUP | F20: 2091864776 | G20: CMRXO | H20: 3 | I20: Local System | J20: EC Connect | K20: 174 | L20: 0 | M20: 0 | N20: 158 | O20: 16 | Q20: 0 | R20: 0 | S20: 0 | T20: 0 | U20: 0 | V20: 0 | W20: 0 | X20: 0 | Y20: 0 | Z20: 0 | AA20: 0 | AB20: 0 | AD20: 16 | AE20: 0.09195402299 | AF20: 0 | AG20: 0 | AH20: 0 | AI20: 0 | AJ20: 0 | AK20: 0 | AL20: 0 | AM20: 0 | AQ20: 1 Nov 2024 to 30 Nov 20243098159131REF | AR20: =Data!A13 -> 2024-11-01 | AS20: =TRIM(Data!B13) -> HOSPITAL AUTHORITY | AU20: =TRIM(Data!C13) -> HA | AV20: =TRIM(Data!D13) -> 3098159131 | AW20: =TRIM(Data!E13) -> REF | AX20: =TRIM(Data!F13) -> 1 | AY20: =TRIM(Data!G13) -> Enterprise Application Integration (EAI) | AZ20: =TRIM(Data!H13) -> Local System | BA20: =TRIM(Data!I13) -> 185708 | BB20: =TRIM(Data!J13) -> 175 | BC20: =TRIM(Data!K13) -> 185533 | BD20: =TRIM(Data!L13) -> 0 | BE20: =TRIM(Data!M13) -> 0 | BI20: =TRIM(Data!N13) -> 175 | BJ20: =TRIM(Data!O13) -> 0 | BK20: =TRIM(Data!P13) -> 0 | BM20: =TRIM(Data!Q13) -> 0 | BP20: =TRIM(Data!R13) -> 0 | BQ20: =TRIM(Data!S13) -> 0 | BR20: =TRIM(Data!T13) -> 0 | BV20: =TRIM(Data!U13) -> 0 | BX20: =TRIM(Data!V13) -> 0 | BY20: =TRIM(Data!W13) -> 0 | BZ20: =TRIM(Data!X13) -> 0 | CA20: =TRIM(Data!Y13) -> 0 | CB20: =TRIM(Data!Z13) -> 0 | CC20: =TRIM(Data!AA13) -> 0 | CD20: 90 | CE20: 1 Nov 2024 to 30 Nov 2024 | CF20: HOSPITAL AUTHORITY | CG20: HA | CH20: HA | CI20: 3098159131 | CJ20: REF | CK20: 1 | CL20: Enterprise Application Integration (EAI) | CM20: Local System | CN20: 185708 | CO20: 175 | CP20: 185533 | CQ20: 0 | CR20: 0 | CT20: 175 | CU20: 0.000942339586878325 | CV20: 175 | CW20: 0 | CX20: 0 | CY20: 0 | CZ20: 0 | DA20: 0 | DB20: 0 | DC20: 0 | DD20: 0 | DE20: 0 | DG20: 0 | DH20: 0 | DI20: 0 | DJ20: 0 | DK20: 0 | DL20: 0 | DM20: 0 | DN20: 0 | DO20: 0 | DP20: 0
A21: 1 Nov 2024 to 30 Nov 20242091864776ENCTR | B21: 1 Nov 2024 to 30 Nov 2024 | C21: Han Qi Chinese Medicine Limited | D21: HAN QI CHINESE MEDICINE | E21: GROUP | F21: 2091864776 | G21: ENCTR | H21: 3 | I21: Local System | J21: Local System | K21: 175 | L21: 0 | M21: 0 | N21: 0 | O21: 175 | Q21: 0 | R21: 0 | S21: 0 | T21: 0 | U21: 0 | V21: 0 | W21: 0 | X21: 0 | Y21: 0 | Z21: 0 | AA21: 0 | AB21: 0 | AD21: 175 | AE21: 1 | AF21: 0 | AG21: 0 | AH21: 0 | AI21: 0 | AJ21: 0 | AK21: 0 | AL21: 0 | AM21: 0 | AQ21: 1 Nov 2024 to 30 Nov 20243098159131LABAP | AR21: =Data!A14 -> 2024-11-01 | AS21: =TRIM(Data!B14) -> HOSPITAL AUTHORITY | AU21: =TRIM(Data!C14) -> HA | AV21: =TRIM(Data!D14) -> 3098159131 | AW21: =TRIM(Data!E14) -> LABAP | AX21: =TRIM(Data!F14) -> 3 | AY21: =TRIM(Data!G14) -> Enterprise Application Integration (EAI) | AZ21: =TRIM(Data!H14) -> Local System | BA21: =TRIM(Data!I14) -> 98967 | BB21: =TRIM(Data!J14) -> 11 | BC21: =TRIM(Data!K14) -> 0 | BD21: =TRIM(Data!L14) -> 31134 | BE21: =TRIM(Data!M14) -> 67822 | BI21: =TRIM(Data!N14) -> 11 | BJ21: =TRIM(Data!O14) -> 0 | BK21: =TRIM(Data!P14) -> 31404 | BM21: =TRIM(Data!Q14) -> 28420 | BP21: =TRIM(Data!R14) -> 31404 | BQ21: =TRIM(Data!S14) -> 0 | BR21: =TRIM(Data!T14) -> 0 | BV21: =TRIM(Data!U14) -> 3 | BX21: =TRIM(Data!V14) -> 0 | BY21: =TRIM(Data!W14) -> 3 | BZ21: =TRIM(Data!X14) -> 0 | CA21: =TRIM(Data!Y14) -> 0 | CB21: =TRIM(Data!Z14) -> 0 | CC21: =TRIM(Data!AA14) -> 0 | CD21: 82 | CE21: 1 Nov 2024 to 30 Nov 2024 | CF21: HOSPITAL AUTHORITY | CG21: HA | CH21: HA | CI21: 3098159131 | CJ21: LABAP | CK21: 3 | CL21: Enterprise Application Integration (EAI) | CM21: Local System | CN21: 98967 | CO21: 11 | CP21: 0 | CQ21: 31134 | CR21: 67822 | CT21: 11 | CU21: 0.000111148160497944 | CV21: 11 | CW21: 0 | CX21: 31404 | CY21: 0.317317893843402 | CZ21: 28420 | DA21: 0 | DB21: 2984 | DC21: 31404 | DD21: 0 | DE21: 0 | DG21: 67822 | DH21: 0.685299140117413 | DI21: 3 | DJ21: 3.03131346812574E-05 | DK21: 0 | DL21: 3 | DM21: 0 | DN21: 0 | DO21: 0 | DP21: 0
A22: 1 Nov 2024 to 30 Nov 20242206285885AL1 | B22: 1 Nov 2024 to 30 Nov 2024 | C22: EVANGEL HOSPITAL | D22: EVANGEL HOSPITAL | E22: PH | F22: 2206285885 | G22: AL1 | H22: 3 | I22: HMS | J22: Local System | K22: 163 | L22: 0 | M22: 0 | N22: 87 | O22: 76 | Q22: 0 | R22: 0 | S22: 0 | T22: 0 | U22: 87 | V22: 0.5337423313 | W22: 87 | X22: 0 | Y22: 0 | Z22: 87 | AA22: 0 | AB22: 0 | AD22: 76 | AE22: 0.4662576687 | AF22: 0 | AG22: 0 | AH22: 0 | AI22: 0 | AJ22: 0 | AK22: 0 | AL22: 0 | AM22: 0 | AQ22: 1 Nov 2024 to 30 Nov 20243098159131OBS | AR22: =Data!A15 -> 2024-11-01 | AS22: =TRIM(Data!B15) -> HOSPITAL AUTHORITY | AU22: =TRIM(Data!C15) -> HA | AV22: =TRIM(Data!D15) -> 3098159131 | AW22: =TRIM(Data!E15) -> OBS | AX22: =TRIM(Data!F15) -> 3 | AY22: =TRIM(Data!G15) -> Enterprise Application Integration (EAI) | AZ22: =TRIM(Data!H15) -> Local System | BA22: =TRIM(Data!I15) -> 44399 | BB22: =TRIM(Data!J15) -> 27 | BC22: =TRIM(Data!K15) -> 0 | BD22: =TRIM(Data!L15) -> 0 | BE22: =TRIM(Data!M15) -> 44372 | BI22: =TRIM(Data!N15) -> 27 | BJ22: =TRIM(Data!O15) -> 0 | BK22: =TRIM(Data!P15) -> 0 | BM22: =TRIM(Data!Q15) -> 0 | BP22: =TRIM(Data!R15) -> 0 | BQ22: =TRIM(Data!S15) -> 0 | BR22: =TRIM(Data!T15) -> 0 | BV22: =TRIM(Data!U15) -> 0 | BX22: =TRIM(Data!V15) -> 0 | BY22: =TRIM(Data!W15) -> 0 | BZ22: =TRIM(Data!X15) -> 0 | CA22: =TRIM(Data!Y15) -> 0 | CB22: =TRIM(Data!Z15) -> 0 | CC22: =TRIM(Data!AA15) -> 0 | CD22: 86 | CE22: 1 Nov 2024 to 30 Nov 2024 | CF22: HOSPITAL AUTHORITY | CG22: HA | CH22: HA | CI22: 3098159131 | CJ22: OBS | CK22: 3 | CL22: Enterprise Application Integration (EAI) | CM22: Local System | CN22: 44399 | CO22: 27 | CP22: 0 | CQ22: 0 | CR22: 44372 | CT22: 27 | CU22: 0.000608121804545147 | CV22: 27 | CW22: 0 | CX22: 0 | CY22: 0 | CZ22: 0 | DA22: 0 | DB22: 0 | DC22: 0 | DD22: 0 | DE22: 0 | DG22: 44372 | DH22: 0.999391878195455 | DI22: 0 | DJ22: 0 | DK22: 0 | DL22: 0 | DM22: 0 | DN22: 0 | DO22: 0 | DP22: 0
A23: 1 Nov 2024 to 30 Nov 20242206285885ENCTR | B23: 1 Nov 2024 to 30 Nov 2024 | C23: EVANGEL HOSPITAL | D23: EVANGEL HOSPITAL | E23: PH | F23: 2206285885 | G23: ENCTR | H23: 3 | I23: HMS | J23: Local System | K23: 3849 | L23: 0 | M23: 0 | N23: 0 | O23: 3849 | Q23: 0 | R23: 0 | S23: 0 | T23: 0 | U23: 0 | V23: 0 | W23: 0 | X23: 0 | Y23: 0 | Z23: 0 | AA23: 0 | AB23: 0 | AD23: 3849 | AE23: 1 | AF23: 0 | AG23: 0 | AH23: 0 | AI23: 0 | AJ23: 0 | AK23: 0 | AL23: 0 | AM23: 0 | AQ23: 1 Nov 2024 to 30 Nov 20243098159131INVR | AR23: =Data!A16 -> 2024-11-01 | AS23: =TRIM(Data!B16) -> HOSPITAL AUTHORITY | AU23: =TRIM(Data!C16) -> HA | AV23: =TRIM(Data!D16) -> 3098159131 | AW23: =TRIM(Data!E16) -> INVR | AX23: =TRIM(Data!F16) -> 1 | AY23: =TRIM(Data!G16) -> Enterprise Application Integration (EAI) | AZ23: =TRIM(Data!H16) -> Local System | BA23: =TRIM(Data!I16) -> 33491 | BB23: =TRIM(Data!J16) -> 36 | BC23: =TRIM(Data!K16) -> 33455 | BD23: =TRIM(Data!L16) -> 0 | BE23: =TRIM(Data!M16) -> 0 | BI23: =TRIM(Data!N16) -> 36 | BJ23: =TRIM(Data!O16) -> 0 | BK23: =TRIM(Data!P16) -> 0 | BM23: =TRIM(Data!Q16) -> 0 | BP23: =TRIM(Data!R16) -> 0 | BQ23: =TRIM(Data!S16) -> 0 | BR23: =TRIM(Data!T16) -> 0 | BV23: =TRIM(Data!U16) -> 0 | BX23: =TRIM(Data!V16) -> 0 | BY23: =TRIM(Data!W16) -> 0 | BZ23: =TRIM(Data!X16) -> 0 | CA23: =TRIM(Data!Y16) -> 0 | CB23: =TRIM(Data!Z16) -> 0 | CC23: =TRIM(Data!AA16) -> 0 | CD23: 81 | CE23: 1 Nov 2024 to 30 Nov 2024 | CF23: HOSPITAL AUTHORITY | CG23: HA | CH23: HA | CI23: 3098159131 | CJ23: INVR | CK23: 1 | CL23: Enterprise Application Integration (EAI) | CM23: Local System | CN23: 33491 | CO23: 36 | CP23: 33455 | CQ23: 0 | CR23: 0 | CT23: 36 | CU23: 0.00107491564898032 | CV23: 36 | CW23: 0 | CX23: 0 | CY23: 0 | CZ23: 0 | DA23: 0 | DB23: 0 | DC23: 0 | DD23: 0 | DE23: 0 | DG23: 0 | DH23: 0 | DI23: 0 | DJ23: 0 | DK23: 0 | DL23: 0 | DM23: 0 | DN23: 0 | DO23: 0 | DP23: 0
A24: 1 Nov 2024 to 30 Nov 20242206285885RAD | B24: 1 Nov 2024 to 30 Nov 2024 | C24: EVANGEL HOSPITAL | D24: EVANGEL HOSPITAL | E24: PH | F24: 2206285885 | G24: RAD | H24: 3 | I24: HMS | J24: Local System | K24: 616 | L24: 3 | M24: 0 | N24: 0 | O24: 613 | Q24: 3 | R24: 0.00487012987 | S24: 3 | T24: 0 | U24: 0 | V24: 0 | W24: 0 | X24: 0 | Y24: 0 | Z24: 0 | AA24: 0 | AB24: 0 | AD24: 613 | AE24: 0.9951298701 | AF24: 0 | AG24: 0 | AH24: 0 | AI24: 0 | AJ24: 0 | AK24: 0 | AL24: 0 | AM24: 0 | AQ24: 1 Nov 2024 to 30 Nov 20243098159131BIRTH | AR24: =Data!A17 -> 2024-11-01 | AS24: =TRIM(Data!B17) -> HOSPITAL AUTHORITY | AU24: =TRIM(Data!C17) -> HA | AV24: =TRIM(Data!D17) -> 3098159131 | AW24: =TRIM(Data!E17) -> BIRTH | AX24: =TRIM(Data!F17) -> 3 | AY24: =TRIM(Data!G17) -> Enterprise Application Integration (EAI) | AZ24: =TRIM(Data!H17) -> Local System | BA24: =TRIM(Data!I17) -> 11843 | BB24: =TRIM(Data!J17) -> 0 | BC24: =TRIM(Data!K17) -> 0 | BD24: =TRIM(Data!L17) -> 0 | BE24: =TRIM(Data!M17) -> 11843 | BI24: =TRIM(Data!N17) -> 0 | BJ24: =TRIM(Data!O17) -> 0 | BK24: =TRIM(Data!P17) -> 0 | BM24: =TRIM(Data!Q17) -> 0 | BP24: =TRIM(Data!R17) -> 0 | BQ24: =TRIM(Data!S17) -> 0 | BR24: =TRIM(Data!T17) -> 0 | BV24: =TRIM(Data!U17) -> 0 | BX24: =TRIM(Data!V17) -> 0 | BY24: =TRIM(Data!W17) -> 0 | BZ24: =TRIM(Data!X17) -> 0 | CA24: =TRIM(Data!Y17) -> 0 | CB24: =TRIM(Data!Z17) -> 0 | CC24: =TRIM(Data!AA17) -> 0 | CD24: 77 | CE24: 1 Nov 2024 to 30 Nov 2024 | CF24: HOSPITAL AUTHORITY | CG24: HA | CH24: HA | CI24: 3098159131 | CJ24: BIRTH | CK24: 3 | CL24: Enterprise Application Integration (EAI) | CM24: Local System | CN24: 11843 | CO24: 0 | CP24: 0 | CQ24: 0 | CR24: 11843 | CT24: 0 | CU24: 0 | CV24: 0 | CW24: 0 | CX24: 0 | CY24: 0 | CZ24: 0 | DA24: 0 | DB24: 0 | DC24: 0 | DD24: 0 | DE24: 0 | DG24: 11843 | DH24: 1 | DI24: 0 | DJ24: 0 | DK24: 0 | DL24: 0 | DM24: 0 | DN24: 0 | DO24: 0 | DP24: 0
A25: 1 Nov 2024 to 30 Nov 20242231879813CMPROB | B25: 1 Nov 2024 to 30 Nov 2024 | C25: 18 Chinese Medicine Clinic cum Traing and Research Centre (The Hong Kong Tuberculosis Association) | D25: 18CMCTRs(HKTBA) | E25: NGO | F25: 2231879813 | G25: CMPROB | H25: 3 | I25: Local System | J25: EC Connect | K25: 371 | L25: 0 | M25: 0 | N25: 124 | O25: 247 | Q25: 0 | R25: 0 | S25: 0 | T25: 0 | U25: 69 | V25: 0.1859838275 | W25: 69 | X25: 0 | Y25: 0 | Z25: 69 | AA25: 0 | AB25: 0 | AD25: 247 | AE25: 0.6657681941 | AF25: 0 | AG25: 0 | AH25: 0 | AI25: 0 | AJ25: 0 | AK25: 0 | AL25: 0 | AM25: 0 | AQ25: 1 Nov 2024 to 30 Nov 20243098159131AL1 | AR25: =Data!A18 -> 2024-11-01 | AS25: =TRIM(Data!B18) -> HOSPITAL AUTHORITY | AU25: =TRIM(Data!C18) -> HA | AV25: =TRIM(Data!D18) -> 3098159131 | AW25: =TRIM(Data!E18) -> AL1 | AX25: =TRIM(Data!F18) -> 3 | AY25: =TRIM(Data!G18) -> Enterprise Application Integration (EAI) | AZ25: =TRIM(Data!H18) -> Local System | BA25: =TRIM(Data!I18) -> 6091 | BB25: =TRIM(Data!J18) -> 0 | BC25: =TRIM(Data!K18) -> 0 | BD25: =TRIM(Data!L18) -> 1717 | BE25: =TRIM(Data!M18) -> 4374 | BI25: =TRIM(Data!N18) -> 0 | BJ25: =TRIM(Data!O18) -> 0 | BK25: =TRIM(Data!P18) -> 1602 | BM25: =TRIM(Data!Q18) -> 1602 | BP25: =TRIM(Data!R18) -> 1602 | BQ25: =TRIM(Data!S18) -> 0 | BR25: =TRIM(Data!T18) -> 0 | BV25: =TRIM(Data!U18) -> 0 | BX25: =TRIM(Data!V18) -> 0 | BY25: =TRIM(Data!W18) -> 0 | BZ25: =TRIM(Data!X18) -> 0 | CA25: =TRIM(Data!Y18) -> 0 | CB25: =TRIM(Data!Z18) -> 0 | CC25: =TRIM(Data!AA18) -> 0 | CD25: 76 | CE25: 1 Nov 2024 to 30 Nov 2024 | CF25: HOSPITAL AUTHORITY | CG25: HA | CH25: HA | CI25: 3098159131 | CJ25: AL1 | CK25: 3 | CL25: Enterprise Application Integration (EAI) | CM25: Local System | CN25: 6091 | CO25: 0 | CP25: 0 | CQ25: 1717 | CR25: 4374 | CT25: 0 | CU25: 0 | CV25: 0 | CW25: 0 | CX25: 1602 | CY25: 0.263010999835823 | CZ25: 1602 | DA25: 0 | DB25: 0 | DC25: 1602 | DD25: 0 | DE25: 0 | DG25: 4374 | DH25: 0.718108684945001 | DI25: 0 | DJ25: 0 | DK25: 0 | DL25: 0 | DM25: 0 | DN25: 0 | DO25: 0 | DP25: 0
A26: 1 Nov 2024 to 30 Nov 20242231879813CMPX | B26: 1 Nov 2024 to 30 Nov 2024 | C26: 18 Chinese Medicine Clinic cum Traing and Research Centre (The Hong Kong Tuberculosis Association) | D26: 18CMCTRs(HKTBA) | E26: NGO | F26: 2231879813 | G26: CMPX | H26: 3 | I26: Local System | J26: EC Connect | K26: 75 | L26: 0 | M26: 0 | N26: 0 | O26: 75 | Q26: 0 | R26: 0 | S26: 0 | T26: 0 | U26: 0 | V26: 0 | W26: 0 | X26: 0 | Y26: 0 | Z26: 0 | AA26: 0 | AB26: 0 | AD26: 75 | AE26: 1 | AF26: 0 | AG26: 0 | AH26: 0 | AI26: 0 | AJ26: 0 | AK26: 0 | AL26: 0 | AM26: 0 | AQ26: 1 Nov 2024 to 30 Nov 20243098159131ADR | AR26: =Data!A19 -> 2024-11-01 | AS26: =TRIM(Data!B19) -> HOSPITAL AUTHORITY | AU26: =TRIM(Data!C19) -> HA | AV26: =TRIM(Data!D19) -> 3098159131 | AW26: =TRIM(Data!E19) -> ADR | AX26: =TRIM(Data!F19) -> 3 | AY26: =TRIM(Data!G19) -> Enterprise Application Integration (EAI) | AZ26: =TRIM(Data!H19) -> Local System | BA26: =TRIM(Data!I19) -> 5116 | BB26: =TRIM(Data!J19) -> 0 | BC26: =TRIM(Data!K19) -> 0 | BD26: =TRIM(Data!L19) -> 320 | BE26: =TRIM(Data!M19) -> 4796 | BI26: =TRIM(Data!N19) -> 0 | BJ26: =TRIM(Data!O19) -> 0 | BK26: =TRIM(Data!P19) -> 318 | BM26: =TRIM(Data!Q19) -> 318 | BP26: =TRIM(Data!R19) -> 318 | BQ26: =TRIM(Data!S19) -> 0 | BR26: =TRIM(Data!T19) -> 0 | BV26: =TRIM(Data!U19) -> 0 | BX26: =TRIM(Data!V19) -> 0 | BY26: =TRIM(Data!W19) -> 0 | BZ26: =TRIM(Data!X19) -> 0 | CA26: =TRIM(Data!Y19) -> 0 | CB26: =TRIM(Data!Z19) -> 0 | CC26: =TRIM(Data!AA19) -> 0 | CD26: 75 | CE26: 1 Nov 2024 to 30 Nov 2024 | CF26: HOSPITAL AUTHORITY | CG26: HA | CH26: HA | CI26: 3098159131 | CJ26: ADR | CK26: 3 | CL26: Enterprise Application Integration (EAI) | CM26: Local System | CN26: 5116 | CO26: 0 | CP26: 0 | CQ26: 320 | CR26: 4796 | CT26: 0 | CU26: 0 | CV26: 0 | CW26: 0 | CX26: 318 | CY26: 0.062157935887412 | CZ26: 318 | DA26: 0 | DB26: 0 | DC26: 318 | DD26: 0 | DE26: 0 | DG26: 4796 | DH26: 0.937451133698202 | DI26: 0 | DJ26: 0 | DK26: 0 | DL26: 0 | DM26: 0 | DN26: 0 | DO26: 0 | DP26: 0
A27: 1 Nov 2024 to 30 Nov 20242231879813CMRXO | B27: 1 Nov 2024 to 30 Nov 2024 | C27: 18 Chinese Medicine Clinic cum Traing and Research Centre (The Hong Kong Tuberculosis Association) | D27: 18CMCTRs(HKTBA) | E27: NGO | F27: 2231879813 | G27: CMRXO | H27: 3 | I27: Local System | J27: EC Connect | K27: 199 | L27: 0 | M27: 0 | N27: 4 | O27: 195 | Q27: 0 | R27: 0 | S27: 0 | T27: 0 | U27: 4 | V27: 0.02010050251 | W27: 4 | X27: 0 | Y27: 0 | Z27: 4 | AA27: 0 | AB27: 0 | AD27: 195 | AE27: 0.9798994975 | AF27: 0 | AG27: 0 | AH27: 0 | AI27: 0 | AJ27: 0 | AK27: 0 | AL27: 0 | AM27: 0 | AQ27: 1 Nov 2024 to 30 Nov 20242438744730ENCTR | AR27: =Data!A20 -> 2024-11-01 | AS27: =TRIM(Data!B20) -> DEPARTMENT OF HEALTH | AU27: =TRIM(Data!C20) -> DH | AV27: =TRIM(Data!D20) -> 2438744730 | AW27: =TRIM(Data!E20) -> ENCTR | AX27: =TRIM(Data!F20) -> 3 | AY27: =TRIM(Data!G20) -> CIMS2 | AZ27: =TRIM(Data!H20) -> Local System | BA27: =TRIM(Data!I20) -> 528906 | BB27: =TRIM(Data!J20) -> 0 | BC27: =TRIM(Data!K20) -> 0 | BD27: =TRIM(Data!L20) -> 0 | BE27: =TRIM(Data!M20) -> 528906 | BI27: =TRIM(Data!N20) -> 0 | BJ27: =TRIM(Data!O20) -> 0 | BK27: =TRIM(Data!P20) -> 0 | BM27: =TRIM(Data!Q20) -> 0 | BP27: =TRIM(Data!R20) -> 0 | BQ27: =TRIM(Data!S20) -> 0 | BR27: =TRIM(Data!T20) -> 0 | BV27: =TRIM(Data!U20) -> 0 | BX27: =TRIM(Data!V20) -> 0 | BY27: =TRIM(Data!W20) -> 0 | BZ27: =TRIM(Data!X20) -> 0 | CA27: =TRIM(Data!Y20) -> 0 | CB27: =TRIM(Data!Z20) -> 0 | CC27: =TRIM(Data!AA20) -> 0 | CD27: 47 | CE27: 1 Nov 2024 to 30 Nov 2024 | CF27: DEPARTMENT OF HEALTH | CG27: DH | CH27: DH | CI27: 2438744730 | CJ27: ENCTR | CK27: 3 | CL27: CIMS2 | CM27: Local System | CN27: 528906 | CO27: 0 | CP27: 0 | CQ27: 0 | CR27: 528906 | CT27: 0 | CU27: 0 | CV27: 0 | CW27: 0 | CX27: 0 | CY27: 0 | CZ27: 0 | DA27: 0 | DB27: 0 | DC27: 0 | DD27: 0 | DE27: 0 | DG27: 528906 | DH27: 1 | DI27: 0 | DJ27: 0 | DK27: 0 | DL27: 0 | DM27: 0 | DN27: 0 | DO27: 0 | DP27: 0
A28: 1 Nov 2024 to 30 Nov 20242231879813ENCTR | B28: 1 Nov 2024 to 30 Nov 2024 | C28: 18 Chinese Medicine Clinic cum Traing and Research Centre (The Hong Kong Tuberculosis Association) | D28: 18CMCTRs(HKTBA) | E28: NGO | F28: 2231879813 | G28: ENCTR | H28: 3 | I28: Local System | J28: Local System | K28: 390 | L28: 0 | M28: 0 | N28: 0 | O28: 390 | Q28: 0 | R28: 0 | S28: 0 | T28: 0 | U28: 0 | V28: 0 | W28: 0 | X28: 0 | Y28: 0 | Z28: 0 | AA28: 0 | AB28: 0 | AD28: 390 | AE28: 1 | AF28: 0 | AG28: 0 | AH28: 0 | AI28: 0 | AJ28: 0 | AK28: 0 | AL28: 0 | AM28: 0 | AQ28: 1 Nov 2024 to 30 Nov 20242438744730IMMU | AR28: =Data!A21 -> 2024-11-01 | AS28: =TRIM(Data!B21) -> DEPARTMENT OF HEALTH | AU28: =TRIM(Data!C21) -> DH | AV28: =TRIM(Data!D21) -> 2438744730 | AW28: =TRIM(Data!E21) -> IMMU | AX28: =TRIM(Data!F21) -> 3 | AY28: =TRIM(Data!G21) -> CIMS2 | AZ28: =TRIM(Data!H21) -> Local System | BA28: =TRIM(Data!I21) -> 222694 | BB28: =TRIM(Data!J21) -> 0 | BC28: =TRIM(Data!K21) -> 0 | BD28: =TRIM(Data!L21) -> 29003 | BE28: =TRIM(Data!M21) -> 193691 | BI28: =TRIM(Data!N21) -> 0 | BJ28: =TRIM(Data!O21) -> 0 | BK28: =TRIM(Data!P21) -> 29005 | BM28: =TRIM(Data!Q21) -> 29005 | BP28: =TRIM(Data!R21) -> 29005 | BQ28: =TRIM(Data!S21) -> 0 | BR28: =TRIM(Data!T21) -> 0 | BV28: =TRIM(Data!U21) -> 0 | BX28: =TRIM(Data!V21) -> 0 | BY28: =TRIM(Data!W21) -> 0 | BZ28: =TRIM(Data!X21) -> 0 | CA28: =TRIM(Data!Y21) -> 0 | CB28: =TRIM(Data!Z21) -> 0 | CC28: =TRIM(Data!AA21) -> 0 | CD28: 48 | CE28: 1 Nov 2024 to 30 Nov 2024 | CF28: DEPARTMENT OF HEALTH | CG28: DH | CH28: DH | CI28: 2438744730 | CJ28: IMMU | CK28: 3 | CL28: CIMS2 | CM28: Local System | CN28: 222694 | CO28: 0 | CP28: 0 | CQ28: 29003 | CR28: 193691 | CT28: 0 | CU28: 0 | CV28: 0 | CW28: 0 | CX28: 29005 | CY28: 0.130245987767969 | CZ28: 29005 | DA28: 0 | DB28: 0 | DC28: 29005 | DD28: 0 | DE28: 0 | DG28: 193691 | DH28: 0.86976299316551 | DI28: 0 | DJ28: 0 | DK28: 0 | DL28: 0 | DM28: 0 | DN28: 0 | DO28: 0 | DP28: 0
A29: 1 Nov 2024 to 30 Nov 20242295233392RAD | B29: 1 Nov 2024 to 30 Nov 2024 | C29: Hong Kong Breast Cancer Foundation Limited | D29: HKBCF | E29: NGO | F29: 2295233392 | G29: RAD | H29: 3 | I29: MTG_CMS_RIS | J29: Local System | K29: 1119 | L29: 0 | M29: 0 | N29: 0 | O29: 1119 | Q29: 0 | R29: 0 | S29: 0 | T29: 0 | U29: 0 | V29: 0 | W29: 0 | X29: 0 | Y29: 0 | Z29: 0 | AA29: 0 | AB29: 0 | AD29: 1119 | AE29: 1 | AF29: 0 | AG29: 0 | AH29: 0 | AI29: 0 | AJ29: 0 | AK29: 0 | AL29: 0 | AM29: 0 | AP29: Y | AQ29: 1 Nov 2024 to 30 Nov 20242438744730RXO | AR29: =Data!A22 -> 2024-11-01 | AS29: =TRIM(Data!B22) -> DEPARTMENT OF HEALTH | AU29: =TRIM(Data!C22) -> DH | AV29: =TRIM(Data!D22) -> 2438744730 | AW29: =TRIM(Data!E22) -> RXO | AX29: =TRIM(Data!F22) -> 3 | AY29: =TRIM(Data!G22) -> CIMS2 | AZ29: =TRIM(Data!H22) -> Adaptation | BA29: =TRIM(Data!I22) -> 154299 | BB29: =TRIM(Data!J22) -> 0 | BC29: =TRIM(Data!K22) -> 0 | BD29: =TRIM(Data!L22) -> 53632 | BE29: =TRIM(Data!M22) -> 100667 | BI29: =TRIM(Data!N22) -> 0 | BJ29: =TRIM(Data!O22) -> 0 | BK29: =TRIM(Data!P22) -> 53860 | BM29: =TRIM(Data!Q22) -> 53860 | BP29: =TRIM(Data!R22) -> 53860 | BQ29: =TRIM(Data!S22) -> 0 | BR29: =TRIM(Data!T22) -> 0 | BV29: =TRIM(Data!U22) -> 5 | BX29: =TRIM(Data!V22) -> 0 | BY29: =TRIM(Data!W22) -> 0 | BZ29: =TRIM(Data!X22) -> 0 | CA29: =TRIM(Data!Y22) -> 5 | CB29: =TRIM(Data!Z22) -> 0 | CC29: =TRIM(Data!AA22) -> 0 | CD29: 58 | CE29: 1 Nov 2024 to 30 Nov 2024 | CF29: DEPARTMENT OF HEALTH | CG29: DH | CH29: DH | CI29: 2438744730 | CJ29: RXO | CK29: 3 | CL29: CIMS2 | CM29: Local System | CN29: 154299 | CO29: 0 | CP29: 0 | CQ29: 53632 | CR29: 100667 | CT29: 0 | CU29: 0 | CV29: 0 | CW29: 0 | CX29: 53860 | CY29: 0.349062534429906 | CZ29: 53860 | DA29: 0 | DB29: 0 | DC29: 53860 | DD29: 0 | DE29: 0 | DG29: 100667 | DH29: 0.652415116105743 | DI29: 5 | DJ29: 3.24046170098316E-05 | DK29: 0 | DL29: 0 | DM29: 0 | DN29: 5 | DO29: 0 | DP29: 0
A30: 1 Nov 2024 to 30 Nov 20242308765964ENCTR | B30: 1 Nov 2024 to 30 Nov 2024 | C30: DR SUM NAM CHU'S CLINIC | D30: DR SUM NAM CHU'S CLINIC | E30: SOLO | F30: 2308765964 | G30: ENCTR | H30: 3 | I30: Local System | J30: Local System | K30: 70 | L30: 0 | M30: 0 | N30: 0 | O30: 70 | Q30: 0 | R30: 0 | S30: 0 | T30: 0 | U30: 0 | V30: 0 | W30: 0 | X30: 0 | Y30: 0 | Z30: 0 | AA30: 0 | AB30: 0 | AD30: 70 | AE30: 1 | AF30: 0 | AG30: 0 | AH30: 0 | AI30: 0 | AJ30: 0 | AK30: 0 | AL30: 0 | AM30: 0 | AQ30: 1 Nov 2024 to 30 Nov 20242438744730PX | AR30: =Data!A23 -> 2024-11-01 | AS30: =TRIM(Data!B23) -> DEPARTMENT OF HEALTH | AU30: =TRIM(Data!C23) -> DH | AV30: =TRIM(Data!D23) -> 2438744730 | AW30: =TRIM(Data!E23) -> PX | AX30: =TRIM(Data!F23) -> 3 | AY30: =TRIM(Data!G23) -> CIMS2 | AZ30: =TRIM(Data!H23) -> Local System | BA30: =TRIM(Data!I23) -> 118544 | BB30: =TRIM(Data!J23) -> 0 | BC30: =TRIM(Data!K23) -> 0 | BD30: =TRIM(Data!L23) -> 8922 | BE30: =TRIM(Data!M23) -> 109622 | BI30: =TRIM(Data!N23) -> 0 | BJ30: =TRIM(Data!O23) -> 0 | BK30: =TRIM(Data!P23) -> 6037 | BM30: =TRIM(Data!Q23) -> 6037 | BP30: =TRIM(Data!R23) -> 6037 | BQ30: =TRIM(Data!S23) -> 0 | BR30: =TRIM(Data!T23) -> 0 | BV30: =TRIM(Data!U23) -> 2907 | BX30: =TRIM(Data!V23) -> 0 | BY30: =TRIM(Data!W23) -> 2907 | BZ30: =TRIM(Data!X23) -> 0 | CA30: =TRIM(Data!Y23) -> 0 | CB30: =TRIM(Data!Z23) -> 0 | CC30: =TRIM(Data!AA23) -> 0 | CD30: 54 | CE30: 1 Nov 2024 to 30 Nov 2024 | CF30: DEPARTMENT OF HEALTH | CG30: DH | CH30: DH | CI30: 2438744730 | CJ30: PX | CK30: 3 | CL30: CIMS2 | CM30: Local System | CN30: 118544 | CO30: 0 | CP30: 0 | CQ30: 8922 | CR30: 109622 | CT30: 0 | CU30: 0 | CV30: 0 | CW30: 0 | CX30: 6037 | CY30: 0.0509262383587529 | CZ30: 6037 | DA30: 0 | DB30: 0 | DC30: 6037 | DD30: 0 | DE30: 0 | DG30: 109622 | DH30: 0.924736806586584 | DI30: 2907 | DJ30: 0.0245225401538669 | DK30: 0 | DL30: 2907 | DM30: 0 | DN30: 0 | DO30: 0 | DP30: 0
A31: 1 Nov 2024 to 30 Nov 20242308765964IMMU | B31: 1 Nov 2024 to 30 Nov 2024 | C31: DR SUM NAM CHU'S CLINIC | D31: DR SUM NAM CHU'S CLINIC | E31: SOLO | F31: 2308765964 | G31: IMMU | H31: 3 | I31: Local System | J31: Local System | K31: 19 | L31: 0 | M31: 0 | N31: 2 | O31: 17 | Q31: 0 | R31: 0 | S31: 0 | T31: 0 | U31: 0 | V31: 0 | W31: 0 | X31: 0 | Y31: 0 | Z31: 0 | AA31: 0 | AB31: 0 | AD31: 17 | AE31: 0.8947368421 | AF31: 0 | AG31: 0 | AH31: 0 | AI31: 0 | AJ31: 0 | AK31: 0 | AL31: 0 | AM31: 0 | AQ31: 1 Nov 2024 to 30 Nov 20242438744730PROB | AR31: =Data!A24 -> 2024-11-01 | AS31: =TRIM(Data!B24) -> DEPARTMENT OF HEALTH | AU31: =TRIM(Data!C24) -> DH | AV31: =TRIM(Data!D24) -> 2438744730 | AW31: =TRIM(Data!E24) -> PROB | AX31: =TRIM(Data!F24) -> 3 | AY31: =TRIM(Data!G24) -> CIMS2 | AZ31: =TRIM(Data!H24) -> Local System | BA31: =TRIM(Data!I24) -> 117906 | BB31: =TRIM(Data!J24) -> 2 | BC31: =TRIM(Data!K24) -> 0 | BD31: =TRIM(Data!L24) -> 15734 | BE31: =TRIM(Data!M24) -> 102170 | BI31: =TRIM(Data!N24) -> 2 | BJ31: =TRIM(Data!O24) -> 0 | BK31: =TRIM(Data!P24) -> 15727 | BM31: =TRIM(Data!Q24) -> 15727 | BP31: =TRIM(Data!R24) -> 15727 | BQ31: =TRIM(Data!S24) -> 0 | BR31: =TRIM(Data!T24) -> 0 | BV31: =TRIM(Data!U24) -> 26 | BX31: =TRIM(Data!V24) -> 0 | BY31: =TRIM(Data!W24) -> 26 | BZ31: =TRIM(Data!X24) -> 0 | CA31: =TRIM(Data!Y24) -> 0 | CB31: =TRIM(Data!Z24) -> 0 | CC31: =TRIM(Data!AA24) -> 0 | CD31: 53 | CE31: 1 Nov 2024 to 30 Nov 2024 | CF31: DEPARTMENT OF HEALTH | CG31: DH | CH31: DH | CI31: 2438744730 | CJ31: PROB | CK31: 3 | CL31: CIMS2 | CM31: Local System | CN31: 117906 | CO31: 2 | CP31: 0 | CQ31: 15734 | CR31: 102170 | CT31: 2 | CU31: 1.69626651739521E-05 | CV31: 2 | CW31: 0 | CX31: 15727 | CY31: 0.133385917595373 | CZ31: 15727 | DA31: 0 | DB31: 0 | DC31: 15727 | DD31: 0 | DE31: 0 | DG31: 102170 | DH31: 0.866537750411345 | DI31: 26 | DJ31: 0.000220514647261378 | DK31: 0 | DL31: 26 | DM31: 0 | DN31: 0 | DO31: 0 | DP31: 0
A32: 1 Nov 2024 to 30 Nov 20242308765964PROB | B32: 1 Nov 2024 to 30 Nov 2024 | C32: DR SUM NAM CHU'S CLINIC | D32: DR SUM NAM CHU'S CLINIC | E32: SOLO | F32: 2308765964 | G32: PROB | H32: 3 | I32: Local System | J32: Local System | K32: 88 | L32: 0 | M32: 0 | N32: 2 | O32: 86 | Q32: 0 | R32: 0 | S32: 0 | T32: 0 | U32: 0 | V32: 0 | W32: 0 | X32: 0 | Y32: 0 | Z32: 0 | AA32: 0 | AB32: 0 | AD32: 86 | AE32: 0.9772727273 | AF32: 0 | AG32: 0 | AH32: 0 | AI32: 0 | AJ32: 0 | AK32: 0 | AL32: 0 | AM32: 0 | AQ32: 1 Nov 2024 to 30 Nov 20242438744730RXD | AR32: =Data!A25 -> 2024-11-01 | AS32: =TRIM(Data!B25) -> DEPARTMENT OF HEALTH | AU32: =TRIM(Data!C25) -> DH | AV32: =TRIM(Data!D25) -> 2438744730 | AW32: =TRIM(Data!E25) -> RXD | AX32: =TRIM(Data!F25) -> 2 | AY32: =TRIM(Data!G25) -> CIMS2 | AZ32: =TRIM(Data!H25) -> Local System | BA32: =TRIM(Data!I25) -> 99696 | BB32: =TRIM(Data!J25) -> 0 | BC32: =TRIM(Data!K25) -> 0 | BD32: =TRIM(Data!L25) -> 99696 | BE32: =TRIM(Data!M25) -> 0 | BI32: =TRIM(Data!N25) -> 0 | BJ32: =TRIM(Data!O25) -> 0 | BK32: =TRIM(Data!P25) -> 0 | BM32: =TRIM(Data!Q25) -> 0 | BP32: =TRIM(Data!R25) -> 0 | BQ32: =TRIM(Data!S25) -> 0 | BR32: =TRIM(Data!T25) -> 0 | BV32: =TRIM(Data!U25) -> 0 | BX32: =TRIM(Data!V25) -> 0 | BY32: =TRIM(Data!W25) -> 0 | BZ32: =TRIM(Data!X25) -> 0 | CA32: =TRIM(Data!Y25) -> 0 | CB32: =TRIM(Data!Z25) -> 0 | CC32: =TRIM(Data!AA25) -> 0 | CD32: 57 | CE32: 1 Nov 2024 to 30 Nov 2024 | CF32: DEPARTMENT OF HEALTH | CG32: DH | CH32: DH | CI32: 2438744730 | CJ32: RXD | CK32: 2 | CL32: CIMS2 | CM32: Local System | CN32: 99696 | CO32: 0 | CP32: 0 | CQ32: 99696 | CR32: 0 | CT32: 0 | CU32: 0 | CV32: 0 | CW32: 0 | CX32: 0 | CY32: 0 | CZ32: 0 | DA32: 0 | DB32: 0 | DC32: 0 | DD32: 0 | DE32: 0 | DG32: 0 | DH32: 0 | DI32: 0 | DJ32: 0 | DK32: 0 | DL32: 0 | DM32: 0 | DN32: 0 | DO32: 0 | DP32: 0
A33: 1 Nov 2024 to 30 Nov 20242308765964RXD | B33: 1 Nov 2024 to 30 Nov 2024 | C33: DR SUM NAM CHU'S CLINIC | D33: DR SUM NAM CHU'S CLINIC | E33: SOLO | F33: 2308765964 | G33: RXD | H33: 3 | I33: Local System | J33: Local System | K33: 134 | L33: 0 | M33: 0 | N33: 20 | O33: 114 | Q33: 0 | R33: 0 | S33: 0 | T33: 0 | U33: 0 | V33: 0 | W33: 0 | X33: 0 | Y33: 0 | Z33: 0 | AA33: 0 | AB33: 0 | AD33: 114 | AE33: 0.8507462687 | AF33: 0 | AG33: 0 | AH33: 0 | AI33: 0 | AJ33: 0 | AK33: 0 | AL33: 0 | AM33: 0 | AP33: Y | AQ33: 1 Nov 2024 to 30 Nov 20242438744730LABGEN | AR33: =Data!A26 -> 2024-11-01 | AS33: =TRIM(Data!B26) -> DEPARTMENT OF HEALTH | AU33: =TRIM(Data!C26) -> DH | AV33: =TRIM(Data!D26) -> 2438744730 | AW33: =TRIM(Data!E26) -> LABGEN | AX33: =TRIM(Data!F26) -> 3 | AY33: =TRIM(Data!G26) -> CIMS2 | AZ33: =TRIM(Data!H26) -> Local System | BA33: =TRIM(Data!I26) -> 17153 | BB33: =TRIM(Data!J26) -> 0 | BC33: =TRIM(Data!K26) -> 1326 | BD33: =TRIM(Data!L26) -> 652 | BE33: =TRIM(Data!M26) -> 15175 | BI33: =TRIM(Data!N26) -> 0 | BJ33: =TRIM(Data!O26) -> 0 | BK33: =TRIM(Data!P26) -> 2019 | BM33: =TRIM(Data!Q26) -> 2019 | BP33: =TRIM(Data!R26) -> 652 | BQ33: =TRIM(Data!S26) -> 1367 | BR33: =TRIM(Data!T26) -> 0 | BV33: =TRIM(Data!U26) -> 0 | BX33: =TRIM(Data!V26) -> 0 | BY33: =TRIM(Data!W26) -> 0 | BZ33: =TRIM(Data!X26) -> 0 | CA33: =TRIM(Data!Y26) -> 0 | CB33: =TRIM(Data!Z26) -> 0 | CC33: =TRIM(Data!AA26) -> 0 | CD33: 50 | CE33: 1 Nov 2024 to 30 Nov 2024 | CF33: DEPARTMENT OF HEALTH | CG33: DH | CH33: DH | CI33: 2438744730 | CJ33: LABGEN | CK33: 1 | CL33: CIMS2 | CM33: Local System | CN33: 17153 | CO33: 0 | CP33: 1326 | CQ33: 652 | CR33: 15175 | CT33: 0 | CU33: 0 | CV33: 0 | CW33: 0 | CX33: 2019 | CY33: 0.117705357663382 | CZ33: 2019 | DA33: 0 | DB33: 0 | DC33: 652 | DD33: 1367 | DE33: 0 | DG33: 15175 | DH33: 0.884684894770594 | DI33: 0 | DJ33: 0 | DK33: 0 | DL33: 0 | DM33: 0 | DN33: 0 | DO33: 0 | DP33: 0
A34: 1 Nov 2024 to 30 Nov 20242308765964RXO | B34: 1 Nov 2024 to 30 Nov 2024 | C34: DR SUM NAM CHU'S CLINIC | D34: DR SUM NAM CHU'S CLINIC | E34: SOLO | F34: 2308765964 | G34: RXO | H34: 3 | I34: Local System | J34: Local System | K34: 158 | L34: 0 | M34: 0 | N34: 26 | O34: 132 | Q34: 0 | R34: 0 | S34: 0 | T34: 0 | U34: 0 | V34: 0 | W34: 0 | X34: 0 | Y34: 0 | Z34: 0 | AA34: 0 | AB34: 0 | AD34: 132 | AE34: 0.835443038 | AF34: 0 | AG34: 0 | AH34: 0 | AI34: 0 | AJ34: 0 | AK34: 0 | AL34: 0 | AM34: 0 | AQ34: 1 Nov 2024 to 30 Nov 20242438744730LABMB | AR34: =Data!A27 -> 2024-11-01 | AS34: =TRIM(Data!B27) -> DEPARTMENT OF HEALTH | AU34: =TRIM(Data!C27) -> DH | AV34: =TRIM(Data!D27) -> 2438744730 | AW34: =TRIM(Data!E27) -> LABMB | AX34: =TRIM(Data!F27) -> 1 | AY34: =TRIM(Data!G27) -> CIMS2 | AZ34: =TRIM(Data!H27) -> Local System | BA34: =TRIM(Data!I27) -> 16594 | BB34: =TRIM(Data!J27) -> 0 | BC34: =TRIM(Data!K27) -> 16594 | BD34: =TRIM(Data!L27) -> 0 | BE34: =TRIM(Data!M27) -> 0 | BI34: =TRIM(Data!N27) -> 0 | BJ34: =TRIM(Data!O27) -> 0 | BK34: =TRIM(Data!P27) -> 0 | BM34: =TRIM(Data!Q27) -> 0 | BP34: =TRIM(Data!R27) -> 0 | BQ34: =TRIM(Data!S27) -> 0 | BR34: =TRIM(Data!T27) -> 0 | BV34: =TRIM(Data!U27) -> 0 | BX34: =TRIM(Data!V27) -> 0 | BY34: =TRIM(Data!W27) -> 0 | BZ34: =TRIM(Data!X27) -> 0 | CA34: =TRIM(Data!Y27) -> 0 | CB34: =TRIM(Data!Z27) -> 0 | CC34: =TRIM(Data!AA27) -> 0 | CD34: 51 | CE34: 1 Nov 2024 to 30 Nov 2024 | CF34: DEPARTMENT OF HEALTH | CG34: DH | CH34: DH | CI34: 2438744730 | CJ34: LABMB | CK34: 1 | CL34: CIMS2 | CM34: Local System | CN34: 16594 | CO34: 0 | CP34: 16594 | CQ34: 0 | CR34: 0 | CT34: 0 | CU34: 0 | CV34: 0 | CW34: 0 | CX34: 0 | CY34: 0 | CZ34: 0 | DA34: 0 | DB34: 0 | DC34: 0 | DD34: 0 | DE34: 0 | DG34: 0 | DH34: 0 | DI34: 0 | DJ34: 0 | DK34: 0 | DL34: 0 | DM34: 0 | DN34: 0 | DO34: 0 | DP34: 0
A35: 1 Nov 2024 to 30 Nov 20242310917092AL1 | B35: 1 Nov 2024 to 30 Nov 2024 | C35: DR. YEE YUK KEI | D35: DR. YK YEE | E35: SOLO | F35: 2310917092 | G35: AL1 | H35: 3 | I35: Local System | J35: Local System | K35: 4 | L35: 0 | M35: 0 | N35: 0 | O35: 4 | Q35: 0 | R35: 0 | S35: 0 | T35: 0 | U35: 0 | V35: 0 | W35: 0 | X35: 0 | Y35: 0 | Z35: 0 | AA35: 0 | AB35: 0 | AD35: 4 | AE35: 1 | AF35: 0 | AG35: 0 | AH35: 0 | AI35: 0 | AJ35: 0 | AK35: 0 | AL35: 0 | AM35: 0 | AQ35: 1 Nov 2024 to 30 Nov 20242438744730RAD | AR35: =Data!A28 -> 2024-11-01 | AS35: =TRIM(Data!B28) -> DEPARTMENT OF HEALTH | AU35: =TRIM(Data!C28) -> DH | AV35: =TRIM(Data!D28) -> 2438744730 | AW35: =TRIM(Data!E28) -> RAD | AX35: =TRIM(Data!F28) -> 3 | AY35: =TRIM(Data!G28) -> CIMS2 | AZ35: =TRIM(Data!H28) -> Local System | BA35: =TRIM(Data!I28) -> 16220 | BB35: =TRIM(Data!J28) -> 0 | BC35: =TRIM(Data!K28) -> 0 | BD35: =TRIM(Data!L28) -> 0 | BE35: =TRIM(Data!M28) -> 16220 | BI35: =TRIM(Data!N28) -> 0 | BJ35: =TRIM(Data!O28) -> 0 | BK35: =TRIM(Data!P28) -> 0 | BM35: =TRIM(Data!Q28) -> 0 | BP35: =TRIM(Data!R28) -> 0 | BQ35: =TRIM(Data!S28) -> 0 | BR35: =TRIM(Data!T28) -> 0 | BV35: =TRIM(Data!U28) -> 0 | BX35: =TRIM(Data!V28) -> 0 | BY35: =TRIM(Data!W28) -> 0 | BZ35: =TRIM(Data!X28) -> 0 | CA35: =TRIM(Data!Y28) -> 0 | CB35: =TRIM(Data!Z28) -> 0 | CC35: =TRIM(Data!AA28) -> 0 | CD35: 55 | CE35: 1 Nov 2024 to 30 Nov 2024 | CF35: DEPARTMENT OF HEALTH | CG35: DH | CH35: DH | CI35: 2438744730 | CJ35: RAD | CK35: 3 | CL35: CIMS2 | CM35: Local System | CN35: 16220 | CO35: 0 | CP35: 0 | CQ35: 0 | CR35: 16220 | CT35: 0 | CU35: 0 | CV35: 0 | CW35: 0 | CX35: 0 | CY35: 0 | CZ35: 0 | DA35: 0 | DB35: 0 | DC35: 0 | DD35: 0 | DE35: 0 | DG35: 16220 | DH35: 1 | DI35: 0 | DJ35: 0 | DK35: 0 | DL35: 0 | DM35: 0 | DN35: 0 | DO35: 0 | DP35: 0
A36: 1 Nov 2024 to 30 Nov 20242310917092ENCTR | B36: 1 Nov 2024 to 30 Nov 2024 | C36: DR. YEE YUK KEI | D36: DR. YK YEE | E36: SOLO | F36: 2310917092 | G36: ENCTR | H36: 3 | I36: Local System | J36: Local System | K36: 350 | L36: 0 | M36: 0 | N36: 0 | O36: 350 | Q36: 0 | R36: 0 | S36: 0 | T36: 0 | U36: 0 | V36: 0 | W36: 0 | X36: 0 | Y36: 0 | Z36: 0 | AA36: 0 | AB36: 0 | AD36: 350 | AE36: 1 | AF36: 0 | AG36: 0 | AH36: 0 | AI36: 0 | AJ36: 0 | AK36: 0 | AL36: 0 | AM36: 0 | AQ36: 1 Nov 2024 to 30 Nov 20242438744730OBS | AR36: =Data!A29 -> 2024-11-01 | AS36: =TRIM(Data!B29) -> DEPARTMENT OF HEALTH | AU36: =TRIM(Data!C29) -> DH | AV36: =TRIM(Data!D29) -> 2438744730 | AW36: =TRIM(Data!E29) -> OBS | AX36: =TRIM(Data!F29) -> 3 | AY36: =TRIM(Data!G29) -> CIMS2 | AZ36: =TRIM(Data!H29) -> Local System | BA36: =TRIM(Data!I29) -> 7249 | BB36: =TRIM(Data!J29) -> 0 | BC36: =TRIM(Data!K29) -> 0 | BD36: =TRIM(Data!L29) -> 0 | BE36: =TRIM(Data!M29) -> 7249 | BI36: =TRIM(Data!N29) -> 0 | BJ36: =TRIM(Data!O29) -> 0 | BK36: =TRIM(Data!P29) -> 0 | BM36: =TRIM(Data!Q29) -> 0 | BP36: =TRIM(Data!R29) -> 0 | BQ36: =TRIM(Data!S29) -> 0 | BR36: =TRIM(Data!T29) -> 0 | BV36: =TRIM(Data!U29) -> 0 | BX36: =TRIM(Data!V29) -> 0 | BY36: =TRIM(Data!W29) -> 0 | BZ36: =TRIM(Data!X29) -> 0 | CA36: =TRIM(Data!Y29) -> 0 | CB36: =TRIM(Data!Z29) -> 0 | CC36: =TRIM(Data!AA29) -> 0 | CD36: 52 | CE36: 1 Nov 2024 to 30 Nov 2024 | CF36: DEPARTMENT OF HEALTH | CG36: DH | CH36: DH | CI36: 2438744730 | CJ36: OBS | CK36: 3 | CL36: CIMS2 | CM36: Local System | CN36: 7249 | CO36: 0 | CP36: 0 | CQ36: 0 | CR36: 7249 | CT36: 0 | CU36: 0 | CV36: 0 | CW36: 0 | CX36: 0 | CY36: 0 | CZ36: 0 | DA36: 0 | DB36: 0 | DC36: 0 | DD36: 0 | DE36: 0 | DG36: 7249 | DH36: 1 | DI36: 0 | DJ36: 0 | DK36: 0 | DL36: 0 | DM36: 0 | DN36: 0 | DO36: 0 | DP36: 0
A37: 1 Nov 2024 to 30 Nov 20242310917092EPIS | B37: 1 Nov 2024 to 30 Nov 2024 | C37: DR. YEE YUK KEI | D37: DR. YK YEE | E37: SOLO | F37: 2310917092 | G37: EPIS | H37: 1 | I37: Local System | J37: Local System | K37: 332 | L37: 0 | M37: 332 | N37: 0 | O37: 0 | Q37: 0 | R37: 0 | S37: 0 | T37: 0 | U37: 0 | V37: 0 | W37: 0 | X37: 0 | Y37: 0 | Z37: 0 | AA37: 0 | AB37: 0 | AD37: 0 | AE37: 0 | AF37: 0 | AG37: 0 | AH37: 0 | AI37: 0 | AJ37: 0 | AK37: 0 | AL37: 0 | AM37: 0 | AQ37: 1 Nov 2024 to 30 Nov 20242438744730LABAP | AR37: =Data!A30 -> 2024-11-01 | AS37: =TRIM(Data!B30) -> DEPARTMENT OF HEALTH | AU37: =TRIM(Data!C30) -> DH | AV37: =TRIM(Data!D30) -> 2438744730 | AW37: =TRIM(Data!E30) -> LABAP | AX37: =TRIM(Data!F30) -> 1 | AY37: =TRIM(Data!G30) -> CIMS2 | AZ37: =TRIM(Data!H30) -> Local System | BA37: =TRIM(Data!I30) -> 6695 | BB37: =TRIM(Data!J30) -> 0 | BC37: =TRIM(Data!K30) -> 6695 | BD37: =TRIM(Data!L30) -> 0 | BE37: =TRIM(Data!M30) -> 0 | BI37: =TRIM(Data!N30) -> 0 | BJ37: =TRIM(Data!O30) -> 0 | BK37: =TRIM(Data!P30) -> 0 | BM37: =TRIM(Data!Q30) -> 0 | BP37: =TRIM(Data!R30) -> 0 | BQ37: =TRIM(Data!S30) -> 0 | BR37: =TRIM(Data!T30) -> 0 | BV37: =TRIM(Data!U30) -> 0 | BX37: =TRIM(Data!V30) -> 0 | BY37: =TRIM(Data!W30) -> 0 | BZ37: =TRIM(Data!X30) -> 0 | CA37: =TRIM(Data!Y30) -> 0 | CB37: =TRIM(Data!Z30) -> 0 | CC37: =TRIM(Data!AA30) -> 0 | CD37: 49 | CE37: 1 Nov 2024 to 30 Nov 2024 | CF37: DEPARTMENT OF HEALTH | CG37: DH | CH37: DH | CI37: 2438744730 | CJ37: LABAP | CK37: 1 | CL37: CIMS2 | CM37: Local System | CN37: 6695 | CO37: 0 | CP37: 6695 | CQ37: 0 | CR37: 0 | CT37: 0 | CU37: 0 | CV37: 0 | CW37: 0 | CX37: 0 | CY37: 0 | CZ37: 0 | DA37: 0 | DB37: 0 | DC37: 0 | DD37: 0 | DE37: 0 | DG37: 0 | DH37: 0 | DI37: 0 | DJ37: 0 | DK37: 0 | DL37: 0 | DM37: 0 | DN37: 0 | DO37: 0 | DP37: 0
A38: 1 Nov 2024 to 30 Nov 20242310917092IMMU | B38: 1 Nov 2024 to 30 Nov 2024 | C38: DR. YEE YUK KEI | D38: DR. YK YEE | E38: SOLO | F38: 2310917092 | G38: IMMU | H38: 3 | I38: Local System | J38: Local System | K38: 10 | L38: 0 | M38: 0 | N38: 10 | O38: 0 | Q38: 0 | R38: 0 | S38: 0 | T38: 0 | U38: 0 | V38: 0 | W38: 0 | X38: 0 | Y38: 0 | Z38: 0 | AA38: 0 | AB38: 0 | AD38: 0 | AE38: 0 | AF38: 0 | AG38: 0 | AH38: 0 | AI38: 0 | AJ38: 0 | AK38: 0 | AL38: 0 | AM38: 0 | AQ38: 1 Nov 2024 to 30 Nov 20242438744730REF | AR38: =Data!A31 -> 2024-11-01 | AS38: =TRIM(Data!B31) -> DEPARTMENT OF HEALTH | AU38: =TRIM(Data!C31) -> DH | AV38: =TRIM(Data!D31) -> 2438744730 | AW38: =TRIM(Data!E31) -> REF | AX38: =TRIM(Data!F31) -> 1 | AY38: =TRIM(Data!G31) -> CIMS2 | AZ38: =TRIM(Data!H31) -> Local System | BA38: =TRIM(Data!I31) -> 4620 | BB38: =TRIM(Data!J31) -> 0 | BC38: =TRIM(Data!K31) -> 4620 | BD38: =TRIM(Data!L31) -> 0 | BE38: =TRIM(Data!M31) -> 0 | BI38: =TRIM(Data!N31) -> 0 | BJ38: =TRIM(Data!O31) -> 0 | BK38: =TRIM(Data!P31) -> 0 | BM38: =TRIM(Data!Q31) -> 0 | BP38: =TRIM(Data!R31) -> 0 | BQ38: =TRIM(Data!S31) -> 0 | BR38: =TRIM(Data!T31) -> 0 | BV38: =TRIM(Data!U31) -> 0 | BX38: =TRIM(Data!V31) -> 0 | BY38: =TRIM(Data!W31) -> 0 | BZ38: =TRIM(Data!X31) -> 0 | CA38: =TRIM(Data!Y31) -> 0 | CB38: =TRIM(Data!Z31) -> 0 | CC38: =TRIM(Data!AA31) -> 0 | CD38: 56 | CE38: 1 Nov 2024 to 30 Nov 2024 | CF38: DEPARTMENT OF HEALTH | CG38: DH | CH38: DH | CI38: 2438744730 | CJ38: REF | CK38: 1 | CL38: CIMS2 | CM38: Local System | CN38: 4620 | CO38: 0 | CP38: 4620 | CQ38: 0 | CR38: 0 | CT38: 0 | CU38: 0 | CV38: 0 | CW38: 0 | CX38: 0 | CY38: 0 | CZ38: 0 | DA38: 0 | DB38: 0 | DC38: 0 | DD38: 0 | DE38: 0 | DG38: 0 | DH38: 0 | DI38: 0 | DJ38: 0 | DK38: 0 | DL38: 0 | DM38: 0 | DN38: 0 | DO38: 0 | DP38: 0
A39: 1 Nov 2024 to 30 Nov 20242310917092PROB | B39: 1 Nov 2024 to 30 Nov 2024 | C39: DR. YEE YUK KEI | D39: DR. YK YEE | E39: SOLO | F39: 2310917092 | G39: PROB | H39: 3 | I39: Local System | J39: Local System | K39: 559 | L39: 0 | M39: 0 | N39: 19 | O39: 540 | Q39: 0 | R39: 0 | S39: 0 | T39: 0 | U39: 0 | V39: 0 | W39: 0 | X39: 0 | Y39: 0 | Z39: 0 | AA39: 0 | AB39: 0 | AD39: 540 | AE39: 0.9660107335 | AF39: 0 | AG39: 0 | AH39: 0 | AI39: 0 | AJ39: 0 | AK39: 0 | AL39: 0 | AM39: 0 | AP39: Y | AQ39: 1 Nov 2024 to 30 Nov 20242438744730AL1 | AR39: =Data!A32 -> 2024-11-01 | AS39: =TRIM(Data!B32) -> DEPARTMENT OF HEALTH | AU39: =TRIM(Data!C32) -> DH | AV39: =TRIM(Data!D32) -> 2438744730 | AW39: =TRIM(Data!E32) -> AL1 | AX39: =TRIM(Data!F32) -> 3 | AY39: =TRIM(Data!G32) -> CIMS2 | AZ39: =TRIM(Data!H32) -> Adaptation | BA39: =TRIM(Data!I32) -> 1435 | BB39: =TRIM(Data!J32) -> 0 | BC39: =TRIM(Data!K32) -> 0 | BD39: =TRIM(Data!L32) -> 337 | BE39: =TRIM(Data!M32) -> 1098 | BI39: =TRIM(Data!N32) -> 0 | BJ39: =TRIM(Data!O32) -> 0 | BK39: =TRIM(Data!P32) -> 310 | BM39: =TRIM(Data!Q32) -> 310 | BP39: =TRIM(Data!R32) -> 310 | BQ39: =TRIM(Data!S32) -> 0 | BR39: =TRIM(Data!T32) -> 0 | BV39: =TRIM(Data!U32) -> 0 | BX39: =TRIM(Data!V32) -> 0 | BY39: =TRIM(Data!W32) -> 0 | BZ39: =TRIM(Data!X32) -> 0 | CA39: =TRIM(Data!Y32) -> 0 | CB39: =TRIM(Data!Z32) -> 0 | CC39: =TRIM(Data!AA32) -> 0 | CD39: 46 | CE39: 1 Nov 2024 to 30 Nov 2024 | CF39: DEPARTMENT OF HEALTH | CG39: DH | CH39: DH | CI39: 2438744730 | CJ39: AL1 | CK39: 3 | CL39: CIMS2 | CM39: Local System | CN39: 1435 | CO39: 0 | CP39: 0 | CQ39: 337 | CR39: 1098 | CT39: 0 | CU39: 0 | CV39: 0 | CW39: 0 | CX39: 310 | CY39: 0.21602787456446 | CZ39: 310 | DA39: 0 | DB39: 0 | DC39: 310 | DD39: 0 | DE39: 0 | DG39: 1098 | DH39: 0.765156794425087 | DI39: 0 | DJ39: 0 | DK39: 0 | DL39: 0 | DM39: 0 | DN39: 0 | DO39: 0 | DP39: 0
A40: 1 Nov 2024 to 30 Nov 20242310917092PX | B40: 1 Nov 2024 to 30 Nov 2024 | C40: DR. YEE YUK KEI | D40: DR. YK YEE | E40: SOLO | F40: 2310917092 | G40: PX | H40: 3 | I40: Local System | J40: Local System | K40: 57 | L40: 0 | M40: 0 | N40: 0 | O40: 57 | Q40: 0 | R40: 0 | S40: 0 | T40: 0 | U40: 0 | V40: 0 | W40: 0 | X40: 0 | Y40: 0 | Z40: 0 | AA40: 0 | AB40: 0 | AD40: 57 | AE40: 1 | AF40: 0 | AG40: 0 | AH40: 0 | AI40: 0 | AJ40: 0 | AK40: 0 | AL40: 0 | AM40: 0 | AP40: Y | AQ40: 1 Nov 2024 to 30 Nov 20242438744730ADR | AR40: =Data!A33 -> 2024-11-01 | AS40: =TRIM(Data!B33) -> DEPARTMENT OF HEALTH | AU40: =TRIM(Data!C33) -> DH | AV40: =TRIM(Data!D33) -> 2438744730 | AW40: =TRIM(Data!E33) -> ADR | AX40: =TRIM(Data!F33) -> 3 | AY40: =TRIM(Data!G33) -> CIMS2 | AZ40: =TRIM(Data!H33) -> Adaptation | BA40: =TRIM(Data!I33) -> 356 | BB40: =TRIM(Data!J33) -> 0 | BC40: =TRIM(Data!K33) -> 0 | BD40: =TRIM(Data!L33) -> 57 | BE40: =TRIM(Data!M33) -> 299 | BI40: =TRIM(Data!N33) -> 0 | BJ40: =TRIM(Data!O33) -> 0 | BK40: =TRIM(Data!P33) -> 57 | BM40: =TRIM(Data!Q33) -> 57 | BP40: =TRIM(Data!R33) -> 57 | BQ40: =TRIM(Data!S33) -> 0 | BR40: =TRIM(Data!T33) -> 0 | BV40: =TRIM(Data!U33) -> 0 | BX40: =TRIM(Data!V33) -> 0 | BY40: =TRIM(Data!W33) -> 0 | BZ40: =TRIM(Data!X33) -> 0 | CA40: =TRIM(Data!Y33) -> 0 | CB40: =TRIM(Data!Z33) -> 0 | CC40: =TRIM(Data!AA33) -> 0 | CD40: 45 | CE40: 1 Nov 2024 to 30 Nov 2024 | CF40: DEPARTMENT OF HEALTH | CG40: DH | CH40: DH | CI40: 2438744730 | CJ40: ADR | CK40: 3 | CL40: CIMS2 | CM40: Local System | CN40: 356 | CO40: 0 | CP40: 0 | CQ40: 57 | CR40: 299 | CT40: 0 | CU40: 0 | CV40: 0 | CW40: 0 | CX40: 57 | CY40: 0.160112359550562 | CZ40: 57 | DA40: 0 | DB40: 0 | DC40: 57 | DD40: 0 | DE40: 0 | DG40: 299 | DH40: 0.839887640449438 | DI40: 0 | DJ40: 0 | DK40: 0 | DL40: 0 | DM40: 0 | DN40: 0 | DO40: 0 | DP40: 0
A41: 1 Nov 2024 to 30 Nov 20242310917092RXD | B41: 1 Nov 2024 to 30 Nov 2024 | C41: DR. YEE YUK KEI | D41: DR. YK YEE | E41: SOLO | F41: 2310917092 | G41: RXD | H41: 3 | I41: Local System | J41: Local System | K41: 532 | L41: 0 | M41: 0 | N41: 382 | O41: 150 | Q41: 0 | R41: 0 | S41: 0 | T41: 0 | U41: 0 | V41: 0 | W41: 0 | X41: 0 | Y41: 0 | Z41: 0 | AA41: 0 | AB41: 0 | AD41: 150 | AE41: 0.2819548872 | AF41: 0 | AG41: 0 | AH41: 0 | AI41: 0 | AJ41: 0 | AK41: 0 | AL41: 0 | AM41: 0 | AP41: Y | AQ41: 1 Nov 2024 to 30 Nov 20249265486345RXD | AR41: =Data!A34 -> 2024-11-01 | AS41: =TRIM(Data!B34) -> QUALITY HEALTHCARE MEDICAL CENTRE LIMITED | AU41: =TRIM(Data!C34) -> GRP | AV41: =TRIM(Data!D34) -> 9265486345 | AW41: =TRIM(Data!E34) -> RXD | AX41: =TRIM(Data!F34) -> 2 | AY41: =TRIM(Data!G34) -> QHMS EMR | AZ41: =TRIM(Data!H34) -> Local System | BA41: =TRIM(Data!I34) -> 37824 | BB41: =TRIM(Data!J34) -> 0 | BC41: =TRIM(Data!K34) -> 0 | BD41: =TRIM(Data!L34) -> 37824 | BE41: =TRIM(Data!M34) -> 0 | BI41: =TRIM(Data!N34) -> 0 | BJ41: =TRIM(Data!O34) -> 0 | BK41: =TRIM(Data!P34) -> 0 | BM41: =TRIM(Data!Q34) -> 0 | BP41: =TRIM(Data!R34) -> 0 | BQ41: =TRIM(Data!S34) -> 0 | BR41: =TRIM(Data!T34) -> 0 | BV41: =TRIM(Data!U34) -> 0 | BX41: =TRIM(Data!V34) -> 0 | BY41: =TRIM(Data!W34) -> 0 | BZ41: =TRIM(Data!X34) -> 0 | CA41: =TRIM(Data!Y34) -> 0 | CB41: =TRIM(Data!Z34) -> 0 | CC41: =TRIM(Data!AA34) -> 0 | CD41: 420 | CE41: 1 Nov 2024 to 30 Nov 2024 | CF41: QUALITY HEALTHCARE MEDICAL CENTRE LIMITED | CG41: QHMS | CH41: GROUP | CI41: 9265486345 | CJ41: RXD | CK41: 2 | CL41: QHMS EMR | CM41: Local System | CN41: 37824 | CO41: 0 | CP41: 0 | CQ41: 37824 | CR41: 0 | CT41: 0 | CU41: 0 | CV41: 0 | CW41: 0 | CX41: 0 | CY41: 0 | CZ41: 0 | DA41: 0 | DB41: 0 | DC41: 0 | DD41: 0 | DE41: 0 | DG41: 0 | DH41: 0 | DI41: 0 | DJ41: 0 | DK41: 0 | DL41: 0 | DM41: 0 | DN41: 0 | DO41: 0 | DP41: 0
A42: 1 Nov 2024 to 30 Nov 20242310917092RXO | B42: 1 Nov 2024 to 30 Nov 2024 | C42: DR. YEE YUK KEI | D42: DR. YK YEE | E42: SOLO | F42: 2310917092 | G42: RXO | H42: 3 | I42: Local System | J42: Local System | K42: 532 | L42: 0 | M42: 0 | N42: 382 | O42: 150 | Q42: 0 | R42: 0 | S42: 0 | T42: 0 | U42: 0 | V42: 0 | W42: 0 | X42: 0 | Y42: 0 | Z42: 0 | AA42: 0 | AB42: 0 | AD42: 150 | AE42: 0.2819548872 | AF42: 0 | AG42: 0 | AH42: 0 | AI42: 0 | AJ42: 0 | AK42: 0 | AL42: 0 | AM42: 0 | AP42: Y | AQ42: 1 Nov 2024 to 30 Nov 20249265486345ENCTR | AR42: =Data!A35 -> 2024-11-01 | AS42: =TRIM(Data!B35) -> QUALITY HEALTHCARE MEDICAL CENTRE LIMITED | AU42: =TRIM(Data!C35) -> GRP | AV42: =TRIM(Data!D35) -> 9265486345 | AW42: =TRIM(Data!E35) -> ENCTR | AX42: =TRIM(Data!F35) -> 3 | AY42: =TRIM(Data!G35) -> QHMS EMR | AZ42: =TRIM(Data!H35) -> Local System | BA42: =TRIM(Data!I35) -> 25897 | BB42: =TRIM(Data!J35) -> 0 | BC42: =TRIM(Data!K35) -> 0 | BD42: =TRIM(Data!L35) -> 0 | BE42: =TRIM(Data!M35) -> 25897 | BI42: =TRIM(Data!N35) -> 0 | BJ42: =TRIM(Data!O35) -> 0 | BK42: =TRIM(Data!P35) -> 0 | BM42: =TRIM(Data!Q35) -> 0 | BP42: =TRIM(Data!R35) -> 0 | BQ42: =TRIM(Data!S35) -> 0 | BR42: =TRIM(Data!T35) -> 0 | BV42: =TRIM(Data!U35) -> 0 | BX42: =TRIM(Data!V35) -> 0 | BY42: =TRIM(Data!W35) -> 0 | BZ42: =TRIM(Data!X35) -> 0 | CA42: =TRIM(Data!Y35) -> 0 | CB42: =TRIM(Data!Z35) -> 0 | CC42: =TRIM(Data!AA35) -> 0 | CD42: 418 | CE42: 1 Nov 2024 to 30 Nov 2024 | CF42: QUALITY HEALTHCARE MEDICAL CENTRE LIMITED | CG42: QHMS | CH42: GROUP | CI42: 9265486345 | CJ42: ENCTR | CK42: 3 | CL42: QHMS EMR | CM42: Local System | CN42: 25897 | CO42: 0 | CP42: 0 | CQ42: 0 | CR42: 25897 | CT42: 0 | CU42: 0 | CV42: 0 | CW42: 0 | CX42: 0 | CY42: 0 | CZ42: 0 | DA42: 0 | DB42: 0 | DC42: 0 | DD42: 0 | DE42: 0 | DG42: 25897 | DH42: 1 | DI42: 0 | DJ42: 0 | DK42: 0 | DL42: 0 | DM42: 0 | DN42: 0 | DO42: 0 | DP42: 0
A43: 1 Nov 2024 to 30 Nov 20242342444283RAD | B43: 1 Nov 2024 to 30 Nov 2024 | C43: MORDERN ASCENT LIMITED | D43: MORDERN ASCENT LIMITED | E43: SOLO | F43: 2342444283 | G43: RAD | H43: 3 | I43: RHI2 | J43: Local System | K43: 766 | L43: 0 | M43: 0 | N43: 75 | O43: 691 | Q43: 0 | R43: 0 | S43: 0 | T43: 0 | U43: 0 | V43: 0 | W43: 0 | X43: 0 | Y43: 0 | Z43: 0 | AA43: 0 | AB43: 0 | AD43: 691 | AE43: 0.9020887728 | AF43: 75 | AG43: 0.09791122715 | AH43: 0 | AI43: 0 | AJ43: 0 | AK43: 0 | AL43: 75 | AM43: 0 | AP43: Y | AQ43: 1 Nov 2024 to 30 Nov 20249265486345IMMU | AR43: =Data!A36 -> 2024-11-01 | AS43: =TRIM(Data!B36) -> QUALITY HEALTHCARE MEDICAL CENTRE LIMITED | AU43: =TRIM(Data!C36) -> GRP | AV43: =TRIM(Data!D36) -> 9265486345 | AW43: =TRIM(Data!E36) -> IMMU | AX43: =TRIM(Data!F36) -> 2 | AY43: =TRIM(Data!G36) -> QHMS EMR | AZ43: =TRIM(Data!H36) -> Local System | BA43: =TRIM(Data!I36) -> 3325 | BB43: =TRIM(Data!J36) -> 0 | BC43: =TRIM(Data!K36) -> 0 | BD43: =TRIM(Data!L36) -> 3325 | BE43: =TRIM(Data!M36) -> 0 | BI43: =TRIM(Data!N36) -> 0 | BJ43: =TRIM(Data!O36) -> 0 | BK43: =TRIM(Data!P36) -> 0 | BM43: =TRIM(Data!Q36) -> 0 | BP43: =TRIM(Data!R36) -> 0 | BQ43: =TRIM(Data!S36) -> 0 | BR43: =TRIM(Data!T36) -> 0 | BV43: =TRIM(Data!U36) -> 0 | BX43: =TRIM(Data!V36) -> 0 | BY43: =TRIM(Data!W36) -> 0 | BZ43: =TRIM(Data!X36) -> 0 | CA43: =TRIM(Data!Y36) -> 0 | CB43: =TRIM(Data!Z36) -> 0 | CC43: =TRIM(Data!AA36) -> 0 | CD43: 419 | CE43: 1 Nov 2024 to 30 Nov 2024 | CF43: QUALITY HEALTHCARE MEDICAL CENTRE LIMITED | CG43: QHMS | CH43: GROUP | CI43: 9265486345 | CJ43: IMMU | CK43: 2 | CL43: QHMS EMR | CM43: Local System | CN43: 3325 | CO43: 0 | CP43: 0 | CQ43: 3325 | CR43: 0 | CT43: 0 | CU43: 0 | CV43: 0 | CW43: 0 | CX43: 0 | CY43: 0 | CZ43: 0 | DA43: 0 | DB43: 0 | DC43: 0 | DD43: 0 | DE43: 0 | DG43: 0 | DH43: 0 | DI43: 0 | DJ43: 0 | DK43: 0 | DL43: 0 | DM43: 0 | DN43: 0 | DO43: 0 | DP43: 0
A44: 1 Nov 2024 to 30 Nov 20242381250555LABGEN | B44: 1 Nov 2024 to 30 Nov 2024 | C44: Pathlab Medical Laboratories Limited | D44: PATHLAB MED LAB LTD | E44: GROUP | F44: 2381250555 | G44: LABGEN | H44: 1 | I44: Local System | J44: Local System | K44: 708 | L44: 0 | M44: 708 | N44: 0 | O44: 0 | Q44: 0 | R44: 0 | S44: 0 | T44: 0 | U44: 0 | V44: 0 | W44: 0 | X44: 0 | Y44: 0 | Z44: 0 | AA44: 0 | AB44: 0 | AD44: 0 | AE44: 0 | AF44: 0 | AG44: 0 | AH44: 0 | AI44: 0 | AJ44: 0 | AK44: 0 | AL44: 0 | AM44: 0 | AP44: Y | AQ44: 1 Nov 2024 to 30 Nov 20249265486345AL1 | AR44: =Data!A37 -> 2024-11-01 | AS44: =TRIM(Data!B37) -> QUALITY HEALTHCARE MEDICAL CENTRE LIMITED | AU44: =TRIM(Data!C37) -> GRP | AV44: =TRIM(Data!D37) -> 9265486345 | AW44: =TRIM(Data!E37) -> AL1 | AX44: =TRIM(Data!F37) -> 3,2 | AY44: =TRIM(Data!G37) -> QHMS EMR | AZ44: =TRIM(Data!H37) -> Local System | BA44: =TRIM(Data!I37) -> 519 | BB44: =TRIM(Data!J37) -> 0 | BC44: =TRIM(Data!K37) -> 0 | BD44: =TRIM(Data!L37) -> 519 | BE44: =TRIM(Data!M37) -> 0 | BI44: =TRIM(Data!N37) -> 0 | BJ44: =TRIM(Data!O37) -> 0 | BK44: =TRIM(Data!P37) -> 494 | BM44: =TRIM(Data!Q37) -> 494 | BP44: =TRIM(Data!R37) -> 494 | BQ44: =TRIM(Data!S37) -> 0 | BR44: =TRIM(Data!T37) -> 0 | BV44: =TRIM(Data!U37) -> 0 | BX44: =TRIM(Data!V37) -> 0 | BY44: =TRIM(Data!W37) -> 0 | BZ44: =TRIM(Data!X37) -> 0 | CA44: =TRIM(Data!Y37) -> 0 | CB44: =TRIM(Data!Z37) -> 0 | CC44: =TRIM(Data!AA37) -> 0 | CD44: 417 | CE44: 1 Nov 2024 to 30 Nov 2024 | CF44: QUALITY HEALTHCARE MEDICAL CENTRE LIMITED | CG44: QHMS | CH44: GROUP | CI44: 9265486345 | CJ44: AL1 | CK44: 3 | CL44: QHMS EMR | CM44: Local System | CN44: 519 | CO44: 0 | CP44: 0 | CQ44: 519 | CR44: 0 | CT44: 0 | CU44: 0 | CV44: 0 | CW44: 0 | CX44: 494 | CY44: 0.951830443159923 | CZ44: 494 | DA44: 0 | DB44: 0 | DC44: 494 | DD44: 0 | DE44: 0 | DG44: 0 | DH44: 0 | DI44: 0 | DJ44: 0 | DK44: 0 | DL44: 0 | DM44: 0 | DN44: 0 | DO44: 0 | DP44: 0
A45: 1 Nov 2024 to 30 Nov 20242438744730ADR | B45: 1 Nov 2024 to 30 Nov 2024 | C45: DEPARTMENT OF HEALTH | D45: DH | E45: DH | F45: 2438744730 | G45: ADR | H45: 3 | I45: CIMS2 | J45: Local System | K45: 356 | L45: 0 | M45: 0 | N45: 57 | O45: 299 | Q45: 0 | R45: 0 | S45: 0 | T45: 0 | U45: 57 | V45: 0.1601123596 | W45: 57 | X45: 0 | Y45: 0 | Z45: 57 | AA45: 0 | AB45: 0 | AD45: 299 | AE45: 0.8398876404 | AF45: 0 | AG45: 0 | AH45: 0 | AI45: 0 | AJ45: 0 | AK45: 0 | AL45: 0 | AM45: 0 | AP45: Y | AQ45: 1 Nov 2024 to 30 Nov 20249761710951RAD | AR45: =Data!A38 -> 2024-11-01 | AS45: =TRIM(Data!B38) -> QUALITY HEALTHCARE MEDICAL CENTRE LIMITED | AU45: =TRIM(Data!C38) -> GRP | AV45: =TRIM(Data!D38) -> 9761710951 | AW45: =TRIM(Data!E38) -> RAD | AX45: =TRIM(Data!F38) -> 3 | AY45: =TRIM(Data!G38) -> RHI2_QHMS | AZ45: =TRIM(Data!H38) -> Local System | BA45: =TRIM(Data!I38) -> 879 | BB45: =TRIM(Data!J38) -> 0 | BC45: =TRIM(Data!K38) -> 0 | BD45: =TRIM(Data!L38) -> 0 | BE45: =TRIM(Data!M38) -> 879 | BI45: =TRIM(Data!N38) -> 0 | BJ45: =TRIM(Data!O38) -> 0 | BK45: =TRIM(Data!P38) -> 0 | BM45: =TRIM(Data!Q38) -> 0 | BP45: =TRIM(Data!R38) -> 0 | BQ45: =TRIM(Data!S38) -> 0 | BR45: =TRIM(Data!T38) -> 0 | BV45: =TRIM(Data!U38) -> 0 | BX45: =TRIM(Data!V38) -> 0 | BY45: =TRIM(Data!W38) -> 0 | BZ45: =TRIM(Data!X38) -> 0 | CA45: =TRIM(Data!Y38) -> 0 | CB45: =TRIM(Data!Z38) -> 0 | CC45: =TRIM(Data!AA38) -> 0 | CD45: 443 | CE45: 1 Nov 2024 to 30 Nov 2024 | CF45: QUALITY HEALTHCARE MEDICAL CENTRE LIMITED | CG45: QHMS | CH45: GROUP | CI45: 9761710951 | CJ45: RAD | CK45: 3 | CL45: RHI2_QHMS | CM45: Local System | CN45: 879 | CO45: 0 | CP45: 0 | CQ45: 0 | CR45: 879 | CT45: 0 | CU45: 0 | CV45: 0 | CW45: 0 | CX45: 0 | CY45: 0 | CZ45: 0 | DA45: 0 | DB45: 0 | DC45: 0 | DD45: 0 | DE45: 0 | DG45: 879 | DH45: 1 | DI45: 0 | DJ45: 0 | DK45: 0 | DL45: 0 | DM45: 0 | DN45: 0 | DO45: 0 | DP45: 0
A46: 1 Nov 2024 to 30 Nov 20242438744730AL1 | B46: 1 Nov 2024 to 30 Nov 2024 | C46: DEPARTMENT OF HEALTH | D46: DH | E46: DH | F46: 2438744730 | G46: AL1 | H46: 3 | I46: CIMS2 | J46: Local System | K46: 1435 | L46: 0 | M46: 0 | N46: 337 | O46: 1098 | Q46: 0 | R46: 0 | S46: 0 | T46: 0 | U46: 310 | V46: 0.2160278746 | W46: 310 | X46: 0 | Y46: 0 | Z46: 310 | AA46: 0 | AB46: 0 | AD46: 1098 | AE46: 0.7651567944 | AF46: 0 | AG46: 0 | AH46: 0 | AI46: 0 | AJ46: 0 | AK46: 0 | AL46: 0 | AM46: 0 | AP46: Y | AQ46: 1 Nov 2024 to 30 Nov 20243681219587IMMU | AR46: =Data!A39 -> 2024-11-01 | AS46: =TRIM(Data!B39) -> DEPARTMENT OF HEALTH COVID-19 VACCINATION PROGRAMME | AU46: =TRIM(Data!C39) -> DH | AV46: =TRIM(Data!D39) -> 3681219587 | AW46: =TRIM(Data!E39) -> IMMU | AX46: =TRIM(Data!F39) -> 3 | AY46: =TRIM(Data!G39) -> CIMS1 | AZ46: =TRIM(Data!H39) -> Local System | BA46: =TRIM(Data!I39) -> 54553 | BB46: =TRIM(Data!J39) -> 0 | BC46: =TRIM(Data!K39) -> 0 | BD46: =TRIM(Data!L39) -> 0 | BE46: =TRIM(Data!M39) -> 54553 | BI46: =TRIM(Data!N39) -> 0 | BJ46: =TRIM(Data!O39) -> 0 | BK46: =TRIM(Data!P39) -> 0 | BM46: =TRIM(Data!Q39) -> 0 | BP46: =TRIM(Data!R39) -> 0 | BQ46: =TRIM(Data!S39) -> 0 | BR46: =TRIM(Data!T39) -> 0 | BV46: =TRIM(Data!U39) -> 0 | BX46: =TRIM(Data!V39) -> 0 | BY46: =TRIM(Data!W39) -> 0 | BZ46: =TRIM(Data!X39) -> 0 | CA46: =TRIM(Data!Y39) -> 0 | CB46: =TRIM(Data!Z39) -> 0 | CC46: =TRIM(Data!AA39) -> 0 | CD46: 130 | CE46: 1 Nov 2024 to 30 Nov 2024 | CF46: Department of Health COVID-19 Vaccination Programme | CG46: DH COVID-19 VACCINE PROG. | CH46: DH | CI46: 3681219587 | CJ46: IMMU | CK46: 3 | CL46: Local System | CM46: Local System | CN46: 54553 | CO46: 0 | CP46: 0 | CQ46: 0 | CR46: 54553 | CT46: 0 | CU46: 0 | CV46: 0 | CW46: 0 | CX46: 0 | CY46: 0 | CZ46: 0 | DA46: 0 | DB46: 0 | DC46: 0 | DD46: 0 | DE46: 0 | DG46: 54553 | DH46: 1 | DI46: 0 | DJ46: 0 | DK46: 0 | DL46: 0 | DM46: 0 | DN46: 0 | DO46: 0 | DP46: 0
A47: 1 Nov 2024 to 30 Nov 20242438744730ENCTR | B47: 1 Nov 2024 to 30 Nov 2024 | C47: DEPARTMENT OF HEALTH | D47: DH | E47: DH | F47: 2438744730 | G47: ENCTR | H47: 3 | I47: CIMS2 | J47: Local System | K47: 528906 | L47: 0 | M47: 0 | N47: 0 | O47: 528906 | Q47: 0 | R47: 0 | S47: 0 | T47: 0 | U47: 0 | V47: 0 | W47: 0 | X47: 0 | Y47: 0 | Z47: 0 | AA47: 0 | AB47: 0 | AD47: 528906 | AE47: 1 | AF47: 0 | AG47: 0 | AH47: 0 | AI47: 0 | AJ47: 0 | AK47: 0 | AL47: 0 | AM47: 0 | AQ47: 1 Nov 2024 to 30 Nov 20248909436562LABGEN | AR47: =Data!A40 -> 2024-11-01 | AS47: =TRIM(Data!B40) -> HONG KONG ADVENTIST HOSPITAL - TSUEN WAN | AU47: =TRIM(Data!C40) -> PH | AV47: =TRIM(Data!D40) -> 8909436562 | AW47: =TRIM(Data!E40) -> LABGEN | AX47: =TRIM(Data!F40) -> 3 | AY47: =TRIM(Data!G40) -> TWAHLAAM | AZ47: =TRIM(Data!H40) -> Local System | BA47: =TRIM(Data!I40) -> 29522 | BB47: =TRIM(Data!J40) -> 0 | BC47: =TRIM(Data!K40) -> 0 | BD47: =TRIM(Data!L40) -> 1766 | BE47: =TRIM(Data!M40) -> 27756 | BI47: =TRIM(Data!N40) -> 0 | BJ47: =TRIM(Data!O40) -> 0 | BK47: =TRIM(Data!P40) -> 1767 | BM47: =TRIM(Data!Q40) -> 1767 | BP47: =TRIM(Data!R40) -> 1767 | BQ47: =TRIM(Data!S40) -> 0 | BR47: =TRIM(Data!T40) -> 0 | BV47: =TRIM(Data!U40) -> 0 | BX47: =TRIM(Data!V40) -> 0 | BY47: =TRIM(Data!W40) -> 0 | BZ47: =TRIM(Data!X40) -> 0 | CA47: =TRIM(Data!Y40) -> 0 | CB47: =TRIM(Data!Z40) -> 0 | CC47: =TRIM(Data!AA40) -> 0 | CD47: 388 | CE47: 1 Nov 2024 to 30 Nov 2024 | CF47: HONG KONG ADVENTIST HOSPITAL - TSUEN WAN | CG47: HK ADVENTIST - TW | CH47: PH | CI47: 8909436562 | CJ47: LABGEN | CK47: 3 | CL47: TWAHLAAM | CM47: Local System | CN47: 29522 | CO47: 0 | CP47: 0 | CQ47: 1766 | CR47: 27756 | CT47: 0 | CU47: 0 | CV47: 0 | CW47: 0 | CX47: 1767 | CY47: 0.059853668450647 | CZ47: 1767 | DA47: 0 | DB47: 0 | DC47: 1767 | DD47: 0 | DE47: 0 | DG47: 27756 | DH47: 0.940180204593185 | DI47: 0 | DJ47: 0 | DK47: 0 | DL47: 0 | DM47: 0 | DN47: 0 | DO47: 0 | DP47: 0
A48: 1 Nov 2024 to 30 Nov 20242438744730IMMU | B48: 1 Nov 2024 to 30 Nov 2024 | C48: DEPARTMENT OF HEALTH | D48: DH | E48: DH | F48: 2438744730 | G48: IMMU | H48: 3 | I48: CIMS2 | J48: Local System | K48: 222694 | L48: 0 | M48: 0 | N48: 29003 | O48: 193691 | Q48: 0 | R48: 0 | S48: 0 | T48: 0 | U48: 29005 | V48: 0.1302459878 | W48: 29005 | X48: 0 | Y48: 0 | Z48: 29005 | AA48: 0 | AB48: 0 | AD48: 193691 | AE48: 0.8697629932 | AF48: 0 | AG48: 0 | AH48: 0 | AI48: 0 | AJ48: 0 | AK48: 0 | AL48: 0 | AM48: 0 | AQ48: 1 Nov 2024 to 30 Nov 20248909436562RXD | AR48: =Data!A41 -> 2024-11-01 | AS48: =TRIM(Data!B41) -> HONG KONG ADVENTIST HOSPITAL - TSUEN WAN | AU48: =TRIM(Data!C41) -> PH | AV48: =TRIM(Data!D41) -> 8909436562 | AW48: =TRIM(Data!E41) -> RXD | AX48: =TRIM(Data!F41) -> 2 | AY48: =TRIM(Data!G41) -> TWAHLAAM | AZ48: =TRIM(Data!H41) -> Local System | BA48: =TRIM(Data!I41) -> 8697 | BB48: =TRIM(Data!J41) -> 0 | BC48: =TRIM(Data!K41) -> 0 | BD48: =TRIM(Data!L41) -> 8697 | BE48: =TRIM(Data!M41) -> 0 | BI48: =TRIM(Data!N41) -> 0 | BJ48: =TRIM(Data!O41) -> 0 | BK48: =TRIM(Data!P41) -> 0 | BM48: =TRIM(Data!Q41) -> 0 | BP48: =TRIM(Data!R41) -> 0 | BQ48: =TRIM(Data!S41) -> 0 | BR48: =TRIM(Data!T41) -> 0 | BV48: =TRIM(Data!U41) -> 0 | BX48: =TRIM(Data!V41) -> 0 | BY48: =TRIM(Data!W41) -> 0 | BZ48: =TRIM(Data!X41) -> 0 | CA48: =TRIM(Data!Y41) -> 0 | CB48: =TRIM(Data!Z41) -> 0 | CC48: =TRIM(Data!AA41) -> 0 | CD48: 390 | CE48: 1 Nov 2024 to 30 Nov 2024 | CF48: HONG KONG ADVENTIST HOSPITAL - TSUEN WAN | CG48: HK ADVENTIST - TW | CH48: PH | CI48: 8909436562 | CJ48: RXD | CK48: 2 | CL48: TWAHLAAM | CM48: Local System | CN48: 8697 | CO48: 0 | CP48: 0 | CQ48: 8697 | CR48: 0 | CT48: 0 | CU48: 0 | CV48: 0 | CW48: 0 | CX48: 0 | CY48: 0 | CZ48: 0 | DA48: 0 | DB48: 0 | DC48: 0 | DD48: 0 | DE48: 0 | DG48: 0 | DH48: 0 | DI48: 0 | DJ48: 0 | DK48: 0 | DL48: 0 | DM48: 0 | DN48: 0 | DO48: 0 | DP48: 0
A49: 1 Nov 2024 to 30 Nov 20242438744730LABAP | B49: 1 Nov 2024 to 30 Nov 2024 | C49: DEPARTMENT OF HEALTH | D49: DH | E49: DH | F49: 2438744730 | G49: LABAP | H49: 1 | I49: CIMS2 | J49: Local System | K49: 6695 | L49: 0 | M49: 6695 | N49: 0 | O49: 0 | Q49: 0 | R49: 0 | S49: 0 | T49: 0 | U49: 0 | V49: 0 | W49: 0 | X49: 0 | Y49: 0 | Z49: 0 | AA49: 0 | AB49: 0 | AD49: 0 | AE49: 0 | AF49: 0 | AG49: 0 | AH49: 0 | AI49: 0 | AJ49: 0 | AK49: 0 | AL49: 0 | AM49: 0 | AQ49: 1 Nov 2024 to 30 Nov 20248909436562ENCTR | AR49: =Data!A42 -> 2024-11-01 | AS49: =TRIM(Data!B42) -> HONG KONG ADVENTIST HOSPITAL - TSUEN WAN | AU49: =TRIM(Data!C42) -> PH | AV49: =TRIM(Data!D42) -> 8909436562 | AW49: =TRIM(Data!E42) -> ENCTR | AX49: =TRIM(Data!F42) -> 3 | AY49: =TRIM(Data!G42) -> TWAHLAAM | AZ49: =TRIM(Data!H42) -> Local System | BA49: =TRIM(Data!I42) -> 7550 | BB49: =TRIM(Data!J42) -> 0 | BC49: =TRIM(Data!K42) -> 0 | BD49: =TRIM(Data!L42) -> 0 | BE49: =TRIM(Data!M42) -> 7550 | BI49: =TRIM(Data!N42) -> 0 | BJ49: =TRIM(Data!O42) -> 0 | BK49: =TRIM(Data!P42) -> 0 | BM49: =TRIM(Data!Q42) -> 0 | BP49: =TRIM(Data!R42) -> 0 | BQ49: =TRIM(Data!S42) -> 0 | BR49: =TRIM(Data!T42) -> 0 | BV49: =TRIM(Data!U42) -> 0 | BX49: =TRIM(Data!V42) -> 0 | BY49: =TRIM(Data!W42) -> 0 | BZ49: =TRIM(Data!X42) -> 0 | CA49: =TRIM(Data!Y42) -> 0 | CB49: =TRIM(Data!Z42) -> 0 | CC49: =TRIM(Data!AA42) -> 0 | CD49: 386 | CE49: 1 Nov 2024 to 30 Nov 2024 | CF49: HONG KONG ADVENTIST HOSPITAL - TSUEN WAN | CG49: HK ADVENTIST - TW | CH49: PH | CI49: 8909436562 | CJ49: ENCTR | CK49: 3 | CL49: TWAHLAAM | CM49: Local System | CN49: 7550 | CO49: 0 | CP49: 0 | CQ49: 0 | CR49: 7550 | CT49: 0 | CU49: 0 | CV49: 0 | CW49: 0 | CX49: 0 | CY49: 0 | CZ49: 0 | DA49: 0 | DB49: 0 | DC49: 0 | DD49: 0 | DE49: 0 | DG49: 7550 | DH49: 1 | DI49: 0 | DJ49: 0 | DK49: 0 | DL49: 0 | DM49: 0 | DN49: 0 | DO49: 0 | DP49: 0
A50: 1 Nov 2024 to 30 Nov 20242438744730LABGEN | B50: 1 Nov 2024 to 30 Nov 2024 | C50: DEPARTMENT OF HEALTH | D50: DH | E50: DH | F50: 2438744730 | G50: LABGEN | H50: 1 | I50: CIMS2 | J50: Local System | K50: 17153 | L50: 0 | M50: 1326 | N50: 652 | O50: 15175 | Q50: 0 | R50: 0 | S50: 0 | T50: 0 | U50: 2019 | V50: 0.1177053577 | W50: 2019 | X50: 0 | Y50: 0 | Z50: 652 | AA50: 1367 | AB50: 0 | AD50: 15175 | AE50: 0.8846848948 | AF50: 0 | AG50: 0 | AH50: 0 | AI50: 0 | AJ50: 0 | AK50: 0 | AL50: 0 | AM50: 0 | AP50: Y | AQ50: 1 Nov 2024 to 30 Nov 20248909436562RAD | AR50: =Data!A43 -> 2024-11-01 | AS50: =TRIM(Data!B43) -> HONG KONG ADVENTIST HOSPITAL - TSUEN WAN | AU50: =TRIM(Data!C43) -> PH | AV50: =TRIM(Data!D43) -> 8909436562 | AW50: =TRIM(Data!E43) -> RAD | AX50: =TRIM(Data!F43) -> 3,2 | AY50: =TRIM(Data!G43) -> TWAHLAAM | AZ50: =TRIM(Data!H43) -> Local System | BA50: =TRIM(Data!I43) -> 3726 | BB50: =TRIM(Data!J43) -> 0 | BC50: =TRIM(Data!K43) -> 0 | BD50: =TRIM(Data!L43) -> 0 | BE50: =TRIM(Data!M43) -> 3726 | BI50: =TRIM(Data!N43) -> 0 | BJ50: =TRIM(Data!O43) -> 0 | BK50: =TRIM(Data!P43) -> 0 | BM50: =TRIM(Data!Q43) -> 0 | BP50: =TRIM(Data!R43) -> 0 | BQ50: =TRIM(Data!S43) -> 0 | BR50: =TRIM(Data!T43) -> 0 | BV50: =TRIM(Data!U43) -> 0 | BX50: =TRIM(Data!V43) -> 0 | BY50: =TRIM(Data!W43) -> 0 | BZ50: =TRIM(Data!X43) -> 0 | CA50: =TRIM(Data!Y43) -> 0 | CB50: =TRIM(Data!Z43) -> 0 | CC50: =TRIM(Data!AA43) -> 0 | CD50: 389 | CE50: 1 Nov 2024 to 30 Nov 2024 | CF50: HONG KONG ADVENTIST HOSPITAL - TSUEN WAN | CG50: HK ADVENTIST - TW | CH50: PH | CI50: 8909436562 | CJ50: RAD | CK50: 2 | CL50: TWAHLAAM | CM50: Local System | CN50: 3726 | CO50: 0 | CP50: 0 | CQ50: 0 | CR50: 3726 | CT50: 0 | CU50: 0 | CV50: 0 | CW50: 0 | CX50: 0 | CY50: 0 | CZ50: 0 | DA50: 0 | DB50: 0 | DC50: 0 | DD50: 0 | DE50: 0 | DG50: 3726 | DH50: 1 | DI50: 0 | DJ50: 0 | DK50: 0 | DL50: 0 | DM50: 0 | DN50: 0 | DO50: 0 | DP50: 0
A51: 1 Nov 2024 to 30 Nov 20242438744730LABMB | B51: 1 Nov 2024 to 30 Nov 2024 | C51: DEPARTMENT OF HEALTH | D51: DH | E51: DH | F51: 2438744730 | G51: LABMB | H51: 1 | I51: CIMS2 | J51: Local System | K51: 16594 | L51: 0 | M51: 16594 | N51: 0 | O51: 0 | Q51: 0 | R51: 0 | S51: 0 | T51: 0 | U51: 0 | V51: 0 | W51: 0 | X51: 0 | Y51: 0 | Z51: 0 | AA51: 0 | AB51: 0 | AD51: 0 | AE51: 0 | AF51: 0 | AG51: 0 | AH51: 0 | AI51: 0 | AJ51: 0 | AK51: 0 | AL51: 0 | AM51: 0 | AP51: Y | AQ51: 1 Nov 2024 to 30 Nov 20248909436562AL1 | AR51: =Data!A44 -> 2024-11-01 | AS51: =TRIM(Data!B44) -> HONG KONG ADVENTIST HOSPITAL - TSUEN WAN | AU51: =TRIM(Data!C44) -> PH | AV51: =TRIM(Data!D44) -> 8909436562 | AW51: =TRIM(Data!E44) -> AL1 | AX51: =TRIM(Data!F44) -> 3 | AY51: =TRIM(Data!G44) -> TWAHLAAM | AZ51: =TRIM(Data!H44) -> Adaptation | BA51: =TRIM(Data!I44) -> 783 | BB51: =TRIM(Data!J44) -> 0 | BC51: =TRIM(Data!K44) -> 0 | BD51: =TRIM(Data!L44) -> 185 | BE51: =TRIM(Data!M44) -> 598 | BI51: =TRIM(Data!N44) -> 0 | BJ51: =TRIM(Data!O44) -> 0 | BK51: =TRIM(Data!P44) -> 156 | BM51: =TRIM(Data!Q44) -> 156 | BP51: =TRIM(Data!R44) -> 156 | BQ51: =TRIM(Data!S44) -> 0 | BR51: =TRIM(Data!T44) -> 0 | BV51: =TRIM(Data!U44) -> 0 | BX51: =TRIM(Data!V44) -> 0 | BY51: =TRIM(Data!W44) -> 0 | BZ51: =TRIM(Data!X44) -> 0 | CA51: =TRIM(Data!Y44) -> 0 | CB51: =TRIM(Data!Z44) -> 0 | CC51: =TRIM(Data!AA44) -> 0 | CD51: 384 | CE51: 1 Nov 2024 to 30 Nov 2024 | CF51: HONG KONG ADVENTIST HOSPITAL - TSUEN WAN | CG51: HK ADVENTIST - TW | CH51: PH | CI51: 8909436562 | CJ51: AL1 | CK51: 3 | CL51: TWAHLAAM | CM51: Local System | CN51: 783 | CO51: 0 | CP51: 0 | CQ51: 185 | CR51: 598 | CT51: 0 | CU51: 0 | CV51: 0 | CW51: 0 | CX51: 156 | CY51: 0.199233716475096 | CZ51: 156 | DA51: 0 | DB51: 0 | DC51: 156 | DD51: 0 | DE51: 0 | DG51: 598 | DH51: 0.763729246487867 | DI51: 0 | DJ51: 0 | DK51: 0 | DL51: 0 | DM51: 0 | DN51: 0 | DO51: 0 | DP51: 0
A52: 1 Nov 2024 to 30 Nov 20242438744730OBS | B52: 1 Nov 2024 to 30 Nov 2024 | C52: DEPARTMENT OF HEALTH | D52: DH | E52: DH | F52: 2438744730 | G52: OBS | H52: 3 | I52: CIMS2 | J52: Local System | K52: 7249 | L52: 0 | M52: 0 | N52: 0 | O52: 7249 | Q52: 0 | R52: 0 | S52: 0 | T52: 0 | U52: 0 | V52: 0 | W52: 0 | X52: 0 | Y52: 0 | Z52: 0 | AA52: 0 | AB52: 0 | AD52: 7249 | AE52: 1 | AF52: 0 | AG52: 0 | AH52: 0 | AI52: 0 | AJ52: 0 | AK52: 0 | AL52: 0 | AM52: 0 | AQ52: 1 Nov 2024 to 30 Nov 20248909436562LABAP | AR52: =Data!A45 -> 2024-11-01 | AS52: =TRIM(Data!B45) -> HONG KONG ADVENTIST HOSPITAL - TSUEN WAN | AU52: =TRIM(Data!C45) -> PH | AV52: =TRIM(Data!D45) -> 8909436562 | AW52: =TRIM(Data!E45) -> LABAP | AX52: =TRIM(Data!F45) -> 1 | AY52: =TRIM(Data!G45) -> TWAHLAAM | AZ52: =TRIM(Data!H45) -> Local System | BA52: =TRIM(Data!I45) -> 511 | BB52: =TRIM(Data!J45) -> 1 | BC52: =TRIM(Data!K45) -> 510 | BD52: =TRIM(Data!L45) -> 0 | BE52: =TRIM(Data!M45) -> 0 | BI52: =TRIM(Data!N45) -> 0 | BJ52: =TRIM(Data!O45) -> 1 | BK52: =TRIM(Data!P45) -> 0 | BM52: =TRIM(Data!Q45) -> 0 | BP52: =TRIM(Data!R45) -> 0 | BQ52: =TRIM(Data!S45) -> 0 | BR52: =TRIM(Data!T45) -> 0 | BV52: =TRIM(Data!U45) -> 0 | BX52: =TRIM(Data!V45) -> 0 | BY52: =TRIM(Data!W45) -> 0 | BZ52: =TRIM(Data!X45) -> 0 | CA52: =TRIM(Data!Y45) -> 0 | CB52: =TRIM(Data!Z45) -> 0 | CC52: =TRIM(Data!AA45) -> 0 | CD52: 387 | CE52: 1 Nov 2024 to 30 Nov 2024 | CF52: HONG KONG ADVENTIST HOSPITAL - TSUEN WAN | CG52: HK ADVENTIST - TW | CH52: PH | CI52: 8909436562 | CJ52: LABAP | CK52: 1 | CL52: TWAHLAAM | CM52: Local System | CN52: 511 | CO52: 1 | CP52: 510 | CQ52: 0 | CR52: 0 | CT52: 1 | CU52: 0.00195694716242661 | CV52: 0 | CW52: 1 | CX52: 0 | CY52: 0 | CZ52: 0 | DA52: 0 | DB52: 0 | DC52: 0 | DD52: 0 | DE52: 0 | DG52: 0 | DH52: 0 | DI52: 0 | DJ52: 0 | DK52: 0 | DL52: 0 | DM52: 0 | DN52: 0 | DO52: 0 | DP52: 0
A53: 1 Nov 2024 to 30 Nov 20242438744730PROB | B53: 1 Nov 2024 to 30 Nov 2024 | C53: DEPARTMENT OF HEALTH | D53: DH | E53: DH | F53: 2438744730 | G53: PROB | H53: 3 | I53: CIMS2 | J53: Local System | K53: 117906 | L53: 2 | M53: 0 | N53: 15734 | O53: 102170 | Q53: 2 | R53: 1.696266517e-05 | S53: 2 | T53: 0 | U53: 15727 | V53: 0.1333859176 | W53: 15727 | X53: 0 | Y53: 0 | Z53: 15727 | AA53: 0 | AB53: 0 | AD53: 102170 | AE53: 0.8665377504 | AF53: 26 | AG53: 0.0002205146473 | AH53: 0 | AI53: 26 | AJ53: 0 | AK53: 0 | AL53: 0 | AM53: 0 | AP53: Y | AQ53: 1 Nov 2024 to 30 Nov 20248909436562ADR | AR53: =Data!A46 -> 2024-11-01 | AS53: =TRIM(Data!B46) -> HONG KONG ADVENTIST HOSPITAL - TSUEN WAN | AU53: =TRIM(Data!C46) -> PH | AV53: =TRIM(Data!D46) -> 8909436562 | AW53: =TRIM(Data!E46) -> ADR | AX53: =TRIM(Data!F46) -> 3 | AY53: =TRIM(Data!G46) -> TWAHLAAM | AZ53: =TRIM(Data!H46) -> Adaptation | BA53: =TRIM(Data!I46) -> 32 | BB53: =TRIM(Data!J46) -> 0 | BC53: =TRIM(Data!K46) -> 0 | BD53: =TRIM(Data!L46) -> 3 | BE53: =TRIM(Data!M46) -> 29 | BI53: =TRIM(Data!N46) -> 0 | BJ53: =TRIM(Data!O46) -> 0 | BK53: =TRIM(Data!P46) -> 3 | BM53: =TRIM(Data!Q46) -> 3 | BP53: =TRIM(Data!R46) -> 3 | BQ53: =TRIM(Data!S46) -> 0 | BR53: =TRIM(Data!T46) -> 0 | BV53: =TRIM(Data!U46) -> 0 | BX53: =TRIM(Data!V46) -> 0 | BY53: =TRIM(Data!W46) -> 0 | BZ53: =TRIM(Data!X46) -> 0 | CA53: =TRIM(Data!Y46) -> 0 | CB53: =TRIM(Data!Z46) -> 0 | CC53: =TRIM(Data!AA46) -> 0 | CD53: 383 | CE53: 1 Nov 2024 to 30 Nov 2024 | CF53: HONG KONG ADVENTIST HOSPITAL - TSUEN WAN | CG53: HK ADVENTIST - TW | CH53: PH | CI53: 8909436562 | CJ53: ADR | CK53: 3 | CL53: TWAHLAAM | CM53: Local System | CN53: 32 | CO53: 0 | CP53: 0 | CQ53: 3 | CR53: 29 | CT53: 0 | CU53: 0 | CV53: 0 | CW53: 0 | CX53: 3 | CY53: 0.09375 | CZ53: 3 | DA53: 0 | DB53: 0 | DC53: 3 | DD53: 0 | DE53: 0 | DG53: 29 | DH53: 0.90625 | DI53: 0 | DJ53: 0 | DK53: 0 | DL53: 0 | DM53: 0 | DN53: 0 | DO53: 0 | DP53: 0
A54: 1 Nov 2024 to 30 Nov 20242438744730PX | B54: 1 Nov 2024 to 30 Nov 2024 | C54: DEPARTMENT OF HEALTH | D54: DH | E54: DH | F54: 2438744730 | G54: PX | H54: 3 | I54: CIMS2 | J54: Local System | K54: 118544 | L54: 0 | M54: 0 | N54: 8922 | O54: 109622 | Q54: 0 | R54: 0 | S54: 0 | T54: 0 | U54: 6037 | V54: 0.05092623836 | W54: 6037 | X54: 0 | Y54: 0 | Z54: 6037 | AA54: 0 | AB54: 0 | AD54: 109622 | AE54: 0.9247368066 | AF54: 2907 | AG54: 0.02452254015 | AH54: 0 | AI54: 2907 | AJ54: 0 | AK54: 0 | AL54: 0 | AM54: 0 | AQ54: 1 Nov 2024 to 30 Nov 20248909436562BIRTH | AR54: =Data!A47 -> 2024-11-01 | AS54: =TRIM(Data!B47) -> HONG KONG ADVENTIST HOSPITAL - TSUEN WAN | AU54: =TRIM(Data!C47) -> PH | AV54: =TRIM(Data!D47) -> 8909436562 | AW54: =TRIM(Data!E47) -> BIRTH | AX54: =TRIM(Data!F47) -> 3 | AY54: =TRIM(Data!G47) -> TWAHLAAM | AZ54: =TRIM(Data!H47) -> Local System | BA54: =TRIM(Data!I47) -> 3 | BB54: =TRIM(Data!J47) -> 0 | BC54: =TRIM(Data!K47) -> 0 | BD54: =TRIM(Data!L47) -> 0 | BE54: =TRIM(Data!M47) -> 3 | BI54: =TRIM(Data!N47) -> 0 | BJ54: =TRIM(Data!O47) -> 0 | BK54: =TRIM(Data!P47) -> 0 | BM54: =TRIM(Data!Q47) -> 0 | BP54: =TRIM(Data!R47) -> 0 | BQ54: =TRIM(Data!S47) -> 0 | BR54: =TRIM(Data!T47) -> 0 | BV54: =TRIM(Data!U47) -> 0 | BX54: =TRIM(Data!V47) -> 0 | BY54: =TRIM(Data!W47) -> 0 | BZ54: =TRIM(Data!X47) -> 0 | CA54: =TRIM(Data!Y47) -> 0 | CB54: =TRIM(Data!Z47) -> 0 | CC54: =TRIM(Data!AA47) -> 0 | CD54: 385 | CE54: 1 Nov 2024 to 30 Nov 2024 | CF54: HONG KONG ADVENTIST HOSPITAL - TSUEN WAN | CG54: HK ADVENTIST - TW | CH54: PH | CI54: 8909436562 | CJ54: BIRTH | CK54: 3 | CL54: TWAHLAAM | CM54: Local System | CN54: 3 | CO54: 0 | CP54: 0 | CQ54: 0 | CR54: 3 | CT54: 0 | CU54: 0 | CV54: 0 | CW54: 0 | CX54: 0 | CY54: 0 | CZ54: 0 | DA54: 0 | DB54: 0 | DC54: 0 | DD54: 0 | DE54: 0 | DG54: 3 | DH54: 1 | DI54: 0 | DJ54: 0 | DK54: 0 | DL54: 0 | DM54: 0 | DN54: 0 | DO54: 0 | DP54: 0
A55: 1 Nov 2024 to 30 Nov 20242438744730RAD | B55: 1 Nov 2024 to 30 Nov 2024 | C55: DEPARTMENT OF HEALTH | D55: DH | E55: DH | F55: 2438744730 | G55: RAD | H55: 3 | I55: CIMS2 | J55: Local System | K55: 16220 | L55: 0 | M55: 0 | N55: 0 | O55: 16220 | Q55: 0 | R55: 0 | S55: 0 | T55: 0 | U55: 0 | V55: 0 | W55: 0 | X55: 0 | Y55: 0 | Z55: 0 | AA55: 0 | AB55: 0 | AD55: 16220 | AE55: 1 | AF55: 0 | AG55: 0 | AH55: 0 | AI55: 0 | AJ55: 0 | AK55: 0 | AL55: 0 | AM55: 0 | AP55: Y | AQ55: 1 Nov 2024 to 30 Nov 20249681600318ENCTR | AR55: =Data!A48 -> 2024-11-01 | AS55: =TRIM(Data!B48) -> DISTRICT HEALTH CENTRE-SHAM SHUI PO (SJS) | AU55: =TRIM(Data!C48) -> DHC | AV55: =TRIM(Data!D48) -> 9681600318 | AW55: =TRIM(Data!E48) -> ENCTR | AX55: =TRIM(Data!F48) -> 3 | AY55: =TRIM(Data!G48) -> DHCCMS | AZ55: =TRIM(Data!H48) -> Local System | BA55: =TRIM(Data!I48) -> 37123 | BB55: =TRIM(Data!J48) -> 0 | BC55: =TRIM(Data!K48) -> 0 | BD55: =TRIM(Data!L48) -> 0 | BE55: =TRIM(Data!M48) -> 37123 | BI55: =TRIM(Data!N48) -> 0 | BJ55: =TRIM(Data!O48) -> 0 | BK55: =TRIM(Data!P48) -> 0 | BM55: =TRIM(Data!Q48) -> 0 | BP55: =TRIM(Data!R48) -> 0 | BQ55: =TRIM(Data!S48) -> 0 | BR55: =TRIM(Data!T48) -> 0 | BV55: =TRIM(Data!U48) -> 0 | BX55: =TRIM(Data!V48) -> 0 | BY55: =TRIM(Data!W48) -> 0 | BZ55: =TRIM(Data!X48) -> 0 | CA55: =TRIM(Data!Y48) -> 0 | CB55: =TRIM(Data!Z48) -> 0 | CC55: =TRIM(Data!AA48) -> 0 | CD55: 438 | CE55: 1 Nov 2024 to 30 Nov 2024 | CF55: DISTRICT HEALTH CENTRE-SHAM SHUI PO (SJS) | CG55: DHC-SHAM SHUI PO | CH55: DHC | CI55: 9681600318 | CJ55: ENCTR | CK55: 3 | CL55: Local System | CM55: Local System | CN55: 37123 | CO55: 0 | CP55: 0 | CQ55: 0 | CR55: 37123 | CT55: 0 | CU55: 0 | CV55: 0 | CW55: 0 | CX55: 0 | CY55: 0 | CZ55: 0 | DA55: 0 | DB55: 0 | DC55: 0 | DD55: 0 | DE55: 0 | DG55: 37123 | DH55: 1 | DI55: 0 | DJ55: 0 | DK55: 0 | DL55: 0 | DM55: 0 | DN55: 0 | DO55: 0 | DP55: 0
A56: 1 Nov 2024 to 30 Nov 20242438744730REF | B56: 1 Nov 2024 to 30 Nov 2024 | C56: DEPARTMENT OF HEALTH | D56: DH | E56: DH | F56: 2438744730 | G56: REF | H56: 1 | I56: CIMS2 | J56: Local System | K56: 4620 | L56: 0 | M56: 4620 | N56: 0 | O56: 0 | Q56: 0 | R56: 0 | S56: 0 | T56: 0 | U56: 0 | V56: 0 | W56: 0 | X56: 0 | Y56: 0 | Z56: 0 | AA56: 0 | AB56: 0 | AD56: 0 | AE56: 0 | AF56: 0 | AG56: 0 | AH56: 0 | AI56: 0 | AJ56: 0 | AK56: 0 | AL56: 0 | AM56: 0 | AP56: Y | AQ56: 1 Nov 2024 to 30 Nov 20249681600318EPIS | AR56: =Data!A49 -> 2024-11-01 | AS56: =TRIM(Data!B49) -> DISTRICT HEALTH CENTRE-SHAM SHUI PO (SJS) | AU56: =TRIM(Data!C49) -> DHC | AV56: =TRIM(Data!D49) -> 9681600318 | AW56: =TRIM(Data!E49) -> EPIS | AX56: =TRIM(Data!F49) -> 1 | AY56: =TRIM(Data!G49) -> DHCCMS | AZ56: =TRIM(Data!H49) -> Local System | BA56: =TRIM(Data!I49) -> 8009 | BB56: =TRIM(Data!J49) -> 0 | BC56: =TRIM(Data!K49) -> 8009 | BD56: =TRIM(Data!L49) -> 0 | BE56: =TRIM(Data!M49) -> 0 | BI56: =TRIM(Data!N49) -> 0 | BJ56: =TRIM(Data!O49) -> 0 | BK56: =TRIM(Data!P49) -> 0 | BM56: =TRIM(Data!Q49) -> 0 | BP56: =TRIM(Data!R49) -> 0 | BQ56: =TRIM(Data!S49) -> 0 | BR56: =TRIM(Data!T49) -> 0 | BV56: =TRIM(Data!U49) -> 0 | BX56: =TRIM(Data!V49) -> 0 | BY56: =TRIM(Data!W49) -> 0 | BZ56: =TRIM(Data!X49) -> 0 | CA56: =TRIM(Data!Y49) -> 0 | CB56: =TRIM(Data!Z49) -> 0 | CC56: =TRIM(Data!AA49) -> 0 | CD56: 439 | CE56: 1 Nov 2024 to 30 Nov 2024 | CF56: DISTRICT HEALTH CENTRE-SHAM SHUI PO (SJS) | CG56: DHC-SHAM SHUI PO | CH56: DHC | CI56: 9681600318 | CJ56: EPIS | CK56: 1 | CL56: Local System | CM56: Local System | CN56: 8009 | CO56: 0 | CP56: 8009 | CQ56: 0 | CR56: 0 | CT56: 0 | CU56: 0 | CV56: 0 | CW56: 0 | CX56: 0 | CY56: 0 | CZ56: 0 | DA56: 0 | DB56: 0 | DC56: 0 | DD56: 0 | DE56: 0 | DG56: 0 | DH56: 0 | DI56: 0 | DJ56: 0 | DK56: 0 | DL56: 0 | DM56: 0 | DN56: 0 | DO56: 0 | DP56: 0
A57: 1 Nov 2024 to 30 Nov 20242438744730RXD | B57: 1 Nov 2024 to 30 Nov 2024 | C57: DEPARTMENT OF HEALTH | D57: DH | E57: DH | F57: 2438744730 | G57: RXD | H57: 2 | I57: CIMS2 | J57: Local System | K57: 99696 | L57: 0 | M57: 0 | N57: 99696 | O57: 0 | Q57: 0 | R57: 0 | S57: 0 | T57: 0 | U57: 0 | V57: 0 | W57: 0 | X57: 0 | Y57: 0 | Z57: 0 | AA57: 0 | AB57: 0 | AD57: 0 | AE57: 0 | AF57: 0 | AG57: 0 | AH57: 0 | AI57: 0 | AJ57: 0 | AK57: 0 | AL57: 0 | AM57: 0 | AP57: Y | AQ57: 1 Nov 2024 to 30 Nov 20249681600318AL1 | AR57: =Data!A50 -> 2024-11-01 | AS57: =TRIM(Data!B50) -> DISTRICT HEALTH CENTRE-SHAM SHUI PO (SJS) | AU57: =TRIM(Data!C50) -> DHC | AV57: =TRIM(Data!D50) -> 9681600318 | AW57: =TRIM(Data!E50) -> AL1 | AX57: =TRIM(Data!F50) -> 3 | AY57: =TRIM(Data!G50) -> DHCCMS | AZ57: =TRIM(Data!H50) -> Local System | BA57: =TRIM(Data!I50) -> 13 | BB57: =TRIM(Data!J50) -> 0 | BC57: =TRIM(Data!K50) -> 0 | BD57: =TRIM(Data!L50) -> 2 | BE57: =TRIM(Data!M50) -> 11 | BI57: =TRIM(Data!N50) -> 0 | BJ57: =TRIM(Data!O50) -> 0 | BK57: =TRIM(Data!P50) -> 1 | BM57: =TRIM(Data!Q50) -> 1 | BP57: =TRIM(Data!R50) -> 1 | BQ57: =TRIM(Data!S50) -> 0 | BR57: =TRIM(Data!T50) -> 0 | BV57: =TRIM(Data!U50) -> 0 | BX57: =TRIM(Data!V50) -> 0 | BY57: =TRIM(Data!W50) -> 0 | BZ57: =TRIM(Data!X50) -> 0 | CA57: =TRIM(Data!Y50) -> 0 | CB57: =TRIM(Data!Z50) -> 0 | CC57: =TRIM(Data!AA50) -> 0 | CD57: 437 | CE57: 1 Nov 2024 to 30 Nov 2024 | CF57: DISTRICT HEALTH CENTRE-SHAM SHUI PO (SJS) | CG57: DHC-SHAM SHUI PO | CH57: DHC | CI57: 9681600318 | CJ57: AL1 | CK57: 3 | CL57: Local System | CM57: Local System | CN57: 13 | CO57: 0 | CP57: 0 | CQ57: 2 | CR57: 11 | CT57: 0 | CU57: 0 | CV57: 0 | CW57: 0 | CX57: 1 | CY57: 0.0769230769230769 | CZ57: 1 | DA57: 0 | DB57: 0 | DC57: 1 | DD57: 0 | DE57: 0 | DG57: 11 | DH57: 0.846153846153846 | DI57: 0 | DJ57: 0 | DK57: 0 | DL57: 0 | DM57: 0 | DN57: 0 | DO57: 0 | DP57: 0
A58: 1 Nov 2024 to 30 Nov 20242438744730RXO | B58: 1 Nov 2024 to 30 Nov 2024 | C58: DEPARTMENT OF HEALTH | D58: DH | E58: DH | F58: 2438744730 | G58: RXO | H58: 3 | I58: CIMS2 | J58: Local System | K58: 154299 | L58: 0 | M58: 0 | N58: 53632 | O58: 100667 | Q58: 0 | R58: 0 | S58: 0 | T58: 0 | U58: 53860 | V58: 0.3490625344 | W58: 53860 | X58: 0 | Y58: 0 | Z58: 53860 | AA58: 0 | AB58: 0 | AD58: 100667 | AE58: 0.6524151161 | AF58: 5 | AG58: 3.240461701e-05 | AH58: 0 | AI58: 0 | AJ58: 0 | AK58: 5 | AL58: 0 | AM58: 0 | AP58: Y | AQ58: 1 Nov 2024 to 30 Nov 20246303033042ENCTR | AR58: =Data!A51 -> 2024-11-01 | AS58: =TRIM(Data!B51) -> DISTRICT HEALTH CENTRE-TUEN MUN (ELCHK) | AU58: =TRIM(Data!C51) -> DHC | AV58: =TRIM(Data!D51) -> 6303033042 | AW58: =TRIM(Data!E51) -> ENCTR | AX58: =TRIM(Data!F51) -> 3 | AY58: =TRIM(Data!G51) -> DHCCMS | AZ58: =TRIM(Data!H51) -> Local System | BA58: =TRIM(Data!I51) -> 26635 | BB58: =TRIM(Data!J51) -> 0 | BC58: =TRIM(Data!K51) -> 0 | BD58: =TRIM(Data!L51) -> 0 | BE58: =TRIM(Data!M51) -> 26635 | BI58: =TRIM(Data!N51) -> 0 | BJ58: =TRIM(Data!O51) -> 0 | BK58: =TRIM(Data!P51) -> 0 | BM58: =TRIM(Data!Q51) -> 0 | BP58: =TRIM(Data!R51) -> 0 | BQ58: =TRIM(Data!S51) -> 0 | BR58: =TRIM(Data!T51) -> 0 | BV58: =TRIM(Data!U51) -> 0 | BX58: =TRIM(Data!V51) -> 0 | BY58: =TRIM(Data!W51) -> 0 | BZ58: =TRIM(Data!X51) -> 0 | CA58: =TRIM(Data!Y51) -> 0 | CB58: =TRIM(Data!Z51) -> 0 | CC58: =TRIM(Data!AA51) -> 0 | CD58: 258 | CE58: 1 Nov 2024 to 30 Nov 2024 | CF58: DISTRICT HEALTH CENTRE-TUEN MUN (ELCHK) | CG58: DHC-TUEN MUN-CC | CH58: DHC | CI58: 6303033042 | CJ58: ENCTR | CK58: 3 | CL58: Local System | CM58: Local System | CN58: 26635 | CO58: 0 | CP58: 0 | CQ58: 0 | CR58: 26635 | CT58: 0 | CU58: 0 | CV58: 0 | CW58: 0 | CX58: 0 | CY58: 0 | CZ58: 0 | DA58: 0 | DB58: 0 | DC58: 0 | DD58: 0 | DE58: 0 | DG58: 26635 | DH58: 1 | DI58: 0 | DJ58: 0 | DK58: 0 | DL58: 0 | DM58: 0 | DN58: 0 | DO58: 0 | DP58: 0
A59: 1 Nov 2024 to 30 Nov 20242548616569ENCTR | B59: 1 Nov 2024 to 30 Nov 2024 | C59: DHC EXPRESS-KOWLOON CITY (LOKSINTONG) | D59: DHC EXPRESS-KC-CC | E59: DHC | F59: 2548616569 | G59: ENCTR | H59: 3 | I59: DHCCMS | J59: Local System | K59: 3890 | L59: 0 | M59: 0 | N59: 0 | O59: 3890 | Q59: 0 | R59: 0 | S59: 0 | T59: 0 | U59: 0 | V59: 0 | W59: 0 | X59: 0 | Y59: 0 | Z59: 0 | AA59: 0 | AB59: 0 | AD59: 3890 | AE59: 1 | AF59: 0 | AG59: 0 | AH59: 0 | AI59: 0 | AJ59: 0 | AK59: 0 | AL59: 0 | AM59: 0 | AP59: Y | AQ59: 1 Nov 2024 to 30 Nov 20246303033042EPIS | AR59: =Data!A52 -> 2024-11-01 | AS59: =TRIM(Data!B52) -> DISTRICT HEALTH CENTRE-TUEN MUN (ELCHK) | AU59: =TRIM(Data!C52) -> DHC | AV59: =TRIM(Data!D52) -> 6303033042 | AW59: =TRIM(Data!E52) -> EPIS | AX59: =TRIM(Data!F52) -> 1 | AY59: =TRIM(Data!G52) -> DHCCMS | AZ59: =TRIM(Data!H52) -> Local System | BA59: =TRIM(Data!I52) -> 9739 | BB59: =TRIM(Data!J52) -> 0 | BC59: =TRIM(Data!K52) -> 9739 | BD59: =TRIM(Data!L52) -> 0 | BE59: =TRIM(Data!M52) -> 0 | BI59: =TRIM(Data!N52) -> 0 | BJ59: =TRIM(Data!O52) -> 0 | BK59: =TRIM(Data!P52) -> 0 | BM59: =TRIM(Data!Q52) -> 0 | BP59: =TRIM(Data!R52) -> 0 | BQ59: =TRIM(Data!S52) -> 0 | BR59: =TRIM(Data!T52) -> 0 | BV59: =TRIM(Data!U52) -> 0 | BX59: =TRIM(Data!V52) -> 0 | BY59: =TRIM(Data!W52) -> 0 | BZ59: =TRIM(Data!X52) -> 0 | CA59: =TRIM(Data!Y52) -> 0 | CB59: =TRIM(Data!Z52) -> 0 | CC59: =TRIM(Data!AA52) -> 0 | CD59: 259 | CE59: 1 Nov 2024 to 30 Nov 2024 | CF59: DISTRICT HEALTH CENTRE-TUEN MUN (ELCHK) | CG59: DHC-TUEN MUN-CC | CH59: DHC | CI59: 6303033042 | CJ59: EPIS | CK59: 1 | CL59: Local System | CM59: Local System | CN59: 9739 | CO59: 0 | CP59: 9739 | CQ59: 0 | CR59: 0 | CT59: 0 | CU59: 0 | CV59: 0 | CW59: 0 | CX59: 0 | CY59: 0 | CZ59: 0 | DA59: 0 | DB59: 0 | DC59: 0 | DD59: 0 | DE59: 0 | DG59: 0 | DH59: 0 | DI59: 0 | DJ59: 0 | DK59: 0 | DL59: 0 | DM59: 0 | DN59: 0 | DO59: 0 | DP59: 0
A60: 1 Nov 2024 to 30 Nov 20242548616569EPIS | B60: 1 Nov 2024 to 30 Nov 2024 | C60: DHC EXPRESS-KOWLOON CITY (LOKSINTONG) | D60: DHC EXPRESS-KC-CC | E60: DHC | F60: 2548616569 | G60: EPIS | H60: 1 | I60: DHCCMS | J60: Local System | K60: 2337 | L60: 0 | M60: 2337 | N60: 0 | O60: 0 | Q60: 0 | R60: 0 | S60: 0 | T60: 0 | U60: 0 | V60: 0 | W60: 0 | X60: 0 | Y60: 0 | Z60: 0 | AA60: 0 | AB60: 0 | AD60: 0 | AE60: 0 | AF60: 0 | AG60: 0 | AH60: 0 | AI60: 0 | AJ60: 0 | AK60: 0 | AL60: 0 | AM60: 0 | AP60: Y | AQ60: 1 Nov 2024 to 30 Nov 20246303033042AL1 | AR60: =Data!A53 -> 2024-11-01 | AS60: =TRIM(Data!B53) -> DISTRICT HEALTH CENTRE-TUEN MUN (ELCHK) | AU60: =TRIM(Data!C53) -> DHC | AV60: =TRIM(Data!D53) -> 6303033042 | AW60: =TRIM(Data!E53) -> AL1 | AX60: =TRIM(Data!F53) -> 3 | AY60: =TRIM(Data!G53) -> DHCCMS | AZ60: =TRIM(Data!H53) -> Local System | BA60: =TRIM(Data!I53) -> 15 | BB60: =TRIM(Data!J53) -> 0 | BC60: =TRIM(Data!K53) -> 0 | BD60: =TRIM(Data!L53) -> 4 | BE60: =TRIM(Data!M53) -> 11 | BI60: =TRIM(Data!N53) -> 0 | BJ60: =TRIM(Data!O53) -> 0 | BK60: =TRIM(Data!P53) -> 4 | BM60: =TRIM(Data!Q53) -> 4 | BP60: =TRIM(Data!R53) -> 4 | BQ60: =TRIM(Data!S53) -> 0 | BR60: =TRIM(Data!T53) -> 0 | BV60: =TRIM(Data!U53) -> 0 | BX60: =TRIM(Data!V53) -> 0 | BY60: =TRIM(Data!W53) -> 0 | BZ60: =TRIM(Data!X53) -> 0 | CA60: =TRIM(Data!Y53) -> 0 | CB60: =TRIM(Data!Z53) -> 0 | CC60: =TRIM(Data!AA53) -> 0 | CD60: 257 | CE60: 1 Nov 2024 to 30 Nov 2024 | CF60: DISTRICT HEALTH CENTRE-TUEN MUN (ELCHK) | CG60: DHC-TUEN MUN-CC | CH60: DHC | CI60: 6303033042 | CJ60: AL1 | CK60: 3 | CL60: Local System | CM60: Local System | CN60: 15 | CO60: 0 | CP60: 0 | CQ60: 4 | CR60: 11 | CT60: 0 | CU60: 0 | CV60: 0 | CW60: 0 | CX60: 4 | CY60: 0.266666666666667 | CZ60: 4 | DA60: 0 | DB60: 0 | DC60: 4 | DD60: 0 | DE60: 0 | DG60: 11 | DH60: 0.733333333333333 | DI60: 0 | DJ60: 0 | DK60: 0 | DL60: 0 | DM60: 0 | DN60: 0 | DO60: 0 | DP60: 0
A61: 1 Nov 2024 to 30 Nov 20242732778448RAD | B61: 1 Nov 2024 to 30 Nov 2024 | C61: CONCORDE DIAGNOSTICS LIMITED | D61: CONCORDE DIAGNOSTICS LTD | E61: SOLO | F61: 2732778448 | G61: RAD | H61: 3 | I61: RHI2 | J61: Local System | K61: 3 | L61: 0 | M61: 0 | N61: 0 | O61: 3 | Q61: 0 | R61: 0 | S61: 0 | T61: 0 | U61: 0 | V61: 0 | W61: 0 | X61: 0 | Y61: 0 | Z61: 0 | AA61: 0 | AB61: 0 | AD61: 3 | AE61: 1 | AF61: 0 | AG61: 0 | AH61: 0 | AI61: 0 | AJ61: 0 | AK61: 0 | AL61: 0 | AM61: 0 | AP61: Y | AQ61: 1 Nov 2024 to 30 Nov 20246303033042ADR | AR61: =Data!A54 -> 2024-11-01 | AS61: =TRIM(Data!B54) -> DISTRICT HEALTH CENTRE-TUEN MUN (ELCHK) | AU61: =TRIM(Data!C54) -> DHC | AV61: =TRIM(Data!D54) -> 6303033042 | AW61: =TRIM(Data!E54) -> ADR | AX61: =TRIM(Data!F54) -> 3 | AY61: =TRIM(Data!G54) -> DHCCMS | AZ61: =TRIM(Data!H54) -> Local System | BA61: =TRIM(Data!I54) -> 11 | BB61: =TRIM(Data!J54) -> 0 | BC61: =TRIM(Data!K54) -> 0 | BD61: =TRIM(Data!L54) -> 1 | BE61: =TRIM(Data!M54) -> 10 | BI61: =TRIM(Data!N54) -> 0 | BJ61: =TRIM(Data!O54) -> 0 | BK61: =TRIM(Data!P54) -> 1 | BM61: =TRIM(Data!Q54) -> 1 | BP61: =TRIM(Data!R54) -> 1 | BQ61: =TRIM(Data!S54) -> 0 | BR61: =TRIM(Data!T54) -> 0 | BV61: =TRIM(Data!U54) -> 0 | BX61: =TRIM(Data!V54) -> 0 | BY61: =TRIM(Data!W54) -> 0 | BZ61: =TRIM(Data!X54) -> 0 | CA61: =TRIM(Data!Y54) -> 0 | CB61: =TRIM(Data!Z54) -> 0 | CC61: =TRIM(Data!AA54) -> 0 | CD61: 256 | CE61: 1 Nov 2024 to 30 Nov 2024 | CF61: DISTRICT HEALTH CENTRE-TUEN MUN (ELCHK) | CG61: DHC-TUEN MUN-CC | CH61: DHC | CI61: 6303033042 | CJ61: ADR | CK61: 3 | CL61: Local System | CM61: Local System | CN61: 11 | CO61: 0 | CP61: 0 | CQ61: 1 | CR61: 10 | CT61: 0 | CU61: 0 | CV61: 0 | CW61: 0 | CX61: 1 | CY61: 0.0909090909090909 | CZ61: 1 | DA61: 0 | DB61: 0 | DC61: 1 | DD61: 0 | DE61: 0 | DG61: 10 | DH61: 0.909090909090909 | DI61: 0 | DJ61: 0 | DK61: 0 | DL61: 0 | DM61: 0 | DN61: 0 | DO61: 0 | DP61: 0
A62: 1 Nov 2024 to 30 Nov 20242822145488CMPROB | B62: 1 Nov 2024 to 30 Nov 2024 | C62: Man Yee (TCM) Medical Clinic Limited | D62: MAN YEE (TCM) | E62: GROUP | F62: 2822145488 | G62: CMPROB | H62: 3 | I62: Local System | J62: EC Connect | K62: 1 | L62: 0 | M62: 0 | N62: 0 | O62: 1 | Q62: 0 | R62: 0 | S62: 0 | T62: 0 | U62: 0 | V62: 0 | W62: 0 | X62: 0 | Y62: 0 | Z62: 0 | AA62: 0 | AB62: 0 | AD62: 1 | AE62: 1 | AF62: 0 | AG62: 0 | AH62: 0 | AI62: 0 | AJ62: 0 | AK62: 0 | AL62: 0 | AM62: 0 | AP62: Y | AQ62: 1 Nov 2024 to 30 Nov 20244437392776ENCTR | AR62: =Data!A55 -> 2024-11-01 | AS62: =TRIM(Data!B55) -> DISTRICT HEALTH CENTRE-WONG TAI SIN (HKSKHWCL) | AU62: =TRIM(Data!C55) -> DHC | AV62: =TRIM(Data!D55) -> 4437392776 | AW62: =TRIM(Data!E55) -> ENCTR | AX62: =TRIM(Data!F55) -> 3 | AY62: =TRIM(Data!G55) -> DHCCMS | AZ62: =TRIM(Data!H55) -> Local System | BA62: =TRIM(Data!I55) -> 23272 | BB62: =TRIM(Data!J55) -> 0 | BC62: =TRIM(Data!K55) -> 0 | BD62: =TRIM(Data!L55) -> 0 | BE62: =TRIM(Data!M55) -> 23272 | BI62: =TRIM(Data!N55) -> 0 | BJ62: =TRIM(Data!O55) -> 0 | BK62: =TRIM(Data!P55) -> 0 | BM62: =TRIM(Data!Q55) -> 0 | BP62: =TRIM(Data!R55) -> 0 | BQ62: =TRIM(Data!S55) -> 0 | BR62: =TRIM(Data!T55) -> 0 | BV62: =TRIM(Data!U55) -> 0 | BX62: =TRIM(Data!V55) -> 0 | BY62: =TRIM(Data!W55) -> 0 | BZ62: =TRIM(Data!X55) -> 0 | CA62: =TRIM(Data!Y55) -> 0 | CB62: =TRIM(Data!Z55) -> 0 | CC62: =TRIM(Data!AA55) -> 0 | CD62: 153 | CE62: 1 Nov 2024 to 30 Nov 2024 | CF62: DISTRICT HEALTH CENTRE-WONG TAI SIN (HKSKHWCL) | CG62: DHC-WONG TAI SIN | CH62: DHC | CI62: 4437392776 | CJ62: ENCTR | CK62: 3 | CL62: Local System | CM62: Local System | CN62: 23272 | CO62: 0 | CP62: 0 | CQ62: 0 | CR62: 23272 | CT62: 0 | CU62: 0 | CV62: 0 | CW62: 0 | CX62: 0 | CY62: 0 | CZ62: 0 | DA62: 0 | DB62: 0 | DC62: 0 | DD62: 0 | DE62: 0 | DG62: 23272 | DH62: 1 | DI62: 0 | DJ62: 0 | DK62: 0 | DL62: 0 | DM62: 0 | DN62: 0 | DO62: 0 | DP62: 0
A63: 1 Nov 2024 to 30 Nov 20242822145488CMPX | B63: 1 Nov 2024 to 30 Nov 2024 | C63: Man Yee (TCM) Medical Clinic Limited | D63: MAN YEE (TCM) | E63: GROUP | F63: 2822145488 | G63: CMPX | H63: 3 | I63: Local System | J63: EC Connect | K63: 1 | L63: 0 | M63: 0 | N63: 0 | O63: 1 | Q63: 0 | R63: 0 | S63: 0 | T63: 0 | U63: 0 | V63: 0 | W63: 0 | X63: 0 | Y63: 0 | Z63: 0 | AA63: 0 | AB63: 0 | AD63: 1 | AE63: 1 | AF63: 0 | AG63: 0 | AH63: 0 | AI63: 0 | AJ63: 0 | AK63: 0 | AL63: 0 | AM63: 0 | AP63: Y | AQ63: 1 Nov 2024 to 30 Nov 20244437392776EPIS | AR63: =Data!A56 -> 2024-11-01 | AS63: =TRIM(Data!B56) -> DISTRICT HEALTH CENTRE-WONG TAI SIN (HKSKHWCL) | AU63: =TRIM(Data!C56) -> DHC | AV63: =TRIM(Data!D56) -> 4437392776 | AW63: =TRIM(Data!E56) -> EPIS | AX63: =TRIM(Data!F56) -> 1 | AY63: =TRIM(Data!G56) -> DHCCMS | AZ63: =TRIM(Data!H56) -> Local System | BA63: =TRIM(Data!I56) -> 10589 | BB63: =TRIM(Data!J56) -> 0 | BC63: =TRIM(Data!K56) -> 10589 | BD63: =TRIM(Data!L56) -> 0 | BE63: =TRIM(Data!M56) -> 0 | BI63: =TRIM(Data!N56) -> 0 | BJ63: =TRIM(Data!O56) -> 0 | BK63: =TRIM(Data!P56) -> 0 | BM63: =TRIM(Data!Q56) -> 0 | BP63: =TRIM(Data!R56) -> 0 | BQ63: =TRIM(Data!S56) -> 0 | BR63: =TRIM(Data!T56) -> 0 | BV63: =TRIM(Data!U56) -> 0 | BX63: =TRIM(Data!V56) -> 0 | BY63: =TRIM(Data!W56) -> 0 | BZ63: =TRIM(Data!X56) -> 0 | CA63: =TRIM(Data!Y56) -> 0 | CB63: =TRIM(Data!Z56) -> 0 | CC63: =TRIM(Data!AA56) -> 0 | CD63: 154 | CE63: 1 Nov 2024 to 30 Nov 2024 | CF63: DISTRICT HEALTH CENTRE-WONG TAI SIN (HKSKHWCL) | CG63: DHC-WONG TAI SIN | CH63: DHC | CI63: 4437392776 | CJ63: EPIS | CK63: 1 | CL63: Local System | CM63: Local System | CN63: 10589 | CO63: 0 | CP63: 10589 | CQ63: 0 | CR63: 0 | CT63: 0 | CU63: 0 | CV63: 0 | CW63: 0 | CX63: 0 | CY63: 0 | CZ63: 0 | DA63: 0 | DB63: 0 | DC63: 0 | DD63: 0 | DE63: 0 | DG63: 0 | DH63: 0 | DI63: 0 | DJ63: 0 | DK63: 0 | DL63: 0 | DM63: 0 | DN63: 0 | DO63: 0 | DP63: 0
A64: 1 Nov 2024 to 30 Nov 20242822145488ENCTR | B64: 1 Nov 2024 to 30 Nov 2024 | C64: Man Yee (TCM) Medical Clinic Limited | D64: MAN YEE (TCM) | E64: GROUP | F64: 2822145488 | G64: ENCTR | H64: 3 | I64: Local System | J64: Local System | K64: 2 | L64: 0 | M64: 0 | N64: 0 | O64: 2 | Q64: 0 | R64: 0 | S64: 0 | T64: 0 | U64: 0 | V64: 0 | W64: 0 | X64: 0 | Y64: 0 | Z64: 0 | AA64: 0 | AB64: 0 | AD64: 2 | AE64: 1 | AF64: 0 | AG64: 0 | AH64: 0 | AI64: 0 | AJ64: 0 | AK64: 0 | AL64: 0 | AM64: 0 | AP64: Y | AQ64: 1 Nov 2024 to 30 Nov 20244437392776AL1 | AR64: =Data!A57 -> 2024-11-01 | AS64: =TRIM(Data!B57) -> DISTRICT HEALTH CENTRE-WONG TAI SIN (HKSKHWCL) | AU64: =TRIM(Data!C57) -> DHC | AV64: =TRIM(Data!D57) -> 4437392776 | AW64: =TRIM(Data!E57) -> AL1 | AX64: =TRIM(Data!F57) -> 3 | AY64: =TRIM(Data!G57) -> DHCCMS | AZ64: =TRIM(Data!H57) -> Local System | BA64: =TRIM(Data!I57) -> 13 | BB64: =TRIM(Data!J57) -> 0 | BC64: =TRIM(Data!K57) -> 0 | BD64: =TRIM(Data!L57) -> 2 | BE64: =TRIM(Data!M57) -> 11 | BI64: =TRIM(Data!N57) -> 0 | BJ64: =TRIM(Data!O57) -> 0 | BK64: =TRIM(Data!P57) -> 2 | BM64: =TRIM(Data!Q57) -> 2 | BP64: =TRIM(Data!R57) -> 2 | BQ64: =TRIM(Data!S57) -> 0 | BR64: =TRIM(Data!T57) -> 0 | BV64: =TRIM(Data!U57) -> 0 | BX64: =TRIM(Data!V57) -> 0 | BY64: =TRIM(Data!W57) -> 0 | BZ64: =TRIM(Data!X57) -> 0 | CA64: =TRIM(Data!Y57) -> 0 | CB64: =TRIM(Data!Z57) -> 0 | CC64: =TRIM(Data!AA57) -> 0 | CD64: 152 | CE64: 1 Nov 2024 to 30 Nov 2024 | CF64: DISTRICT HEALTH CENTRE-WONG TAI SIN (HKSKHWCL) | CG64: DHC-WONG TAI SIN | CH64: DHC | CI64: 4437392776 | CJ64: AL1 | CK64: 3 | CL64: Local System | CM64: Local System | CN64: 13 | CO64: 0 | CP64: 0 | CQ64: 2 | CR64: 11 | CT64: 0 | CU64: 0 | CV64: 0 | CW64: 0 | CX64: 2 | CY64: 0.153846153846154 | CZ64: 2 | DA64: 0 | DB64: 0 | DC64: 2 | DD64: 0 | DE64: 0 | DG64: 11 | DH64: 0.846153846153846 | DI64: 0 | DJ64: 0 | DK64: 0 | DL64: 0 | DM64: 0 | DN64: 0 | DO64: 0 | DP64: 0
A65: 1 Nov 2024 to 30 Nov 20242825508730ENCTR | B65: 1 Nov 2024 to 30 Nov 2024 | C65: DR LEUNG KAM FUNG | D65: DR LEUNG KAM FUNG | E65: SOLO | F65: 2825508730 | G65: ENCTR | H65: 3 | I65: ClinicSolution | J65: Local System | K65: 71 | L65: 0 | M65: 0 | N65: 0 | O65: 71 | Q65: 0 | R65: 0 | S65: 0 | T65: 0 | U65: 0 | V65: 0 | W65: 0 | X65: 0 | Y65: 0 | Z65: 0 | AA65: 0 | AB65: 0 | AD65: 71 | AE65: 1 | AF65: 0 | AG65: 0 | AH65: 0 | AI65: 0 | AJ65: 0 | AK65: 0 | AL65: 0 | AM65: 0 | AP65: Y | AQ65: 1 Nov 2024 to 30 Nov 20247218241485ENCTR | AR65: =Data!A58 -> 2024-11-01 | AS65: =TRIM(Data!B58) -> DISTRICT HEALTH CENTRE-YUEN LONG (POH) | AU65: =TRIM(Data!C58) -> DHC | AV65: =TRIM(Data!D58) -> 7218241485 | AW65: =TRIM(Data!E58) -> ENCTR | AX65: =TRIM(Data!F58) -> 3 | AY65: =TRIM(Data!G58) -> DHCCMS | AZ65: =TRIM(Data!H58) -> Local System | BA65: =TRIM(Data!I58) -> 19812 | BB65: =TRIM(Data!J58) -> 0 | BC65: =TRIM(Data!K58) -> 0 | BD65: =TRIM(Data!L58) -> 0 | BE65: =TRIM(Data!M58) -> 19812 | BI65: =TRIM(Data!N58) -> 0 | BJ65: =TRIM(Data!O58) -> 0 | BK65: =TRIM(Data!P58) -> 0 | BM65: =TRIM(Data!Q58) -> 0 | BP65: =TRIM(Data!R58) -> 0 | BQ65: =TRIM(Data!S58) -> 0 | BR65: =TRIM(Data!T58) -> 0 | BV65: =TRIM(Data!U58) -> 0 | BX65: =TRIM(Data!V58) -> 0 | BY65: =TRIM(Data!W58) -> 0 | BZ65: =TRIM(Data!X58) -> 0 | CA65: =TRIM(Data!Y58) -> 0 | CB65: =TRIM(Data!Z58) -> 0 | CC65: =TRIM(Data!AA58) -> 0 | CD65: 308 | CE65: 1 Nov 2024 to 30 Nov 2024 | CF65: DISTRICT HEALTH CENTRE-YUEN LONG (POH) | CG65: DHC-YUEN LONG | CH65: DHC | CI65: 7218241485 | CJ65: ENCTR | CK65: 3 | CL65: Local System | CM65: Local System | CN65: 19812 | CO65: 0 | CP65: 0 | CQ65: 0 | CR65: 19812 | CT65: 0 | CU65: 0 | CV65: 0 | CW65: 0 | CX65: 0 | CY65: 0 | CZ65: 0 | DA65: 0 | DB65: 0 | DC65: 0 | DD65: 0 | DE65: 0 | DG65: 19812 | DH65: 1 | DI65: 0 | DJ65: 0 | DK65: 0 | DL65: 0 | DM65: 0 | DN65: 0 | DO65: 0 | DP65: 0
A66: 1 Nov 2024 to 30 Nov 20242825508730RXD | B66: 1 Nov 2024 to 30 Nov 2024 | C66: DR LEUNG KAM FUNG | D66: DR LEUNG KAM FUNG | E66: SOLO | F66: 2825508730 | G66: RXD | H66: 2 | I66: ClinicSolution | J66: Local System | K66: 41 | L66: 0 | M66: 0 | N66: 41 | O66: 0 | Q66: 0 | R66: 0 | S66: 0 | T66: 0 | U66: 0 | V66: 0 | W66: 0 | X66: 0 | Y66: 0 | Z66: 0 | AA66: 0 | AB66: 0 | AD66: 0 | AE66: 0 | AF66: 0 | AG66: 0 | AH66: 0 | AI66: 0 | AJ66: 0 | AK66: 0 | AL66: 0 | AM66: 0 | AP66: Y | AQ66: 1 Nov 2024 to 30 Nov 20247218241485EPIS | AR66: =Data!A59 -> 2024-11-01 | AS66: =TRIM(Data!B59) -> DISTRICT HEALTH CENTRE-YUEN LONG (POH) | AU66: =TRIM(Data!C59) -> DHC | AV66: =TRIM(Data!D59) -> 7218241485 | AW66: =TRIM(Data!E59) -> EPIS | AX66: =TRIM(Data!F59) -> 1 | AY66: =TRIM(Data!G59) -> DHCCMS | AZ66: =TRIM(Data!H59) -> Local System | BA66: =TRIM(Data!I59) -> 10733 | BB66: =TRIM(Data!J59) -> 0 | BC66: =TRIM(Data!K59) -> 10733 | BD66: =TRIM(Data!L59) -> 0 | BE66: =TRIM(Data!M59) -> 0 | BI66: =TRIM(Data!N59) -> 0 | BJ66: =TRIM(Data!O59) -> 0 | BK66: =TRIM(Data!P59) -> 0 | BM66: =TRIM(Data!Q59) -> 0 | BP66: =TRIM(Data!R59) -> 0 | BQ66: =TRIM(Data!S59) -> 0 | BR66: =TRIM(Data!T59) -> 0 | BV66: =TRIM(Data!U59) -> 0 | BX66: =TRIM(Data!V59) -> 0 | BY66: =TRIM(Data!W59) -> 0 | BZ66: =TRIM(Data!X59) -> 0 | CA66: =TRIM(Data!Y59) -> 0 | CB66: =TRIM(Data!Z59) -> 0 | CC66: =TRIM(Data!AA59) -> 0 | CD66: 309 | CE66: 1 Nov 2024 to 30 Nov 2024 | CF66: DISTRICT HEALTH CENTRE-YUEN LONG (POH) | CG66: DHC-YUEN LONG | CH66: DHC | CI66: 7218241485 | CJ66: EPIS | CK66: 1 | CL66: Local System | CM66: Local System | CN66: 10733 | CO66: 0 | CP66: 10733 | CQ66: 0 | CR66: 0 | CT66: 0 | CU66: 0 | CV66: 0 | CW66: 0 | CX66: 0 | CY66: 0 | CZ66: 0 | DA66: 0 | DB66: 0 | DC66: 0 | DD66: 0 | DE66: 0 | DG66: 0 | DH66: 0 | DI66: 0 | DJ66: 0 | DK66: 0 | DL66: 0 | DM66: 0 | DN66: 0 | DO66: 0 | DP66: 0
A67: 1 Nov 2024 to 30 Nov 20242825508730RXO | B67: 1 Nov 2024 to 30 Nov 2024 | C67: DR LEUNG KAM FUNG | D67: DR LEUNG KAM FUNG | E67: SOLO | F67: 2825508730 | G67: RXO | H67: 2 | I67: ClinicSolution | J67: Local System | K67: 41 | L67: 0 | M67: 0 | N67: 41 | O67: 0 | Q67: 0 | R67: 0 | S67: 0 | T67: 0 | U67: 0 | V67: 0 | W67: 0 | X67: 0 | Y67: 0 | Z67: 0 | AA67: 0 | AB67: 0 | AD67: 0 | AE67: 0 | AF67: 0 | AG67: 0 | AH67: 0 | AI67: 0 | AJ67: 0 | AK67: 0 | AL67: 0 | AM67: 0 | AP67: Y | AQ67: 1 Nov 2024 to 30 Nov 20247218241485AL1 | AR67: =Data!A60 -> 2024-11-01 | AS67: =TRIM(Data!B60) -> DISTRICT HEALTH CENTRE-YUEN LONG (POH) | AU67: =TRIM(Data!C60) -> DHC | AV67: =TRIM(Data!D60) -> 7218241485 | AW67: =TRIM(Data!E60) -> AL1 | AX67: =TRIM(Data!F60) -> 3 | AY67: =TRIM(Data!G60) -> DHCCMS | AZ67: =TRIM(Data!H60) -> Local System | BA67: =TRIM(Data!I60) -> 6 | BB67: =TRIM(Data!J60) -> 0 | BC67: =TRIM(Data!K60) -> 0 | BD67: =TRIM(Data!L60) -> 2 | BE67: =TRIM(Data!M60) -> 4 | BI67: =TRIM(Data!N60) -> 0 | BJ67: =TRIM(Data!O60) -> 0 | BK67: =TRIM(Data!P60) -> 2 | BM67: =TRIM(Data!Q60) -> 2 | BP67: =TRIM(Data!R60) -> 2 | BQ67: =TRIM(Data!S60) -> 0 | BR67: =TRIM(Data!T60) -> 0 | BV67: =TRIM(Data!U60) -> 0 | BX67: =TRIM(Data!V60) -> 0 | BY67: =TRIM(Data!W60) -> 0 | BZ67: =TRIM(Data!X60) -> 0 | CA67: =TRIM(Data!Y60) -> 0 | CB67: =TRIM(Data!Z60) -> 0 | CC67: =TRIM(Data!AA60) -> 0 | CD67: 307 | CE67: 1 Nov 2024 to 30 Nov 2024 | CF67: DISTRICT HEALTH CENTRE-YUEN LONG (POH) | CG67: DHC-YUEN LONG | CH67: DHC | CI67: 7218241485 | CJ67: AL1 | CK67: 3 | CL67: Local System | CM67: Local System | CN67: 6 | CO67: 0 | CP67: 0 | CQ67: 2 | CR67: 4 | CT67: 0 | CU67: 0 | CV67: 0 | CW67: 0 | CX67: 2 | CY67: 0.333333333333333 | CZ67: 2 | DA67: 0 | DB67: 0 | DC67: 2 | DD67: 0 | DE67: 0 | DG67: 4 | DH67: 0.666666666666667 | DI67: 0 | DJ67: 0 | DK67: 0 | DL67: 0 | DM67: 0 | DN67: 0 | DO67: 0 | DP67: 0
A68: 1 Nov 2024 to 30 Nov 20242971417573CMPROB | B68: 1 Nov 2024 to 30 Nov 2024 | C68: 18 Chinese Medicine Clinic cum Traing and Research Centre (Yan Oi Tong) | D68: 18CMCTRs (YOT) | E68: NGO | F68: 2971417573 | G68: CMPROB | H68: 3 | I68: Local System | J68: EC Connect | K68: 540 | L68: 0 | M68: 0 | N68: 93 | O68: 447 | Q68: 0 | R68: 0 | S68: 0 | T68: 0 | U68: 70 | V68: 0.1296296296 | W68: 70 | X68: 0 | Y68: 0 | Z68: 70 | AA68: 0 | AB68: 0 | AD68: 447 | AE68: 0.8277777778 | AF68: 0 | AG68: 0 | AH68: 0 | AI68: 0 | AJ68: 0 | AK68: 0 | AL68: 0 | AM68: 0 | AP68: Y | AQ68: 1 Nov 2024 to 30 Nov 20247218241485ADR | AR68: =Data!A61 -> 2024-11-01 | AS68: =TRIM(Data!B61) -> DISTRICT HEALTH CENTRE-YUEN LONG (POH) | AU68: =TRIM(Data!C61) -> DHC | AV68: =TRIM(Data!D61) -> 7218241485 | AW68: =TRIM(Data!E61) -> ADR | AX68: =TRIM(Data!F61) -> 3 | AY68: =TRIM(Data!G61) -> DHCCMS | AZ68: =TRIM(Data!H61) -> Local System | BA68: =TRIM(Data!I61) -> 2 | BB68: =TRIM(Data!J61) -> 0 | BC68: =TRIM(Data!K61) -> 0 | BD68: =TRIM(Data!L61) -> 0 | BE68: =TRIM(Data!M61) -> 2 | BI68: =TRIM(Data!N61) -> 0 | BJ68: =TRIM(Data!O61) -> 0 | BK68: =TRIM(Data!P61) -> 0 | BM68: =TRIM(Data!Q61) -> 0 | BP68: =TRIM(Data!R61) -> 0 | BQ68: =TRIM(Data!S61) -> 0 | BR68: =TRIM(Data!T61) -> 0 | BV68: =TRIM(Data!U61) -> 0 | BX68: =TRIM(Data!V61) -> 0 | BY68: =TRIM(Data!W61) -> 0 | BZ68: =TRIM(Data!X61) -> 0 | CA68: =TRIM(Data!Y61) -> 0 | CB68: =TRIM(Data!Z61) -> 0 | CC68: =TRIM(Data!AA61) -> 0 | CD68: 306 | CE68: 1 Nov 2024 to 30 Nov 2024 | CF68: DISTRICT HEALTH CENTRE-YUEN LONG (POH) | CG68: DHC-YUEN LONG | CH68: DHC | CI68: 7218241485 | CJ68: ADR | CK68: 3 | CL68: Local System | CM68: Local System | CN68: 2 | CO68: 0 | CP68: 0 | CQ68: 0 | CR68: 2 | CT68: 0 | CU68: 0 | CV68: 0 | CW68: 0 | CX68: 0 | CY68: 0 | CZ68: 0 | DA68: 0 | DB68: 0 | DC68: 0 | DD68: 0 | DE68: 0 | DG68: 2 | DH68: 1 | DI68: 0 | DJ68: 0 | DK68: 0 | DL68: 0 | DM68: 0 | DN68: 0 | DO68: 0 | DP68: 0
A69: 1 Nov 2024 to 30 Nov 20242971417573CMPX | B69: 1 Nov 2024 to 30 Nov 2024 | C69: 18 Chinese Medicine Clinic cum Traing and Research Centre (Yan Oi Tong) | D69: 18CMCTRs (YOT) | E69: NGO | F69: 2971417573 | G69: CMPX | H69: 3 | I69: Local System | J69: EC Connect | K69: 123 | L69: 0 | M69: 0 | N69: 0 | O69: 123 | Q69: 0 | R69: 0 | S69: 0 | T69: 0 | U69: 0 | V69: 0 | W69: 0 | X69: 0 | Y69: 0 | Z69: 0 | AA69: 0 | AB69: 0 | AD69: 123 | AE69: 1 | AF69: 0 | AG69: 0 | AH69: 0 | AI69: 0 | AJ69: 0 | AK69: 0 | AL69: 0 | AM69: 0 | AP69: Y | AQ69: 1 Nov 2024 to 30 Nov 20248900325933ENCTR | AR69: =Data!A62 -> 2024-11-01 | AS69: =TRIM(Data!B62) -> DISTRICT HEALTH CENTRE-SOUTHERN (AKA) | AU69: =TRIM(Data!C62) -> DHC | AV69: =TRIM(Data!D62) -> 8900325933 | AW69: =TRIM(Data!E62) -> ENCTR | AX69: =TRIM(Data!F62) -> 3 | AY69: =TRIM(Data!G62) -> DHCCMS | AZ69: =TRIM(Data!H62) -> Local System | BA69: =TRIM(Data!I62) -> 23068 | BB69: =TRIM(Data!J62) -> 0 | BC69: =TRIM(Data!K62) -> 0 | BD69: =TRIM(Data!L62) -> 0 | BE69: =TRIM(Data!M62) -> 23068 | BI69: =TRIM(Data!N62) -> 0 | BJ69: =TRIM(Data!O62) -> 0 | BK69: =TRIM(Data!P62) -> 0 | BM69: =TRIM(Data!Q62) -> 0 | BP69: =TRIM(Data!R62) -> 0 | BQ69: =TRIM(Data!S62) -> 0 | BR69: =TRIM(Data!T62) -> 0 | BV69: =TRIM(Data!U62) -> 0 | BX69: =TRIM(Data!V62) -> 0 | BY69: =TRIM(Data!W62) -> 0 | BZ69: =TRIM(Data!X62) -> 0 | CA69: =TRIM(Data!Y62) -> 0 | CB69: =TRIM(Data!Z62) -> 0 | CC69: =TRIM(Data!AA62) -> 0 | CD69: 381 | CE69: 1 Nov 2024 to 30 Nov 2024 | CF69: DISTRICT HEALTH CENTRE-SOUTHERN (AKA) | CG69: DHC-SOUTHERN | CH69: DHC | CI69: 8900325933 | CJ69: ENCTR | CK69: 3 | CL69: Local System | CM69: Local System | CN69: 23068 | CO69: 0 | CP69: 0 | CQ69: 0 | CR69: 23068 | CT69: 0 | CU69: 0 | CV69: 0 | CW69: 0 | CX69: 0 | CY69: 0 | CZ69: 0 | DA69: 0 | DB69: 0 | DC69: 0 | DD69: 0 | DE69: 0 | DG69: 23068 | DH69: 1 | DI69: 0 | DJ69: 0 | DK69: 0 | DL69: 0 | DM69: 0 | DN69: 0 | DO69: 0 | DP69: 0
A70: 1 Nov 2024 to 30 Nov 20242971417573CMRXO | B70: 1 Nov 2024 to 30 Nov 2024 | C70: 18 Chinese Medicine Clinic cum Traing and Research Centre (Yan Oi Tong) | D70: 18CMCTRs (YOT) | E70: NGO | F70: 2971417573 | G70: CMRXO | H70: 3 | I70: Local System | J70: EC Connect | K70: 284 | L70: 0 | M70: 0 | N70: 42 | O70: 242 | Q70: 0 | R70: 0 | S70: 0 | T70: 0 | U70: 42 | V70: 0.1478873239 | W70: 42 | X70: 0 | Y70: 0 | Z70: 42 | AA70: 0 | AB70: 0 | AD70: 242 | AE70: 0.8521126761 | AF70: 0 | AG70: 0 | AH70: 0 | AI70: 0 | AJ70: 0 | AK70: 0 | AL70: 0 | AM70: 0 | AP70: Y | AQ70: 1 Nov 2024 to 30 Nov 20248900325933EPIS | AR70: =Data!A63 -> 2024-11-01 | AS70: =TRIM(Data!B63) -> DISTRICT HEALTH CENTRE-SOUTHERN (AKA) | AU70: =TRIM(Data!C63) -> DHC | AV70: =TRIM(Data!D63) -> 8900325933 | AW70: =TRIM(Data!E63) -> EPIS | AX70: =TRIM(Data!F63) -> 1 | AY70: =TRIM(Data!G63) -> DHCCMS | AZ70: =TRIM(Data!H63) -> Local System | BA70: =TRIM(Data!I63) -> 3369 | BB70: =TRIM(Data!J63) -> 0 | BC70: =TRIM(Data!K63) -> 3369 | BD70: =TRIM(Data!L63) -> 0 | BE70: =TRIM(Data!M63) -> 0 | BI70: =TRIM(Data!N63) -> 0 | BJ70: =TRIM(Data!O63) -> 0 | BK70: =TRIM(Data!P63) -> 0 | BM70: =TRIM(Data!Q63) -> 0 | BP70: =TRIM(Data!R63) -> 0 | BQ70: =TRIM(Data!S63) -> 0 | BR70: =TRIM(Data!T63) -> 0 | BV70: =TRIM(Data!U63) -> 0 | BX70: =TRIM(Data!V63) -> 0 | BY70: =TRIM(Data!W63) -> 0 | BZ70: =TRIM(Data!X63) -> 0 | CA70: =TRIM(Data!Y63) -> 0 | CB70: =TRIM(Data!Z63) -> 0 | CC70: =TRIM(Data!AA63) -> 0 | CD70: 382 | CE70: 1 Nov 2024 to 30 Nov 2024 | CF70: DISTRICT HEALTH CENTRE-SOUTHERN (AKA) | CG70: DHC-SOUTHERN | CH70: DHC | CI70: 8900325933 | CJ70: EPIS | CK70: 1 | CL70: Local System | CM70: Local System | CN70: 3369 | CO70: 0 | CP70: 3369 | CQ70: 0 | CR70: 0 | CT70: 0 | CU70: 0 | CV70: 0 | CW70: 0 | CX70: 0 | CY70: 0 | CZ70: 0 | DA70: 0 | DB70: 0 | DC70: 0 | DD70: 0 | DE70: 0 | DG70: 0 | DH70: 0 | DI70: 0 | DJ70: 0 | DK70: 0 | DL70: 0 | DM70: 0 | DN70: 0 | DO70: 0 | DP70: 0
A71: 1 Nov 2024 to 30 Nov 20242971417573ENCTR | B71: 1 Nov 2024 to 30 Nov 2024 | C71: 18 Chinese Medicine Clinic cum Traing and Research Centre (Yan Oi Tong) | D71: 18CMCTRs (YOT) | E71: NGO | F71: 2971417573 | G71: ENCTR | H71: 3 | I71: Local System | J71: Local System | K71: 580 | L71: 0 | M71: 0 | N71: 0 | O71: 580 | Q71: 0 | R71: 0 | S71: 0 | T71: 0 | U71: 0 | V71: 0 | W71: 0 | X71: 0 | Y71: 0 | Z71: 0 | AA71: 0 | AB71: 0 | AD71: 580 | AE71: 1 | AF71: 0 | AG71: 0 | AH71: 0 | AI71: 0 | AJ71: 0 | AK71: 0 | AL71: 0 | AM71: 0 | AP71: Y | AQ71: 1 Nov 2024 to 30 Nov 20248900325933AL1 | AR71: =Data!A64 -> 2024-11-01 | AS71: =TRIM(Data!B64) -> DISTRICT HEALTH CENTRE-SOUTHERN (AKA) | AU71: =TRIM(Data!C64) -> DHC | AV71: =TRIM(Data!D64) -> 8900325933 | AW71: =TRIM(Data!E64) -> AL1 | AX71: =TRIM(Data!F64) -> 3 | AY71: =TRIM(Data!G64) -> DHCCMS | AZ71: =TRIM(Data!H64) -> Local System | BA71: =TRIM(Data!I64) -> 8 | BB71: =TRIM(Data!J64) -> 0 | BC71: =TRIM(Data!K64) -> 0 | BD71: =TRIM(Data!L64) -> 0 | BE71: =TRIM(Data!M64) -> 8 | BI71: =TRIM(Data!N64) -> 0 | BJ71: =TRIM(Data!O64) -> 0 | BK71: =TRIM(Data!P64) -> 0 | BM71: =TRIM(Data!Q64) -> 0 | BP71: =TRIM(Data!R64) -> 0 | BQ71: =TRIM(Data!S64) -> 0 | BR71: =TRIM(Data!T64) -> 0 | BV71: =TRIM(Data!U64) -> 0 | BX71: =TRIM(Data!V64) -> 0 | BY71: =TRIM(Data!W64) -> 0 | BZ71: =TRIM(Data!X64) -> 0 | CA71: =TRIM(Data!Y64) -> 0 | CB71: =TRIM(Data!Z64) -> 0 | CC71: =TRIM(Data!AA64) -> 0 | CD71: 380 | CE71: 1 Nov 2024 to 30 Nov 2024 | CF71: DISTRICT HEALTH CENTRE-SOUTHERN (AKA) | CG71: DHC-SOUTHERN | CH71: DHC | CI71: 8900325933 | CJ71: AL1 | CK71: 3 | CL71: Local System | CM71: Local System | CN71: 8 | CO71: 0 | CP71: 0 | CQ71: 0 | CR71: 8 | CT71: 0 | CU71: 0 | CV71: 0 | CW71: 0 | CX71: 0 | CY71: 0 | CZ71: 0 | DA71: 0 | DB71: 0 | DC71: 0 | DD71: 0 | DE71: 0 | DG71: 8 | DH71: 1 | DI71: 0 | DJ71: 0 | DK71: 0 | DL71: 0 | DM71: 0 | DN71: 0 | DO71: 0 | DP71: 0
A72: 1 Nov 2024 to 30 Nov 20243040418583ENCTR | B72: 1 Nov 2024 to 30 Nov 2024 | C72: DISTRICT HEALTH CENTRE-KWAI TSING (KTSCHCA) | D72: DHC-KWAI TSING | E72: DHC | F72: 3040418583 | G72: ENCTR | H72: 3 | I72: Local System | J72: Local System | K72: 17563 | L72: 0 | M72: 0 | N72: 0 | O72: 17563 | Q72: 0 | R72: 0 | S72: 0 | T72: 0 | U72: 0 | V72: 0 | W72: 0 | X72: 0 | Y72: 0 | Z72: 0 | AA72: 0 | AB72: 0 | AD72: 17563 | AE72: 1 | AF72: 0 | AG72: 0 | AH72: 0 | AI72: 0 | AJ72: 0 | AK72: 0 | AL72: 0 | AM72: 0 | AP72: Y | AQ72: 1 Nov 2024 to 30 Nov 20243040418583ENCTR | AR72: =Data!A65 -> 2024-11-01 | AS72: =TRIM(Data!B65) -> DISTRICT HEALTH CENTRE-KWAI TSING (KTSCHCA) | AU72: =TRIM(Data!C65) -> DHC | AV72: =TRIM(Data!D65) -> 3040418583 | AW72: =TRIM(Data!E65) -> ENCTR | AX72: =TRIM(Data!F65) -> 3 | AY72: =TRIM(Data!G65) -> DHCCMS | AZ72: =TRIM(Data!H65) -> Local System | BA72: =TRIM(Data!I65) -> 17563 | BB72: =TRIM(Data!J65) -> 0 | BC72: =TRIM(Data!K65) -> 0 | BD72: =TRIM(Data!L65) -> 0 | BE72: =TRIM(Data!M65) -> 17563 | BI72: =TRIM(Data!N65) -> 0 | BJ72: =TRIM(Data!O65) -> 0 | BK72: =TRIM(Data!P65) -> 0 | BM72: =TRIM(Data!Q65) -> 0 | BP72: =TRIM(Data!R65) -> 0 | BQ72: =TRIM(Data!S65) -> 0 | BR72: =TRIM(Data!T65) -> 0 | BV72: =TRIM(Data!U65) -> 0 | BX72: =TRIM(Data!V65) -> 0 | BY72: =TRIM(Data!W65) -> 0 | BZ72: =TRIM(Data!X65) -> 0 | CA72: =TRIM(Data!Y65) -> 0 | CB72: =TRIM(Data!Z65) -> 0 | CC72: =TRIM(Data!AA65) -> 0 | CD72: 72 | CE72: 1 Nov 2024 to 30 Nov 2024 | CF72: DISTRICT HEALTH CENTRE-KWAI TSING (KTSCHCA) | CG72: DHC-KWAI TSING | CH72: DHC | CI72: 3040418583 | CJ72: ENCTR | CK72: 3 | CL72: Local System | CM72: Local System | CN72: 17563 | CO72: 0 | CP72: 0 | CQ72: 0 | CR72: 17563 | CT72: 0 | CU72: 0 | CV72: 0 | CW72: 0 | CX72: 0 | CY72: 0 | CZ72: 0 | DA72: 0 | DB72: 0 | DC72: 0 | DD72: 0 | DE72: 0 | DG72: 17563 | DH72: 1 | DI72: 0 | DJ72: 0 | DK72: 0 | DL72: 0 | DM72: 0 | DN72: 0 | DO72: 0 | DP72: 0
A73: =IF(B73<>"",B73&F73&G73,"") -> 1 Nov 2024 to 30 Nov 20243040418583EPIS | B73: 1 Nov 2024 to 30 Nov 2024 | C73: DISTRICT HEALTH CENTRE-KWAI TSING (KTSCHCA) | D73: DHC-KWAI TSING | E73: DHC | F73: 3040418583 | G73: EPIS | H73: 1 | I73: Local System | J73: Local System | K73: 5016 | L73: 0 | M73: 5016 | N73: 0 | O73: 0 | Q73: 0 | R73: 0 | S73: 0 | T73: 0 | U73: 0 | V73: 0 | W73: 0 | X73: 0 | Y73: 0 | Z73: 0 | AA73: 0 | AB73: 0 | AD73: 0 | AE73: 0 | AF73: 0 | AG73: 0 | AH73: 0 | AI73: 0 | AJ73: 0 | AK73: 0 | AL73: 0 | AM73: 0 | AN73: =IFERROR(IF(SEARCH("total",A73)>0,"",""),_xlfn.IFNA(IF(A73<>"",IF(MATCH(A73,AQ:AQ,0)>0,"",""),""),"Y")) ->  | AO73: =IFERROR(_xlfn.IFNA(IF(AQ73<>"",IF(MATCH(AQ73,A:A,0)>0,"",""),""),"Y"),"") ->  | AP73: =IF(OR(TRIM(UPPER(AS73))<>TRIM(UPPER(CF73)),AU73<>CH73,AV73<>CI73,AW73<>CJ73,AX73<>CK73,AY73<>CL73,AZ73<>CM73,BA73<>CN73,BB73<>CO73,BC73<>CP73,BD73<>CQ73,BE73<>CR73,BI73<>CV73,BJ73<>CW73,BK73<>CX73,BM73<>CZ73,BP73<>DC73,BQ73<>DD73,BR73<>DE73,BV73<>DI73,BX73<>DK73,BY73<>DL73,BZ73<>DM73,CA73<>DN73,CB73<>DO73,CC73<>DP73),"Y","") -> Y | AQ73: =IF(AR73<>"",TEXT(AR73,"d mmm yyyy") &" to " & TEXT(EOMONTH(AR73,0),"d mmm yyyy") & AV73 & AW73,"") -> 1 Nov 2024 to 30 Nov 20243040418583EPIS | AR73: =Data!A66 -> 2024-11-01 | AS73: =TRIM(Data!B66) -> DISTRICT HEALTH CENTRE-KWAI TSING (KTSCHCA) | AU73: =TRIM(Data!C66) -> DHC | AV73: =TRIM(Data!D66) -> 3040418583 | AW73: =TRIM(Data!E66) -> EPIS | AX73: =TRIM(Data!F66) -> 1 | AY73: =TRIM(Data!G66) -> DHCCMS | AZ73: =TRIM(Data!H66) -> Local System | BA73: =TRIM(Data!I66) -> 5016 | BB73: =TRIM(Data!J66) -> 0 | BC73: =TRIM(Data!K66) -> 5016 | BD73: =TRIM(Data!L66) -> 0 | BE73: =TRIM(Data!M66) -> 0 | BI73: =TRIM(Data!N66) -> 0 | BJ73: =TRIM(Data!O66) -> 0 | BK73: =TRIM(Data!P66) -> 0 | BM73: =TRIM(Data!Q66) -> 0 | BP73: =TRIM(Data!R66) -> 0 | BQ73: =TRIM(Data!S66) -> 0 | BR73: =TRIM(Data!T66) -> 0 | BV73: =TRIM(Data!U66) -> 0 | BX73: =TRIM(Data!V66) -> 0 | BY73: =TRIM(Data!W66) -> 0 | BZ73: =TRIM(Data!X66) -> 0 | CA73: =TRIM(Data!Y66) -> 0 | CB73: =TRIM(Data!Z66) -> 0 | CC73: =TRIM(Data!AA66) -> 0 | CD73: =MATCH(AQ73,A:A,0) -> 73 | CE73: =TRIM(INDEX(B:B,$CD73)) -> 1 Nov 2024 to 30 Nov 2024 | CF73: =TRIM(INDEX(C:C,$CD73)) -> DISTRICT HEALTH CENTRE-KWAI TSING (KTSCHCA) | CG73: =TRIM(INDEX(D:D,$CD73)) -> DHC-KWAI TSING | CH73: =TRIM(INDEX(E:E,$CD73)) -> DHC | CI73: =TRIM(INDEX(F:F,$CD73)) -> 3040418583 | CJ73: =TRIM(INDEX(G:G,$CD73)) -> EPIS | CK73: =TRIM(INDEX(H:H,$CD73)) -> 1 | CL73: =TRIM(INDEX(I:I,$CD73)) -> Local System | CM73: =TRIM(INDEX(J:J,$CD73)) -> Local System | CN73: =TRIM(INDEX(K:K,$CD73)) -> 5016 | CO73: =TRIM(INDEX(L:L,$CD73)) -> 0 | CP73: =TRIM(INDEX(M:M,$CD73)) -> 5016 | CQ73: =TRIM(INDEX(N:N,$CD73)) -> 0 | CR73: =TRIM(INDEX(O:O,$CD73)) -> 0 | CS73: =TRIM(INDEX(P:P,$CD73)) ->  | CT73: =TRIM(INDEX(Q:Q,$CD73)) -> 0 | CU73: =TRIM(INDEX(R:R,$CD73)) -> 0 | CV73: =TRIM(INDEX(S:S,$CD73)) -> 0 | CW73: =TRIM(INDEX(T:T,$CD73)) -> 0 | CX73: =TRIM(INDEX(U:U,$CD73)) -> 0 | CY73: =TRIM(INDEX(V:V,$CD73)) -> 0 | CZ73: =TRIM(INDEX(W:W,$CD73)) -> 0 | DA73: =TRIM(INDEX(X:X,$CD73)) -> 0 | DB73: =TRIM(INDEX(Y:Y,$CD73)) -> 0 | DC73: =TRIM(INDEX(Z:Z,$CD73)) -> 0 | DD73: =TRIM(INDEX(AA:AA,$CD73)) -> 0 | DE73: =TRIM(INDEX(AB:AB,$CD73)) -> 0 | DF73: =TRIM(INDEX(AC:AC,$CD73)) ->  | DG73: =TRIM(INDEX(AD:AD,$CD73)) -> 0 | DH73: =TRIM(INDEX(AE:AE,$CD73)) -> 0 | DI73: =TRIM(INDEX(AF:AF,$CD73)) -> 0 | DJ73: =TRIM(INDEX(AG:AG,$CD73)) -> 0 | DK73: =TRIM(INDEX(AH:AH,$CD73)) -> 0 | DL73: =TRIM(INDEX(AI:AI,$CD73)) -> 0 | DM73: =TRIM(INDEX(AJ:AJ,$CD73)) -> 0 | DN73: =TRIM(INDEX(AK:AK,$CD73)) -> 0 | DO73: =TRIM(INDEX(AL:AL,$CD73)) -> 0 | DP73: =TRIM(INDEX(AM:AM,$CD73)) -> 0
A74: 1 Nov 2024 to 30 Nov 20243093463431ENCTR | B74: 1 Nov 2024 to 30 Nov 2024 | C74: PRIMECARE MEDICAL CENTRE | D74: PRIMECARE MEDICAL CENTRE | E74: SOLO | F74: 3093463431 | G74: ENCTR | H74: 3 | I74: ClinicSolution | J74: Local System | K74: 8 | L74: 0 | M74: 0 | N74: 0 | O74: 8 | Q74: 0 | R74: 0 | S74: 0 | T74: 0 | U74: 0 | V74: 0 | W74: 0 | X74: 0 | Y74: 0 | Z74: 0 | AA74: 0 | AB74: 0 | AD74: 8 | AE74: 1 | AF74: 0 | AG74: 0 | AH74: 0 | AI74: 0 | AJ74: 0 | AK74: 0 | AL74: 0 | AM74: 0 | AQ74: 1 Nov 2024 to 30 Nov 20244773496701LABGEN | AR74: =Data!A67 -> 2024-11-01 | AS74: =TRIM(Data!B67) -> HKSH MEDICAL GROUP LIMITED | AU74: =TRIM(Data!C67) -> PH | AV74: =TRIM(Data!D67) -> 4773496701 | AW74: =TRIM(Data!E67) -> LABGEN | AX74: =TRIM(Data!F67) -> 1 | AY74: =TRIM(Data!G67) -> HKSH e-HR gateway | AZ74: =TRIM(Data!H67) -> Local System | BA74: =TRIM(Data!I67) -> 9954 | BB74: =TRIM(Data!J67) -> 0 | BC74: =TRIM(Data!K67) -> 9954 | BD74: =TRIM(Data!L67) -> 0 | BE74: =TRIM(Data!M67) -> 0 | BI74: =TRIM(Data!N67) -> 0 | BJ74: =TRIM(Data!O67) -> 0 | BK74: =TRIM(Data!P67) -> 0 | BM74: =TRIM(Data!Q67) -> 0 | BP74: =TRIM(Data!R67) -> 0 | BQ74: =TRIM(Data!S67) -> 0 | BR74: =TRIM(Data!T67) -> 0 | BV74: =TRIM(Data!U67) -> 0 | BX74: =TRIM(Data!V67) -> 0 | BY74: =TRIM(Data!W67) -> 0 | BZ74: =TRIM(Data!X67) -> 0 | CA74: =TRIM(Data!Y67) -> 0 | CB74: =TRIM(Data!Z67) -> 0 | CC74: =TRIM(Data!AA67) -> 0 | CD74: 174 | CE74: 1 Nov 2024 to 30 Nov 2024 | CF74: HKSH Medical Group Limited | CG74: HKSH MEDICAL FROUP | CH74: PH | CI74: 4773496701 | CJ74: LABGEN | CK74: 1 | CL74: HKSH e-HR gateway | CM74: Local System | CN74: 9954 | CO74: 0 | CP74: 9954 | CQ74: 0 | CR74: 0 | CT74: 0 | CU74: 0 | CV74: 0 | CW74: 0 | CX74: 0 | CY74: 0 | CZ74: 0 | DA74: 0 | DB74: 0 | DC74: 0 | DD74: 0 | DE74: 0 | DG74: 0 | DH74: 0 | DI74: 0 | DJ74: 0 | DK74: 0 | DL74: 0 | DM74: 0 | DN74: 0 | DO74: 0 | DP74: 0
A75: 1 Nov 2024 to 30 Nov 20243098159131ADR | B75: 1 Nov 2024 to 30 Nov 2024 | C75: HOSPITAL AUTHORITY | D75: HA | E75: HA | F75: 3098159131 | G75: ADR | H75: 3 | I75: Enterprise Application Integration (EAI) | J75: Local System | K75: 5116 | L75: 0 | M75: 0 | N75: 320 | O75: 4796 | Q75: 0 | R75: 0 | S75: 0 | T75: 0 | U75: 318 | V75: 0.06215793589 | W75: 318 | X75: 0 | Y75: 0 | Z75: 318 | AA75: 0 | AB75: 0 | AD75: 4796 | AE75: 0.9374511337 | AF75: 0 | AG75: 0 | AH75: 0 | AI75: 0 | AJ75: 0 | AK75: 0 | AL75: 0 | AM75: 0 | AQ75: 1 Nov 2024 to 30 Nov 20244773496701PROB | AR75: =Data!A68 -> 2024-11-01 | AS75: =TRIM(Data!B68) -> HKSH MEDICAL GROUP LIMITED | AU75: =TRIM(Data!C68) -> PH | AV75: =TRIM(Data!D68) -> 4773496701 | AW75: =TRIM(Data!E68) -> PROB | AX75: =TRIM(Data!F68) -> 3 | AY75: =TRIM(Data!G68) -> HKSH e-HR gateway | AZ75: =TRIM(Data!H68) -> Local System | BA75: =TRIM(Data!I68) -> 4283 | BB75: =TRIM(Data!J68) -> 0 | BC75: =TRIM(Data!K68) -> 0 | BD75: =TRIM(Data!L68) -> 0 | BE75: =TRIM(Data!M68) -> 4283 | BI75: =TRIM(Data!N68) -> 0 | BJ75: =TRIM(Data!O68) -> 0 | BK75: =TRIM(Data!P68) -> 0 | BM75: =TRIM(Data!Q68) -> 0 | BP75: =TRIM(Data!R68) -> 0 | BQ75: =TRIM(Data!S68) -> 0 | BR75: =TRIM(Data!T68) -> 0 | BV75: =TRIM(Data!U68) -> 0 | BX75: =TRIM(Data!V68) -> 0 | BY75: =TRIM(Data!W68) -> 0 | BZ75: =TRIM(Data!X68) -> 0 | CA75: =TRIM(Data!Y68) -> 0 | CB75: =TRIM(Data!Z68) -> 0 | CC75: =TRIM(Data!AA68) -> 0 | CD75: 176 | CE75: 1 Nov 2024 to 30 Nov 2024 | CF75: HKSH Medical Group Limited | CG75: HKSH MEDICAL FROUP | CH75: PH | CI75: 4773496701 | CJ75: PROB | CK75: 3 | CL75: HKSH e-HR gateway | CM75: Local System | CN75: 4283 | CO75: 0 | CP75: 0 | CQ75: 0 | CR75: 4283 | CT75: 0 | CU75: 0 | CV75: 0 | CW75: 0 | CX75: 0 | CY75: 0 | CZ75: 0 | DA75: 0 | DB75: 0 | DC75: 0 | DD75: 0 | DE75: 0 | DG75: 4283 | DH75: 1 | DI75: 0 | DJ75: 0 | DK75: 0 | DL75: 0 | DM75: 0 | DN75: 0 | DO75: 0 | DP75: 0
A76: 1 Nov 2024 to 30 Nov 20243098159131AL1 | B76: 1 Nov 2024 to 30 Nov 2024 | C76: HOSPITAL AUTHORITY | D76: HA | E76: HA | F76: 3098159131 | G76: AL1 | H76: 3 | I76: Enterprise Application Integration (EAI) | J76: Local System | K76: 6091 | L76: 0 | M76: 0 | N76: 1717 | O76: 4374 | Q76: 0 | R76: 0 | S76: 0 | T76: 0 | U76: 1602 | V76: 0.2630109998 | W76: 1602 | X76: 0 | Y76: 0 | Z76: 1602 | AA76: 0 | AB76: 0 | AD76: 4374 | AE76: 0.7181086849 | AF76: 0 | AG76: 0 | AH76: 0 | AI76: 0 | AJ76: 0 | AK76: 0 | AL76: 0 | AM76: 0 | AP76: Y | AQ76: 1 Nov 2024 to 30 Nov 20244773496701RAD | AR76: =Data!A69 -> 2024-11-01 | AS76: =TRIM(Data!B69) -> HKSH MEDICAL GROUP LIMITED | AU76: =TRIM(Data!C69) -> PH | AV76: =TRIM(Data!D69) -> 4773496701 | AW76: =TRIM(Data!E69) -> RAD | AX76: =TRIM(Data!F69) -> 3,2 | AY76: =TRIM(Data!G69) -> HKSH e-HR gateway | AZ76: =TRIM(Data!H69) -> Local System | BA76: =TRIM(Data!I69) -> 3799 | BB76: =TRIM(Data!J69) -> 0 | BC76: =TRIM(Data!K69) -> 0 | BD76: =TRIM(Data!L69) -> 0 | BE76: =TRIM(Data!M69) -> 3799 | BI76: =TRIM(Data!N69) -> 0 | BJ76: =TRIM(Data!O69) -> 0 | BK76: =TRIM(Data!P69) -> 0 | BM76: =TRIM(Data!Q69) -> 0 | BP76: =TRIM(Data!R69) -> 0 | BQ76: =TRIM(Data!S69) -> 0 | BR76: =TRIM(Data!T69) -> 0 | BV76: =TRIM(Data!U69) -> 0 | BX76: =TRIM(Data!V69) -> 0 | BY76: =TRIM(Data!W69) -> 0 | BZ76: =TRIM(Data!X69) -> 0 | CA76: =TRIM(Data!Y69) -> 0 | CB76: =TRIM(Data!Z69) -> 0 | CC76: =TRIM(Data!AA69) -> 0 | CD76: 178 | CE76: 1 Nov 2024 to 30 Nov 2024 | CF76: HKSH Medical Group Limited | CG76: HKSH MEDICAL FROUP | CH76: PH | CI76: 4773496701 | CJ76: RAD | CK76: 3 | CL76: HKSH e-HR gateway | CM76: Local System | CN76: 3799 | CO76: 0 | CP76: 0 | CQ76: 0 | CR76: 3799 | CT76: 0 | CU76: 0 | CV76: 0 | CW76: 0 | CX76: 0 | CY76: 0 | CZ76: 0 | DA76: 0 | DB76: 0 | DC76: 0 | DD76: 0 | DE76: 0 | DG76: 3799 | DH76: 1 | DI76: 0 | DJ76: 0 | DK76: 0 | DL76: 0 | DM76: 0 | DN76: 0 | DO76: 0 | DP76: 0
A77: 1 Nov 2024 to 30 Nov 20243098159131BIRTH | B77: 1 Nov 2024 to 30 Nov 2024 | C77: HOSPITAL AUTHORITY | D77: HA | E77: HA | F77: 3098159131 | G77: BIRTH | H77: 3 | I77: Enterprise Application Integration (EAI) | J77: Local System | K77: 11843 | L77: 0 | M77: 0 | N77: 0 | O77: 11843 | Q77: 0 | R77: 0 | S77: 0 | T77: 0 | U77: 0 | V77: 0 | W77: 0 | X77: 0 | Y77: 0 | Z77: 0 | AA77: 0 | AB77: 0 | AD77: 11843 | AE77: 1 | AF77: 0 | AG77: 0 | AH77: 0 | AI77: 0 | AJ77: 0 | AK77: 0 | AL77: 0 | AM77: 0 | AQ77: 1 Nov 2024 to 30 Nov 20244773496701LABMB | AR77: =Data!A70 -> 2024-11-01 | AS77: =TRIM(Data!B70) -> HKSH MEDICAL GROUP LIMITED | AU77: =TRIM(Data!C70) -> PH | AV77: =TRIM(Data!D70) -> 4773496701 | AW77: =TRIM(Data!E70) -> LABMB | AX77: =TRIM(Data!F70) -> 1 | AY77: =TRIM(Data!G70) -> HKSH e-HR gateway | AZ77: =TRIM(Data!H70) -> Local System | BA77: =TRIM(Data!I70) -> 1544 | BB77: =TRIM(Data!J70) -> 0 | BC77: =TRIM(Data!K70) -> 1544 | BD77: =TRIM(Data!L70) -> 0 | BE77: =TRIM(Data!M70) -> 0 | BI77: =TRIM(Data!N70) -> 0 | BJ77: =TRIM(Data!O70) -> 0 | BK77: =TRIM(Data!P70) -> 0 | BM77: =TRIM(Data!Q70) -> 0 | BP77: =TRIM(Data!R70) -> 0 | BQ77: =TRIM(Data!S70) -> 0 | BR77: =TRIM(Data!T70) -> 0 | BV77: =TRIM(Data!U70) -> 0 | BX77: =TRIM(Data!V70) -> 0 | BY77: =TRIM(Data!W70) -> 0 | BZ77: =TRIM(Data!X70) -> 0 | CA77: =TRIM(Data!Y70) -> 0 | CB77: =TRIM(Data!Z70) -> 0 | CC77: =TRIM(Data!AA70) -> 0 | CD77: 175 | CE77: 1 Nov 2024 to 30 Nov 2024 | CF77: HKSH Medical Group Limited | CG77: HKSH MEDICAL FROUP | CH77: PH | CI77: 4773496701 | CJ77: LABMB | CK77: 1 | CL77: HKSH e-HR gateway | CM77: Local System | CN77: 1544 | CO77: 0 | CP77: 1544 | CQ77: 0 | CR77: 0 | CT77: 0 | CU77: 0 | CV77: 0 | CW77: 0 | CX77: 0 | CY77: 0 | CZ77: 0 | DA77: 0 | DB77: 0 | DC77: 0 | DD77: 0 | DE77: 0 | DG77: 0 | DH77: 0 | DI77: 0 | DJ77: 0 | DK77: 0 | DL77: 0 | DM77: 0 | DN77: 0 | DO77: 0 | DP77: 0
A78: 1 Nov 2024 to 30 Nov 20243098159131ENCTR | B78: 1 Nov 2024 to 30 Nov 2024 | C78: HOSPITAL AUTHORITY | D78: HA | E78: HA | F78: 3098159131 | G78: ENCTR | H78: 3 | I78: Enterprise Application Integration (EAI) | J78: Local System | K78: 11968013 | L78: 0 | M78: 0 | N78: 0 | O78: 11968013 | Q78: 0 | R78: 0 | S78: 0 | T78: 0 | U78: 0 | V78: 0 | W78: 0 | X78: 0 | Y78: 0 | Z78: 0 | AA78: 0 | AB78: 0 | AD78: 11968013 | AE78: 1 | AF78: 0 | AG78: 0 | AH78: 0 | AI78: 0 | AJ78: 0 | AK78: 0 | AL78: 0 | AM78: 0 | AQ78: 1 Nov 2024 to 30 Nov 20244773496701EPIS | AR78: =Data!A71 -> 2024-11-01 | AS78: =TRIM(Data!B71) -> HKSH MEDICAL GROUP LIMITED | AU78: =TRIM(Data!C71) -> PH | AV78: =TRIM(Data!D71) -> 4773496701 | AW78: =TRIM(Data!E71) -> EPIS | AX78: =TRIM(Data!F71) -> 1 | AY78: =TRIM(Data!G71) -> HKSH e-HR gateway | AZ78: =TRIM(Data!H71) -> Local System | BA78: =TRIM(Data!I71) -> 826 | BB78: =TRIM(Data!J71) -> 0 | BC78: =TRIM(Data!K71) -> 826 | BD78: =TRIM(Data!L71) -> 0 | BE78: =TRIM(Data!M71) -> 0 | BI78: =TRIM(Data!N71) -> 0 | BJ78: =TRIM(Data!O71) -> 0 | BK78: =TRIM(Data!P71) -> 0 | BM78: =TRIM(Data!Q71) -> 0 | BP78: =TRIM(Data!R71) -> 0 | BQ78: =TRIM(Data!S71) -> 0 | BR78: =TRIM(Data!T71) -> 0 | BV78: =TRIM(Data!U71) -> 0 | BX78: =TRIM(Data!V71) -> 0 | BY78: =TRIM(Data!W71) -> 0 | BZ78: =TRIM(Data!X71) -> 0 | CA78: =TRIM(Data!Y71) -> 0 | CB78: =TRIM(Data!Z71) -> 0 | CC78: =TRIM(Data!AA71) -> 0 | CD78: 172 | CE78: 1 Nov 2024 to 30 Nov 2024 | CF78: HKSH Medical Group Limited | CG78: HKSH MEDICAL FROUP | CH78: PH | CI78: 4773496701 | CJ78: EPIS | CK78: 1 | CL78: HKSH e-HR gateway | CM78: Local System | CN78: 826 | CO78: 0 | CP78: 826 | CQ78: 0 | CR78: 0 | CT78: 0 | CU78: 0 | CV78: 0 | CW78: 0 | CX78: 0 | CY78: 0 | CZ78: 0 | DA78: 0 | DB78: 0 | DC78: 0 | DD78: 0 | DE78: 0 | DG78: 0 | DH78: 0 | DI78: 0 | DJ78: 0 | DK78: 0 | DL78: 0 | DM78: 0 | DN78: 0 | DO78: 0 | DP78: 0
A79: 1 Nov 2024 to 30 Nov 20243098159131EPIS | B79: 1 Nov 2024 to 30 Nov 2024 | C79: HOSPITAL AUTHORITY | D79: HA | E79: HA | F79: 3098159131 | G79: EPIS | H79: 1 | I79: Enterprise Application Integration (EAI) | J79: Local System | K79: 434094 | L79: 1398 | M79: 432696 | N79: 0 | O79: 0 | Q79: 1398 | R79: 0.003220500629 | S79: 1398 | T79: 0 | U79: 0 | V79: 0 | W79: 0 | X79: 0 | Y79: 0 | Z79: 0 | AA79: 0 | AB79: 0 | AD79: 0 | AE79: 0 | AF79: 0 | AG79: 0 | AH79: 0 | AI79: 0 | AJ79: 0 | AK79: 0 | AL79: 0 | AM79: 0 | AQ79: 1 Nov 2024 to 30 Nov 20244773496701LABAP | AR79: =Data!A72 -> 2024-11-01 | AS79: =TRIM(Data!B72) -> HKSH MEDICAL GROUP LIMITED | AU79: =TRIM(Data!C72) -> PH | AV79: =TRIM(Data!D72) -> 4773496701 | AW79: =TRIM(Data!E72) -> LABAP | AX79: =TRIM(Data!F72) -> 1 | AY79: =TRIM(Data!G72) -> HKSH e-HR gateway | AZ79: =TRIM(Data!H72) -> Local System | BA79: =TRIM(Data!I72) -> 815 | BB79: =TRIM(Data!J72) -> 0 | BC79: =TRIM(Data!K72) -> 815 | BD79: =TRIM(Data!L72) -> 0 | BE79: =TRIM(Data!M72) -> 0 | BI79: =TRIM(Data!N72) -> 0 | BJ79: =TRIM(Data!O72) -> 0 | BK79: =TRIM(Data!P72) -> 0 | BM79: =TRIM(Data!Q72) -> 0 | BP79: =TRIM(Data!R72) -> 0 | BQ79: =TRIM(Data!S72) -> 0 | BR79: =TRIM(Data!T72) -> 0 | BV79: =TRIM(Data!U72) -> 0 | BX79: =TRIM(Data!V72) -> 0 | BY79: =TRIM(Data!W72) -> 0 | BZ79: =TRIM(Data!X72) -> 0 | CA79: =TRIM(Data!Y72) -> 0 | CB79: =TRIM(Data!Z72) -> 0 | CC79: =TRIM(Data!AA72) -> 0 | CD79: 173 | CE79: 1 Nov 2024 to 30 Nov 2024 | CF79: HKSH Medical Group Limited | CG79: HKSH MEDICAL FROUP | CH79: PH | CI79: 4773496701 | CJ79: LABAP | CK79: 1 | CL79: HKSH e-HR gateway | CM79: Local System | CN79: 815 | CO79: 0 | CP79: 815 | CQ79: 0 | CR79: 0 | CT79: 0 | CU79: 0 | CV79: 0 | CW79: 0 | CX79: 0 | CY79: 0 | CZ79: 0 | DA79: 0 | DB79: 0 | DC79: 0 | DD79: 0 | DE79: 0 | DG79: 0 | DH79: 0 | DI79: 0 | DJ79: 0 | DK79: 0 | DL79: 0 | DM79: 0 | DN79: 0 | DO79: 0 | DP79: 0
A80: 1 Nov 2024 to 30 Nov 20243098159131IMMU | B80: 1 Nov 2024 to 30 Nov 2024 | C80: HOSPITAL AUTHORITY | D80: HA | E80: HA | F80: 3098159131 | G80: IMMU | H80: 3 | I80: Enterprise Application Integration (EAI) | J80: Local System | K80: 207112 | L80: 0 | M80: 0 | N80: 11553 | O80: 195559 | Q80: 0 | R80: 0 | S80: 0 | T80: 0 | U80: 11181 | V80: 0.05398528332 | W80: 11181 | X80: 0 | Y80: 0 | Z80: 11181 | AA80: 0 | AB80: 0 | AD80: 195559 | AE80: 0.944218587 | AF80: 380 | AG80: 0.001834756074 | AH80: 0 | AI80: 380 | AJ80: 0 | AK80: 0 | AL80: 0 | AM80: 0 | AQ80: 1 Nov 2024 to 30 Nov 20244773496701AL1 | AR80: =Data!A73 -> 2024-11-01 | AS80: =TRIM(Data!B73) -> HKSH MEDICAL GROUP LIMITED | AU80: =TRIM(Data!C73) -> PH | AV80: =TRIM(Data!D73) -> 4773496701 | AW80: =TRIM(Data!E73) -> AL1 | AX80: =TRIM(Data!F73) -> 3 | AY80: =TRIM(Data!G73) -> HKSH e-HR gateway | AZ80: =TRIM(Data!H73) -> Local System | BA80: =TRIM(Data!I73) -> 759 | BB80: =TRIM(Data!J73) -> 0 | BC80: =TRIM(Data!K73) -> 0 | BD80: =TRIM(Data!L73) -> 333 | BE80: =TRIM(Data!M73) -> 426 | BI80: =TRIM(Data!N73) -> 0 | BJ80: =TRIM(Data!O73) -> 0 | BK80: =TRIM(Data!P73) -> 268 | BM80: =TRIM(Data!Q73) -> 268 | BP80: =TRIM(Data!R73) -> 268 | BQ80: =TRIM(Data!S73) -> 0 | BR80: =TRIM(Data!T73) -> 0 | BV80: =TRIM(Data!U73) -> 0 | BX80: =TRIM(Data!V73) -> 0 | BY80: =TRIM(Data!W73) -> 0 | BZ80: =TRIM(Data!X73) -> 0 | CA80: =TRIM(Data!Y73) -> 0 | CB80: =TRIM(Data!Z73) -> 0 | CC80: =TRIM(Data!AA73) -> 0 | CD80: 170 | CE80: 1 Nov 2024 to 30 Nov 2024 | CF80: HKSH Medical Group Limited | CG80: HKSH MEDICAL FROUP | CH80: PH | CI80: 4773496701 | CJ80: AL1 | CK80: 3 | CL80: HKSH e-HR gateway | CM80: Local System | CN80: 759 | CO80: 0 | CP80: 0 | CQ80: 333 | CR80: 426 | CT80: 0 | CU80: 0 | CV80: 0 | CW80: 0 | CX80: 268 | CY80: 0.353096179183136 | CZ80: 268 | DA80: 0 | DB80: 0 | DC80: 268 | DD80: 0 | DE80: 0 | DG80: 426 | DH80: 0.561264822134387 | DI80: 0 | DJ80: 0 | DK80: 0 | DL80: 0 | DM80: 0 | DN80: 0 | DO80: 0 | DP80: 0
